Workbook

Sheet Instructions
F6: RMS
F9: Race Management System Version 2.2 - April 17
F10: 1) Set up
G11: Use the Set-Up tab to select the events and write in team names. You can also put the venue names to make things clearer when typing in results.
F15: 1) Entries
G16: Entries go in the 'Entries Stage N' tabs. Ensure names are spelt the same across the three stages. Make sure expected times are entered as nn:nn or nn:nn.00. Relays go in the relays tab.
F20: 2) Start Sheets
G21: If PB's are entered in the 'Entries Stage N' tab, the 'Start Sheets' tab will automatically place athletes into seeded heats. Control the seeding by modifying the 'Rank' column. Withdraw athletes by removing their event in the entries tab
F25: 3) Results
G26: Enter the results under the event specific tabs. Enter the athlete number and result only. Then scroll to the right and award team points. Series points are collated automatically in the athlete series tab. Team results are collated automatically in the Team Series Tab.
J33: Copyright © James Findon 2017
F43: Change Log.
F45: 2017-03-08 | G45: Reports tab
F46: 2017-03-08 | G46: HJ cards
F47: 2017-03-08 | G47: Field cards
F48: 2017-03-08 | G48: Fixed Team M issue
F49: 2017-03-08 | G49: Added 'Series for Web' tab to make uploaded files to tablepress easier

Sheet Set-Up
B3: Teams | F3: League Events | M3: Full event list
Y4: Events
B6: Teams | C6: Team Name | D6: Relay Bib | F6: Track | H6: Field + others | X6: =IF(Y6="","",MAX(X$5:X5)+1) -> 1 | Y6: =IF(G8="Y",F8,"") -> 100
B7: Team A | C7: LSE | D7: LSE | F7: Event | G7: Included? Y/N | H7: Event | I7: Included? Y/N | M7: =IFERROR(INDEX($Y$6:$Y$41,MATCH(ROW()-ROW($M$6),$X$6:$X$41,0)),"") -> 100 | X7: =IF(Y7="","",MAX(X$5:X6)+1) -> 2 | Y7: 100H
B8: Team B | C8: King's | D8: KCL | F8: 100 | G8: Y | H8: HJ | I8: Y | M8: =IFERROR(INDEX($Y$6:$Y$41,MATCH(ROW()-ROW($M$6),$X$6:$X$41,0)),"") -> 100H | X8: =IF(Y8="","",MAX(X$5:X7)+1) -> 3 | Y8: 110H
B9: Team C | C9: Essex | D9: ESSX | F9: 100H | G9: Y | H9: TJ | I9: Y | M9: =IFERROR(INDEX($Y$6:$Y$41,MATCH(ROW()-ROW($M$6),$X$6:$X$41,0)),"") -> 110H | X9: =IF(Y9="","",MAX(X$5:X8)+1) -> 4 | Y9: 200
B10: Team D | C10: RHUL | D10: RHUL | F10: 110H | G10: Y | H10: LJ | I10: Y | M10: =IFERROR(INDEX($Y$6:$Y$41,MATCH(ROW()-ROW($M$6),$X$6:$X$41,0)),"") -> 200 | X10: =IF(Y10="","",MAX(X$5:X9)+1) -> 5 | Y10: 400
B11: Team E | C11: UCL | D11: UCL | F11: 200 | G11: Y | H11: PV | I11: Y | M11: =IFERROR(INDEX($Y$6:$Y$41,MATCH(ROW()-ROW($M$6),$X$6:$X$41,0)),"") -> 400 | X11: =IF(Y11="","",MAX(X$5:X10)+1) -> 6 | Y11: 400H
B12: Team F | C12: Imperial | D12: ICL | F12: 400 | G12: Y | H12: SP | I12: Y | M12: =IFERROR(INDEX($Y$6:$Y$41,MATCH(ROW()-ROW($M$6),$X$6:$X$41,0)),"") -> 400H | X12: =IF(Y12="","",MAX(X$5:X11)+1) -> 7 | Y12: 800
B13: Team G | C13: QMUL | D13: QMUL | F13: 400H | G13: Y | H13: JT | I13: Y | M13: =IFERROR(INDEX($Y$6:$Y$41,MATCH(ROW()-ROW($M$6),$X$6:$X$41,0)),"") -> 800 | X13: =IF(Y13="","",MAX(X$5:X12)+1) -> 8 | Y13: 1500
B14: Team H | C14: SMU | D14: SMU | F14: 800 | G14: Y | H14: Hammer | I14: N | M14: =IFERROR(INDEX($Y$6:$Y$41,MATCH(ROW()-ROW($M$6),$X$6:$X$41,0)),"") -> 1500 | X14: =IF(Y14="","",MAX(X$5:X13)+1) -> 
B15: Team I | C15: Brunel | D15: BRU | F15: 1500 | G15: Y | H15: Discus | I15: Y | M15: =IFERROR(INDEX($Y$6:$Y$41,MATCH(ROW()-ROW($M$6),$X$6:$X$41,0)),"") -> 2000SC | X15: =IF(Y15="","",MAX(X$5:X14)+1) -> 9 | Y15: 2000SC
B16: Team J | C16: Guests | D16: GUEST | F16: 1Mile | G16: N | H16: Club | I16: N | M16: =IFERROR(INDEX($Y$6:$Y$41,MATCH(ROW()-ROW($M$6),$X$6:$X$41,0)),"") -> 3000SC | X16: =IF(Y16="","",MAX(X$5:X15)+1) -> 
B17: Team K | C17: UEL | D17: UEL | F17: 2000SC | G17: Y | H17: Event 1 | I17: N | M17: =IFERROR(INDEX($Y$6:$Y$41,MATCH(ROW()-ROW($M$6),$X$6:$X$41,0)),"") -> 5000 | X17: =IF(Y17="","",MAX(X$5:X16)+1) -> 10 | Y17: 3000SC
B18: Team L | C18: UofL | D18: UL | F18: 3000 | G18: N | H18: Event 2 | I18: N | M18: =IFERROR(INDEX($Y$6:$Y$41,MATCH(ROW()-ROW($M$6),$X$6:$X$41,0)),"") -> 10000 | X18: =IF(Y18="","",MAX(X$5:X17)+1) -> 11 | Y18: 5000
B19: Team M | C19: Roehampton | D19: ROE | F19: 3000SC | G19: Y | H19: Event 3 | I19: N | M19: =IFERROR(INDEX($Y$6:$Y$41,MATCH(ROW()-ROW($M$6),$X$6:$X$41,0)),"") -> 4X100 | X19: =IF(Y19="","",MAX(X$5:X18)+1) -> 12 | Y19: 10000
B20: Team N | C20: STG | D20: STG | F20: 5000 | G20: Y | H20: Event 4 | I20: N | M20: =IFERROR(INDEX($Y$6:$Y$41,MATCH(ROW()-ROW($M$6),$X$6:$X$41,0)),"") -> 4X400 | X20: =IF(Y20="","",MAX(X$5:X19)+1) -> 13 | Y20: 4X100
B21: Team O | F21: 10000 | G21: Y | H21: Event 5 | I21: N | M21: =IFERROR(INDEX($Y$6:$Y$41,MATCH(ROW()-ROW($M$6),$X$6:$X$41,0)),"") -> Medley | X21: =IF(Y21="","",MAX(X$5:X20)+1) -> 14 | Y21: 4X400
B22: Team P | F22: 4X100 | G22: Y | H22: Event 6 | I22: N | M22: =IFERROR(INDEX($Y$6:$Y$41,MATCH(ROW()-ROW($M$6),$X$6:$X$41,0)),"") -> HJ | X22: =IF(Y22="","",MAX(X$5:X21)+1) -> 15 | Y22: Medley
B23: Team Q | F23: 4X400 | G23: Y | H23: Event 7 | I23: N | M23: =IFERROR(INDEX($Y$6:$Y$41,MATCH(ROW()-ROW($M$6),$X$6:$X$41,0)),"") -> TJ | X23: =IF(Y23="","",MAX(X$5:X22)+1) -> 16 | Y23: =IF(I8="Y",H8,"") -> HJ
B24: Team R | F24: Medley | G24: Y | H24: Event 8 | I24: N | M24: =IFERROR(INDEX($Y$6:$Y$41,MATCH(ROW()-ROW($M$6),$X$6:$X$41,0)),"") -> LJ | X24: =IF(Y24="","",MAX(X$5:X23)+1) -> 17 | Y24: TJ
B25: Team S | F25: Multi | G25: Y | H25: Event 9 | I25: N | M25: =IFERROR(INDEX($Y$6:$Y$41,MATCH(ROW()-ROW($M$6),$X$6:$X$41,0)),"") -> PV | X25: =IF(Y25="","",MAX(X$5:X24)+1) -> 18 | Y25: LJ
B26: Team T | M26: =IFERROR(INDEX($Y$6:$Y$41,MATCH(ROW()-ROW($M$6),$X$6:$X$41,0)),"") -> SP | X26: =IF(Y26="","",MAX(X$5:X25)+1) -> 19 | Y26: PV
A27: Relay stops here for now> | B27: Team U | M27: =IFERROR(INDEX($Y$6:$Y$41,MATCH(ROW()-ROW($M$6),$X$6:$X$41,0)),"") -> JT | X27: =IF(Y27="","",MAX(X$5:X26)+1) -> 20 | Y27: SP
B28: Team V | F28: Venues | M28: =IFERROR(INDEX($Y$6:$Y$41,MATCH(ROW()-ROW($M$6),$X$6:$X$41,0)),"") -> Discus | X28: =IF(Y28="","",MAX(X$5:X27)+1) -> 21 | Y28: JT
B29: Team W | M29: =IFERROR(INDEX($Y$6:$Y$41,MATCH(ROW()-ROW($M$6),$X$6:$X$41,0)),"") ->  | X29: =IF(Y29="","",MAX(X$5:X28)+1) -> 
B30: Team X | F30: Meet | G30: Venue | H30: Date | M30: =IFERROR(INDEX($Y$6:$Y$41,MATCH(ROW()-ROW($M$6),$X$6:$X$41,0)),"") ->  | X30: =IF(Y30="","",MAX(X$5:X29)+1) -> 22 | Y30: Discus
B31: Team Y | F31: Meet 1 | G31: St Mary's | H31: 2017-03-18 | M31: =IFERROR(INDEX($Y$6:$Y$41,MATCH(ROW()-ROW($M$6),$X$6:$X$41,0)),"") ->  | X31: =IF(Y31="","",MAX(X$5:X30)+1) -> 
B32: Team Z | F32: Meet 2 | G32: Woodford | H32: 2017-04-09 | M32: =IFERROR(INDEX($Y$6:$Y$41,MATCH(ROW()-ROW($M$6),$X$6:$X$41,0)),"") ->  | X32: =IF(Y32="","",MAX(X$5:X31)+1) ->  | Y32: =IF(I17="Y",H17,"") -> 
B33: Team AA | F33: Meet 3 | G33: Battersea | H33: 2017-05-27 | M33: =IFERROR(INDEX($Y$6:$Y$41,MATCH(ROW()-ROW($M$6),$X$6:$X$41,0)),"") ->  | X33: =IF(Y33="","",MAX(X$5:X32)+1) -> 
B34: Team AB | M34: =IFERROR(INDEX($Y$6:$Y$41,MATCH(ROW()-ROW($M$6),$X$6:$X$41,0)),"") ->  | X34: =IF(Y34="","",MAX(X$5:X33)+1) -> 
B35: Team AC | M35: =IFERROR(INDEX($Y$6:$Y$41,MATCH(ROW()-ROW($M$6),$X$6:$X$41,0)),"") ->  | X35: =IF(Y35="","",MAX(X$5:X34)+1) -> 
B36: Team AD | M36: =IFERROR(INDEX($Y$6:$Y$41,MATCH(ROW()-ROW($M$6),$X$6:$X$41,0)),"") ->  | X36: =IF(Y36="","",MAX(X$5:X35)+1) -> 
B37: Team AE | M37: =IFERROR(INDEX($Y$6:$Y$41,MATCH(ROW()-ROW($M$6),$X$6:$X$41,0)),"") ->  | X37: =IF(Y37="","",MAX(X$5:X36)+1) -> 
M38: =IFERROR(INDEX($Y$6:$Y$41,MATCH(ROW()-ROW($M$6),$X$6:$X$41,0)),"") ->  | X38: =IF(Y38="","",MAX(X$5:X37)+1) -> 
M39: =IFERROR(INDEX($Y$6:$Y$41,MATCH(ROW()-ROW($M$6),$X$6:$X$41,0)),"") ->  | X39: =IF(Y39="","",MAX(X$5:X38)+1) -> 
M40: =IFERROR(INDEX($Y$6:$Y$41,MATCH(ROW()-ROW($M$6),$X$6:$X$41,0)),"") ->  | X40: =IF(Y40="","",MAX(X$5:X39)+1) -> 
M41: =IFERROR(INDEX($Y$6:$Y$41,MATCH(ROW()-ROW($M$6),$X$6:$X$41,0)),"") -> 
M42: =IFERROR(INDEX($Y$6:$Y$41,MATCH(ROW()-ROW($M$6),$X$6:$X$41,0)),"") -> 
M43: =IFERROR(INDEX($Y$6:$Y$41,MATCH(ROW()-ROW($M$6),$X$6:$X$41,0)),"") -> 

Sheet Reports
A1: Reports
A4: ='Set-Up'!G31 -> St Mary's | G4: ='Set-Up'!G32 -> Woodford | M4: ='Set-Up'!G33 -> Battersea
A6: Number of athletes | C6: =SUM(C9:C10) -> 198 | G6: Number of athletes | I6: =SUM(I9:I10) -> 101 | M6: Number of athletes | O6: =SUM(O9:O10) -> 1
A7: Number of events | C7: =SUM(E15:E36) -> 298 | G7: Number of events | I7: =SUM(K15:K36) -> 224 | M7: Number of events | O7: =SUM(Q15:Q36) -> 0
A8: Number of relay teams | C8: =(COUNTIF(Relays!A:P,"Y")+(COUNTIF(Relays!A:P,"Y")+(COUNTIF(Relays!Q:AF,"Y")+COUNTIF(Relays!Q:AF,"Y")))) -> 42 | G8: Number of relay teams | I8: =(COUNTIF(Relays!G:G,"Y")+(COUNTIF(Relays!O:O,"Y")+(COUNTIF(Relays!W:W,"Y")+COUNTIF(Relays!AE:AE,"Y")))) -> 8 | M8: Number of relay teams | O8: =(COUNTIF(Relays!M:M,"Y")+(COUNTIF(Relays!U:U,"Y")+(COUNTIF(Relays!AC:AC,"Y")+COUNTIF(Relays!AK:AK,"Y")))) -> 0
A9: Number of men | C9: =COUNTIF('Entries Stage 1'!$D$3:$D$503,"M") -> 133 | D9: =(C9/C6)*1 -> 0.6717171717 | G9: Number of men | I9: =COUNTIF('Entries Stage 2'!$D$3:$D$503,"M") -> 67 | J9: =(I9/I6)*1 -> 0.6633663366 | M9: Number of men | O9: =COUNTIF('Entries Stage 3'!$D$3:$D$503,"M") -> 1 | P9: =(O9/O6)*1 -> 1
A10: Number of women | C10: =COUNTIF('Entries Stage 1'!$D$3:$D$503,"F") -> 65 | D10: =(C10/C6)*1 -> 0.3282828283 | G10: Number of women | I10: =COUNTIF('Entries Stage 2'!$D$3:$D$503,"F") -> 34 | J10: =(I10/I6)*1 -> 0.3366336634 | M10: Number of women | O10: =COUNTIF('Entries Stage 3'!$D$3:$D$503,"F") -> 0 | P10: =(O10/O6)*1 -> 0
A11: Number of teams | C11: To do | G11: Number of teams | I11: To do | M11: Number of teams | O11: To do
A12: Number of guests | C12: =COUNTIF('Entries Stage 1'!$C$3:$C$503,"Guests") -> 12 | D12: =(C12/C6)*1 -> 0.06060606061 | G12: Number of guests | I12: =COUNTIF('Entries Stage 2'!$C$3:$C$503,"Guests") -> 20 | J12: =(I12/I6)*1 -> 0.198019802 | M12: Number of guests | O12: =COUNTIF('Entries Stage 3'!$C$3:$C$503,"Guests") -> 0 | P12: =(O12/O6)*1 -> 0
A13: Number of Motspur | C13: To do | G13: Number of Motspur | I13: To do | M13: Number of Motspur | O13: To do
A14: Events | C14: M | D14: F | E14: Total | G14: Events | I14: M | J14: F | K14: Total | M14: Events | O14: M | P14: F | Q14: Total
A15: 100 | C15: ='Start Sheets Stage 1'!W2 -> 27 | D15: ='Start Sheets Stage 1'!W1 -> 12 | E15: =SUM(C15:D15) -> 39 | G15: 100 | I15: ='Start Sheets Stage 2'!W2 -> 25 | J15: ='Start Sheets Stage 2'!W1 -> 7 | K15: =SUM(I15:J15) -> 32 | M15: 100
A16: 100H | C16: ='Start Sheets Stage 1'!AG2 -> 0 | D16: ='Start Sheets Stage 1'!AG1 -> 2 | E16: =SUM(C16:D16) -> 2 | G16: 100H | I16: ='Start Sheets Stage 2'!AG2 -> 0 | J16: ='Start Sheets Stage 2'!AG1 -> 4 | K16: =SUM(I16:J16) -> 4 | M16: 100H
A17: 110H | C17: ='Start Sheets Stage 1'!AQ2 -> 1 | D17: ='Start Sheets Stage 1'!AQ1 -> 0 | E17: 1 | G17: 110H | I17: ='Start Sheets Stage 2'!AQ2 -> 4 | J17: ='Start Sheets Stage 2'!AQ1 -> 0 | K17: 4 | M17: 110H
A18: 200 | C18: ='Start Sheets Stage 1'!BA2 -> 21 | D18: ='Start Sheets Stage 1'!BA1 -> 11 | E18: 32 | G18: 200 | I18: ='Start Sheets Stage 2'!BA2 -> 18 | J18: ='Start Sheets Stage 2'!BA1 -> 10 | K18: 28 | M18: 200
A19: 400 | C19: ='Start Sheets Stage 1'!BK2 -> 11 | D19: ='Start Sheets Stage 1'!BK1 -> 5 | E19: 16 | G19: 400 | I19: ='Start Sheets Stage 2'!BK2 -> 10 | J19: ='Start Sheets Stage 2'!BK1 -> 3 | K19: 13 | M19: 400
A20: 400H | C20: ='Start Sheets Stage 1'!BU2 -> 4 | D20: ='Start Sheets Stage 1'!BU1 -> 3 | E20: 7 | G20: 400H | I20: ='Start Sheets Stage 2'!BU2 -> 4 | J20: ='Start Sheets Stage 2'!BU1 -> 4 | K20: 8 | M20: 400H
A21: 800 | C21: ='Start Sheets Stage 1'!CE2 -> 9 | D21: ='Start Sheets Stage 1'!CE1 -> 6 | E21: 15 | G21: 800 | I21: ='Start Sheets Stage 2'!CE2 -> 6 | J21: ='Start Sheets Stage 2'!CE1 -> 6 | K21: 12 | M21: 800
A22: 1500 | C22: ='Start Sheets Stage 1'!CO2 -> 20 | D22: ='Start Sheets Stage 1'!CO1 -> 13 | E22: 33 | G22: 1500 | I22: ='Start Sheets Stage 2'!CO2 -> 16 | J22: ='Start Sheets Stage 2'!CO1 -> 5 | K22: 21 | M22: 1500
A23: 2000SC | C23: ='Start Sheets Stage 1'!CY2 -> 0 | D23: ='Start Sheets Stage 1'!CY1 -> 3 | E23: 3 | G23: 2000SC | I23: ='Start Sheets Stage 2'!CY2 -> 0 | J23: ='Start Sheets Stage 2'!CY1 -> 0 | K23: 0 | M23: 2000SC
A24: 3000SC | C24: ='Start Sheets Stage 1'!DI2 -> 7 | D24: ='Start Sheets Stage 1'!DI1 -> 0 | E24: 7 | G24: 3000SC | I24: ='Start Sheets Stage 2'!DI2 -> 0 | J24: ='Start Sheets Stage 2'!DI1 -> 0 | K24: 0 | M24: 3000SC
A25: 5000 | C25: ='Start Sheets Stage 1'!DS2 -> 31 | D25: ='Start Sheets Stage 1'!DS1 -> 8 | E25: 39 | G25: 5000 | I25: ='Start Sheets Stage 2'!DS2 -> 14 | J25: ='Start Sheets Stage 2'!DS1 -> 3 | K25: 17 | M25: 5000
A26: 10000 | C26: ='Start Sheets Stage 1'!EC2 -> 11 | D26: ='Start Sheets Stage 1'!EC1 -> 4 | E26: 15 | G26: 10000 | I26: ='Start Sheets Stage 2'!EC2 -> 0 | J26: ='Start Sheets Stage 2'!EC1 -> 0 | K26: 0 | M26: 10000
A27: 4X100 | G27: 4X100 | M27: 4X100
A28: 4X400 | G28: 4X400 | M28: 4X400
A29: Medley | G29: Medley | M29: Medley
A30: HJ | E30: =COUNTIF('Entries Stage 1'!BJ:BJ,"Y") -> 10 | G30: HJ | K30: =COUNTIF('Entries Stage 2'!BJ:BJ,"Y") -> 18 | M30: HJ
A31: TJ | E31: =COUNTIF('Entries Stage 1'!BM:BM,"Y") -> 8 | G31: TJ | K31: =COUNTIF('Entries Stage 2'!BM:BM,"Y") -> 8 | M31: TJ
A32: LJ | E32: =COUNTIF('Entries Stage 1'!BP:BP,"Y") -> 21 | G32: LJ | K32: =COUNTIF('Entries Stage 2'!BP:BP,"Y") -> 11 | M32: LJ
A33: PV | E33: =COUNTIF('Entries Stage 1'!BS:BS, "Y") -> 0 | G33: PV | K33: =COUNTIF('Entries Stage 2'!BS:BS, "Y") -> 0 | M33: PV
A34: SP | E34: =COUNTIF('Entries Stage 1'!BV:BV,"Y") -> 18 | G34: SP | K34: =COUNTIF('Entries Stage 2'!BV:BV,"Y") -> 24 | M34: SP
A35: JT | E35: =COUNTIF('Entries Stage 1'!BY:BY,"Y") -> 17 | G35: JT | K35: =COUNTIF('Entries Stage 2'!BY:BY,"Y") -> 15 | M35: JT
A36: Discus | E36: =COUNTIF('Entries Stage 1'!CB:CB,"Y") -> 15 | G36: Discus | K36: =COUNTIF('Entries Stage 2'!CB:CB,"Y") -> 9 | M36: Discus
A37: ='Set-Up'!M29 -> 
A38: ='Set-Up'!M30 -> 
A39: ='Set-Up'!M31 -> 

Sheet Team Series
E1: LUCA Outdoor Series
J2: Stage 1 | O2: Stage 2 | T2: Stage 3
E4: Series Championship | J4: Series Championship | O4: Series Championship | T4: Series Championship
D5: Standing | F5: Team | G5: Points | I5: Standing | K5: Team | L5: Points | N5: Standing | P5: Team | Q5: Points | S5: Standing | U5: Team | V5: Points
D6: =IF(G7="",E6,IF(G6=G7,"1=","1")) -> 1 | E6: 1 | F6: =IFERROR(VLOOKUP(E6,$I$44:$K$74,3,FALSE),"") -> UCL | G6: =IFERROR(VLOOKUP(E6,$I$44:$K$74,2,FALSE),"") -> 379 | I6: =IF(L7="",J6,IF(L6=L7,"1=","1")) -> 1 | J6: 1 | K6: =IFERROR(VLOOKUP(J6,$C$44:$K$74,9,FALSE),"") -> UCL | L6: =IFERROR(VLOOKUP(J6,$C$44:$D$74,2,FALSE),"") -> 186 | N6: =IF(Q7="",O6,IF(Q6=Q7,"1=","1")) -> 1 | O6: 1 | P6: =IFERROR(VLOOKUP(O6,$E$44:$K$74,7,FALSE),"") -> UCL | Q6: =IFERROR(VLOOKUP(O6,$E$44:$F$74,2,FALSE),"") -> 193 | S6: =IF(V7="",T6,IF(V6=V7,"1=","1")) -> 1 | T6: 1 | U6: =IFERROR(VLOOKUP(T6,$G$44:$K$74,5,FALSE),"") ->  | V6: =IFERROR(VLOOKUP(T6,$G$44:$H$74,2,FALSE),"") -> 
D7: =IF(G7="",E7,IF(G6=G7,"1=",IF(G7=G8,"2=","2"))) -> 2= | E7: 2 | F7: =IFERROR(VLOOKUP(E7,$I$44:$K$74,3,FALSE),"") -> LSE | G7: =IFERROR(VLOOKUP(E7,$I$44:$K$74,2,FALSE),"") -> 270 | I7: =IF(L7="",J7,IF(L6=L7,"1=",IF(L7=L8,"2=","2"))) -> 2 | J7: 2 | K7: =IFERROR(VLOOKUP(J7,$C$44:$K$74,9,FALSE),"") -> King's | L7: =IFERROR(VLOOKUP(J7,$C$44:$D$74,2,FALSE),"") -> 130 | N7: =IF(Q7="",O7,IF(Q6=Q7,"1=",IF(Q7=Q8,"2=","2"))) -> 2 | O7: 2 | P7: =IFERROR(VLOOKUP(O7,$E$44:$K$74,7,FALSE),"") -> LSE | Q7: =IFERROR(VLOOKUP(O7,$E$44:$F$74,2,FALSE),"") -> 166 | S7: =IF(V7="",T7,IF(V6=V7,"1=",IF(V7=V8,"2=","2"))) -> 2 | T7: 2 | U7: =IFERROR(VLOOKUP(T7,$G$44:$K$74,5,FALSE),"") ->  | V7: =IFERROR(VLOOKUP(T7,$G$44:$H$74,2,FALSE),"") -> 
D8: =IF(G8="",E8,IF(G7=G8,"2=",IF(G8=G9,"3=","3"))) -> 2= | E8: 3 | F8: King's | G8: 270 | I8: =IF(L8="",J8,IF(L7=L8,"2=",IF(L8=L9,"3=","3"))) -> 3 | J8: 3 | K8: LSE | L8: 104 | N8: =IF(Q8="",O8,IF(Q7=Q8,"2=",IF(Q8=Q9,"3=","3"))) -> 3 | O8: 3 | P8: King's | Q8: 140 | S8: =IF(V8="",T8,IF(V7=V8,"2=",IF(V8=V9,"3=","3"))) -> 3 | T8: 3
D9: =IF(G9="",E9,IF(G8=G9,"3=",IF(G9=G10,"4=",E9))) -> 4 | E9: 4 | F9: SMU | G9: 90 | I9: =IF(L9="",J9,IF(L8=L9,"3=",IF(L9=L10,"4=",J9))) -> 4 | J9: 4 | K9: SMU | L9: 83 | N9: =IF(Q9="",O9,IF(Q8=Q9,"3=",IF(Q9=Q10,"4=",O9))) -> 4 | O9: 4 | P9: Imperial | Q9: 26 | S9: =IF(V9="",T9,IF(V8=V9,"3=",IF(V9=V10,"4=",T9))) -> 4 | T9: 4
D10: =IF(G10="",E10,IF(G9=G10,"4=",IF(G10=G11,"5=",E10))) -> 5 | E10: 5 | F10: Imperial | G10: 83 | I10: =IF(L10="",J10,IF(L9=L10,"4=",IF(L10=L11,"5=",J10))) -> 5 | J10: 5 | K10: Imperial | L10: 57 | N10: =IF(Q10="",O10,IF(Q9=Q10,"4=",IF(Q10=Q11,"5=",O10))) -> 5 | O10: 5 | P10: Essex | Q10: 14 | S10: =IF(V10="",T10,IF(V9=V10,"4=",IF(V10=V11,"5=",T10))) -> 5 | T10: 5
D11: =IF(G11="",E11,IF(G10=G11,"5=",IF(G11=G12,"6=",E11))) -> 6 | E11: 6 | F11: Essex | G11: 48 | I11: =IF(L11="",J11,IF(L10=L11,"5=",IF(L11=L12,"6=",J11))) -> 6 | J11: 6 | K11: Essex | L11: 34 | N11: =IF(Q11="",O11,IF(Q10=Q11,"5=",IF(Q11=Q12,"6=",O11))) -> 6= | O11: 6 | P11: UEL | Q11: 12 | S11: =IF(V11="",T11,IF(V10=V11,"5=",IF(V11=V12,"6=",T11))) -> 6 | T11: 6
D12: =IF(G12="",E12,IF(G11=G12,"6=",IF(G12=G13,"7=",E12))) -> 7 | E12: 7 | F12: QMUL | G12: 39 | I12: =IF(L12="",J12,IF(L11=L12,"6=",IF(L12=L13,"7=",J12))) -> 7 | J12: 7 | K12: QMUL | L12: 28 | N12: =IF(Q12="",O12,IF(Q11=Q12,"6=",IF(Q12=Q13,"7=",O12))) -> 6= | O12: 7 | P12: Roehampton | Q12: 12 | S12: =IF(V12="",T12,IF(V11=V12,"6=",IF(V12=V13,"7=",T12))) -> 7 | T12: 7
D13: =IF(G13="",E13,IF(G12=G13,"7=",IF(G13=G14,"8=",E13))) -> 8= | E13: 8 | F13: RHUL | G13: 21 | I13: =IF(L13="",J13,IF(L12=L13,"7=",IF(L13=L14,"8=",J13))) -> 8 | J13: 8 | K13: Brunel | L13: 21 | N13: =IF(Q13="",O13,IF(Q12=Q13,"7=",IF(Q13=Q14,"8=",O13))) -> 8 | O13: 8 | P13: QMUL | Q13: 11 | S13: =IF(V13="",T13,IF(V12=V13,"7=",IF(V13=V14,"8=",T13))) -> 8 | T13: 8
D14: =IF(G14="",E14,IF(G13=G14,"8=",IF(G14=G15,"9=",E14))) -> 8= | E14: 9 | F14: Brunel | G14: 21 | I14: =IF(L14="",J14,IF(L13=L14,"8=",IF(L14=L15,"9=",J14))) -> 9 | J14: 9 | K14: RHUL | L14: 14 | N14: =IF(Q14="",O14,IF(Q13=Q14,"8=",IF(Q14=Q15,"9=",O14))) -> 9= | O14: 9 | P14: RHUL | Q14: 7 | S14: =IF(V14="",T14,IF(V13=V14,"8=",IF(V14=V15,"9=",T14))) -> 9 | T14: 9
D15: =IF(G15="",E15,IF(G14=G15,"9=",IF(G15=G16,"10=",E15))) -> 10 | E15: 10 | F15: UEL | G15: 13 | I15: =IF(L15="",J15,IF(L14=L15,"9=",IF(L15=L16,"10=",J15))) -> 10 | J15: 10 | K15: UofL | L15: 7 | N15: =IF(Q15="",O15,IF(Q14=Q15,"9=",IF(Q15=Q16,"10=",O15))) -> 9= | O15: 10 | P15: SMU | Q15: 7 | S15: =IF(V15="",T15,IF(V14=V15,"9=",IF(V15=V16,"10=",T15))) -> 10 | T15: 10
D16: =IF(G16="",E16,IF(G15=G16,"10=",IF(G16=G17,"11=",E16))) -> 11 | E16: 11 | F16: Roehampton | G16: 12 | I16: =IF(L16="",J16,IF(L15=L16,"10=",IF(L16=L17,"11=",J16))) -> 11 | J16: 11 | K16: STG | L16: 5 | N16: =IF(Q16="",O16,IF(Q15=Q16,"10=",IF(Q16=Q17,"11=",O16))) -> 11 | O16: 11 | S16: =IF(V16="",T16,IF(V15=V16,"10=",IF(V16=V17,"11=",T16))) -> 11 | T16: 11
D17: =IF(G17="",E17,IF(G16=G17,"11=",IF(G17=G18,"12=",E17))) -> 12 | E17: 12 | F17: UofL | G17: 7 | I17: =IF(L17="",J17,IF(L16=L17,"11=",IF(L17=L18,"12=",J17))) -> 12 | J17: 12 | K17: UEL | L17: 1 | N17: =IF(Q17="",O17,IF(Q16=Q17,"11=",IF(Q17=Q18,"12=",O17))) -> 12 | O17: 12 | S17: =IF(V17="",T17,IF(V16=V17,"11=",IF(V17=V18,"12=",T17))) -> 12 | T17: 12
D18: =IF(G18="",E18,IF(G17=G18,"12=",IF(G18=G19,"13=",E18))) -> 13 | E18: 13 | F18: STG | G18: 5 | I18: =IF(L18="",J18,IF(L17=L18,"12=",IF(L18=L19,"13=",J18))) -> 13 | J18: 13 | N18: =IF(Q18="",O18,IF(Q17=Q18,"12=",IF(Q18=Q19,"13=",O18))) -> 13 | O18: 13 | S18: =IF(V18="",T18,IF(V17=V18,"12=",IF(V18=V19,"13=",T18))) -> 13 | T18: 13
D19: =IF(G19="",E19,IF(G18=G19,"13=",IF(G19=G20,"14=",E19))) -> 14 | E19: 14 | I19: =IF(L19="",J19,IF(L18=L19,"13=",IF(L19=L20,"14=",J19))) -> 14 | J19: 14 | N19: =IF(Q19="",O19,IF(Q18=Q19,"13=",IF(Q19=Q20,"14=",O19))) -> 14 | O19: 14 | S19: =IF(V19="",T19,IF(V18=V19,"13=",IF(V19=V20,"14=",T19))) -> 14 | T19: 14
D20: =IF(G20="",E20,IF(G19=G20,"14=",IF(G20=G21,"15=",E20))) -> 15 | E20: 15 | I20: =IF(L20="",J20,IF(L19=L20,"14=",IF(L20=L21,"15=",J20))) -> 15 | J20: 15 | N20: =IF(Q20="",O20,IF(Q19=Q20,"14=",IF(Q20=Q21,"15=",O20))) -> 15 | O20: 15 | S20: =IF(V20="",T20,IF(V19=V20,"14=",IF(V20=V21,"15=",T20))) -> 15 | T20: 15
D21: =IF(G21="",E21,IF(G20=G21,"15=",IF(G21=G22,"16=",E21))) -> 16 | E21: 16 | I21: =IF(L21="",J21,IF(L20=L21,"15=",IF(L21=L22,"16=",J21))) -> 16 | J21: 16 | N21: =IF(Q21="",O21,IF(Q20=Q21,"15=",IF(Q21=Q22,"16=",O21))) -> 16 | O21: 16 | S21: =IF(V21="",T21,IF(V20=V21,"15=",IF(V21=V22,"16=",T21))) -> 16 | T21: 16
D22: =IF(G22="",E22,IF(G21=G22,"16=",IF(G22=G23,"17=",E22))) -> 17 | E22: 17 | I22: =IF(L22="",J22,IF(L21=L22,"16=",IF(L22=L23,"17=",J22))) -> 17 | J22: 17 | N22: =IF(Q22="",O22,IF(Q21=Q22,"16=",IF(Q22=Q23,"17=",O22))) -> 17 | O22: 17 | S22: =IF(V22="",T22,IF(V21=V22,"16=",IF(V22=V23,"17=",T22))) -> 17 | T22: 17
D23: =IF(G23="",E23,IF(G22=G23,"17=",IF(G23=G24,"18=",E23))) -> 18 | E23: 18 | I23: =IF(L23="",J23,IF(L22=L23,"17=",IF(L23=L24,"18=",J23))) -> 18 | J23: 18 | N23: =IF(Q23="",O23,IF(Q22=Q23,"17=",IF(Q23=Q24,"18=",O23))) -> 18 | O23: 18 | S23: =IF(V23="",T23,IF(V22=V23,"17=",IF(V23=V24,"18=",T23))) -> 18 | T23: 18
D24: =IF(G24="",E24,IF(G23=G24,"18=",IF(G24=G25,"19=",E24))) -> 19 | E24: 19 | I24: =IF(L24="",J24,IF(L23=L24,"18=",IF(L24=L25,"19=",J24))) -> 19 | J24: 19 | N24: =IF(Q24="",O24,IF(Q23=Q24,"18=",IF(Q24=Q25,"19=",O24))) -> 19 | O24: 19 | S24: =IF(V24="",T24,IF(V23=V24,"18=",IF(V24=V25,"19=",T24))) -> 19 | T24: 19
D25: =IF(G25="",E25,IF(G24=G25,"19=",IF(G25=G26,"20=",E25))) -> 20 | E25: 20 | I25: =IF(L25="",J25,IF(L24=L25,"19=",IF(L25=L26,"20=",J25))) -> 20 | J25: 20 | N25: =IF(Q25="",O25,IF(Q24=Q25,"19=",IF(Q25=Q26,"20=",O25))) -> 20 | O25: 20 | S25: =IF(V25="",T25,IF(V24=V25,"19=",IF(V25=V26,"20=",T25))) -> 20 | T25: 20
D26: =IF(G26="",E26,IF(G25=G26,"20=",IF(G26=G27,"21=",E26))) -> 21 | E26: 21 | I26: =IF(L26="",J26,IF(L25=L26,"20=",IF(L26=L27,"21=",J26))) -> 21 | J26: 21 | N26: =IF(Q26="",O26,IF(Q25=Q26,"20=",IF(Q26=Q27,"21=",O26))) -> 21 | O26: 21 | S26: =IF(V26="",T26,IF(V25=V26,"20=",IF(V26=V27,"21=",T26))) -> 21 | T26: 21
D27: =IF(G27="",E27,IF(G26=G27,"21=",IF(G27=G28,"22=",E27))) -> 22 | E27: 22 | I27: =IF(L27="",J27,IF(L26=L27,"21=",IF(L27=L28,"22=",J27))) -> 22 | J27: 22 | N27: =IF(Q27="",O27,IF(Q26=Q27,"21=",IF(Q27=Q28,"22=",O27))) -> 22 | O27: 22 | S27: =IF(V27="",T27,IF(V26=V27,"21=",IF(V27=V28,"22=",T27))) -> 22 | T27: 22
D28: =IF(G28="",E28,IF(G27=G28,"22=",IF(G28=G29,"23=",E28))) -> 23 | E28: 23 | I28: =IF(L28="",J28,IF(L27=L28,"22=",IF(L28=L29,"23=",J28))) -> 23 | J28: 23 | N28: =IF(Q28="",O28,IF(Q27=Q28,"22=",IF(Q28=Q29,"23=",O28))) -> 23 | O28: 23 | S28: =IF(V28="",T28,IF(V27=V28,"22=",IF(V28=V29,"23=",T28))) -> 23 | T28: 23
D29: =IF(G29="",E29,IF(G28=G29,"23=",IF(G29=G30,"24=",E29))) -> 24 | E29: 24 | I29: =IF(L29="",J29,IF(L28=L29,"23=",IF(L29=L30,"24=",J29))) -> 24 | J29: 24 | N29: =IF(Q29="",O29,IF(Q28=Q29,"23=",IF(Q29=Q30,"24=",O29))) -> 24 | O29: 24 | S29: =IF(V29="",T29,IF(V28=V29,"23=",IF(V29=V30,"24=",T29))) -> 24 | T29: 24
D30: =IF(G30="",E30,IF(G29=G30,"24=",IF(G30=G31,"25=",E30))) -> 25 | E30: 25 | I30: =IF(L30="",J30,IF(L29=L30,"24=",IF(L30=L31,"25=",J30))) -> 25 | J30: 25 | N30: =IF(Q30="",O30,IF(Q29=Q30,"24=",IF(Q30=Q31,"25=",O30))) -> 25 | O30: 25 | S30: =IF(V30="",T30,IF(V29=V30,"24=",IF(V30=V31,"25=",T30))) -> 25 | T30: 25
D31: =IF(G31="",E31,IF(G30=G31,"25=",IF(G31=G32,"26=",E31))) -> 26 | E31: 26 | I31: =IF(L31="",J31,IF(L30=L31,"25=",IF(L31=L32,"26=",J31))) -> 26 | J31: 26 | N31: =IF(Q31="",O31,IF(Q30=Q31,"25=",IF(Q31=Q32,"26=",O31))) -> 26 | O31: 26 | S31: =IF(V31="",T31,IF(V30=V31,"25=",IF(V31=V32,"26=",T31))) -> 26 | T31: 26
D32: =IF(G32="",E32,IF(G31=G32,"26=",IF(G32=G33,"27=",E32))) -> 27 | E32: 27 | I32: =IF(L32="",J32,IF(L31=L32,"26=",IF(L32=L33,"27=",J32))) -> 27 | J32: 27 | N32: =IF(Q32="",O32,IF(Q31=Q32,"26=",IF(Q32=Q33,"27=",O32))) -> 27 | O32: 27 | S32: =IF(V32="",T32,IF(V31=V32,"26=",IF(V32=V33,"27=",T32))) -> 27 | T32: 27
D33: =IF(G33="",E33,IF(G32=G33,"26=",IF(G33=G34,"27=",E33))) -> 28 | E33: 28 | I33: =IF(L33="",J33,IF(L32=L33,"26=",IF(L33=L34,"27=",J33))) -> 28 | J33: 28 | N33: =IF(Q33="",O33,IF(Q32=Q33,"26=",IF(Q33=Q34,"27=",O33))) -> 28 | O33: 28 | S33: =IF(V33="",T33,IF(V32=V33,"26=",IF(V33=V34,"27=",T33))) -> 28 | T33: 28
D34: =IF(G34="",E34,IF(G33=G34,"26=",IF(G34=G35,"27=",E34))) -> 29 | E34: 29 | I34: =IF(L34="",J34,IF(L33=L34,"26=",IF(L34=L35,"27=",J34))) -> 29 | J34: 29 | N34: =IF(Q34="",O34,IF(Q33=Q34,"26=",IF(Q34=Q35,"27=",O34))) -> 29 | O34: 29 | S34: =IF(V34="",T34,IF(V33=V34,"26=",IF(V34=V35,"27=",T34))) -> 29 | T34: 29
D35: =IF(G35="",E35,IF(G34=G35,"26=",IF(G35=G36,"27=",E35))) -> 30 | E35: 30 | I35: =IF(L35="",J35,IF(L34=L35,"26=",IF(L35=L36,"27=",J35))) -> 30 | J35: 30 | N35: =IF(Q35="",O35,IF(Q34=Q35,"26=",IF(Q35=Q36,"27=",O35))) -> 30 | O35: 30 | S35: =IF(V35="",T35,IF(V34=V35,"26=",IF(V35=V36,"27=",T35))) -> 30 | T35: 30
D36: =IF(G36="",E36,IF(G35=G36,"26=",IF(G36=G37,"27=",E36))) -> 31 | E36: 31 | I36: =IF(L36="",J36,IF(L35=L36,"26=",IF(L36=L37,"27=",J36))) -> 31 | J36: 31 | N36: =IF(Q36="",O36,IF(Q35=Q36,"26=",IF(Q36=Q37,"27=",O36))) -> 31 | O36: 31 | S36: =IF(V36="",T36,IF(V35=V36,"26=",IF(V36=V37,"27=",T36))) -> 31 | T36: 31
C38: IFERROR(IF(W4="M",(RANK(X4,X$4:X$503,1)+COUNTIF(X$4:X4,X4)-1),""),)
A41: Total points and positions Calculator
A43: Team | B43: Name | C43: Stage 1 Pos | D43: Stage 1 Points | E43: Stage 2 pos | F43: Stage 2 Points | G43: Stage 3 pos | H43: Stage 3 points | I43: Position | J43: Total Points | K43: Team
A44: Team A | B44: =IFERROR(VLOOKUP(A44,'Set-Up'!$B$7:$C$37,2,FALSE),"") -> LSE | C44: =IFERROR(IF(D44>0,(RANK(D44,$D$44:$D$74)+COUNTIF($D$44:D44,D44)-1),""),) -> 3 | D44: =C80 -> 104 | E44: =IF(F44>0,RANK(F44,$F$44:$F$74)+COUNTIF($F$44:F44,F44)-1,"") -> 2 | F44: =C119 -> 166 | G44: =IF(H44>0,RANK(H44,$H$44:$H$74)+COUNTIF($H$44:H44,H44)-1,"") ->  | H44: =C158 -> 0 | I44: =IF(J44>0,RANK(J44,$J$44:$J$74)+COUNTIF($J$44:J44,J44)-1,"") -> 2 | J44: =D44+F44+H44 -> 270 | K44: =B44 -> LSE
A45: Team B | B45: =IFERROR(VLOOKUP(A45,'Set-Up'!$B$7:$C$37,2,FALSE),"") -> King's | C45: =IFERROR(IF(D45>0,(RANK(D45,$D$44:$D$74)+COUNTIF($D$44:D45,D45)-1),""),) -> 2 | D45: =C81 -> 130 | E45: =IF(F45>0,RANK(F45,$F$44:$F$74)+COUNTIF($F$44:F45,F45)-1,"") -> 3 | F45: =C120 -> 140 | G45: =IF(H45>0,RANK(H45,$H$44:$H$74)+COUNTIF($H$44:H45,H45)-1,"") ->  | H45: =C159 -> 0 | I45: =IF(J45>0,RANK(J45,$J$44:$J$74)+COUNTIF($J$44:J45,J45)-1,"") -> 3 | J45: 270 | K45: =B45 -> King's
A46: Team C | B46: =IFERROR(VLOOKUP(A46,'Set-Up'!$B$7:$C$37,2,FALSE),"") -> Essex | C46: =IFERROR(IF(D46>0,(RANK(D46,$D$44:$D$74)+COUNTIF($D$44:D46,D46)-1),""),) -> 6 | D46: 34 | E46: =IF(F46>0,RANK(F46,$F$44:$F$74)+COUNTIF($F$44:F46,F46)-1,"") -> 5 | F46: 14 | G46: =IF(H46>0,RANK(H46,$H$44:$H$74)+COUNTIF($H$44:H46,H46)-1,"") ->  | H46: 0 | I46: =IF(J46>0,RANK(J46,$J$44:$J$74)+COUNTIF($J$44:J46,J46)-1,"") -> 6 | J46: 48 | K46: Essex
A47: Team D | B47: =IFERROR(VLOOKUP(A47,'Set-Up'!$B$7:$C$37,2,FALSE),"") -> RHUL | C47: =IFERROR(IF(D47>0,(RANK(D47,$D$44:$D$74)+COUNTIF($D$44:D47,D47)-1),""),) -> 9 | D47: 14 | E47: =IF(F47>0,RANK(F47,$F$44:$F$74)+COUNTIF($F$44:F47,F47)-1,"") -> 9 | F47: 7 | G47: =IF(H47>0,RANK(H47,$H$44:$H$74)+COUNTIF($H$44:H47,H47)-1,"") ->  | H47: 0 | I47: =IF(J47>0,RANK(J47,$J$44:$J$74)+COUNTIF($J$44:J47,J47)-1,"") -> 8 | J47: 21 | K47: RHUL
A48: Team E | B48: =IFERROR(VLOOKUP(A48,'Set-Up'!$B$7:$C$37,2,FALSE),"") -> UCL | C48: =IFERROR(IF(D48>0,(RANK(D48,$D$44:$D$74)+COUNTIF($D$44:D48,D48)-1),""),) -> 1 | D48: 186 | E48: =IF(F48>0,RANK(F48,$F$44:$F$74)+COUNTIF($F$44:F48,F48)-1,"") -> 1 | F48: 193 | G48: =IF(H48>0,RANK(H48,$H$44:$H$74)+COUNTIF($H$44:H48,H48)-1,"") ->  | H48: 0 | I48: =IF(J48>0,RANK(J48,$J$44:$J$74)+COUNTIF($J$44:J48,J48)-1,"") -> 1 | J48: 379 | K48: UCL
A49: Team F | B49: =IFERROR(VLOOKUP(A49,'Set-Up'!$B$7:$C$37,2,FALSE),"") -> Imperial | C49: =IFERROR(IF(D49>0,(RANK(D49,$D$44:$D$74)+COUNTIF($D$44:D49,D49)-1),""),) -> 5 | D49: 57 | E49: =IF(F49>0,RANK(F49,$F$44:$F$74)+COUNTIF($F$44:F49,F49)-1,"") -> 4 | F49: 26 | G49: =IF(H49>0,RANK(H49,$H$44:$H$74)+COUNTIF($H$44:H49,H49)-1,"") ->  | H49: 0 | I49: =IF(J49>0,RANK(J49,$J$44:$J$74)+COUNTIF($J$44:J49,J49)-1,"") -> 5 | J49: 83 | K49: Imperial
A50: Team G | B50: =IFERROR(VLOOKUP(A50,'Set-Up'!$B$7:$C$37,2,FALSE),"") -> QMUL | C50: =IFERROR(IF(D50>0,(RANK(D50,$D$44:$D$74)+COUNTIF($D$44:D50,D50)-1),""),) -> 7 | D50: 28 | E50: =IF(F50>0,RANK(F50,$F$44:$F$74)+COUNTIF($F$44:F50,F50)-1,"") -> 8 | F50: 11 | G50: =IF(H50>0,RANK(H50,$H$44:$H$74)+COUNTIF($H$44:H50,H50)-1,"") ->  | H50: 0 | I50: =IF(J50>0,RANK(J50,$J$44:$J$74)+COUNTIF($J$44:J50,J50)-1,"") -> 7 | J50: 39 | K50: QMUL
A51: Team H | B51: =IFERROR(VLOOKUP(A51,'Set-Up'!$B$7:$C$37,2,FALSE),"") -> SMU | C51: =IFERROR(IF(D51>0,(RANK(D51,$D$44:$D$74)+COUNTIF($D$44:D51,D51)-1),""),) -> 4 | D51: 83 | E51: =IF(F51>0,RANK(F51,$F$44:$F$74)+COUNTIF($F$44:F51,F51)-1,"") -> 10 | F51: 7 | G51: =IF(H51>0,RANK(H51,$H$44:$H$74)+COUNTIF($H$44:H51,H51)-1,"") ->  | H51: 0 | I51: =IF(J51>0,RANK(J51,$J$44:$J$74)+COUNTIF($J$44:J51,J51)-1,"") -> 4 | J51: 90 | K51: SMU
A52: Team I | B52: =IFERROR(VLOOKUP(A52,'Set-Up'!$B$7:$C$37,2,FALSE),"") -> Brunel | C52: =IFERROR(IF(D52>0,(RANK(D52,$D$44:$D$74)+COUNTIF($D$44:D52,D52)-1),""),) -> 8 | D52: 21 | E52: =IF(F52>0,RANK(F52,$F$44:$F$74)+COUNTIF($F$44:F52,F52)-1,"") ->  | F52: 0 | G52: =IF(H52>0,RANK(H52,$H$44:$H$74)+COUNTIF($H$44:H52,H52)-1,"") ->  | H52: 0 | I52: =IF(J52>0,RANK(J52,$J$44:$J$74)+COUNTIF($J$44:J52,J52)-1,"") -> 9 | J52: 21 | K52: Brunel
A53: Team J | B53: =IFERROR(VLOOKUP(A53,'Set-Up'!$B$7:$C$37,2,FALSE),"") -> Guests | C53: =IFERROR(IF(D53>0,(RANK(D53,$D$44:$D$74)+COUNTIF($D$44:D53,D53)-1),""),) ->  | D53: 0 | E53: =IF(F53>0,RANK(F53,$F$44:$F$74)+COUNTIF($F$44:F53,F53)-1,"") ->  | F53: 0 | G53: =IF(H53>0,RANK(H53,$H$44:$H$74)+COUNTIF($H$44:H53,H53)-1,"") ->  | H53: 0 | I53: =IF(J53>0,RANK(J53,$J$44:$J$74)+COUNTIF($J$44:J53,J53)-1,"") ->  | J53: 0 | K53: Guests
A54: Team K | B54: =IFERROR(VLOOKUP(A54,'Set-Up'!$B$7:$C$37,2,FALSE),"") -> UEL | C54: =IFERROR(IF(D54>0,(RANK(D54,$D$44:$D$74)+COUNTIF($D$44:D54,D54)-1),""),) -> 12 | D54: 1 | E54: =IF(F54>0,RANK(F54,$F$44:$F$74)+COUNTIF($F$44:F54,F54)-1,"") -> 6 | F54: 12 | G54: =IF(H54>0,RANK(H54,$H$44:$H$74)+COUNTIF($H$44:H54,H54)-1,"") ->  | H54: 0 | I54: =IF(J54>0,RANK(J54,$J$44:$J$74)+COUNTIF($J$44:J54,J54)-1,"") -> 10 | J54: 13 | K54: UEL
A55: Team L | B55: =IFERROR(VLOOKUP(A55,'Set-Up'!$B$7:$C$37,2,FALSE),"") -> UofL | C55: =IFERROR(IF(D55>0,(RANK(D55,$D$44:$D$74)+COUNTIF($D$44:D55,D55)-1),""),) -> 10 | D55: 7 | E55: =IF(F55>0,RANK(F55,$F$44:$F$74)+COUNTIF($F$44:F55,F55)-1,"") ->  | F55: 0 | G55: =IF(H55>0,RANK(H55,$H$44:$H$74)+COUNTIF($H$44:H55,H55)-1,"") ->  | H55: 0 | I55: =IF(J55>0,RANK(J55,$J$44:$J$74)+COUNTIF($J$44:J55,J55)-1,"") -> 12 | J55: 7 | K55: UofL
A56: Team M | B56: =IFERROR(VLOOKUP(A56,'Set-Up'!$B$7:$C$37,2,FALSE),"") -> Roehampton | C56: =IFERROR(IF(D56>0,(RANK(D56,$D$44:$D$74)+COUNTIF($D$44:D56,D56)-1),""),) ->  | D56: 0 | E56: =IF(F56>0,RANK(F56,$F$44:$F$74)+COUNTIF($F$44:F56,F56)-1,"") -> 7 | F56: 12 | G56: =IF(H56>0,RANK(H56,$H$44:$H$74)+COUNTIF($H$44:H56,H56)-1,"") ->  | H56: 0 | I56: =IF(J56>0,RANK(J56,$J$44:$J$74)+COUNTIF($J$44:J56,J56)-1,"") -> 11 | J56: 12 | K56: Roehampton
A57: Team N | B57: =IFERROR(VLOOKUP(A57,'Set-Up'!$B$7:$C$37,2,FALSE),"") -> STG | C57: =IFERROR(IF(D57>0,(RANK(D57,$D$44:$D$74)+COUNTIF($D$44:D57,D57)-1),""),) -> 11 | D57: 5 | E57: =IF(F57>0,RANK(F57,$F$44:$F$74)+COUNTIF($F$44:F57,F57)-1,"") ->  | F57: 0 | G57: =IF(H57>0,RANK(H57,$H$44:$H$74)+COUNTIF($H$44:H57,H57)-1,"") ->  | H57: 0 | I57: =IF(J57>0,RANK(J57,$J$44:$J$74)+COUNTIF($J$44:J57,J57)-1,"") -> 13 | J57: 5 | K57: STG
A58: Team O | B58: =IFERROR(VLOOKUP(A58,'Set-Up'!$B$7:$C$37,2,FALSE),"") -> 0 | C58: =IFERROR(IF(D58>0,(RANK(D58,$D$44:$D$74)+COUNTIF($D$44:D58,D58)-1),""),) ->  | D58: 0 | E58: =IF(F58>0,RANK(F58,$F$44:$F$74)+COUNTIF($F$44:F58,F58)-1,"") ->  | F58: 0 | G58: =IF(H58>0,RANK(H58,$H$44:$H$74)+COUNTIF($H$44:H58,H58)-1,"") ->  | H58: 0 | I58: =IF(J58>0,RANK(J58,$J$44:$J$74)+COUNTIF($J$44:J58,J58)-1,"") ->  | J58: 0 | K58: 0
A59: Team P | B59: =IFERROR(VLOOKUP(A59,'Set-Up'!$B$7:$C$37,2,FALSE),"") -> 0 | C59: =IFERROR(IF(D59>0,(RANK(D59,$D$44:$D$74)+COUNTIF($D$44:D59,D59)-1),""),) ->  | D59: 0 | E59: =IF(F59>0,RANK(F59,$F$44:$F$74)+COUNTIF($F$44:F59,F59)-1,"") ->  | F59: 0 | G59: =IF(H59>0,RANK(H59,$H$44:$H$74)+COUNTIF($H$44:H59,H59)-1,"") ->  | H59: 0 | I59: =IF(J59>0,RANK(J59,$J$44:$J$74)+COUNTIF($J$44:J59,J59)-1,"") ->  | J59: 0 | K59: 0
A60: Team Q | B60: =IFERROR(VLOOKUP(A60,'Set-Up'!$B$7:$C$37,2,FALSE),"") -> 0 | C60: =IFERROR(IF(D60>0,(RANK(D60,$D$44:$D$74)+COUNTIF($D$44:D60,D60)-1),""),) ->  | D60: 0 | E60: =IF(F60>0,RANK(F60,$F$44:$F$74)+COUNTIF($F$44:F60,F60)-1,"") ->  | F60: 0 | G60: =IF(H60>0,RANK(H60,$H$44:$H$74)+COUNTIF($H$44:H60,H60)-1,"") ->  | H60: 0 | I60: =IF(J60>0,RANK(J60,$J$44:$J$74)+COUNTIF($J$44:J60,J60)-1,"") ->  | J60: 0 | K60: 0
A61: Team R | B61: =IFERROR(VLOOKUP(A61,'Set-Up'!$B$7:$C$37,2,FALSE),"") -> 0 | C61: =IFERROR(IF(D61>0,(RANK(D61,$D$44:$D$74)+COUNTIF($D$44:D61,D61)-1),""),) ->  | D61: 0 | E61: =IF(F61>0,RANK(F61,$F$44:$F$74)+COUNTIF($F$44:F61,F61)-1,"") ->  | F61: 0 | G61: =IF(H61>0,RANK(H61,$H$44:$H$74)+COUNTIF($H$44:H61,H61)-1,"") ->  | H61: 0 | I61: =IF(J61>0,RANK(J61,$J$44:$J$74)+COUNTIF($J$44:J61,J61)-1,"") ->  | J61: 0 | K61: 0
A62: Team S | B62: =IFERROR(VLOOKUP(A62,'Set-Up'!$B$7:$C$37,2,FALSE),"") -> 0 | C62: =IFERROR(IF(D62>0,(RANK(D62,$D$44:$D$74)+COUNTIF($D$44:D62,D62)-1),""),) ->  | D62: 0 | E62: =IF(F62>0,RANK(F62,$F$44:$F$74)+COUNTIF($F$44:F62,F62)-1,"") ->  | F62: 0 | G62: =IF(H62>0,RANK(H62,$H$44:$H$74)+COUNTIF($H$44:H62,H62)-1,"") ->  | H62: 0 | I62: =IF(J62>0,RANK(J62,$J$44:$J$74)+COUNTIF($J$44:J62,J62)-1,"") ->  | J62: 0 | K62: 0
... 70 more rows

Sheet Athlete Series
B3: 110mH Men | J3: 100mH Women | R3: Re-do all ranks to make like 800m green
B5: Standings | J5: Standings
B6: Pos | C6: Name | D6: College | E6: =C28 -> St Mary's | F6: =C37 -> Woodford | G6: =C46 -> Battersea | H6: Overall | J6: Pos | K6: Name | L6: College | M6: =K28 -> St Mary's | N6: =K37 -> Woodford | O6: =K46 -> Battersea | P6: Overall
B7: 1 | C7: =IFERROR(VLOOKUP(B7,$AJ$31:$AK$48,2,FALSE),"") -> Jonathan Burton | D7: =IFERROR(VLOOKUP(C7,'All Series Entries'!$B$3:$C1600,2,FALSE), "") -> King's | E7: =IFERROR(VLOOKUP(B7,$AD$31:$AI$48,3,FALSE),"") -> 0 | F7: =IFERROR(VLOOKUP(B7,$AD$31:$AI$48,4,FALSE),"") -> 7 | G7: =IFERROR(VLOOKUP(B7,$AD$31:$AI$48,5,FALSE),"") -> 0 | H7: =IFERROR(VLOOKUP(B7,$AD$31:$AI$48,6,FALSE),"") -> 7 | J7: 1 | K7: =IFERROR(VLOOKUP(J7,$Z$31:$AA$48,2,FALSE),"") -> Sarah Murphy | L7: =IFERROR(VLOOKUP(K7,'All Series Entries'!$B$3:$C1600,2,FALSE), "") -> UCL | M7: =IFERROR(VLOOKUP(J7,$T$31:$Y$48,3,FALSE),"") -> 5 | N7: =IFERROR(VLOOKUP(J7,$T$31:$Y$48,4,FALSE),"") -> 7 | O7: =IFERROR(VLOOKUP(J7,$T$31:$Y$48,5,FALSE),"") -> 0 | P7: =IFERROR(VLOOKUP(J7,$T$31:$Y$48,6,FALSE),"") -> 12
B8: 2 | C8: =IFERROR(VLOOKUP(B8,$AJ$31:$AK$48,2,FALSE),"") -> Ben Thomas | D8: =IFERROR(VLOOKUP(C8,'All Series Entries'!$B$3:$C1601,2,FALSE), "") -> LSE | E8: =IFERROR(VLOOKUP(B8,$AD$31:$AI$48,3,FALSE),"") -> 0 | F8: =IFERROR(VLOOKUP(B8,$AD$31:$AI$48,4,FALSE),"") -> 5 | G8: =IFERROR(VLOOKUP(B8,$AD$31:$AI$48,5,FALSE),"") -> 0 | H8: =IFERROR(VLOOKUP(B8,$AD$31:$AI$48,6,FALSE),"") -> 5 | J8: 2 | K8: =IFERROR(VLOOKUP(J8,$Z$31:$AA$48,2,FALSE),"") -> Ruth Verhoeff | L8: =IFERROR(VLOOKUP(K8,'All Series Entries'!$B$3:$C1601,2,FALSE), "") -> King's | M8: =IFERROR(VLOOKUP(J8,$T$31:$Y$48,3,FALSE),"") -> 7 | N8: =IFERROR(VLOOKUP(J8,$T$31:$Y$48,4,FALSE),"") -> 0 | O8: =IFERROR(VLOOKUP(J8,$T$31:$Y$48,5,FALSE),"") -> 0 | P8: =IFERROR(VLOOKUP(J8,$T$31:$Y$48,6,FALSE),"") -> 7
B9: 3 | D9: =IFERROR(VLOOKUP(C9,'All Series Entries'!$B$3:$C1602,2,FALSE), "") ->  | J9: 3 | K9: Leilani Stacy | L9: =IFERROR(VLOOKUP(K9,'All Series Entries'!$B$3:$C1602,2,FALSE), "") -> LSE | M9: 0 | N9: 5 | O9: 0 | P9: 5
B10: 4 | D10: =IFERROR(VLOOKUP(C10,'All Series Entries'!$B$3:$C1603,2,FALSE), "") ->  | J10: 4 | K10: Emma Simpson Dore | L10: =IFERROR(VLOOKUP(K10,'All Series Entries'!$B$3:$C1603,2,FALSE), "") -> UCL | M10: 0 | N10: 4 | O10: 0 | P10: 4
B11: 5 | D11: =IFERROR(VLOOKUP(C11,'All Series Entries'!$B$3:$C1604,2,FALSE), "") ->  | J11: 5 | L11: =IFERROR(VLOOKUP(K11,'All Series Entries'!$B$3:$C1604,2,FALSE), "") -> 
B12: 6 | D12: =IFERROR(VLOOKUP(C12,'All Series Entries'!$B$3:$C1605,2,FALSE), "") ->  | J12: 6 | L12: =IFERROR(VLOOKUP(K12,'All Series Entries'!$B$3:$C1605,2,FALSE), "") -> 
B13: 7 | D13: =IFERROR(VLOOKUP(C13,'All Series Entries'!$B$3:$C1606,2,FALSE), "") ->  | J13: 7 | L13: =IFERROR(VLOOKUP(K13,'All Series Entries'!$B$3:$C1606,2,FALSE), "") -> 
B14: 8 | D14: =IFERROR(VLOOKUP(C14,'All Series Entries'!$B$3:$C1607,2,FALSE), "") ->  | J14: 8 | L14: =IFERROR(VLOOKUP(K14,'All Series Entries'!$B$3:$C1607,2,FALSE), "") -> 
B15: 9 | D15: =IFERROR(VLOOKUP(C15,'All Series Entries'!$B$3:$C1608,2,FALSE), "") ->  | J15: 9 | L15: =IFERROR(VLOOKUP(K15,'All Series Entries'!$B$3:$C1608,2,FALSE), "") -> 
B16: 10 | D16: =IFERROR(VLOOKUP(C16,'All Series Entries'!$B$3:$C1609,2,FALSE), "") ->  | J16: 10 | L16: =IFERROR(VLOOKUP(K16,'All Series Entries'!$B$3:$C1609,2,FALSE), "") -> 
B17: 11 | D17: =IFERROR(VLOOKUP(C17,'All Series Entries'!$B$3:$C1610,2,FALSE), "") ->  | J17: 11 | L17: =IFERROR(VLOOKUP(K17,'All Series Entries'!$B$3:$C1610,2,FALSE), "") -> 
B18: 12 | D18: =IFERROR(VLOOKUP(C18,'All Series Entries'!$B$3:$C1611,2,FALSE), "") ->  | J18: 12 | L18: =IFERROR(VLOOKUP(K18,'All Series Entries'!$B$3:$C1611,2,FALSE), "") -> 
B19: 13 | D19: =IFERROR(VLOOKUP(C19,'All Series Entries'!$B$3:$C1612,2,FALSE), "") ->  | J19: 13 | L19: =IFERROR(VLOOKUP(K19,'All Series Entries'!$B$3:$C1612,2,FALSE), "") -> 
B20: 14 | D20: =IFERROR(VLOOKUP(C20,'All Series Entries'!$B$3:$C1613,2,FALSE), "") ->  | J20: 14 | L20: =IFERROR(VLOOKUP(K20,'All Series Entries'!$B$3:$C1613,2,FALSE), "") -> 
B21: 15 | D21: =IFERROR(VLOOKUP(C21,'All Series Entries'!$B$3:$C1614,2,FALSE), "") ->  | J21: 15 | L21: =IFERROR(VLOOKUP(K21,'All Series Entries'!$B$3:$C1614,2,FALSE), "") -> 
B22: 16 | D22: =IFERROR(VLOOKUP(C22,'All Series Entries'!$B$3:$C1615,2,FALSE), "") ->  | J22: 16 | L22: =IFERROR(VLOOKUP(K22,'All Series Entries'!$B$3:$C1615,2,FALSE), "") -> 
B23: 17 | D23: =IFERROR(VLOOKUP(C23,'All Series Entries'!$B$3:$C1616,2,FALSE), "") ->  | J23: 17 | L23: =IFERROR(VLOOKUP(K23,'All Series Entries'!$B$3:$C1616,2,FALSE), "") -> 
B24: 18 | D24: =IFERROR(VLOOKUP(C24,'All Series Entries'!$B$3:$C1617,2,FALSE), "") ->  | J24: 18 | L24: =IFERROR(VLOOKUP(K24,'All Series Entries'!$B$3:$C1617,2,FALSE), "") -> 
S27: Women | AC27: Men
C28: ='Set-Up'!G31 -> St Mary's | K28: ='Set-Up'!G31 -> St Mary's | S28: Extract unique athletes (based on name) and sum points. | AC28: Extract unique athletes (based on name) and sum points.
C29: Pos | D29: No. | E29: Name | F29: College | G29: Points | K29: Pos | L29: No. | M29: Name | N29: College | O29: Points | T29: Rank | V29: Stage 1 | W29: Stage 2 | X29: Stage 3 | Y29: Total | Z29: Rank | AD29: Rank | AF29: Stage 1 | AG29: Stage 2 | AH29: Stage 3 | AI29: Total | AJ29: Rank
C30: 1 | D30: =IFERROR(VLOOKUP(C30,'100H110H'!$AX$8:$AY$200,2,FALSE),"") ->  | E30: =IFERROR(VLOOKUP(D30,'Entries Stage 1'!$A$3:$B$502,2,FALSE),"") ->  | F30: =IFERROR(VLOOKUP(D30,'LUCA Calculator'!$A$3:$D$405,4,FALSE), "") ->  | G30: 7 | K30: 1 | L30: =IFERROR(VLOOKUP(K30, '100H110H'!$BH$8:$BI$119,2,FALSE),"") -> 56 | M30: =IFERROR(VLOOKUP(L30,'Entries Stage 1'!$A$3:$B$502,2,FALSE),"") -> Ruth Verhoeff | N30: =IFERROR(VLOOKUP(L30,'Entries Stage 1'!$A$3:$C$502,3,FALSE),"") -> King's | O30: 7 | S30: =M30 -> Ruth Verhoeff | AC30: =E30 -> 
C31: 2 | D31: =IFERROR(VLOOKUP(C31,'100H110H'!$AX$8:$AY$200,2,FALSE),"") ->  | E31: =IFERROR(VLOOKUP(D31,'Entries Stage 1'!$A$3:$B$502,2,FALSE),"") ->  | F31: =IFERROR(VLOOKUP(D31,'LUCA Calculator'!$A$3:$D$405,4,FALSE), "") ->  | G31: 5 | K31: 2 | L31: =IFERROR(VLOOKUP(K31, '100H110H'!$BH$8:$BI$119,2,FALSE),"") -> 174 | M31: =IFERROR(VLOOKUP(L31,'Entries Stage 1'!$A$3:$B$502,2,FALSE),"") -> Sarah Murphy | N31: =IFERROR(VLOOKUP(L31,'Entries Stage 1'!$A$3:$C$502,3,FALSE),"") -> UCL | O31: 5 | S31: Sarah Murphy | T31: =Z31 -> 2 | U31: =INDEX($S$30:$S$47, MATCH(0, COUNTIF($U$30:U30, $S$30:$S$47),0)) -> Ruth Verhoeff | V31: =IFERROR(VLOOKUP(U31,$M$30:$O$35,3,FALSE),0) -> 7 | W31: =IFERROR(VLOOKUP(U31,$M$39:$O$44,3,FALSE),0) -> 0 | X31: =IFERROR(VLOOKUP(U31,$M$48:$O$53,3,FALSE),0) -> 0 | Y31: =SUM(V31:X31) -> 7 | Z31: =IF(Y31>0,RANK(Y31,$Y$31:$Y$48)+COUNTIF($Y$31:Y31,Y31)-1,"") -> 2 | AA31: =U31 -> Ruth Verhoeff | AD31: =AJ31 -> 1 | AE31: =INDEX($AC$30:$AC$47, MATCH(0, COUNTIF($AE$30:AE30, $AC$30:$AC$47),0)) -> Jonathan Burton | AF31: =IFERROR(VLOOKUP(AE31,$E$30:$G$35,3,FALSE),0) -> 0 | AG31: =IFERROR(VLOOKUP(AE31,$E$39:$G$44,3,FALSE),0) -> 7 | AH31: =IFERROR(VLOOKUP(AE31,$E$48:$G$53,3,FALSE),0) -> 0 | AI31: =SUM(AF31:AH31) -> 7 | AJ31: =IF(AI31>0,RANK(AI31,$AI$31:$AI$48)+COUNTIF($AI$31:AI31,AI31)-1,"") -> 1 | AK31: =AE31 -> Jonathan Burton
C32: 3 | D32: =IFERROR(VLOOKUP(C32,'100H110H'!$AX$8:$AY$200,2,FALSE),"") ->  | E32: =IFERROR(VLOOKUP(D32,'Entries Stage 1'!$A$3:$B$502,2,FALSE),"") ->  | F32: =IFERROR(VLOOKUP(D32,'LUCA Calculator'!$A$3:$D$405,4,FALSE), "") ->  | G32: 4 | K32: 3 | L32: =IFERROR(VLOOKUP(K32, '100H110H'!$BH$8:$BI$119,2,FALSE),"") ->  | M32: =IFERROR(VLOOKUP(L32,'Entries Stage 1'!$A$3:$B$502,2,FALSE),"") ->  | N32: =IFERROR(VLOOKUP(L32,'Entries Stage 1'!$A$3:$C$502,3,FALSE),"") ->  | O32: 4 | T32: =Z32 -> 1 | U32: =INDEX($S$30:$S$47, MATCH(0, COUNTIF($U$30:U31, $S$30:$S$47),0)) -> Sarah Murphy | V32: 5 | W32: 7 | X32: 0 | Y32: =SUM(V32:X32) -> 12 | Z32: =IF(Y32>0,RANK(Y32,$Y$31:$Y$48)+COUNTIF($Y$31:Y32,Y32)-1,"") -> 1 | AA32: =U32 -> Sarah Murphy | AD32: =AJ32 -> 2 | AE32: =INDEX($AC$30:$AC$47, MATCH(0, COUNTIF($AE$30:AE31, $AC$30:$AC$47),0)) -> Ben Thomas | AF32: =IFERROR(VLOOKUP(AE32,$E$30:$G$35,3,FALSE),0) -> 0 | AG32: =IFERROR(VLOOKUP(AE32,$E$39:$G$44,3,FALSE),0) -> 5 | AH32: =IFERROR(VLOOKUP(AE32,$E$48:$G$53,3,FALSE),0) -> 0 | AI32: =SUM(AF32:AH32) -> 5 | AJ32: =IF(AI32>0,RANK(AI32,$AI$31:$AI$48)+COUNTIF($AI$31:AI32,AI32)-1,"") -> 2 | AK32: =AE32 -> Ben Thomas
C33: 4 | D33: =IFERROR(VLOOKUP(C33,'100H110H'!$AX$8:$AY$200,2,FALSE),"") ->  | E33: =IFERROR(VLOOKUP(D33,'Entries Stage 1'!$A$3:$B$502,2,FALSE),"") ->  | F33: =IFERROR(VLOOKUP(D33,'LUCA Calculator'!$A$3:$D$405,4,FALSE), "") ->  | G33: 3 | K33: 4 | L33: =IFERROR(VLOOKUP(K33, '100H110H'!$BH$8:$BI$119,2,FALSE),"") ->  | M33: =IFERROR(VLOOKUP(L33,'Entries Stage 1'!$A$3:$B$502,2,FALSE),"") ->  | N33: =IFERROR(VLOOKUP(L33,'Entries Stage 1'!$A$3:$C$502,3,FALSE),"") ->  | O33: 3 | T33: 3 | U33: =INDEX($S$30:$S$47, MATCH(0, COUNTIF($U$30:U32, $S$30:$S$47),0)) -> Leilani Stacy | V33: 0 | W33: 5 | X33: 0 | Y33: 5 | Z33: =IF(Y33>0,RANK(Y33,$Y$31:$Y$48)+COUNTIF($Y$31:Y33,Y33)-1,"") -> 3 | AA33: Leilani Stacy | AE33: =INDEX($AC$30:$AC$47, MATCH(0, COUNTIF($AE$30:AE32, $AC$30:$AC$47),0)) ->  | AF33: 0 | AG33: 0 | AH33: 0 | AI33: 0 | AJ33: =IF(AI33>0,RANK(AI33,$AI$31:$AI$48)+COUNTIF($AI$31:AI33,AI33)-1,"") -> 
C34: 5 | D34: =IFERROR(VLOOKUP(C34,'100H110H'!$AX$8:$AY$200,2,FALSE),"") ->  | E34: =IFERROR(VLOOKUP(D34,'Entries Stage 1'!$A$3:$B$502,2,FALSE),"") ->  | F34: =IFERROR(VLOOKUP(D34,'LUCA Calculator'!$A$3:$D$405,4,FALSE), "") ->  | G34: 2 | K34: 5 | L34: =IFERROR(VLOOKUP(K34, '100H110H'!$BH$8:$BI$119,2,FALSE),"") ->  | M34: =IFERROR(VLOOKUP(L34,'Entries Stage 1'!$A$3:$B$502,2,FALSE),"") ->  | N34: =IFERROR(VLOOKUP(L34,'Entries Stage 1'!$A$3:$C$502,3,FALSE),"") ->  | O34: 2 | T34: 4 | U34: =INDEX($S$30:$S$47, MATCH(0, COUNTIF($U$30:U33, $S$30:$S$47),0)) -> Emma Simpson Dore | V34: 0 | W34: 4 | X34: 0 | Y34: 4 | Z34: =IF(Y34>0,RANK(Y34,$Y$31:$Y$48)+COUNTIF($Y$31:Y34,Y34)-1,"") -> 4 | AA34: Emma Simpson Dore | AE34: =INDEX($AC$30:$AC$47, MATCH(0, COUNTIF($AE$30:AE33, $AC$30:$AC$47),0)) ->  | AF34: 0 | AG34: 0 | AH34: 0 | AI34: 0 | AJ34: =IF(AI34>0,RANK(AI34,$AI$31:$AI$48)+COUNTIF($AI$31:AI34,AI34)-1,"") -> 
C35: 6 | D35: =IFERROR(VLOOKUP(C35,'100H110H'!$AX$8:$AY$200,2,FALSE),"") ->  | E35: =IFERROR(VLOOKUP(D35,'Entries Stage 1'!$A$3:$B$502,2,FALSE),"") ->  | F35: =IFERROR(VLOOKUP(D35,'LUCA Calculator'!$A$3:$D$405,4,FALSE), "") ->  | G35: 1 | K35: 6 | L35: =IFERROR(VLOOKUP(K35, '100H110H'!$BH$8:$BI$119,2,FALSE),"") ->  | M35: =IFERROR(VLOOKUP(L35,'Entries Stage 1'!$A$3:$B$502,2,FALSE),"") ->  | N35: =IFERROR(VLOOKUP(L35,'Entries Stage 1'!$A$3:$C$502,3,FALSE),"") ->  | O35: 1 | U35: =INDEX($S$30:$S$47, MATCH(0, COUNTIF($U$30:U34, $S$30:$S$47),0)) ->  | V35: 0 | W35: 0 | X35: 0 | Y35: 0 | Z35: =IF(Y35>0,RANK(Y35,$Y$31:$Y$48)+COUNTIF($Y$31:Y35,Y35)-1,"") ->  | AE35: =INDEX($AC$30:$AC$47, MATCH(0, COUNTIF($AE$30:AE34, $AC$30:$AC$47),0)) ->  | AF35: 0 | AG35: 0 | AH35: 0 | AI35: 0 | AJ35: =IF(AI35>0,RANK(AI35,$AI$31:$AI$48)+COUNTIF($AI$31:AI35,AI35)-1,"") -> 
S36: =M39 -> Sarah Murphy | U36: =INDEX($S$30:$S$47, MATCH(0, COUNTIF($U$30:U35, $S$30:$S$47),0)) ->  | V36: 0 | W36: 0 | X36: 0 | Y36: 0 | Z36: =IF(Y36>0,RANK(Y36,$Y$31:$Y$48)+COUNTIF($Y$31:Y36,Y36)-1,"") ->  | AC36: =E39 -> Jonathan Burton | AE36: =INDEX($AC$30:$AC$47, MATCH(0, COUNTIF($AE$30:AE35, $AC$30:$AC$47),0)) ->  | AF36: 0 | AG36: 0 | AH36: 0 | AI36: 0 | AJ36: =IF(AI36>0,RANK(AI36,$AI$31:$AI$48)+COUNTIF($AI$31:AI36,AI36)-1,"") -> 
C37: ='Set-Up'!G32 -> Woodford | K37: ='Set-Up'!G32 -> Woodford | S37: Leilani Stacy | U37: =INDEX($S$30:$S$47, MATCH(0, COUNTIF($U$30:U36, $S$30:$S$47),0)) ->  | V37: 0 | W37: 0 | X37: 0 | Y37: 0 | Z37: =IF(Y37>0,RANK(Y37,$Y$31:$Y$48)+COUNTIF($Y$31:Y37,Y37)-1,"") ->  | AC37: Ben Thomas | AE37: =INDEX($AC$30:$AC$47, MATCH(0, COUNTIF($AE$30:AE36, $AC$30:$AC$47),0)) ->  | AF37: 0 | AG37: 0 | AH37: 0 | AI37: 0 | AJ37: =IF(AI37>0,RANK(AI37,$AI$31:$AI$48)+COUNTIF($AI$31:AI37,AI37)-1,"") -> 
C38: Pos | D38: No. | E38: Name | F38: College | G38: Points | K38: Pos | L38: No. | M38: Name | N38: College | O38: Points | S38: Emma Simpson Dore | U38: =INDEX($S$30:$S$47, MATCH(0, COUNTIF($U$30:U37, $S$30:$S$47),0)) ->  | V38: 0 | W38: 0 | X38: 0 | Y38: 0 | Z38: =IF(Y38>0,RANK(Y38,$Y$31:$Y$48)+COUNTIF($Y$31:Y38,Y38)-1,"") ->  | AE38: =INDEX($AC$30:$AC$47, MATCH(0, COUNTIF($AE$30:AE37, $AC$30:$AC$47),0)) ->  | AF38: 0 | AG38: 0 | AH38: 0 | AI38: 0 | AJ38: =IF(AI38>0,RANK(AI38,$AI$31:$AI$48)+COUNTIF($AI$31:AI38,AI38)-1,"") -> 
C39: 1 | D39: =IFERROR(VLOOKUP(C39,'100H110H'!$BP$7:$BQ$119,2,FALSE),"") -> 48 | E39: =IFERROR(VLOOKUP(D39,'Entries Stage 2'!$A$3:$B$502,2,FALSE),"") -> Jonathan Burton | F39: =IFERROR(VLOOKUP(D39,'Entries Stage 2'!$A$3:$C$502,3,FALSE),"") -> King's | G39: 7 | K39: 1 | L39: =IFERROR(VLOOKUP(K39,'100H110H'!$BZ$8:$CA$119,2,FALSE),"") -> 84 | M39: =IFERROR(VLOOKUP(L39,'Entries Stage 2'!$A$3:$B$502,2,FALSE),"") -> Sarah Murphy | N39: =IFERROR(VLOOKUP(L39,'Entries Stage 2'!$A$3:$C$502,3,FALSE),"") -> UCL | O39: 7 | U39: =INDEX($S$30:$S$47, MATCH(0, COUNTIF($U$30:U38, $S$30:$S$47),0)) ->  | V39: 0 | W39: 0 | X39: 0 | Y39: 0 | Z39: =IF(Y39>0,RANK(Y39,$Y$31:$Y$48)+COUNTIF($Y$31:Y39,Y39)-1,"") ->  | AE39: =INDEX($AC$30:$AC$47, MATCH(0, COUNTIF($AE$30:AE38, $AC$30:$AC$47),0)) ->  | AF39: 0 | AG39: 0 | AH39: 0 | AI39: 0 | AJ39: =IF(AI39>0,RANK(AI39,$AI$31:$AI$48)+COUNTIF($AI$31:AI39,AI39)-1,"") -> 
C40: 2 | D40: =IFERROR(VLOOKUP(C40,'100H110H'!$BP$7:$BQ$119,2,FALSE),"") -> 61 | E40: =IFERROR(VLOOKUP(D40,'Entries Stage 2'!$A$3:$B$502,2,FALSE),"") -> Ben Thomas | F40: =IFERROR(VLOOKUP(D40,'Entries Stage 2'!$A$3:$C$502,3,FALSE),"") -> LSE | G40: 5 | K40: 2 | L40: =IFERROR(VLOOKUP(K40,'100H110H'!$BZ$8:$CA$119,2,FALSE),"") -> 56 | M40: =IFERROR(VLOOKUP(L40,'Entries Stage 2'!$A$3:$B$502,2,FALSE),"") -> Leilani Stacy | N40: =IFERROR(VLOOKUP(L40,'Entries Stage 2'!$A$3:$C$502,3,FALSE),"") -> LSE | O40: 5 | U40: =INDEX($S$30:$S$47, MATCH(0, COUNTIF($U$30:U39, $S$30:$S$47),0)) ->  | V40: 0 | W40: 0 | X40: 0 | Y40: 0 | Z40: =IF(Y40>0,RANK(Y40,$Y$31:$Y$48)+COUNTIF($Y$31:Y40,Y40)-1,"") ->  | AE40: =INDEX($AC$30:$AC$47, MATCH(0, COUNTIF($AE$30:AE39, $AC$30:$AC$47),0)) ->  | AF40: 0 | AG40: 0 | AH40: 0 | AI40: 0 | AJ40: =IF(AI40>0,RANK(AI40,$AI$31:$AI$48)+COUNTIF($AI$31:AI40,AI40)-1,"") -> 
C41: 3 | D41: =IFERROR(VLOOKUP(C41,'100H110H'!$BP$7:$BQ$119,2,FALSE),"") ->  | E41: =IFERROR(VLOOKUP(D41,'Entries Stage 2'!$A$3:$B$502,2,FALSE),"") ->  | F41: =IFERROR(VLOOKUP(D41,'Entries Stage 2'!$A$3:$C$502,3,FALSE),"") ->  | G41: 4 | K41: 3 | L41: =IFERROR(VLOOKUP(K41,'100H110H'!$BZ$8:$CA$119,2,FALSE),"") -> 77 | M41: =IFERROR(VLOOKUP(L41,'Entries Stage 2'!$A$3:$B$502,2,FALSE),"") -> Emma Simpson Dore | N41: =IFERROR(VLOOKUP(L41,'Entries Stage 2'!$A$3:$C$502,3,FALSE),"") -> UCL | O41: 4 | U41: =INDEX($S$30:$S$47, MATCH(0, COUNTIF($U$30:U40, $S$30:$S$47),0)) ->  | V41: 0 | W41: 0 | X41: 0 | Y41: 0 | Z41: =IF(Y41>0,RANK(Y41,$Y$31:$Y$48)+COUNTIF($Y$31:Y41,Y41)-1,"") ->  | AE41: =INDEX($AC$30:$AC$47, MATCH(0, COUNTIF($AE$30:AE40, $AC$30:$AC$47),0)) ->  | AF41: 0 | AG41: 0 | AH41: 0 | AI41: 0 | AJ41: =IF(AI41>0,RANK(AI41,$AI$31:$AI$48)+COUNTIF($AI$31:AI41,AI41)-1,"") -> 
C42: 4 | D42: =IFERROR(VLOOKUP(C42,'100H110H'!$BP$7:$BQ$119,2,FALSE),"") ->  | E42: =IFERROR(VLOOKUP(D42,'Entries Stage 2'!$A$3:$B$502,2,FALSE),"") ->  | F42: =IFERROR(VLOOKUP(D42,'Entries Stage 2'!$A$3:$C$502,3,FALSE),"") ->  | G42: 3 | K42: 4 | L42: =IFERROR(VLOOKUP(K42,'100H110H'!$BZ$8:$CA$119,2,FALSE),"") ->  | M42: =IFERROR(VLOOKUP(L42,'Entries Stage 2'!$A$3:$B$502,2,FALSE),"") ->  | N42: =IFERROR(VLOOKUP(L42,'Entries Stage 2'!$A$3:$C$502,3,FALSE),"") ->  | O42: 3 | S42: =M48 ->  | U42: =INDEX($S$30:$S$47, MATCH(0, COUNTIF($U$30:U41, $S$30:$S$47),0)) ->  | V42: 0 | W42: 0 | X42: 0 | Y42: 0 | Z42: =IF(Y42>0,RANK(Y42,$Y$31:$Y$48)+COUNTIF($Y$31:Y42,Y42)-1,"") ->  | AC42: =E48 ->  | AE42: =INDEX($AC$30:$AC$47, MATCH(0, COUNTIF($AE$30:AE41, $AC$30:$AC$47),0)) ->  | AF42: 0 | AG42: 0 | AH42: 0 | AI42: 0 | AJ42: =IF(AI42>0,RANK(AI42,$AI$31:$AI$48)+COUNTIF($AI$31:AI42,AI42)-1,"") -> 
C43: 5 | D43: =IFERROR(VLOOKUP(C43,'100H110H'!$BP$7:$BQ$119,2,FALSE),"") ->  | E43: =IFERROR(VLOOKUP(D43,'Entries Stage 2'!$A$3:$B$502,2,FALSE),"") ->  | F43: =IFERROR(VLOOKUP(D43,'Entries Stage 2'!$A$3:$C$502,3,FALSE),"") ->  | G43: 2 | K43: 5 | L43: =IFERROR(VLOOKUP(K43,'100H110H'!$BZ$8:$CA$119,2,FALSE),"") ->  | M43: =IFERROR(VLOOKUP(L43,'Entries Stage 2'!$A$3:$B$502,2,FALSE),"") ->  | N43: =IFERROR(VLOOKUP(L43,'Entries Stage 2'!$A$3:$C$502,3,FALSE),"") ->  | O43: 2 | U43: =INDEX($S$30:$S$47, MATCH(0, COUNTIF($U$30:U42, $S$30:$S$47),0)) ->  | V43: 0 | W43: 0 | X43: 0 | Y43: 0 | Z43: =IF(Y43>0,RANK(Y43,$Y$31:$Y$48)+COUNTIF($Y$31:Y43,Y43)-1,"") ->  | AE43: =INDEX($AC$30:$AC$47, MATCH(0, COUNTIF($AE$30:AE42, $AC$30:$AC$47),0)) ->  | AF43: 0 | AG43: 0 | AH43: 0 | AI43: 0 | AJ43: =IF(AI43>0,RANK(AI43,$AI$31:$AI$48)+COUNTIF($AI$31:AI43,AI43)-1,"") -> 
C44: 6 | D44: =IFERROR(VLOOKUP(C44,'100H110H'!$BP$7:$BQ$119,2,FALSE),"") ->  | E44: =IFERROR(VLOOKUP(D44,'Entries Stage 2'!$A$3:$B$502,2,FALSE),"") ->  | F44: =IFERROR(VLOOKUP(D44,'Entries Stage 2'!$A$3:$C$502,3,FALSE),"") ->  | G44: 1 | K44: 6 | L44: =IFERROR(VLOOKUP(K44,'100H110H'!$BZ$8:$CA$119,2,FALSE),"") ->  | M44: =IFERROR(VLOOKUP(L44,'Entries Stage 2'!$A$3:$B$502,2,FALSE),"") ->  | N44: =IFERROR(VLOOKUP(L44,'Entries Stage 2'!$A$3:$C$502,3,FALSE),"") ->  | O44: 1 | U44: =INDEX($S$30:$S$47, MATCH(0, COUNTIF($U$30:U43, $S$30:$S$47),0)) ->  | V44: 0 | W44: 0 | X44: 0 | Y44: 0 | Z44: =IF(Y44>0,RANK(Y44,$Y$31:$Y$48)+COUNTIF($Y$31:Y44,Y44)-1,"") ->  | AE44: =INDEX($AC$30:$AC$47, MATCH(0, COUNTIF($AE$30:AE43, $AC$30:$AC$47),0)) ->  | AF44: 0 | AG44: 0 | AH44: 0 | AI44: 0 | AJ44: =IF(AI44>0,RANK(AI44,$AI$31:$AI$48)+COUNTIF($AI$31:AI44,AI44)-1,"") -> 
U45: =INDEX($S$30:$S$47, MATCH(0, COUNTIF($U$30:U44, $S$30:$S$47),0)) ->  | V45: 0 | W45: 0 | X45: 0 | Y45: 0 | Z45: =IF(Y45>0,RANK(Y45,$Y$31:$Y$48)+COUNTIF($Y$31:Y45,Y45)-1,"") ->  | AE45: =INDEX($AC$30:$AC$47, MATCH(0, COUNTIF($AE$30:AE44, $AC$30:$AC$47),0)) ->  | AF45: 0 | AG45: 0 | AH45: 0 | AI45: 0 | AJ45: =IF(AI45>0,RANK(AI45,$AI$31:$AI$48)+COUNTIF($AI$31:AI45,AI45)-1,"") -> 
C46: ='Set-Up'!G33 -> Battersea | K46: ='Set-Up'!G33 -> Battersea | U46: =INDEX($S$30:$S$47, MATCH(0, COUNTIF($U$30:U45, $S$30:$S$47),0)) ->  | V46: 0 | W46: 0 | X46: 0 | Y46: 0 | Z46: =IF(Y46>0,RANK(Y46,$Y$31:$Y$48)+COUNTIF($Y$31:Y46,Y46)-1,"") ->  | AE46: =INDEX($AC$30:$AC$47, MATCH(0, COUNTIF($AE$30:AE45, $AC$30:$AC$47),0)) ->  | AF46: 0 | AG46: 0 | AH46: 0 | AI46: 0 | AJ46: =IF(AI46>0,RANK(AI46,$AI$31:$AI$48)+COUNTIF($AI$31:AI46,AI46)-1,"") -> 
C47: Pos | D47: No. | E47: Name | F47: College | G47: Points | K47: Pos | L47: No. | M47: Name | N47: College | O47: Points | U47: =INDEX($S$30:$S$47, MATCH(0, COUNTIF($U$30:U46, $S$30:$S$47),0)) ->  | V47: 0 | W47: 0 | X47: 0 | Y47: 0 | Z47: =IF(Y47>0,RANK(Y47,$Y$31:$Y$48)+COUNTIF($Y$31:Y47,Y47)-1,"") ->  | AE47: =INDEX($AC$30:$AC$47, MATCH(0, COUNTIF($AE$30:AE46, $AC$30:$AC$47),0)) ->  | AF47: 0 | AG47: 0 | AH47: 0 | AI47: 0 | AJ47: =IF(AI47>0,RANK(AI47,$AI$31:$AI$48)+COUNTIF($AI$31:AI47,AI47)-1,"") -> 
C48: 1 | D48: =IFERROR(VLOOKUP(C48,'100H110H'!$CH$8:$CI$120,2,FALSE),"") ->  | E48: =IFERROR(VLOOKUP(D48,'Entries Stage 3'!$A$3:$B$502,2,FALSE),"") ->  | F48: =IFERROR(VLOOKUP(D48,'Entries Stage 3'!$A$3:$C$502,3,FALSE),"") ->  | G48: 7 | K48: 1 | L48: =IFERROR(VLOOKUP(K48,'100H110H'!CR8:CS119,2,FALSE),"") ->  | M48: =IFERROR(VLOOKUP(L48,'Entries Stage 3'!$A$3:$B$502,2,FALSE),"") ->  | N48: =IFERROR(VLOOKUP(L48,'Entries Stage 3'!$A$3:$C$502,3,FALSE),"") ->  | O48: 7 | U48: =INDEX($S$30:$S$47, MATCH(0, COUNTIF($U$30:U47, $S$30:$S$47),0)) ->  | V48: 0 | W48: 0 | X48: 0 | Y48: 0 | Z48: =IF(Y48>0,RANK(Y48,$Y$31:$Y$48)+COUNTIF($Y$31:Y48,Y48)-1,"") ->  | AE48: =INDEX($AC$30:$AC$47, MATCH(0, COUNTIF($AE$30:AE47, $AC$30:$AC$47),0)) ->  | AF48: 0 | AG48: 0 | AH48: 0 | AI48: 0 | AJ48: =IF(AI48>0,RANK(AI48,$AI$31:$AI$48)+COUNTIF($AI$31:AI48,AI48)-1,"") -> 
C49: 2 | D49: =IFERROR(VLOOKUP(C49,'100H110H'!$CH$8:$CI$120,2,FALSE),"") ->  | E49: =IFERROR(VLOOKUP(D49,'Entries Stage 3'!$A$3:$B$502,2,FALSE),"") ->  | F49: =IFERROR(VLOOKUP(D49,'Entries Stage 3'!$A$3:$C$502,3,FALSE),"") ->  | G49: 5 | K49: 2 | L49: =IFERROR(VLOOKUP(K49,'100H110H'!CR9:CS120,2,FALSE),"") ->  | M49: =IFERROR(VLOOKUP(L49,'Entries Stage 3'!$A$3:$B$502,2,FALSE),"") ->  | N49: =IFERROR(VLOOKUP(L49,'Entries Stage 3'!$A$3:$C$502,3,FALSE),"") ->  | O49: 5
C50: 3 | D50: =IFERROR(VLOOKUP(C50,'100H110H'!$CH$8:$CI$120,2,FALSE),"") ->  | E50: =IFERROR(VLOOKUP(D50,'Entries Stage 3'!$A$3:$B$502,2,FALSE),"") ->  | F50: =IFERROR(VLOOKUP(D50,'Entries Stage 3'!$A$3:$C$502,3,FALSE),"") ->  | G50: 4 | K50: 3 | L50: =IFERROR(VLOOKUP(K50,'100H110H'!CR10:CS121,2,FALSE),"") ->  | M50: =IFERROR(VLOOKUP(L50,'Entries Stage 3'!$A$3:$B$502,2,FALSE),"") ->  | N50: =IFERROR(VLOOKUP(L50,'Entries Stage 3'!$A$3:$C$502,3,FALSE),"") ->  | O50: 4
C51: 4 | D51: =IFERROR(VLOOKUP(C51,'100H110H'!$CH$8:$CI$120,2,FALSE),"") ->  | E51: =IFERROR(VLOOKUP(D51,'Entries Stage 3'!$A$3:$B$502,2,FALSE),"") ->  | F51: =IFERROR(VLOOKUP(D51,'Entries Stage 3'!$A$3:$C$502,3,FALSE),"") ->  | G51: 3 | K51: 4 | L51: =IFERROR(VLOOKUP(K51,'100H110H'!CR11:CS122,2,FALSE),"") ->  | M51: =IFERROR(VLOOKUP(L51,'Entries Stage 3'!$A$3:$B$502,2,FALSE),"") ->  | N51: =IFERROR(VLOOKUP(L51,'Entries Stage 3'!$A$3:$C$502,3,FALSE),"") ->  | O51: 3
C52: 5 | D52: =IFERROR(VLOOKUP(C52,'100H110H'!$CH$8:$CI$120,2,FALSE),"") ->  | E52: =IFERROR(VLOOKUP(D52,'Entries Stage 3'!$A$3:$B$502,2,FALSE),"") ->  | F52: =IFERROR(VLOOKUP(D52,'Entries Stage 3'!$A$3:$C$502,3,FALSE),"") ->  | G52: 2 | K52: 5 | L52: =IFERROR(VLOOKUP(K52,'100H110H'!CR12:CS123,2,FALSE),"") ->  | M52: =IFERROR(VLOOKUP(L52,'Entries Stage 3'!$A$3:$B$502,2,FALSE),"") ->  | N52: =IFERROR(VLOOKUP(L52,'Entries Stage 3'!$A$3:$C$502,3,FALSE),"") ->  | O52: 2
C53: 6 | D53: =IFERROR(VLOOKUP(C53,'100H110H'!$CH$8:$CI$120,2,FALSE),"") ->  | E53: =IFERROR(VLOOKUP(D53,'Entries Stage 3'!$A$3:$B$502,2,FALSE),"") ->  | F53: =IFERROR(VLOOKUP(D53,'Entries Stage 3'!$A$3:$C$502,3,FALSE),"") ->  | G53: 1 | K53: 6 | L53: =IFERROR(VLOOKUP(K53,'100H110H'!CR13:CS124,2,FALSE),"") ->  | M53: =IFERROR(VLOOKUP(L53,'Entries Stage 3'!$A$3:$B$502,2,FALSE),"") ->  | N53: =IFERROR(VLOOKUP(L53,'Entries Stage 3'!$A$3:$C$502,3,FALSE),"") ->  | O53: 1
B57: 100m Men | J57: 100m Women
B59: Standings | J59: Standings
B60: Pos | C60: Name | D60: College | E60: =C82 -> St Mary's | F60: =C91 -> Woodford | G60: =C100 -> Battersea | H60: Overall | J60: Pos | K60: Name | L60: College | M60: =K82 -> St Mary's | N60: =K91 -> Woodford | O60: =K100 -> Battersea | P60: Overall
B61: 1 | C61: =IFERROR(VLOOKUP(B61,AJ85:AK102,2,FALSE),"") -> Clyde Anucha | D61: =IFERROR(VLOOKUP(C61,'All Series Entries'!$B$3:$C1654,2,FALSE), "") -> QMUL | E61: =IFERROR(VLOOKUP(B61,AD85:AI102,3,FALSE),"") -> 7 | F61: =IFERROR(VLOOKUP(B61,AD85:AI102,4,FALSE),"") -> 7 | G61: =IFERROR(VLOOKUP(B61,AD85:AI102,5,FALSE),"") -> 0 | H61: =IFERROR(VLOOKUP(B61,AD85:AI102,6,FALSE),"") -> 14 | J61: 1 | K61: =IFERROR(VLOOKUP(J61,Z85:AA102,2,FALSE),"") -> Yasmin Lakin | L61: =IFERROR(VLOOKUP(K61,'All Series Entries'!$B$3:$C1654,2,FALSE), "") -> LSE | M61: =IFERROR(VLOOKUP(J61,T85:Y102,3,FALSE),"") -> 7 | N61: =IFERROR(VLOOKUP(J61,$T$85:$Y$102,4,FALSE),"") -> 7 | O61: =IFERROR(VLOOKUP(J61,$T$85:$Y$102,5,FALSE),"") -> 0 | P61: =IFERROR(VLOOKUP(J61,$T$85:$Y$102,6,FALSE),"") -> 14
B62: 2 | C62: =IFERROR(VLOOKUP(B62,AJ85:AK102,2,FALSE),"") -> Hamish Mundell | D62: =IFERROR(VLOOKUP(C62,'All Series Entries'!$B$3:$C1655,2,FALSE), "") -> LSE | E62: =IFERROR(VLOOKUP(B62,AD85:AI102,3,FALSE),"") -> 4 | F62: =IFERROR(VLOOKUP(B62,AD85:AI102,4,FALSE),"") -> 5 | G62: =IFERROR(VLOOKUP(B62,AD85:AI102,5,FALSE),"") -> 0 | H62: =IFERROR(VLOOKUP(B62,AD85:AI102,6,FALSE),"") -> 9 | J62: 2 | K62: =IFERROR(VLOOKUP(J62,Z85:AA102,2,FALSE),"") -> Toyin Olufemi | L62: =IFERROR(VLOOKUP(K62,'All Series Entries'!$B$3:$C1655,2,FALSE), "") -> Essex | M62: =IFERROR(VLOOKUP(J62,T85:Y102,3,FALSE),"") -> 3 | N62: =IFERROR(VLOOKUP(J62,$T$85:$Y$102,4,FALSE),"") -> 4 | O62: =IFERROR(VLOOKUP(J62,$T$85:$Y$102,5,FALSE),"") -> 0 | P62: =IFERROR(VLOOKUP(J62,$T$85:$Y$102,6,FALSE),"") -> 7
... 74 more rows

Sheet Series for Web
A1: 100H
A2: ='Athlete Series'!J6 -> Pos | B2: ='Athlete Series'!K6 -> Name | C2: ='Athlete Series'!L6 -> College | D2: ='Athlete Series'!M6 -> St Mary's | E2: ='Athlete Series'!N6 -> Woodford | F2: ='Athlete Series'!O6 -> Battersea | G2: ='Athlete Series'!P6 -> Overall
A3: ='Athlete Series'!J7 -> 1 | B3: ='Athlete Series'!K7 -> Sarah Murphy | C3: ='Athlete Series'!L7 -> UCL | D3: ='Athlete Series'!M7 -> 5 | E3: ='Athlete Series'!N7 -> 7 | F3: ='Athlete Series'!O7 -> 0 | G3: ='Athlete Series'!P7 -> 12
A4: ='Athlete Series'!J8 -> 2 | B4: ='Athlete Series'!K8 -> Ruth Verhoeff | C4: ='Athlete Series'!L8 -> King's | D4: ='Athlete Series'!M8 -> 7 | E4: ='Athlete Series'!N8 -> 0 | F4: ='Athlete Series'!O8 -> 0 | G4: ='Athlete Series'!P8 -> 7
A5: ='Athlete Series'!J9 -> 3 | B5: ='Athlete Series'!K9 -> Leilani Stacy | C5: ='Athlete Series'!L9 -> LSE | D5: ='Athlete Series'!M9 -> 0 | E5: ='Athlete Series'!N9 -> 5 | F5: ='Athlete Series'!O9 -> 0 | G5: ='Athlete Series'!P9 -> 5
A6: ='Athlete Series'!J10 -> 4 | B6: ='Athlete Series'!K10 -> Emma Simpson Dore | C6: ='Athlete Series'!L10 -> UCL | D6: ='Athlete Series'!M10 -> 0 | E6: ='Athlete Series'!N10 -> 4 | F6: ='Athlete Series'!O10 -> 0 | G6: ='Athlete Series'!P10 -> 4
A7: ='Athlete Series'!J11 -> 5 | B7: ='Athlete Series'!K11 ->  | C7: ='Athlete Series'!L11 ->  | D7: ='Athlete Series'!M11 ->  | E7: ='Athlete Series'!N11 ->  | F7: ='Athlete Series'!O11 ->  | G7: ='Athlete Series'!P11 -> 
A8: ='Athlete Series'!J12 -> 6 | B8: ='Athlete Series'!K12 ->  | C8: ='Athlete Series'!L12 ->  | D8: ='Athlete Series'!M12 ->  | E8: ='Athlete Series'!N12 ->  | F8: ='Athlete Series'!O12 ->  | G8: ='Athlete Series'!P12 -> 
A10: 110H
A11: ='Athlete Series'!B6 -> Pos | B11: ='Athlete Series'!C6 -> Name | C11: ='Athlete Series'!D6 -> College | D11: ='Athlete Series'!E6 -> St Mary's | E11: ='Athlete Series'!F6 -> Woodford | F11: ='Athlete Series'!G6 -> Battersea | G11: ='Athlete Series'!H6 -> Overall
A12: ='Athlete Series'!B7 -> 1 | B12: ='Athlete Series'!C7 -> Jonathan Burton | C12: ='Athlete Series'!D7 -> King's | D12: ='Athlete Series'!E7 -> 0 | E12: ='Athlete Series'!F7 -> 7 | F12: ='Athlete Series'!G7 -> 0 | G12: ='Athlete Series'!H7 -> 7
A13: ='Athlete Series'!B8 -> 2 | B13: ='Athlete Series'!C8 -> Ben Thomas | C13: ='Athlete Series'!D8 -> LSE | D13: ='Athlete Series'!E8 -> 0 | E13: ='Athlete Series'!F8 -> 5 | F13: ='Athlete Series'!G8 -> 0 | G13: ='Athlete Series'!H8 -> 5
A14: ='Athlete Series'!B9 -> 3 | B14: ='Athlete Series'!C9 ->  | C14: ='Athlete Series'!D9 ->  | D14: ='Athlete Series'!E9 ->  | E14: ='Athlete Series'!F9 ->  | F14: ='Athlete Series'!G9 ->  | G14: ='Athlete Series'!H9 -> 
A15: ='Athlete Series'!B10 -> 4 | B15: ='Athlete Series'!C10 ->  | C15: ='Athlete Series'!D10 ->  | D15: ='Athlete Series'!E10 ->  | E15: ='Athlete Series'!F10 ->  | F15: ='Athlete Series'!G10 ->  | G15: ='Athlete Series'!H10 -> 
A16: ='Athlete Series'!B11 -> 5 | B16: ='Athlete Series'!C11 ->  | C16: ='Athlete Series'!D11 ->  | D16: ='Athlete Series'!E11 ->  | E16: ='Athlete Series'!F11 ->  | F16: ='Athlete Series'!G11 ->  | G16: ='Athlete Series'!H11 -> 
A17: ='Athlete Series'!B12 -> 6 | B17: ='Athlete Series'!C12 ->  | C17: ='Athlete Series'!D12 ->  | D17: ='Athlete Series'!E12 ->  | E17: ='Athlete Series'!F12 ->  | F17: ='Athlete Series'!G12 ->  | G17: ='Athlete Series'!H12 -> 
A19: 100m Men
A20: ='Athlete Series'!B60 -> Pos | B20: ='Athlete Series'!C60 -> Name | C20: ='Athlete Series'!D60 -> College | D20: ='Athlete Series'!E60 -> St Mary's | E20: ='Athlete Series'!F60 -> Woodford | F20: ='Athlete Series'!G60 -> Battersea | G20: ='Athlete Series'!H60 -> Overall
A21: ='Athlete Series'!B61 -> 1 | B21: ='Athlete Series'!C61 -> Clyde Anucha | C21: ='Athlete Series'!D61 -> QMUL | D21: ='Athlete Series'!E61 -> 7 | E21: ='Athlete Series'!F61 -> 7 | F21: ='Athlete Series'!G61 -> 0 | G21: ='Athlete Series'!H61 -> 14
A22: ='Athlete Series'!B62 -> 2 | B22: ='Athlete Series'!C62 -> Hamish Mundell | C22: ='Athlete Series'!D62 -> LSE | D22: ='Athlete Series'!E62 -> 4 | E22: ='Athlete Series'!F62 -> 5 | F22: ='Athlete Series'!G62 -> 0 | G22: ='Athlete Series'!H62 -> 9
A23: ='Athlete Series'!B63 -> 3 | B23: ='Athlete Series'!C63 -> Mahmoud Barrie | C23: ='Athlete Series'!D63 -> Imperial | D23: ='Athlete Series'!E63 -> 5 | E23: ='Athlete Series'!F63 -> 0 | F23: ='Athlete Series'!G63 -> 0 | G23: ='Athlete Series'!H63 -> 5
A24: ='Athlete Series'!B64 -> 4 | B24: ='Athlete Series'!C64 -> Tom Mort | C24: ='Athlete Series'!D64 -> UCL | D24: ='Athlete Series'!E64 -> 0 | E24: ='Athlete Series'!F64 -> 4 | F24: ='Athlete Series'!G64 -> 0 | G24: ='Athlete Series'!H64 -> 4
A25: ='Athlete Series'!B65 -> 5 | B25: ='Athlete Series'!C65 -> Harry Browning | C25: ='Athlete Series'!D65 -> King's | D25: ='Athlete Series'!E65 -> 3 | E25: ='Athlete Series'!F65 -> 0 | F25: ='Athlete Series'!G65 -> 0 | G25: ='Athlete Series'!H65 -> 3
A26: ='Athlete Series'!B66 -> 6 | B26: ='Athlete Series'!C66 -> Tom Sanders | C26: ='Athlete Series'!D66 -> RHUL | D26: ='Athlete Series'!E66 -> 0 | E26: ='Athlete Series'!F66 -> 3 | F26: ='Athlete Series'!G66 -> 0 | G26: ='Athlete Series'!H66 -> 3
A27: ='Athlete Series'!B67 -> 7 | B27: ='Athlete Series'!C67 -> Tolu Ojora | C27: ='Athlete Series'!D67 -> QMUL | D27: ='Athlete Series'!E67 -> 2 | E27: ='Athlete Series'!F67 -> 0 | F27: ='Athlete Series'!G67 -> 0 | G27: ='Athlete Series'!H67 -> 2
A28: ='Athlete Series'!B68 -> 8 | B28: ='Athlete Series'!C68 -> Dan Richards | C28: ='Athlete Series'!D68 -> King's | D28: ='Athlete Series'!E68 -> 1 | E28: ='Athlete Series'!F68 -> 1 | F28: ='Athlete Series'!G68 -> 0 | G28: ='Athlete Series'!H68 -> 2
A29: ='Athlete Series'!B69 -> 9 | B29: ='Athlete Series'!C69 -> Miles Kershaw | C29: ='Athlete Series'!D69 -> Guests | D29: ='Athlete Series'!E69 -> 0 | E29: ='Athlete Series'!F69 -> 2 | F29: ='Athlete Series'!G69 -> 0 | G29: ='Athlete Series'!H69 -> 2
A30: ='Athlete Series'!B70 -> 10 | B30: ='Athlete Series'!C70 ->  | C30: ='Athlete Series'!D70 ->  | D30: ='Athlete Series'!E70 ->  | E30: ='Athlete Series'!F70 ->  | F30: ='Athlete Series'!G70 ->  | G30: ='Athlete Series'!H70 -> 
A31: ='Athlete Series'!B71 -> 11 | B31: ='Athlete Series'!C71 ->  | C31: ='Athlete Series'!D71 ->  | D31: ='Athlete Series'!E71 ->  | E31: ='Athlete Series'!F71 ->  | F31: ='Athlete Series'!G71 ->  | G31: ='Athlete Series'!H71 -> 
A32: ='Athlete Series'!B72 -> 12 | B32: ='Athlete Series'!C72 ->  | C32: ='Athlete Series'!D72 ->  | D32: ='Athlete Series'!E72 ->  | E32: ='Athlete Series'!F72 ->  | F32: ='Athlete Series'!G72 ->  | G32: ='Athlete Series'!H72 -> 
A34: 100m Women
A35: ='Athlete Series'!J60 -> Pos | B35: ='Athlete Series'!K60 -> Name | C35: ='Athlete Series'!L60 -> College | D35: ='Athlete Series'!M60 -> St Mary's | E35: ='Athlete Series'!N60 -> Woodford | F35: ='Athlete Series'!O60 -> Battersea | G35: ='Athlete Series'!P60 -> Overall
A36: ='Athlete Series'!J61 -> 1 | B36: ='Athlete Series'!K61 -> Yasmin Lakin | C36: ='Athlete Series'!L61 -> LSE | D36: ='Athlete Series'!M61 -> 7 | E36: ='Athlete Series'!N61 -> 7 | F36: ='Athlete Series'!O61 -> 0 | G36: ='Athlete Series'!P61 -> 14
A37: ='Athlete Series'!J62 -> 2 | B37: ='Athlete Series'!K62 -> Toyin Olufemi | C37: ='Athlete Series'!L62 -> Essex | D37: ='Athlete Series'!M62 -> 3 | E37: ='Athlete Series'!N62 -> 4 | F37: ='Athlete Series'!O62 -> 0 | G37: ='Athlete Series'!P62 -> 7
A38: ='Athlete Series'!J63 -> 3 | B38: ='Athlete Series'!K63 -> Danae Jeanclos | C38: ='Athlete Series'!L63 -> Essex | D38: ='Athlete Series'!M63 -> 5 | E38: ='Athlete Series'!N63 -> 0 | F38: ='Athlete Series'!O63 -> 0 | G38: ='Athlete Series'!P63 -> 5
A39: ='Athlete Series'!J64 -> 4 | B39: ='Athlete Series'!K64 -> Chloe Hocking | C39: ='Athlete Series'!L64 -> King's | D39: ='Athlete Series'!M64 -> 2 | E39: ='Athlete Series'!N64 -> 3 | F39: ='Athlete Series'!O64 -> 0 | G39: ='Athlete Series'!P64 -> 5
A40: ='Athlete Series'!J65 -> 5 | B40: ='Athlete Series'!K65 -> Tabita Botuli | C40: ='Athlete Series'!L65 -> Roehampton | D40: ='Athlete Series'!M65 -> 0 | E40: ='Athlete Series'!N65 -> 5 | F40: ='Athlete Series'!O65 -> 0 | G40: ='Athlete Series'!P65 -> 5
A41: ='Athlete Series'!J66 -> 6 | B41: ='Athlete Series'!K66 -> Hannah Freeman | C41: ='Athlete Series'!L66 -> RHUL | D41: ='Athlete Series'!M66 -> 4 | E41: ='Athlete Series'!N66 -> 0 | F41: ='Athlete Series'!O66 -> 0 | G41: ='Athlete Series'!P66 -> 4
A42: ='Athlete Series'!J67 -> 7 | B42: ='Athlete Series'!K67 -> Amy Mat | C42: ='Athlete Series'!L67 -> King's | D42: ='Athlete Series'!M67 -> 0 | E42: ='Athlete Series'!N67 -> 2 | F42: ='Athlete Series'!O67 -> 0 | G42: ='Athlete Series'!P67 -> 2
A43: ='Athlete Series'!J68 -> 8 | B43: ='Athlete Series'!K68 -> Rhianna Madden-Hansle | C43: ='Athlete Series'!L68 -> UCL | D43: ='Athlete Series'!M68 -> 1 | E43: ='Athlete Series'!N68 -> 0 | F43: ='Athlete Series'!O68 -> 0 | G43: ='Athlete Series'!P68 -> 1
A44: ='Athlete Series'!J69 -> 9 | B44: ='Athlete Series'!K69 -> Jasmine Balloch | C44: ='Athlete Series'!L69 -> UCL | D44: ='Athlete Series'!M69 -> 0 | E44: ='Athlete Series'!N69 -> 1 | F44: ='Athlete Series'!O69 -> 0 | G44: ='Athlete Series'!P69 -> 1
A45: ='Athlete Series'!J70 -> 10 | B45: ='Athlete Series'!K70 ->  | C45: ='Athlete Series'!L70 ->  | D45: ='Athlete Series'!M70 ->  | E45: ='Athlete Series'!N70 ->  | F45: ='Athlete Series'!O70 ->  | G45: ='Athlete Series'!P70 -> 
A46: ='Athlete Series'!J71 -> 11 | B46: ='Athlete Series'!K71 ->  | C46: ='Athlete Series'!L71 ->  | D46: ='Athlete Series'!M71 ->  | E46: ='Athlete Series'!N71 ->  | F46: ='Athlete Series'!O71 ->  | G46: ='Athlete Series'!P71 -> 
A47: ='Athlete Series'!J72 -> 12 | B47: ='Athlete Series'!K72 ->  | C47: ='Athlete Series'!L72 ->  | D47: ='Athlete Series'!M72 ->  | E47: ='Athlete Series'!N72 ->  | F47: ='Athlete Series'!O72 ->  | G47: ='Athlete Series'!P72 -> 
A49: 200m Men
A50: ='Athlete Series'!B113 -> Pos | B50: ='Athlete Series'!C113 -> Name | C50: ='Athlete Series'!D113 -> College | D50: ='Athlete Series'!E113 -> St Mary's | E50: ='Athlete Series'!F113 -> Woodford | F50: ='Athlete Series'!G113 -> Battersea | G50: ='Athlete Series'!H113 -> Overall
A51: ='Athlete Series'!B114 -> 1 | B51: ='Athlete Series'!C114 -> Harry Browning | C51: ='Athlete Series'!D114 -> King's | D51: ='Athlete Series'!E114 -> 5 | E51: ='Athlete Series'!F114 -> 5 | F51: ='Athlete Series'!G114 -> 0 | G51: ='Athlete Series'!H114 -> 10
A52: ='Athlete Series'!B115 -> 2 | B52: ='Athlete Series'!C115 -> Tolu Ojora | C52: ='Athlete Series'!D115 -> QMUL | D52: ='Athlete Series'!E115 -> 7 | E52: ='Athlete Series'!F115 -> 0 | F52: ='Athlete Series'!G115 -> 0 | G52: ='Athlete Series'!H115 -> 7
A53: ='Athlete Series'!B116 -> 3 | B53: ='Athlete Series'!C116 -> Hamish Mundell | C53: ='Athlete Series'!D116 -> LSE | D53: ='Athlete Series'!E116 -> 0 | E53: ='Athlete Series'!F116 -> 7 | F53: ='Athlete Series'!G116 -> 0 | G53: ='Athlete Series'!H116 -> 7
A54: ='Athlete Series'!B117 -> 4 | B54: ='Athlete Series'!C117 -> Tom Sanders | C54: ='Athlete Series'!D117 -> RHUL | D54: ='Athlete Series'!E117 -> 2 | E54: ='Athlete Series'!F117 -> 4 | F54: ='Athlete Series'!G117 -> 0 | G54: ='Athlete Series'!H117 -> 6
A55: ='Athlete Series'!B118 -> 5 | B55: ='Athlete Series'!C118 -> Paul Singleton | C55: ='Athlete Series'!D118 -> Essex | D55: ='Athlete Series'!E118 -> 4 | E55: ='Athlete Series'!F118 -> 0 | F55: ='Athlete Series'!G118 -> 0 | G55: ='Athlete Series'!H118 -> 4
A56: ='Athlete Series'!B119 -> 6 | B56: ='Athlete Series'!C119 -> Dan Richards | C56: ='Athlete Series'!D119 -> King's | D56: ='Athlete Series'!E119 -> 1 | E56: ='Athlete Series'!F119 -> 3 | F56: ='Athlete Series'!G119 -> 0 | G56: ='Athlete Series'!H119 -> 4
A57: ='Athlete Series'!B120 -> 7 | B57: ='Athlete Series'!C120 -> Rahmiah Ellington | C57: ='Athlete Series'!D120 -> Essex | D57: ='Athlete Series'!E120 -> 3 | E57: ='Athlete Series'!F120 -> 0 | F57: ='Athlete Series'!G120 -> 0 | G57: ='Athlete Series'!H120 -> 3
A58: ='Athlete Series'!B121 -> 8 | B58: ='Athlete Series'!C121 -> Iyaz Butt | C58: ='Athlete Series'!D121 -> King's | D58: ='Athlete Series'!E121 -> 0 | E58: ='Athlete Series'!F121 -> 2 | F58: ='Athlete Series'!G121 -> 0 | G58: ='Athlete Series'!H121 -> 2
A59: ='Athlete Series'!B122 -> 9 | B59: ='Athlete Series'!C122 -> Mohamed Soufiane Fdal | C59: ='Athlete Series'!D122 -> King's | D59: ='Athlete Series'!E122 -> 0 | E59: ='Athlete Series'!F122 -> 1 | F59: ='Athlete Series'!G122 -> 0 | G59: ='Athlete Series'!H122 -> 1
A60: ='Athlete Series'!B123 -> 10 | B60: ='Athlete Series'!C123 ->  | C60: ='Athlete Series'!D123 ->  | D60: ='Athlete Series'!E123 ->  | E60: ='Athlete Series'!F123 ->  | F60: ='Athlete Series'!G123 ->  | G60: ='Athlete Series'!H123 -> 
A61: ='Athlete Series'!B124 -> 11 | B61: ='Athlete Series'!C124 ->  | C61: ='Athlete Series'!D124 ->  | D61: ='Athlete Series'!E124 ->  | E61: ='Athlete Series'!F124 ->  | F61: ='Athlete Series'!G124 ->  | G61: ='Athlete Series'!H124 -> 
A62: ='Athlete Series'!B125 -> 12 | B62: ='Athlete Series'!C125 ->  | C62: ='Athlete Series'!D125 ->  | D62: ='Athlete Series'!E125 ->  | E62: ='Athlete Series'!F125 ->  | F62: ='Athlete Series'!G125 ->  | G62: ='Athlete Series'!H125 -> 
... 71 more rows

Sheet All Series Entries
A1: Number | B1: Name | C1: College | D1: Gender | E1: Event 1 | F1: Expected Result | G1: Event 2 | H1: Expected Result | I1: Event 3 | J1: Expected Result | K1: Event 4 | L1: Expected Result | M1: Event 5 | N1: Expected Result | O1: Event 6 | P1: Expected Result
E2: 60-400 write as nn.nn 800+ write as mm:ss:ff Field events write as nn.nn
A3: 1 | B3: ='Entries Stage 1'!B3 -> Sian Wyn Jones | C3: ='Entries Stage 1'!C3 -> Brunel | D3: ='Entries Stage 1'!D3 -> F
A4: 2 | B4: ='Entries Stage 1'!B4 -> Shannon Kennedy | C4: ='Entries Stage 1'!C4 -> Brunel | D4: ='Entries Stage 1'!D4 -> F
A5: 3 | B5: ='Entries Stage 1'!B5 -> Ainsley James Lazar | C5: ='Entries Stage 1'!C5 -> Brunel | D5: ='Entries Stage 1'!D5 -> M
A6: 4 | B6: ='Entries Stage 1'!B6 -> Alex Williams-Baffoe | C6: ='Entries Stage 1'!C6 -> Brunel | D6: ='Entries Stage 1'!D6 -> M
A7: 5 | B7: ='Entries Stage 1'!B7 -> George Loveday | C7: ='Entries Stage 1'!C7 -> Brunel | D7: ='Entries Stage 1'!D7 -> M
A8: 6 | B8: ='Entries Stage 1'!B8 -> Jacob McAdam | C8: ='Entries Stage 1'!C8 -> Brunel | D8: ='Entries Stage 1'!D8 -> M
A9: 7 | B9: ='Entries Stage 1'!B9 -> Danae Jeanclos | C9: ='Entries Stage 1'!C9 -> Essex | D9: ='Entries Stage 1'!D9 -> F
A10: 8 | B10: ='Entries Stage 1'!B10 -> Filipa Mcqueen | C10: ='Entries Stage 1'!C10 -> Essex | D10: ='Entries Stage 1'!D10 -> F
A11: 9 | B11: ='Entries Stage 1'!B11 -> Toyin Olufemi | C11: ='Entries Stage 1'!C11 -> Essex | D11: ='Entries Stage 1'!D11 -> F
A12: 10 | B12: ='Entries Stage 1'!B12 -> Vanessa Fitchett | C12: ='Entries Stage 1'!C12 -> Essex | D12: ='Entries Stage 1'!D12 -> F
A13: 11 | B13: ='Entries Stage 1'!B13 -> Benjamin Abbott | C13: ='Entries Stage 1'!C13 -> Essex | D13: ='Entries Stage 1'!D13 -> M
A14: 12 | B14: ='Entries Stage 1'!B14 -> Cathal Holloway | C14: ='Entries Stage 1'!C14 -> Essex | D14: ='Entries Stage 1'!D14 -> M
A15: 13 | B15: ='Entries Stage 1'!B15 -> Christopher Moore | C15: ='Entries Stage 1'!C15 -> Essex | D15: ='Entries Stage 1'!D15 -> M
A16: 14 | B16: ='Entries Stage 1'!B16 -> Christopher Morton | C16: ='Entries Stage 1'!C16 -> Essex | D16: ='Entries Stage 1'!D16 -> M
A17: 15 | B17: ='Entries Stage 1'!B17 -> Connor Oliver | C17: ='Entries Stage 1'!C17 -> Essex | D17: ='Entries Stage 1'!D17 -> M
A18: 16 | B18: ='Entries Stage 1'!B18 -> Daniel Nwonu | C18: ='Entries Stage 1'!C18 -> Essex | D18: ='Entries Stage 1'!D18 -> M
A19: 17 | B19: ='Entries Stage 1'!B19 -> Hiromichi Otake | C19: ='Entries Stage 1'!C19 -> Essex | D19: ='Entries Stage 1'!D19 -> M
A20: 18 | B20: ='Entries Stage 1'!B20 -> Karl Johnston | C20: ='Entries Stage 1'!C20 -> Essex | D20: ='Entries Stage 1'!D20 -> M
A21: 19 | B21: ='Entries Stage 1'!B21 -> Kojo Sakyi-Prah | C21: ='Entries Stage 1'!C21 -> Essex | D21: ='Entries Stage 1'!D21 -> M
A22: 20 | B22: ='Entries Stage 1'!B22 -> Paul Singleton | C22: ='Entries Stage 1'!C22 -> Essex | D22: ='Entries Stage 1'!D22 -> M
A23: 21 | B23: ='Entries Stage 1'!B23 -> Rahmiah Ellington | C23: ='Entries Stage 1'!C23 -> Essex | D23: ='Entries Stage 1'!D23 -> M
A24: 22 | B24: ='Entries Stage 1'!B24 -> Gemma Hillier-Moses | C24: ='Entries Stage 1'!C24 -> Guests | D24: ='Entries Stage 1'!D24 -> F
A25: 23 | B25: ='Entries Stage 1'!B25 -> Hollie Fudge | C25: ='Entries Stage 1'!C25 -> Guests | D25: ='Entries Stage 1'!D25 -> F
A26: 24 | B26: ='Entries Stage 1'!B26 -> Alex Lepetre | C26: ='Entries Stage 1'!C26 -> Guests | D26: ='Entries Stage 1'!D26 -> M
A27: 25 | B27: ='Entries Stage 1'!B27 -> Josh Trigwell | C27: ='Entries Stage 1'!C27 -> Guests | D27: ='Entries Stage 1'!D27 -> M
A28: 26 | B28: ='Entries Stage 1'!B28 -> Michael McBrinn | C28: ='Entries Stage 1'!C28 -> Guests | D28: ='Entries Stage 1'!D28 -> M
A29: 27 | B29: ='Entries Stage 1'!B29 -> Richard Bell | C29: ='Entries Stage 1'!C29 -> Guests | D29: ='Entries Stage 1'!D29 -> M
A30: 28 | B30: ='Entries Stage 1'!B30 -> Rowan Axe | C30: ='Entries Stage 1'!C30 -> Guests | D30: ='Entries Stage 1'!D30 -> M
A31: 29 | B31: ='Entries Stage 1'!B31 -> Sam Harry | C31: ='Entries Stage 1'!C31 -> Guests | D31: ='Entries Stage 1'!D31 -> M
A32: 30 | B32: ='Entries Stage 1'!B32 -> Alex Mundell | C32: ='Entries Stage 1'!C32 -> Imperial | D32: ='Entries Stage 1'!D32 -> F
A33: 31 | B33: ='Entries Stage 1'!B33 -> Jessica Prior | C33: ='Entries Stage 1'!C33 -> Imperial | D33: ='Entries Stage 1'!D33 -> F
A34: 32 | B34: ='Entries Stage 1'!B34 -> Katie Olding | C34: ='Entries Stage 1'!C34 -> Imperial | D34: ='Entries Stage 1'!D34 -> F
A35: 33 | B35: ='Entries Stage 1'!B35 -> Liv Papaioannou | C35: ='Entries Stage 1'!C35 -> Imperial | D35: ='Entries Stage 1'!D35 -> F
A36: 34 | B36: ='Entries Stage 1'!B36 -> Sarah Johnson | C36: ='Entries Stage 1'!C36 -> Imperial | D36: ='Entries Stage 1'!D36 -> F
A37: 35 | B37: ='Entries Stage 1'!B37 -> Callum Matthews | C37: ='Entries Stage 1'!C37 -> Imperial | D37: ='Entries Stage 1'!D37 -> M
A38: 36 | B38: ='Entries Stage 1'!B38 -> Christopher Allison | C38: ='Entries Stage 1'!C38 -> Imperial | D38: ='Entries Stage 1'!D38 -> M
A39: 37 | B39: ='Entries Stage 1'!B39 -> Daniel Garcia Rasines | C39: ='Entries Stage 1'!C39 -> Imperial | D39: ='Entries Stage 1'!D39 -> M
A40: 38 | B40: ='Entries Stage 1'!B40 -> David Weng Wei Fong | C40: ='Entries Stage 1'!C40 -> Imperial | D40: ='Entries Stage 1'!D40 -> M
A41: 39 | B41: ='Entries Stage 1'!B41 -> Duncan Ingram | C41: ='Entries Stage 1'!C41 -> Imperial | D41: ='Entries Stage 1'!D41 -> M
A42: 40 | B42: ='Entries Stage 1'!B42 -> Harry Scriven | C42: ='Entries Stage 1'!C42 -> Imperial | D42: ='Entries Stage 1'!D42 -> M
A43: 41 | B43: ='Entries Stage 1'!B43 -> Mahmoud Barrie | C43: ='Entries Stage 1'!C43 -> Imperial | D43: ='Entries Stage 1'!D43 -> M
A44: 42 | B44: ='Entries Stage 1'!B44 -> Max Thorp | C44: ='Entries Stage 1'!C44 -> Imperial | D44: ='Entries Stage 1'!D44 -> M
A45: 43 | B45: ='Entries Stage 1'!B45 -> Munos Heinen Luis | C45: ='Entries Stage 1'!C45 -> Imperial | D45: ='Entries Stage 1'!D45 -> M
A46: 44 | B46: ='Entries Stage 1'!B46 -> Raul Rinken | C46: ='Entries Stage 1'!C46 -> Imperial | D46: ='Entries Stage 1'!D46 -> M
A47: 45 | B47: ='Entries Stage 1'!B47 -> Victor Yu | C47: ='Entries Stage 1'!C47 -> Imperial | D47: ='Entries Stage 1'!D47 -> M
A48: 46 | B48: ='Entries Stage 1'!B48 -> Amy Mat | C48: ='Entries Stage 1'!C48 -> King's | D48: ='Entries Stage 1'!D48 -> F
A49: 47 | B49: ='Entries Stage 1'!B49 -> Berenice van Moere | C49: ='Entries Stage 1'!C49 -> King's | D49: ='Entries Stage 1'!D49 -> F
A50: 48 | B50: ='Entries Stage 1'!B50 -> Calvi Thompson | C50: ='Entries Stage 1'!C50 -> King's | D50: ='Entries Stage 1'!D50 -> F
A51: 49 | B51: ='Entries Stage 1'!B51 -> Chloe Hocking | C51: ='Entries Stage 1'!C51 -> King's | D51: ='Entries Stage 1'!D51 -> F
A52: 50 | B52: ='Entries Stage 1'!B52 -> Debbie Chown | C52: ='Entries Stage 1'!C52 -> King's | D52: ='Entries Stage 1'!D52 -> F
A53: 51 | B53: ='Entries Stage 1'!B53 -> Freddie Neal | C53: ='Entries Stage 1'!C53 -> King's | D53: ='Entries Stage 1'!D53 -> F
A54: 52 | B54: ='Entries Stage 1'!B54 -> Freddie Neal | C54: ='Entries Stage 1'!C54 -> King's | D54: ='Entries Stage 1'!D54 -> F
A55: 53 | B55: ='Entries Stage 1'!B55 -> Jasmeet Kaur | C55: ='Entries Stage 1'!C55 -> King's | D55: ='Entries Stage 1'!D55 -> F
A56: 54 | B56: ='Entries Stage 1'!B56 -> Kirsty Benham | C56: ='Entries Stage 1'!C56 -> King's | D56: ='Entries Stage 1'!D56 -> F
A57: 55 | B57: ='Entries Stage 1'!B57 -> Louise Pech | C57: ='Entries Stage 1'!C57 -> King's | D57: ='Entries Stage 1'!D57 -> F
A58: 56 | B58: ='Entries Stage 1'!B58 -> Ruth Verhoeff | C58: ='Entries Stage 1'!C58 -> King's | D58: ='Entries Stage 1'!D58 -> F
A59: 57 | B59: ='Entries Stage 1'!B59 -> Sacha Noor Aymond | C59: ='Entries Stage 1'!C59 -> King's | D59: ='Entries Stage 1'!D59 -> F
A60: 58 | B60: ='Entries Stage 1'!B60 -> Alex Russo | C60: ='Entries Stage 1'!C60 -> King's | D60: ='Entries Stage 1'!D60 -> M
A61: 59 | B61: ='Entries Stage 1'!B61 -> Borjan Venovski | C61: ='Entries Stage 1'!C61 -> King's | D61: ='Entries Stage 1'!D61 -> M
A62: 60 | B62: ='Entries Stage 1'!B62 -> Dan Richards | C62: ='Entries Stage 1'!C62 -> King's | D62: ='Entries Stage 1'!D62 -> M
... 77 more rows

Sheet Relays
A1: 4X100 | Q1: 4X400
A3: Men | I3: Women | Q3: Men | Y3: Women
A4: Club | B4: Relay Abbr. | C4: Team Entered? (enter team letter) | D4: Team (Bib) | E4: Club | F4: Stage 1? | G4: Stage 2? | H4: Stage 3? | I4: Club | J4: Relay Abbr. | K4: Team Entered? (enter team letter) | L4: Team (Bib) | M4: Club | N4: Stage 1? | O4: Stage 2? | P4: Stage 3? | Q4: Club | R4: Relay Abbr. | S4: Team Entered? (enter team letter) | T4: Team (Bib) | U4: Club | V4: Stage 1? | W4: Stage 2? | X4: Stage 3? | Y4: Club | Z4: Relay Abbr. | AA4: Team Entered? (enter team letter) | AB4: Team (Bib) | AC4: Club | AD4: Stage 1? | AE4: Stage 2? | AF4: Stage 3?
A5: ='Set-Up'!$C$7 -> LSE | B5: ='Set-Up'!$D$7 -> LSE | C5: A | D5: =IF(C5="","",IF(C5="A",B5,(CONCATENATE($C$5," ",B5)))) -> LSE | E5: =IF(D5<>"",A5,"") -> LSE | F5: Y | G5: Y | I5: ='Set-Up'!$C$7 -> LSE | J5: ='Set-Up'!$D$7 -> LSE | L5: =IF(K5="","",IF(K5="A",J5,(CONCATENATE($C$5," ",J5)))) ->  | M5: =IF(L5<>"",I5,"") ->  | Q5: ='Set-Up'!$C$7 -> LSE | R5: ='Set-Up'!$D$7 -> LSE | S5: A | T5: =IF(S5="","",IF(S5="A",R5,(CONCATENATE($C$5," ",R5)))) -> LSE | U5: =IF(T5<>"",Q5,"") -> LSE | V5: Y | Y5: ='Set-Up'!$C$7 -> LSE | Z5: ='Set-Up'!$D$7 -> LSE | AB5: =IF(AA5="","",IF(AA5="A",Z5,(CONCATENATE($C$5," ",Z5)))) ->  | AC5: =IF(AB5<>"",Y5,"") -> 
A6: ='Set-Up'!$C$7 -> LSE | B6: ='Set-Up'!$D$7 -> LSE | C6: B | D6: =IF(C6="","",IF(C6="A",B6,(CONCATENATE(B6," ",C6)))) -> LSE B | E6: =IF(D6<>"",A6,"") -> LSE | G6: Y | I6: ='Set-Up'!$C$7 -> LSE | J6: ='Set-Up'!$D$7 -> LSE | L6: =IF(K6="","",IF(K6="A",J6,(CONCATENATE(J6," ",K6)))) ->  | M6: =IF(L6<>"",I6,"") ->  | Q6: ='Set-Up'!$C$7 -> LSE | R6: ='Set-Up'!$D$7 -> LSE | S6: B | T6: =IF(S6="","",IF(S6="A",R6,(CONCATENATE(R6," ",S6)))) -> LSE B | U6: =IF(T6<>"",Q6,"") -> LSE | W6: Y | Y6: ='Set-Up'!$C$7 -> LSE | Z6: ='Set-Up'!$D$7 -> LSE | AB6: =IF(AA6="","",IF(AA6="A",Z6,(CONCATENATE(Z6," ",AA6)))) ->  | AC6: =IF(AB6<>"",Y6,"") -> 
A7: ='Set-Up'!$C$7 -> LSE | B7: ='Set-Up'!$D$7 -> LSE | D7: =IF(C7="","",IF(C7="A",B7,(CONCATENATE(B7," ",C7)))) ->  | I7: ='Set-Up'!$C$7 -> LSE | J7: ='Set-Up'!$D$7 -> LSE | L7: =IF(K7="","",IF(K7="A",J7,(CONCATENATE(J7," ",K7)))) ->  | Q7: ='Set-Up'!$C$7 -> LSE | R7: ='Set-Up'!$D$7 -> LSE | T7: =IF(S7="","",IF(S7="A",R7,(CONCATENATE(R7," ",S7)))) ->  | Y7: ='Set-Up'!$C$7 -> LSE | Z7: ='Set-Up'!$D$7 -> LSE | AB7: =IF(AA7="","",IF(AA7="A",Z7,(CONCATENATE(Z7," ",AA7)))) -> 
A8: ='Set-Up'!$C$7 -> LSE | B8: ='Set-Up'!$D$7 -> LSE | I8: ='Set-Up'!$C$7 -> LSE | J8: ='Set-Up'!$D$7 -> LSE | Q8: ='Set-Up'!$C$7 -> LSE | R8: ='Set-Up'!$D$7 -> LSE | Y8: ='Set-Up'!$C$7 -> LSE | Z8: ='Set-Up'!$D$7 -> LSE
A9: ='Set-Up'!$C$7 -> LSE | B9: ='Set-Up'!$D$7 -> LSE | I9: ='Set-Up'!$C$7 -> LSE | J9: ='Set-Up'!$D$7 -> LSE | Q9: ='Set-Up'!$C$7 -> LSE | R9: ='Set-Up'!$D$7 -> LSE | Y9: ='Set-Up'!$C$7 -> LSE | Z9: ='Set-Up'!$D$7 -> LSE
A10: ='Set-Up'!$C$7 -> LSE | B10: ='Set-Up'!$D$7 -> LSE | I10: ='Set-Up'!$C$7 -> LSE | J10: ='Set-Up'!$D$7 -> LSE | Q10: ='Set-Up'!$C$7 -> LSE | R10: ='Set-Up'!$D$7 -> LSE | Y10: ='Set-Up'!$C$7 -> LSE | Z10: ='Set-Up'!$D$7 -> LSE
A11: ='Set-Up'!$C$8 -> King's | B11: ='Set-Up'!$D$8 -> KCL | C11: A | D11: KCL | E11: King's | F11: Y | G11: Y | I11: ='Set-Up'!$C$8 -> King's | J11: ='Set-Up'!$D$8 -> KCL | K11: A | L11: KCL | M11: King's | N11: Y | O11: Y | Q11: ='Set-Up'!$C$8 -> King's | R11: ='Set-Up'!$D$8 -> KCL | S11: A | T11: KCL | U11: King's | V11: Y | Y11: ='Set-Up'!$C$8 -> King's | Z11: ='Set-Up'!$D$8 -> KCL | AA11: A | AB11: KCL | AC11: King's | AD11: Y
A12: ='Set-Up'!$C$8 -> King's | B12: ='Set-Up'!$D$8 -> KCL | C12: B | D12: KCL B | E12: King's | G12: Y | I12: ='Set-Up'!$C$8 -> King's | J12: ='Set-Up'!$D$8 -> KCL | Q12: ='Set-Up'!$C$8 -> King's | R12: ='Set-Up'!$D$8 -> KCL | Y12: ='Set-Up'!$C$8 -> King's | Z12: ='Set-Up'!$D$8 -> KCL
A13: ='Set-Up'!$C$8 -> King's | B13: ='Set-Up'!$D$8 -> KCL | I13: ='Set-Up'!$C$8 -> King's | J13: ='Set-Up'!$D$8 -> KCL | Q13: ='Set-Up'!$C$8 -> King's | R13: ='Set-Up'!$D$8 -> KCL | Y13: ='Set-Up'!$C$8 -> King's | Z13: ='Set-Up'!$D$8 -> KCL
A14: ='Set-Up'!$C$8 -> King's | B14: ='Set-Up'!$D$8 -> KCL | I14: ='Set-Up'!$C$8 -> King's | J14: ='Set-Up'!$D$8 -> KCL | Q14: ='Set-Up'!$C$8 -> King's | R14: ='Set-Up'!$D$8 -> KCL | Y14: ='Set-Up'!$C$8 -> King's | Z14: ='Set-Up'!$D$8 -> KCL
A15: ='Set-Up'!$C$8 -> King's | B15: ='Set-Up'!$D$8 -> KCL | I15: ='Set-Up'!$C$8 -> King's | J15: ='Set-Up'!$D$8 -> KCL | Q15: ='Set-Up'!$C$8 -> King's | R15: ='Set-Up'!$D$8 -> KCL | Y15: ='Set-Up'!$C$8 -> King's | Z15: ='Set-Up'!$D$8 -> KCL
A16: ='Set-Up'!$C$8 -> King's | B16: ='Set-Up'!$D$8 -> KCL | I16: ='Set-Up'!$C$8 -> King's | J16: ='Set-Up'!$D$8 -> KCL | Q16: ='Set-Up'!$C$8 -> King's | R16: ='Set-Up'!$D$8 -> KCL | Y16: ='Set-Up'!$C$8 -> King's | Z16: ='Set-Up'!$D$8 -> KCL
A17: ='Set-Up'!$C$9 -> Essex | B17: ='Set-Up'!$D$9 -> ESSX | C17: A | D17: ESSX | E17: Essex | F17: Y | I17: ='Set-Up'!$C$9 -> Essex | J17: ='Set-Up'!$D$9 -> ESSX | Q17: ='Set-Up'!$C$9 -> Essex | R17: ='Set-Up'!$D$9 -> ESSX | Y17: ='Set-Up'!$C$9 -> Essex | Z17: ='Set-Up'!$D$9 -> ESSX
A18: ='Set-Up'!$C$9 -> Essex | B18: ='Set-Up'!$D$9 -> ESSX | I18: ='Set-Up'!$C$9 -> Essex | J18: ='Set-Up'!$D$9 -> ESSX | Q18: ='Set-Up'!$C$9 -> Essex | R18: ='Set-Up'!$D$9 -> ESSX | Y18: ='Set-Up'!$C$9 -> Essex | Z18: ='Set-Up'!$D$9 -> ESSX
A19: ='Set-Up'!$C$9 -> Essex | B19: ='Set-Up'!$D$9 -> ESSX | I19: ='Set-Up'!$C$9 -> Essex | J19: ='Set-Up'!$D$9 -> ESSX | Q19: ='Set-Up'!$C$9 -> Essex | R19: ='Set-Up'!$D$9 -> ESSX | Y19: ='Set-Up'!$C$9 -> Essex | Z19: ='Set-Up'!$D$9 -> ESSX
A20: ='Set-Up'!$C$9 -> Essex | B20: ='Set-Up'!$D$9 -> ESSX | I20: ='Set-Up'!$C$9 -> Essex | J20: ='Set-Up'!$D$9 -> ESSX | Q20: ='Set-Up'!$C$9 -> Essex | R20: ='Set-Up'!$D$9 -> ESSX | Y20: ='Set-Up'!$C$9 -> Essex | Z20: ='Set-Up'!$D$9 -> ESSX
A21: ='Set-Up'!$C$9 -> Essex | B21: ='Set-Up'!$D$9 -> ESSX | I21: ='Set-Up'!$C$9 -> Essex | J21: ='Set-Up'!$D$9 -> ESSX | Q21: ='Set-Up'!$C$9 -> Essex | R21: ='Set-Up'!$D$9 -> ESSX | Y21: ='Set-Up'!$C$9 -> Essex | Z21: ='Set-Up'!$D$9 -> ESSX
A22: ='Set-Up'!$C$9 -> Essex | B22: ='Set-Up'!$D$9 -> ESSX | I22: ='Set-Up'!$C$9 -> Essex | J22: ='Set-Up'!$D$9 -> ESSX | Q22: ='Set-Up'!$C$9 -> Essex | R22: ='Set-Up'!$D$9 -> ESSX | Y22: ='Set-Up'!$C$9 -> Essex | Z22: ='Set-Up'!$D$9 -> ESSX
A23: ='Set-Up'!$C$10 -> RHUL | B23: ='Set-Up'!$D$10 -> RHUL | I23: ='Set-Up'!$C$10 -> RHUL | J23: ='Set-Up'!$D$10 -> RHUL | Q23: ='Set-Up'!$C$10 -> RHUL | R23: ='Set-Up'!$D$10 -> RHUL | Y23: ='Set-Up'!$C$10 -> RHUL | Z23: ='Set-Up'!$D$10 -> RHUL
A24: ='Set-Up'!$C$10 -> RHUL | B24: ='Set-Up'!$D$10 -> RHUL | I24: ='Set-Up'!$C$10 -> RHUL | J24: ='Set-Up'!$D$10 -> RHUL | Q24: ='Set-Up'!$C$10 -> RHUL | R24: ='Set-Up'!$D$10 -> RHUL | Y24: ='Set-Up'!$C$10 -> RHUL | Z24: ='Set-Up'!$D$10 -> RHUL
A25: ='Set-Up'!$C$10 -> RHUL | B25: ='Set-Up'!$D$10 -> RHUL | I25: ='Set-Up'!$C$10 -> RHUL | J25: ='Set-Up'!$D$10 -> RHUL | Q25: ='Set-Up'!$C$10 -> RHUL | R25: ='Set-Up'!$D$10 -> RHUL | Y25: ='Set-Up'!$C$10 -> RHUL | Z25: ='Set-Up'!$D$10 -> RHUL
A26: ='Set-Up'!$C$10 -> RHUL | B26: ='Set-Up'!$D$10 -> RHUL | I26: ='Set-Up'!$C$10 -> RHUL | J26: ='Set-Up'!$D$10 -> RHUL | Q26: ='Set-Up'!$C$10 -> RHUL | R26: ='Set-Up'!$D$10 -> RHUL | Y26: ='Set-Up'!$C$10 -> RHUL | Z26: ='Set-Up'!$D$10 -> RHUL
A27: ='Set-Up'!$C$10 -> RHUL | B27: ='Set-Up'!$D$10 -> RHUL | I27: ='Set-Up'!$C$10 -> RHUL | J27: ='Set-Up'!$D$10 -> RHUL | Q27: ='Set-Up'!$C$10 -> RHUL | R27: ='Set-Up'!$D$10 -> RHUL | Y27: ='Set-Up'!$C$10 -> RHUL | Z27: ='Set-Up'!$D$10 -> RHUL
A28: ='Set-Up'!$C$10 -> RHUL | B28: ='Set-Up'!$D$10 -> RHUL | I28: ='Set-Up'!$C$10 -> RHUL | J28: ='Set-Up'!$D$10 -> RHUL | Q28: ='Set-Up'!$C$10 -> RHUL | R28: ='Set-Up'!$D$10 -> RHUL | Y28: ='Set-Up'!$C$10 -> RHUL | Z28: ='Set-Up'!$D$10 -> RHUL
A29: ='Set-Up'!$C$11 -> UCL | B29: ='Set-Up'!$D$11 -> UCL | C29: A | D29: UCL | E29: UCL | F29: Y | G29: Y | I29: ='Set-Up'!$C$11 -> UCL | J29: ='Set-Up'!$D$11 -> UCL | K29: A | L29: UCL | M29: UCL | N29: Y | O29: Y | Q29: ='Set-Up'!$C$11 -> UCL | R29: ='Set-Up'!$D$11 -> UCL | S29: A | T29: UCL | U29: UCL | V29: Y | Y29: ='Set-Up'!$C$11 -> UCL | Z29: ='Set-Up'!$D$11 -> UCL | AA29: A | AB29: UCL | AC29: UCL | AD29: Y
A30: ='Set-Up'!$C$11 -> UCL | B30: ='Set-Up'!$D$11 -> UCL | I30: ='Set-Up'!$C$11 -> UCL | J30: ='Set-Up'!$D$11 -> UCL | Q30: ='Set-Up'!$C$11 -> UCL | R30: ='Set-Up'!$D$11 -> UCL | Y30: ='Set-Up'!$C$11 -> UCL | Z30: ='Set-Up'!$D$11 -> UCL
A31: ='Set-Up'!$C$11 -> UCL | B31: ='Set-Up'!$D$11 -> UCL | I31: ='Set-Up'!$C$11 -> UCL | J31: ='Set-Up'!$D$11 -> UCL | Q31: ='Set-Up'!$C$11 -> UCL | R31: ='Set-Up'!$D$11 -> UCL | Y31: ='Set-Up'!$C$11 -> UCL | Z31: ='Set-Up'!$D$11 -> UCL
A32: ='Set-Up'!$C$11 -> UCL | B32: ='Set-Up'!$D$11 -> UCL | I32: ='Set-Up'!$C$11 -> UCL | J32: ='Set-Up'!$D$11 -> UCL | Q32: ='Set-Up'!$C$11 -> UCL | R32: ='Set-Up'!$D$11 -> UCL | Y32: ='Set-Up'!$C$11 -> UCL | Z32: ='Set-Up'!$D$11 -> UCL
A33: ='Set-Up'!$C$11 -> UCL | B33: ='Set-Up'!$D$11 -> UCL | I33: ='Set-Up'!$C$11 -> UCL | J33: ='Set-Up'!$D$11 -> UCL | Q33: ='Set-Up'!$C$11 -> UCL | R33: ='Set-Up'!$D$11 -> UCL | Y33: ='Set-Up'!$C$11 -> UCL | Z33: ='Set-Up'!$D$11 -> UCL
A34: ='Set-Up'!$C$11 -> UCL | B34: ='Set-Up'!$D$11 -> UCL | I34: ='Set-Up'!$C$11 -> UCL | J34: ='Set-Up'!$D$11 -> UCL | Q34: ='Set-Up'!$C$11 -> UCL | R34: ='Set-Up'!$D$11 -> UCL | Y34: ='Set-Up'!$C$11 -> UCL | Z34: ='Set-Up'!$D$11 -> UCL
A35: ='Set-Up'!$C$12 -> Imperial | B35: ='Set-Up'!$D$12 -> ICL | C35: A | D35: ICL | E35: Imperial | F35: Y | I35: ='Set-Up'!$C$12 -> Imperial | J35: ='Set-Up'!$D$12 -> ICL | Q35: ='Set-Up'!$C$12 -> Imperial | R35: ='Set-Up'!$D$12 -> ICL | Y35: ='Set-Up'!$C$12 -> Imperial | Z35: ='Set-Up'!$D$12 -> ICL
A36: ='Set-Up'!$C$12 -> Imperial | B36: ='Set-Up'!$D$12 -> ICL | I36: ='Set-Up'!$C$12 -> Imperial | J36: ='Set-Up'!$D$12 -> ICL | Q36: ='Set-Up'!$C$12 -> Imperial | R36: ='Set-Up'!$D$12 -> ICL | Y36: ='Set-Up'!$C$12 -> Imperial | Z36: ='Set-Up'!$D$12 -> ICL
A37: ='Set-Up'!$C$12 -> Imperial | B37: ='Set-Up'!$D$12 -> ICL | I37: ='Set-Up'!$C$12 -> Imperial | J37: ='Set-Up'!$D$12 -> ICL | Q37: ='Set-Up'!$C$12 -> Imperial | R37: ='Set-Up'!$D$12 -> ICL | Y37: ='Set-Up'!$C$12 -> Imperial | Z37: ='Set-Up'!$D$12 -> ICL
A38: ='Set-Up'!$C$12 -> Imperial | B38: ='Set-Up'!$D$12 -> ICL | I38: ='Set-Up'!$C$12 -> Imperial | J38: ='Set-Up'!$D$12 -> ICL | Q38: ='Set-Up'!$C$12 -> Imperial | R38: ='Set-Up'!$D$12 -> ICL | Y38: ='Set-Up'!$C$12 -> Imperial | Z38: ='Set-Up'!$D$12 -> ICL
A39: ='Set-Up'!$C$12 -> Imperial | B39: ='Set-Up'!$D$12 -> ICL | I39: ='Set-Up'!$C$12 -> Imperial | J39: ='Set-Up'!$D$12 -> ICL | Q39: ='Set-Up'!$C$12 -> Imperial | R39: ='Set-Up'!$D$12 -> ICL | Y39: ='Set-Up'!$C$12 -> Imperial | Z39: ='Set-Up'!$D$12 -> ICL
A40: ='Set-Up'!$C$12 -> Imperial | B40: ='Set-Up'!$D$12 -> ICL | I40: ='Set-Up'!$C$12 -> Imperial | J40: ='Set-Up'!$D$12 -> ICL | Q40: ='Set-Up'!$C$12 -> Imperial | R40: ='Set-Up'!$D$12 -> ICL | Y40: ='Set-Up'!$C$12 -> Imperial | Z40: ='Set-Up'!$D$12 -> ICL
A41: ='Set-Up'!$C$13 -> QMUL | B41: ='Set-Up'!$D$13 -> QMUL | C41: A | D41: QMUL | E41: QMUL | F41: Y | I41: ='Set-Up'!$C$13 -> QMUL | J41: ='Set-Up'!$D$13 -> QMUL | Q41: ='Set-Up'!$C$13 -> QMUL | R41: ='Set-Up'!$D$13 -> QMUL | Y41: ='Set-Up'!$C$13 -> QMUL | Z41: ='Set-Up'!$D$13 -> QMUL
A42: ='Set-Up'!$C$13 -> QMUL | B42: ='Set-Up'!$D$13 -> QMUL | I42: ='Set-Up'!$C$13 -> QMUL | J42: ='Set-Up'!$D$13 -> QMUL | Q42: ='Set-Up'!$C$13 -> QMUL | R42: ='Set-Up'!$D$13 -> QMUL | Y42: ='Set-Up'!$C$13 -> QMUL | Z42: ='Set-Up'!$D$13 -> QMUL
A43: ='Set-Up'!$C$13 -> QMUL | B43: ='Set-Up'!$D$13 -> QMUL | I43: ='Set-Up'!$C$13 -> QMUL | J43: ='Set-Up'!$D$13 -> QMUL | Q43: ='Set-Up'!$C$13 -> QMUL | R43: ='Set-Up'!$D$13 -> QMUL | Y43: ='Set-Up'!$C$13 -> QMUL | Z43: ='Set-Up'!$D$13 -> QMUL
A44: ='Set-Up'!$C$13 -> QMUL | B44: ='Set-Up'!$D$13 -> QMUL | I44: ='Set-Up'!$C$13 -> QMUL | J44: ='Set-Up'!$D$13 -> QMUL | Q44: ='Set-Up'!$C$13 -> QMUL | R44: ='Set-Up'!$D$13 -> QMUL | Y44: ='Set-Up'!$C$13 -> QMUL | Z44: ='Set-Up'!$D$13 -> QMUL
A45: ='Set-Up'!$C$13 -> QMUL | B45: ='Set-Up'!$D$13 -> QMUL | I45: ='Set-Up'!$C$13 -> QMUL | J45: ='Set-Up'!$D$13 -> QMUL | Q45: ='Set-Up'!$C$13 -> QMUL | R45: ='Set-Up'!$D$13 -> QMUL | Y45: ='Set-Up'!$C$13 -> QMUL | Z45: ='Set-Up'!$D$13 -> QMUL
A46: ='Set-Up'!$C$13 -> QMUL | B46: ='Set-Up'!$D$13 -> QMUL | I46: ='Set-Up'!$C$13 -> QMUL | J46: ='Set-Up'!$D$13 -> QMUL | Q46: ='Set-Up'!$C$13 -> QMUL | R46: ='Set-Up'!$D$13 -> QMUL | Y46: ='Set-Up'!$C$13 -> QMUL | Z46: ='Set-Up'!$D$13 -> QMUL
A47: ='Set-Up'!$C$14 -> SMU | B47: ='Set-Up'!$D$14 -> SMU | I47: ='Set-Up'!$C$14 -> SMU | J47: ='Set-Up'!$D$14 -> SMU | Q47: ='Set-Up'!$C$14 -> SMU | R47: ='Set-Up'!$D$14 -> SMU | Y47: ='Set-Up'!$C$14 -> SMU | Z47: ='Set-Up'!$D$14 -> SMU
A48: ='Set-Up'!$C$14 -> SMU | B48: ='Set-Up'!$D$14 -> SMU | I48: ='Set-Up'!$C$14 -> SMU | J48: ='Set-Up'!$D$14 -> SMU | Q48: ='Set-Up'!$C$14 -> SMU | R48: ='Set-Up'!$D$14 -> SMU | Y48: ='Set-Up'!$C$14 -> SMU | Z48: ='Set-Up'!$D$14 -> SMU
A49: ='Set-Up'!$C$14 -> SMU | B49: ='Set-Up'!$D$14 -> SMU | I49: ='Set-Up'!$C$14 -> SMU | J49: ='Set-Up'!$D$14 -> SMU | Q49: ='Set-Up'!$C$14 -> SMU | R49: ='Set-Up'!$D$14 -> SMU | Y49: ='Set-Up'!$C$14 -> SMU | Z49: ='Set-Up'!$D$14 -> SMU
A50: ='Set-Up'!$C$14 -> SMU | B50: ='Set-Up'!$D$14 -> SMU | I50: ='Set-Up'!$C$14 -> SMU | J50: ='Set-Up'!$D$14 -> SMU | Q50: ='Set-Up'!$C$14 -> SMU | R50: ='Set-Up'!$D$14 -> SMU | Y50: ='Set-Up'!$C$14 -> SMU | Z50: ='Set-Up'!$D$14 -> SMU
A51: ='Set-Up'!$C$14 -> SMU | B51: ='Set-Up'!$D$14 -> SMU | I51: ='Set-Up'!$C$14 -> SMU | J51: ='Set-Up'!$D$14 -> SMU | Q51: ='Set-Up'!$C$14 -> SMU | R51: ='Set-Up'!$D$14 -> SMU | Y51: ='Set-Up'!$C$14 -> SMU | Z51: ='Set-Up'!$D$14 -> SMU
A52: ='Set-Up'!$C$14 -> SMU | B52: ='Set-Up'!$D$14 -> SMU | I52: ='Set-Up'!$C$14 -> SMU | J52: ='Set-Up'!$D$14 -> SMU | Q52: ='Set-Up'!$C$14 -> SMU | R52: ='Set-Up'!$D$14 -> SMU | Y52: ='Set-Up'!$C$14 -> SMU | Z52: ='Set-Up'!$D$14 -> SMU
A53: ='Set-Up'!$C$15 -> Brunel | B53: ='Set-Up'!$D$15 -> BRU | I53: ='Set-Up'!$C$15 -> Brunel | J53: ='Set-Up'!$D$15 -> BRU | Q53: ='Set-Up'!$C$15 -> Brunel | R53: ='Set-Up'!$D$15 -> BRU | Y53: ='Set-Up'!$C$15 -> Brunel | Z53: ='Set-Up'!$D$15 -> BRU
A54: ='Set-Up'!$C$15 -> Brunel | B54: ='Set-Up'!$D$15 -> BRU | I54: ='Set-Up'!$C$15 -> Brunel | J54: ='Set-Up'!$D$15 -> BRU | Q54: ='Set-Up'!$C$15 -> Brunel | R54: ='Set-Up'!$D$15 -> BRU | Y54: ='Set-Up'!$C$15 -> Brunel | Z54: ='Set-Up'!$D$15 -> BRU
A55: ='Set-Up'!$C$15 -> Brunel | B55: ='Set-Up'!$D$15 -> BRU | I55: ='Set-Up'!$C$15 -> Brunel | J55: ='Set-Up'!$D$15 -> BRU | Q55: ='Set-Up'!$C$15 -> Brunel | R55: ='Set-Up'!$D$15 -> BRU | Y55: ='Set-Up'!$C$15 -> Brunel | Z55: ='Set-Up'!$D$15 -> BRU
A56: ='Set-Up'!$C$15 -> Brunel | B56: ='Set-Up'!$D$15 -> BRU | I56: ='Set-Up'!$C$15 -> Brunel | J56: ='Set-Up'!$D$15 -> BRU | Q56: ='Set-Up'!$C$15 -> Brunel | R56: ='Set-Up'!$D$15 -> BRU | Y56: ='Set-Up'!$C$15 -> Brunel | Z56: ='Set-Up'!$D$15 -> BRU
A57: ='Set-Up'!$C$15 -> Brunel | B57: ='Set-Up'!$D$15 -> BRU | I57: ='Set-Up'!$C$15 -> Brunel | J57: ='Set-Up'!$D$15 -> BRU | Q57: ='Set-Up'!$C$15 -> Brunel | R57: ='Set-Up'!$D$15 -> BRU | Y57: ='Set-Up'!$C$15 -> Brunel | Z57: ='Set-Up'!$D$15 -> BRU
A58: ='Set-Up'!$C$15 -> Brunel | B58: ='Set-Up'!$D$15 -> BRU | I58: ='Set-Up'!$C$15 -> Brunel | J58: ='Set-Up'!$D$15 -> BRU | Q58: ='Set-Up'!$C$15 -> Brunel | R58: ='Set-Up'!$D$15 -> BRU | Y58: ='Set-Up'!$C$15 -> Brunel | Z58: ='Set-Up'!$D$15 -> BRU
A59: ='Set-Up'!$C$16 -> Guests | B59: ='Set-Up'!$D$16 -> GUEST | I59: ='Set-Up'!$C$16 -> Guests | J59: ='Set-Up'!$D$16 -> GUEST | Q59: ='Set-Up'!$C$16 -> Guests | R59: ='Set-Up'!$D$16 -> GUEST | Y59: ='Set-Up'!$C$16 -> Guests | Z59: ='Set-Up'!$D$16 -> GUEST
A60: ='Set-Up'!$C$16 -> Guests | B60: ='Set-Up'!$D$16 -> GUEST | I60: ='Set-Up'!$C$16 -> Guests | J60: ='Set-Up'!$D$16 -> GUEST | Q60: ='Set-Up'!$C$16 -> Guests | R60: ='Set-Up'!$D$16 -> GUEST | Y60: ='Set-Up'!$C$16 -> Guests | Z60: ='Set-Up'!$D$16 -> GUEST
A61: ='Set-Up'!$C$16 -> Guests | B61: ='Set-Up'!$D$16 -> GUEST | I61: ='Set-Up'!$C$16 -> Guests | J61: ='Set-Up'!$D$16 -> GUEST | Q61: ='Set-Up'!$C$16 -> Guests | R61: ='Set-Up'!$D$16 -> GUEST | Y61: ='Set-Up'!$C$16 -> Guests | Z61: ='Set-Up'!$D$16 -> GUEST
A62: ='Set-Up'!$C$16 -> Guests | B62: ='Set-Up'!$D$16 -> GUEST | I62: ='Set-Up'!$C$16 -> Guests | J62: ='Set-Up'!$D$16 -> GUEST | Q62: ='Set-Up'!$C$16 -> Guests | R62: ='Set-Up'!$D$16 -> GUEST | Y62: ='Set-Up'!$C$16 -> Guests | Z62: ='Set-Up'!$D$16 -> GUEST
A63: ='Set-Up'!$C$16 -> Guests | B63: ='Set-Up'!$D$16 -> GUEST | I63: ='Set-Up'!$C$16 -> Guests | J63: ='Set-Up'!$D$16 -> GUEST | Q63: ='Set-Up'!$C$16 -> Guests | R63: ='Set-Up'!$D$16 -> GUEST | Y63: ='Set-Up'!$C$16 -> Guests | Z63: ='Set-Up'!$D$16 -> GUEST
A64: ='Set-Up'!$C$16 -> Guests | B64: ='Set-Up'!$D$16 -> GUEST | I64: ='Set-Up'!$C$16 -> Guests | J64: ='Set-Up'!$D$16 -> GUEST | Q64: ='Set-Up'!$C$16 -> Guests | R64: ='Set-Up'!$D$16 -> GUEST | Y64: ='Set-Up'!$C$16 -> Guests | Z64: ='Set-Up'!$D$16 -> GUEST
A65: ='Set-Up'!#REF! ->  | B65: ='Set-Up'!#REF! ->  | I65: ='Set-Up'!#REF! ->  | J65: ='Set-Up'!#REF! ->  | Q65: ='Set-Up'!#REF! ->  | R65: ='Set-Up'!#REF! ->  | Y65: ='Set-Up'!#REF! ->  | Z65: ='Set-Up'!#REF! -> 
A66: ='Set-Up'!#REF! ->  | B66: ='Set-Up'!#REF! ->  | I66: ='Set-Up'!#REF! ->  | J66: ='Set-Up'!#REF! ->  | Q66: ='Set-Up'!#REF! ->  | R66: ='Set-Up'!#REF! ->  | Y66: ='Set-Up'!#REF! ->  | Z66: ='Set-Up'!#REF! -> 
A67: ='Set-Up'!#REF! ->  | B67: ='Set-Up'!#REF! ->  | I67: ='Set-Up'!#REF! ->  | J67: ='Set-Up'!#REF! ->  | Q67: ='Set-Up'!#REF! ->  | R67: ='Set-Up'!#REF! ->  | Y67: ='Set-Up'!#REF! ->  | Z67: ='Set-Up'!#REF! -> 
A68: ='Set-Up'!#REF! ->  | B68: ='Set-Up'!#REF! ->  | I68: ='Set-Up'!#REF! ->  | J68: ='Set-Up'!#REF! ->  | Q68: ='Set-Up'!#REF! ->  | R68: ='Set-Up'!#REF! ->  | Y68: ='Set-Up'!#REF! ->  | Z68: ='Set-Up'!#REF! -> 
A69: ='Set-Up'!#REF! ->  | B69: ='Set-Up'!#REF! ->  | I69: ='Set-Up'!#REF! ->  | J69: ='Set-Up'!#REF! ->  | Q69: ='Set-Up'!#REF! ->  | R69: ='Set-Up'!#REF! ->  | Y69: ='Set-Up'!#REF! ->  | Z69: ='Set-Up'!#REF! -> 
A70: ='Set-Up'!#REF! ->  | B70: ='Set-Up'!#REF! ->  | E70: =IF(D70<>"",A70,"") ->  | I70: ='Set-Up'!#REF! ->  | J70: ='Set-Up'!#REF! ->  | M70: =IF(L70<>"",I70,"") ->  | Q70: ='Set-Up'!#REF! ->  | R70: ='Set-Up'!#REF! ->  | U70: =IF(T70<>"",Q70,"") ->  | Y70: ='Set-Up'!#REF! ->  | Z70: ='Set-Up'!#REF! ->  | AC70: =IF(AB70<>"",Y70,"") -> 
A71: ='Set-Up'!#REF! ->  | B71: ='Set-Up'!#REF! ->  | D71: =IF(C71="","",IF(C71="A",B71,(CONCATENATE(B71," ",C71)))) ->  | I71: ='Set-Up'!#REF! ->  | J71: ='Set-Up'!#REF! ->  | L71: =IF(K71="","",IF(K71="A",J71,(CONCATENATE(J71," ",K71)))) ->  | Q71: ='Set-Up'!#REF! ->  | R71: ='Set-Up'!#REF! ->  | T71: =IF(S71="","",IF(S71="A",R71,(CONCATENATE(R71," ",S71)))) ->  | Y71: ='Set-Up'!#REF! ->  | Z71: ='Set-Up'!#REF! ->  | AB71: =IF(AA71="","",IF(AA71="A",Z71,(CONCATENATE(Z71," ",AA71)))) -> 
A72: ='Set-Up'!#REF! ->  | B72: ='Set-Up'!#REF! ->  | I72: ='Set-Up'!#REF! ->  | J72: ='Set-Up'!#REF! ->  | Q72: ='Set-Up'!#REF! ->  | R72: ='Set-Up'!#REF! ->  | Y72: ='Set-Up'!#REF! ->  | Z72: ='Set-Up'!#REF! -> 
A73: ='Set-Up'!#REF! ->  | B73: ='Set-Up'!#REF! ->  | I73: ='Set-Up'!#REF! ->  | J73: ='Set-Up'!#REF! ->  | Q73: ='Set-Up'!#REF! ->  | R73: ='Set-Up'!#REF! ->  | Y73: ='Set-Up'!#REF! ->  | Z73: ='Set-Up'!#REF! -> 
A74: ='Set-Up'!#REF! ->  | B74: ='Set-Up'!#REF! ->  | I74: ='Set-Up'!#REF! ->  | J74: ='Set-Up'!#REF! ->  | Q74: ='Set-Up'!#REF! ->  | R74: ='Set-Up'!#REF! ->  | Y74: ='Set-Up'!#REF! ->  | Z74: ='Set-Up'!#REF! -> 
A75: ='Set-Up'!#REF! ->  | B75: ='Set-Up'!#REF! ->  | I75: ='Set-Up'!#REF! ->  | J75: ='Set-Up'!#REF! ->  | Q75: ='Set-Up'!#REF! ->  | R75: ='Set-Up'!#REF! ->  | Y75: ='Set-Up'!#REF! ->  | Z75: ='Set-Up'!#REF! -> 
A76: ='Set-Up'!#REF! ->  | B76: ='Set-Up'!#REF! ->  | I76: ='Set-Up'!#REF! ->  | J76: ='Set-Up'!#REF! ->  | Q76: ='Set-Up'!#REF! ->  | R76: ='Set-Up'!#REF! ->  | Y76: ='Set-Up'!#REF! ->  | Z76: ='Set-Up'!#REF! -> 
A77: ='Set-Up'!$C$17 -> UEL | B77: ='Set-Up'!$D$17 -> UEL | I77: ='Set-Up'!$C$17 -> UEL | J77: ='Set-Up'!$D$17 -> UEL | Q77: ='Set-Up'!$C$17 -> UEL | R77: ='Set-Up'!$D$17 -> UEL | Y77: ='Set-Up'!$C$17 -> UEL | Z77: ='Set-Up'!$D$17 -> UEL
A78: ='Set-Up'!$C$17 -> UEL | B78: ='Set-Up'!$D$17 -> UEL | I78: ='Set-Up'!$C$17 -> UEL | J78: ='Set-Up'!$D$17 -> UEL | Q78: ='Set-Up'!$C$17 -> UEL | R78: ='Set-Up'!$D$17 -> UEL | Y78: ='Set-Up'!$C$17 -> UEL | Z78: ='Set-Up'!$D$17 -> UEL
A79: ='Set-Up'!$C$17 -> UEL | B79: ='Set-Up'!$D$17 -> UEL | I79: ='Set-Up'!$C$17 -> UEL | J79: ='Set-Up'!$D$17 -> UEL | Q79: ='Set-Up'!$C$17 -> UEL | R79: ='Set-Up'!$D$17 -> UEL | Y79: ='Set-Up'!$C$17 -> UEL | Z79: ='Set-Up'!$D$17 -> UEL
A80: ='Set-Up'!$C$17 -> UEL | B80: ='Set-Up'!$D$17 -> UEL | I80: ='Set-Up'!$C$17 -> UEL | J80: ='Set-Up'!$D$17 -> UEL | Q80: ='Set-Up'!$C$17 -> UEL | R80: ='Set-Up'!$D$17 -> UEL | Y80: ='Set-Up'!$C$17 -> UEL | Z80: ='Set-Up'!$D$17 -> UEL
A81: ='Set-Up'!$C$17 -> UEL | B81: ='Set-Up'!$D$17 -> UEL | I81: ='Set-Up'!$C$17 -> UEL | J81: ='Set-Up'!$D$17 -> UEL | Q81: ='Set-Up'!$C$17 -> UEL | R81: ='Set-Up'!$D$17 -> UEL | Y81: ='Set-Up'!$C$17 -> UEL | Z81: ='Set-Up'!$D$17 -> UEL
A82: ='Set-Up'!$C$17 -> UEL | B82: ='Set-Up'!$D$17 -> UEL | I82: ='Set-Up'!$C$17 -> UEL | J82: ='Set-Up'!$D$17 -> UEL | Q82: ='Set-Up'!$C$17 -> UEL | R82: ='Set-Up'!$D$17 -> UEL | Y82: ='Set-Up'!$C$17 -> UEL | Z82: ='Set-Up'!$D$17 -> UEL
A83: ='Set-Up'!$C$20 -> STG | B83: ='Set-Up'!$D$20 -> STG | I83: ='Set-Up'!$C$20 -> STG | J83: ='Set-Up'!$D$20 -> STG | Q83: ='Set-Up'!$C$20 -> STG | R83: ='Set-Up'!$D$20 -> STG | Y83: ='Set-Up'!$C$20 -> STG | Z83: ='Set-Up'!$D$20 -> STG
A84: ='Set-Up'!$C$20 -> STG | B84: ='Set-Up'!$D$20 -> STG | I84: ='Set-Up'!$C$20 -> STG | J84: ='Set-Up'!$D$20 -> STG | Q84: ='Set-Up'!$C$20 -> STG | R84: ='Set-Up'!$D$20 -> STG | Y84: ='Set-Up'!$C$20 -> STG | Z84: ='Set-Up'!$D$20 -> STG
A85: ='Set-Up'!$C$20 -> STG | B85: ='Set-Up'!$D$20 -> STG | I85: ='Set-Up'!$C$20 -> STG | J85: ='Set-Up'!$D$20 -> STG | Q85: ='Set-Up'!$C$20 -> STG | R85: ='Set-Up'!$D$20 -> STG | Y85: ='Set-Up'!$C$20 -> STG | Z85: ='Set-Up'!$D$20 -> STG
A86: ='Set-Up'!$C$20 -> STG | B86: ='Set-Up'!$D$20 -> STG | I86: ='Set-Up'!$C$20 -> STG | J86: ='Set-Up'!$D$20 -> STG | Q86: ='Set-Up'!$C$20 -> STG | R86: ='Set-Up'!$D$20 -> STG | Y86: ='Set-Up'!$C$20 -> STG | Z86: ='Set-Up'!$D$20 -> STG
A87: ='Set-Up'!$C$20 -> STG | B87: ='Set-Up'!$D$20 -> STG | I87: ='Set-Up'!$C$20 -> STG | J87: ='Set-Up'!$D$20 -> STG | Q87: ='Set-Up'!$C$20 -> STG | R87: ='Set-Up'!$D$20 -> STG | Y87: ='Set-Up'!$C$20 -> STG | Z87: ='Set-Up'!$D$20 -> STG
A88: ='Set-Up'!$C$20 -> STG | B88: ='Set-Up'!$D$20 -> STG | I88: ='Set-Up'!$C$20 -> STG | J88: ='Set-Up'!$D$20 -> STG | Q88: ='Set-Up'!$C$20 -> STG | R88: ='Set-Up'!$D$20 -> STG | Y88: ='Set-Up'!$C$20 -> STG | Z88: ='Set-Up'!$D$20 -> STG
A89: ='Set-Up'!$C$18 -> UofL | B89: ='Set-Up'!$D$18 -> UL | I89: ='Set-Up'!$C$18 -> UofL | J89: ='Set-Up'!$D$18 -> UL | Q89: ='Set-Up'!$C$18 -> UofL | R89: ='Set-Up'!$D$18 -> UL | Y89: ='Set-Up'!$C$18 -> UofL | Z89: ='Set-Up'!$D$18 -> UL
A90: ='Set-Up'!$C$18 -> UofL | B90: ='Set-Up'!$D$18 -> UL | I90: ='Set-Up'!$C$18 -> UofL | J90: ='Set-Up'!$D$18 -> UL | Q90: ='Set-Up'!$C$18 -> UofL | R90: ='Set-Up'!$D$18 -> UL | Y90: ='Set-Up'!$C$18 -> UofL | Z90: ='Set-Up'!$D$18 -> UL
A91: ='Set-Up'!$C$18 -> UofL | B91: ='Set-Up'!$D$18 -> UL | I91: ='Set-Up'!$C$18 -> UofL | J91: ='Set-Up'!$D$18 -> UL | Q91: ='Set-Up'!$C$18 -> UofL | R91: ='Set-Up'!$D$18 -> UL | Y91: ='Set-Up'!$C$18 -> UofL | Z91: ='Set-Up'!$D$18 -> UL
A92: ='Set-Up'!$C$18 -> UofL | B92: ='Set-Up'!$D$18 -> UL | I92: ='Set-Up'!$C$18 -> UofL | J92: ='Set-Up'!$D$18 -> UL | Q92: ='Set-Up'!$C$18 -> UofL | R92: ='Set-Up'!$D$18 -> UL | Y92: ='Set-Up'!$C$18 -> UofL | Z92: ='Set-Up'!$D$18 -> UL
A93: ='Set-Up'!$C$18 -> UofL | B93: ='Set-Up'!$D$18 -> UL | I93: ='Set-Up'!$C$18 -> UofL | J93: ='Set-Up'!$D$18 -> UL | Q93: ='Set-Up'!$C$18 -> UofL | R93: ='Set-Up'!$D$18 -> UL | Y93: ='Set-Up'!$C$18 -> UofL | Z93: ='Set-Up'!$D$18 -> UL
A94: ='Set-Up'!$C$18 -> UofL | B94: ='Set-Up'!$D$18 -> UL | I94: ='Set-Up'!$C$18 -> UofL | J94: ='Set-Up'!$D$18 -> UL | Q94: ='Set-Up'!$C$18 -> UofL | R94: ='Set-Up'!$D$18 -> UL | Y94: ='Set-Up'!$C$18 -> UofL | Z94: ='Set-Up'!$D$18 -> UL
A95: ='Set-Up'!$C$22 -> 0 | B95: ='Set-Up'!$D$22 -> 0 | I95: ='Set-Up'!$C$22 -> 0 | J95: ='Set-Up'!$D$22 -> 0 | Q95: ='Set-Up'!$C$22 -> 0 | R95: ='Set-Up'!$D$22 -> 0 | Y95: ='Set-Up'!$C$22 -> 0 | Z95: ='Set-Up'!$D$22 -> 0
A96: ='Set-Up'!$C$22 -> 0 | B96: ='Set-Up'!$D$22 -> 0 | I96: ='Set-Up'!$C$22 -> 0 | J96: ='Set-Up'!$D$22 -> 0 | Q96: ='Set-Up'!$C$22 -> 0 | R96: ='Set-Up'!$D$22 -> 0 | Y96: ='Set-Up'!$C$22 -> 0 | Z96: ='Set-Up'!$D$22 -> 0
A97: ='Set-Up'!$C$22 -> 0 | B97: ='Set-Up'!$D$22 -> 0 | I97: ='Set-Up'!$C$22 -> 0 | J97: ='Set-Up'!$D$22 -> 0 | Q97: ='Set-Up'!$C$22 -> 0 | R97: ='Set-Up'!$D$22 -> 0 | Y97: ='Set-Up'!$C$22 -> 0 | Z97: ='Set-Up'!$D$22 -> 0
A98: ='Set-Up'!$C$22 -> 0 | B98: ='Set-Up'!$D$22 -> 0 | I98: ='Set-Up'!$C$22 -> 0 | J98: ='Set-Up'!$D$22 -> 0 | Q98: ='Set-Up'!$C$22 -> 0 | R98: ='Set-Up'!$D$22 -> 0 | Y98: ='Set-Up'!$C$22 -> 0 | Z98: ='Set-Up'!$D$22 -> 0
A99: ='Set-Up'!$C$22 -> 0 | B99: ='Set-Up'!$D$22 -> 0 | I99: ='Set-Up'!$C$22 -> 0 | J99: ='Set-Up'!$D$22 -> 0 | Q99: ='Set-Up'!$C$22 -> 0 | R99: ='Set-Up'!$D$22 -> 0 | Y99: ='Set-Up'!$C$22 -> 0 | Z99: ='Set-Up'!$D$22 -> 0
A100: ='Set-Up'!$C$22 -> 0 | B100: ='Set-Up'!$D$22 -> 0 | I100: ='Set-Up'!$C$22 -> 0 | J100: ='Set-Up'!$D$22 -> 0 | Q100: ='Set-Up'!$C$22 -> 0 | R100: ='Set-Up'!$D$22 -> 0 | Y100: ='Set-Up'!$C$22 -> 0 | Z100: ='Set-Up'!$D$22 -> 0
A101: ='Set-Up'!$C$21 -> 0 | B101: ='Set-Up'!$D$23 -> 0 | I101: ='Set-Up'!$C$21 -> 0 | J101: ='Set-Up'!$D$23 -> 0 | Q101: ='Set-Up'!$C$21 -> 0 | R101: ='Set-Up'!$D$23 -> 0 | Y101: ='Set-Up'!$C$21 -> 0 | Z101: ='Set-Up'!$D$23 -> 0
A102: ='Set-Up'!$C$21 -> 0 | B102: ='Set-Up'!$D$23 -> 0 | I102: ='Set-Up'!$C$21 -> 0 | J102: ='Set-Up'!$D$23 -> 0 | Q102: ='Set-Up'!$C$21 -> 0 | R102: ='Set-Up'!$D$23 -> 0 | Y102: ='Set-Up'!$C$21 -> 0 | Z102: ='Set-Up'!$D$23 -> 0
A103: ='Set-Up'!$C$21 -> 0 | B103: ='Set-Up'!$D$23 -> 0 | I103: ='Set-Up'!$C$21 -> 0 | J103: ='Set-Up'!$D$23 -> 0 | Q103: ='Set-Up'!$C$21 -> 0 | R103: ='Set-Up'!$D$23 -> 0 | Y103: ='Set-Up'!$C$21 -> 0 | Z103: ='Set-Up'!$D$23 -> 0
A104: ='Set-Up'!$C$21 -> 0 | B104: ='Set-Up'!$D$23 -> 0 | I104: ='Set-Up'!$C$21 -> 0 | J104: ='Set-Up'!$D$23 -> 0 | Q104: ='Set-Up'!$C$21 -> 0 | R104: ='Set-Up'!$D$23 -> 0 | Y104: ='Set-Up'!$C$21 -> 0 | Z104: ='Set-Up'!$D$23 -> 0
A105: ='Set-Up'!$C$21 -> 0 | B105: ='Set-Up'!$D$23 -> 0 | I105: ='Set-Up'!$C$21 -> 0 | J105: ='Set-Up'!$D$23 -> 0 | Q105: ='Set-Up'!$C$21 -> 0 | R105: ='Set-Up'!$D$23 -> 0 | Y105: ='Set-Up'!$C$21 -> 0 | Z105: ='Set-Up'!$D$23 -> 0
A106: ='Set-Up'!$C$21 -> 0 | B106: ='Set-Up'!$D$23 -> 0 | I106: ='Set-Up'!$C$21 -> 0 | J106: ='Set-Up'!$D$23 -> 0 | Q106: ='Set-Up'!$C$21 -> 0 | R106: ='Set-Up'!$D$23 -> 0 | Y106: ='Set-Up'!$C$21 -> 0 | Z106: ='Set-Up'!$D$23 -> 0
A107: ='Set-Up'!$C$24 -> 0 | B107: ='Set-Up'!$D$24 -> 0 | I107: ='Set-Up'!$C$24 -> 0 | J107: ='Set-Up'!$D$24 -> 0 | Q107: ='Set-Up'!$C$24 -> 0 | R107: ='Set-Up'!$D$24 -> 0 | Y107: ='Set-Up'!$C$24 -> 0 | Z107: ='Set-Up'!$D$24 -> 0
A108: ='Set-Up'!$C$24 -> 0 | B108: ='Set-Up'!$D$24 -> 0 | I108: ='Set-Up'!$C$24 -> 0 | J108: ='Set-Up'!$D$24 -> 0 | Q108: ='Set-Up'!$C$24 -> 0 | R108: ='Set-Up'!$D$24 -> 0 | Y108: ='Set-Up'!$C$24 -> 0 | Z108: ='Set-Up'!$D$24 -> 0
A109: ='Set-Up'!$C$24 -> 0 | B109: ='Set-Up'!$D$24 -> 0 | I109: ='Set-Up'!$C$24 -> 0 | J109: ='Set-Up'!$D$24 -> 0 | Q109: ='Set-Up'!$C$24 -> 0 | R109: ='Set-Up'!$D$24 -> 0 | Y109: ='Set-Up'!$C$24 -> 0 | Z109: ='Set-Up'!$D$24 -> 0
A110: ='Set-Up'!$C$24 -> 0 | B110: ='Set-Up'!$D$24 -> 0 | I110: ='Set-Up'!$C$24 -> 0 | J110: ='Set-Up'!$D$24 -> 0 | Q110: ='Set-Up'!$C$24 -> 0 | R110: ='Set-Up'!$D$24 -> 0 | Y110: ='Set-Up'!$C$24 -> 0 | Z110: ='Set-Up'!$D$24 -> 0
A111: ='Set-Up'!$C$24 -> 0 | B111: ='Set-Up'!$D$24 -> 0 | I111: ='Set-Up'!$C$24 -> 0 | J111: ='Set-Up'!$D$24 -> 0 | Q111: ='Set-Up'!$C$24 -> 0 | R111: ='Set-Up'!$D$24 -> 0 | Y111: ='Set-Up'!$C$24 -> 0 | Z111: ='Set-Up'!$D$24 -> 0
A112: ='Set-Up'!$C$24 -> 0 | B112: ='Set-Up'!$D$24 -> 0 | I112: ='Set-Up'!$C$24 -> 0 | J112: ='Set-Up'!$D$24 -> 0 | Q112: ='Set-Up'!$C$24 -> 0 | R112: ='Set-Up'!$D$24 -> 0 | Y112: ='Set-Up'!$C$24 -> 0 | Z112: ='Set-Up'!$D$24 -> 0
A113: ='Set-Up'!$C$25 -> 0 | B113: ='Set-Up'!$D$25 -> 0 | I113: ='Set-Up'!$C$25 -> 0 | J113: ='Set-Up'!$D$25 -> 0 | Q113: ='Set-Up'!$C$25 -> 0 | R113: ='Set-Up'!$D$25 -> 0 | Y113: ='Set-Up'!$C$25 -> 0 | Z113: ='Set-Up'!$D$25 -> 0
A114: ='Set-Up'!$C$25 -> 0 | B114: ='Set-Up'!$D$25 -> 0 | I114: ='Set-Up'!$C$25 -> 0 | J114: ='Set-Up'!$D$25 -> 0 | Q114: ='Set-Up'!$C$25 -> 0 | R114: ='Set-Up'!$D$25 -> 0 | Y114: ='Set-Up'!$C$25 -> 0 | Z114: ='Set-Up'!$D$25 -> 0
A115: ='Set-Up'!$C$25 -> 0 | B115: ='Set-Up'!$D$25 -> 0 | I115: ='Set-Up'!$C$25 -> 0 | J115: ='Set-Up'!$D$25 -> 0 | Q115: ='Set-Up'!$C$25 -> 0 | R115: ='Set-Up'!$D$25 -> 0 | Y115: ='Set-Up'!$C$25 -> 0 | Z115: ='Set-Up'!$D$25 -> 0
A116: ='Set-Up'!$C$25 -> 0 | B116: ='Set-Up'!$D$25 -> 0 | I116: ='Set-Up'!$C$25 -> 0 | J116: ='Set-Up'!$D$25 -> 0 | Q116: ='Set-Up'!$C$25 -> 0 | R116: ='Set-Up'!$D$25 -> 0 | Y116: ='Set-Up'!$C$25 -> 0 | Z116: ='Set-Up'!$D$25 -> 0
A117: ='Set-Up'!$C$25 -> 0 | B117: ='Set-Up'!$D$25 -> 0 | I117: ='Set-Up'!$C$25 -> 0 | J117: ='Set-Up'!$D$25 -> 0 | Q117: ='Set-Up'!$C$25 -> 0 | R117: ='Set-Up'!$D$25 -> 0 | Y117: ='Set-Up'!$C$25 -> 0 | Z117: ='Set-Up'!$D$25 -> 0
A118: ='Set-Up'!$C$25 -> 0 | B118: ='Set-Up'!$D$25 -> 0 | I118: ='Set-Up'!$C$25 -> 0 | J118: ='Set-Up'!$D$25 -> 0 | Q118: ='Set-Up'!$C$25 -> 0 | R118: ='Set-Up'!$D$25 -> 0 | Y118: ='Set-Up'!$C$25 -> 0 | Z118: ='Set-Up'!$D$25 -> 0
A119: ='Set-Up'!$C$26 -> 0 | B119: ='Set-Up'!$D$26 -> 0 | I119: ='Set-Up'!$C$26 -> 0 | J119: ='Set-Up'!$D$26 -> 0 | Q119: ='Set-Up'!$C$26 -> 0 | R119: ='Set-Up'!$D$26 -> 0 | Y119: ='Set-Up'!$C$26 -> 0 | Z119: ='Set-Up'!$D$26 -> 0
A120: ='Set-Up'!$C$26 -> 0 | B120: ='Set-Up'!$D$26 -> 0 | I120: ='Set-Up'!$C$26 -> 0 | J120: ='Set-Up'!$D$26 -> 0 | Q120: ='Set-Up'!$C$26 -> 0 | R120: ='Set-Up'!$D$26 -> 0 | Y120: ='Set-Up'!$C$26 -> 0 | Z120: ='Set-Up'!$D$26 -> 0
A121: ='Set-Up'!$C$26 -> 0 | B121: ='Set-Up'!$D$26 -> 0 | I121: ='Set-Up'!$C$26 -> 0 | J121: ='Set-Up'!$D$26 -> 0 | Q121: ='Set-Up'!$C$26 -> 0 | R121: ='Set-Up'!$D$26 -> 0 | Y121: ='Set-Up'!$C$26 -> 0 | Z121: ='Set-Up'!$D$26 -> 0
A122: ='Set-Up'!$C$26 -> 0 | B122: ='Set-Up'!$D$26 -> 0 | I122: ='Set-Up'!$C$26 -> 0 | J122: ='Set-Up'!$D$26 -> 0 | Q122: ='Set-Up'!$C$26 -> 0 | R122: ='Set-Up'!$D$26 -> 0 | Y122: ='Set-Up'!$C$26 -> 0 | Z122: ='Set-Up'!$D$26 -> 0
A123: ='Set-Up'!$C$26 -> 0 | B123: ='Set-Up'!$D$26 -> 0 | I123: ='Set-Up'!$C$26 -> 0 | J123: ='Set-Up'!$D$26 -> 0 | Q123: ='Set-Up'!$C$26 -> 0 | R123: ='Set-Up'!$D$26 -> 0 | Y123: ='Set-Up'!$C$26 -> 0 | Z123: ='Set-Up'!$D$26 -> 0
A124: ='Set-Up'!$C$26 -> 0 | B124: ='Set-Up'!$D$26 -> 0 | I124: ='Set-Up'!$C$26 -> 0 | J124: ='Set-Up'!$D$26 -> 0 | Q124: ='Set-Up'!$C$26 -> 0 | R124: ='Set-Up'!$D$26 -> 0 | Y124: ='Set-Up'!$C$26 -> 0 | Z124: ='Set-Up'!$D$26 -> 0
A125: ='Set-Up'!$C$27 -> 0 | B125: ='Set-Up'!$D$27 -> 0 | I125: ='Set-Up'!$C$27 -> 0 | J125: ='Set-Up'!$D$27 -> 0 | Q125: ='Set-Up'!$C$27 -> 0 | R125: ='Set-Up'!$D$27 -> 0 | Y125: ='Set-Up'!$C$27 -> 0 | Z125: ='Set-Up'!$D$27 -> 0
A126: ='Set-Up'!$C$27 -> 0 | B126: ='Set-Up'!$D$27 -> 0 | I126: ='Set-Up'!$C$27 -> 0 | J126: ='Set-Up'!$D$27 -> 0 | Q126: ='Set-Up'!$C$27 -> 0 | R126: ='Set-Up'!$D$27 -> 0 | Y126: ='Set-Up'!$C$27 -> 0 | Z126: ='Set-Up'!$D$27 -> 0
A127: ='Set-Up'!$C$27 -> 0 | B127: ='Set-Up'!$D$27 -> 0 | I127: ='Set-Up'!$C$27 -> 0 | J127: ='Set-Up'!$D$27 -> 0 | Q127: ='Set-Up'!$C$27 -> 0 | R127: ='Set-Up'!$D$27 -> 0 | Y127: ='Set-Up'!$C$27 -> 0 | Z127: ='Set-Up'!$D$27 -> 0
A128: ='Set-Up'!$C$27 -> 0 | B128: ='Set-Up'!$D$27 -> 0 | I128: ='Set-Up'!$C$27 -> 0 | J128: ='Set-Up'!$D$27 -> 0 | Q128: ='Set-Up'!$C$27 -> 0 | R128: ='Set-Up'!$D$27 -> 0 | Y128: ='Set-Up'!$C$27 -> 0 | Z128: ='Set-Up'!$D$27 -> 0
A129: ='Set-Up'!$C$27 -> 0 | B129: ='Set-Up'!$D$27 -> 0 | I129: ='Set-Up'!$C$27 -> 0 | J129: ='Set-Up'!$D$27 -> 0 | Q129: ='Set-Up'!$C$27 -> 0 | R129: ='Set-Up'!$D$27 -> 0 | Y129: ='Set-Up'!$C$27 -> 0 | Z129: ='Set-Up'!$D$27 -> 0
A130: ='Set-Up'!$C$27 -> 0 | B130: ='Set-Up'!$D$27 -> 0 | I130: ='Set-Up'!$C$27 -> 0 | J130: ='Set-Up'!$D$27 -> 0 | Q130: ='Set-Up'!$C$27 -> 0 | R130: ='Set-Up'!$D$27 -> 0 | Y130: ='Set-Up'!$C$27 -> 0 | Z130: ='Set-Up'!$D$27 -> 0

Sheet Entries Stage 1
A1: Number | B1: Name | C1: College | D1: Gender | E1: Event 1 | F1: Expected Result | G1: Event 2 | H1: Expected Result | I1: Event 3 | J1: Expected Result | K1: Event 4 | L1: Expected Result | M1: Event 5 | N1: Expected Result | O1: Event 6 | P1: Expected Result | Q1: =S1 -> 100 | R1: No. | S1: ='Set-Up'!M7 -> 100 | T1: =V1 -> 100H | U1: No. | V1: ='Set-Up'!F9 -> 100H | W1: =Y1 -> 110H | X1: No. | Y1: ='Set-Up'!M9 -> 110H | Z1: =AB1 -> 200 | AA1: No. | AB1: ='Set-Up'!M10 -> 200 | AC1: =AE1 -> 400 | AD1: No. | AE1: ='Set-Up'!M11 -> 400 | AF1: =AH1 -> 400H | AG1: No. | AH1: ='Set-Up'!M12 -> 400H | AI1: =AK1 -> 800 | AJ1: No. | AK1: ='Set-Up'!M13 -> 800 | AL1: =AN1 -> 1500 | AM1: No. | AN1: ='Set-Up'!M14 -> 1500 | AO1: =AQ1 -> 2000SC | AP1: No. | AQ1: ='Set-Up'!M15 -> 2000SC | AR1: =AT1 -> 3000SC | AS1: No. | AT1: ='Set-Up'!M16 -> 3000SC | AU1: =AW1 -> 5000 | AV1: No. | AW1: ='Set-Up'!M17 -> 5000 | AX1: =AZ1 -> 10000 | AY1: No. | AZ1: ='Set-Up'!M18 -> 10000 | BA1: =BC1 -> 4X100 | BB1: No. | BC1: ='Set-Up'!M19 -> 4X100 | BD1: =BF1 -> 4X400 | BE1: No. | BF1: ='Set-Up'!M20 -> 4X400 | BG1: =BI1 -> Medley | BH1: No. | BI1: ='Set-Up'!M21 -> Medley | BJ1: =BL1 -> HJ | BK1: No. | BL1: ='Set-Up'!M22 -> HJ | BM1: =BO1 -> TJ | BN1: No. | BO1: ='Set-Up'!M23 -> TJ | BP1: =BR1 -> LJ | BQ1: No. | BR1: ='Set-Up'!M24 -> LJ | BS1: =BU1 -> PV | BT1: No. | BU1: ='Set-Up'!M25 -> PV | BV1: =BX1 -> SP | BW1: No. | BX1: ='Set-Up'!M26 -> SP | BY1: =CA1 -> JT | BZ1: No. | CA1: ='Set-Up'!M27 -> JT | CB1: =CD1 -> Discus | CC1: No. | CD1: ='Set-Up'!M28 -> Discus | CE1: =CG1 ->  | CF1: No. | CG1: ='Set-Up'!M29 ->  | CH1: =CJ1 ->  | CI1: No. | CJ1: ='Set-Up'!M30 ->  | CK1: =CM1 ->  | CL1: No. | CM1: ='Set-Up'!M31 ->  | CN1: =CP1 ->  | CO1: No. | CP1: ='Set-Up'!M32 ->  | CQ1: =CS1 ->  | CR1: No. | CS1: ='Set-Up'!M33 ->  | CT1: =CV1 ->  | CU1: No. | CV1: ='Set-Up'!M34 ->  | CW1: =CY1 ->  | CX1: No. | CY1: ='Set-Up'!M35 ->  | CZ1: =DB1 ->  | DA1: No. | DB1: ='Set-Up'!M36 ->  | DC1: =DE1 ->  | DD1: No. | DE1: ='Set-Up'!M37 ->  | DF1: =DH1 ->  | DG1: No. | DH1: ='Set-Up'!M38 ->  | DI1: =DK1 ->  | DJ1: No. | DK1: ='Set-Up'!M39 ->  | DL1: =DN1 ->  | DM1: No. | DN1: ='Set-Up'!M40 ->  | DO1: =DQ1 ->  | DP1: No. | DQ1: ='Set-Up'!M41 -> 
E2: 100-400 write as nn.nn 800+ write as mm:ss.00 Field events write as nn.nn
A3: 1 | B3: Sian Wyn Jones | C3: Brunel | D3: F | E3: 400 | F3: 62.7 | G3: 200 | H3: 26.8 | Q3: =IF($E3=$S$1,"Y",IF($G3=$S$1,"Y",IF($I3=$S$1,"Y",IF($K3=$S$1,"Y",IF($M3=$S$1,"Y",IF($O3=$S$1,"Y","")))))) ->  | R3: =A3 -> 1 | S3: =IF($E3=$S$1,$F3,IF($G3=$S$1,$H3,IF($I3=$S$1,$J3,IF($K3=$S$1,$L3,IF($M3=$S$1,$N3,IF($O3=$S$1,$P3,"")))))) ->  | T3: =IF($E3=$V$1,"Y",IF($G3=$V$1,"Y",IF($I3=$V$1,"Y",IF($K3=$V$1,"Y",IF($M3=$V$1,"Y",IF($O3=$V$1,"Y","")))))) ->  | U3: =A3 -> 1 | V3: =IF($E3=$V$1,$F3,IF($G3=$V$1,$H3,IF($I3=$V$1,$J3,IF($K3=$V$1,$L3,IF($M3=$V$1,$N3,IF($O3=$V$1,$P3,"")))))) ->  | W3: =IF($E3=$Y$1,"Y",IF($G3=$Y$1,"Y",IF($I3=$Y$1,"Y",IF($K3=$Y$1,"Y",IF($M3=$Y$1,"Y",IF($O3=$Y$1,"Y","")))))) ->  | X3: =A3 -> 1 | Y3: =IF($E3=$Y$1,$F3,IF($G3=$Y$1,$H3,IF($I3=$Y$1,$J3,IF($K3=$Y$1,$L3,IF($M3=$Y$1,$N3,IF($O3=$Y$1,$P3,"")))))) ->  | Z3: =IF($E3=$AB$1,"Y",IF($G3=$AB$1,"Y",IF($I3=$AB$1,"Y",IF($K3=$AB$1,"Y",IF($M3=$AB$1,"Y",IF($O3=$AB$1,"Y","")))))) -> Y | AA3: =A3 -> 1 | AB3: =IF($E3=$AB$1,$F3,IF($G3=$AB$1,$H3,IF($I3=$AB$1,$J3,IF($K3=$AB$1,$L3,IF($M3=$AB$1,$N3,IF($O3=$AB$1,$P3,"")))))) -> 26.8 | AC3: =IF($E3=$AE$1,"Y",IF($G3=$AE$1,"Y",IF($I3=$AE$1,"Y",IF($K3=$AE$1,"Y",IF($M3=$AE$1,"Y",IF($O3=$AE$1,"Y","")))))) -> Y | AD3: =A3 -> 1 | AE3: =IF($E3=$AE$1,$F3,IF($G3=$AE$1,$H3,IF($I3=$AE$1,$J3,IF($K3=$AE$1,$L3,IF($M3=$AE$1,$N3,IF($O3=$AE$1,$P3,"")))))) -> 62.7 | AF3: =IF($E3=$AH$1,"Y",IF($G3=$AH$1,"Y",IF($I3=$AH$1,"Y",IF($K3=$AH$1,"Y",IF($M3=$AH$1,"Y",IF($O3=$AH$1,"Y","")))))) ->  | AG3: =A3 -> 1 | AH3: =IF($E3=$AH$1,$F3,IF($G3=$AH$1,$H3,IF($I3=$AH$1,$J3,IF($K3=$AH$1,$L3,IF($M3=$AH$1,$N3,IF($O3=$AH$1,$P3,"")))))) ->  | AI3: =IF($E3=$AK$1,"Y",IF($G3=$AK$1,"Y",IF($I3=$AK$1,"Y",IF($K3=$AK$1,"Y",IF($M3=$AK$1,"Y",IF($O3=$AK$1,"Y","")))))) ->  | AJ3: =A3 -> 1 | AK3: =IF($E3=$AK$1,$F3,IF($G3=$AK$1,$H3,IF($I3=$AK$1,$J3,IF($K3=$AK$1,$L3,IF($M3=$AK$1,$N3,IF($O3=$AK$1,$P3,"")))))) ->  | AL3: =IF($E3=$AN$1,"Y",IF($G3=$AN$1,"Y",IF($I3=$AN$1,"Y",IF($K3=$AN$1,"Y",IF($M3=$AN$1,"Y",IF($O3=$AN$1,"Y","")))))) ->  | AM3: =$A$3 -> 1 | AN3: =IF($E3=$AN$1,$F3,IF($G3=$AN$1,$H3,IF($I3=$AN$1,$J3,IF($K3=$AN$1,$L3,IF($M3=$AN$1,$N3,IF($O3=$AN$1,$P3,"")))))) ->  | AO3: =IF($E3=$AQ$1,"Y",IF($G3=$AQ$1,"Y",IF($I3=$AQ$1,"Y",IF($K3=$AQ$1,"Y",IF($M3=$AQ$1,"Y",IF($O3=$AQ$1,"Y","")))))) ->  | AP3: =$A$3 -> 1 | AQ3: =IF($E3=$AQ$1,$F3,IF($G3=$AQ$1,$H3,IF($I3=$AQ$1,$J3,IF($K3=$AQ$1,$L3,IF($M3=$AQ$1,$N3,IF($O3=$AQ$1,$P3,"")))))) ->  | AR3: =IF($E3=AR1,"Y",IF($G3=AR1,"Y",IF($I3=AR1,"Y",IF($K3=AR1,"Y",IF($M3=AR1,"Y",IF($O3=AR1,"Y","")))))) ->  | AS3: =$A$3 -> 1 | AT3: =IF($E3=AT1,$F3,IF($G3=AT1,$H3,IF($I3=AT1,$J3,IF($K3=AT1,$L3,IF($M3=AT1,$N3,IF($O3=AT1,$P3,"")))))) ->  | AU3: =IF($E3=AU1,"Y",IF($G3=AU1,"Y",IF($I3=AU1,"Y",IF($K3=AU1,"Y",IF($M3=AU1,"Y",IF($O3=AU1,"Y","")))))) ->  | AV3: =$A$3 -> 1 | AW3: =IF($E3=AW1,$F3,IF($G3=AW1,$H3,IF($I3=AW1,$J3,IF($K3=AW1,$L3,IF($M3=AW1,$N3,IF($O3=AW1,$P3,"")))))) ->  | AX3: =IF($E3=AX1,"Y",IF($G3=AX1,"Y",IF($I3=AX1,"Y",IF($K3=AX1,"Y",IF($M3=AX1,"Y",IF($O3=AX1,"Y","")))))) ->  | AY3: =$A$3 -> 1 | AZ3: =IF($E3=AZ1,$F3,IF($G3=AZ1,$H3,IF($I3=AZ1,$J3,IF($K3=AZ1,$L3,IF($M3=AZ1,$N3,IF($O3=AZ1,$P3,"")))))) ->  | BA3: =IF($E3=BA1,"Y",IF($G3=BA1,"Y",IF($I3=BA1,"Y",IF($K3=BA1,"Y",IF($M3=BA1,"Y",IF($O3=BA1,"Y","")))))) ->  | BB3: =$A$3 -> 1 | BC3: =IF($E3=BC1,$F3,IF($G3=BC1,$H3,IF($I3=BC1,$J3,IF($K3=BC1,$L3,IF($M3=BC1,$N3,IF($O3=BC1,$P3,"")))))) ->  | BD3: =IF($E3=BD1,"Y",IF($G3=BD1,"Y",IF($I3=BD1,"Y",IF($K3=BD1,"Y",IF($M3=BD1,"Y",IF($O3=BD1,"Y","")))))) ->  | BE3: =$A$3 -> 1 | BF3: =IF($E3=BF1,$F3,IF($G3=BF1,$H3,IF($I3=BF1,$J3,IF($K3=BF1,$L3,IF($M3=BF1,$N3,IF($O3=BF1,$P3,"")))))) ->  | BG3: =IF($E3=BG1,"Y",IF($G3=BG1,"Y",IF($I3=BG1,"Y",IF($K3=BG1,"Y",IF($M3=BG1,"Y",IF($O3=BG1,"Y","")))))) ->  | BH3: =$A$3 -> 1 | BI3: =IF($E3=BI1,$F3,IF($G3=BI1,$H3,IF($I3=BI1,$J3,IF($K3=BI1,$L3,IF($M3=BI1,$N3,IF($O3=BI1,$P3,"")))))) ->  | BJ3: =IF($E3=BJ1,"Y",IF($G3=BJ1,"Y",IF($I3=BJ1,"Y",IF($K3=BJ1,"Y",IF($M3=BJ1,"Y",IF($O3=BJ1,"Y","")))))) ->  | BK3: =$A$3 -> 1 | BL3: =IF($E3=BL1,$F3,IF($G3=BL1,$H3,IF($I3=BL1,$J3,IF($K3=BL1,$L3,IF($M3=BL1,$N3,IF($O3=BL1,$P3,"")))))) ->  | BM3: =IF($E3=BM1,"Y",IF($G3=BM1,"Y",IF($I3=BM1,"Y",IF($K3=BM1,"Y",IF($M3=BM1,"Y",IF($O3=BM1,"Y","")))))) ->  | BN3: =$A$3 -> 1 | BO3: =IF($E3=BO1,$F3,IF($G3=BO1,$H3,IF($I3=BO1,$J3,IF($K3=BO1,$L3,IF($M3=BO1,$N3,IF($O3=BO1,$P3,"")))))) ->  | BP3: =IF($E3=BP1,"Y",IF($G3=BP1,"Y",IF($I3=BP1,"Y",IF($K3=BP1,"Y",IF($M3=BP1,"Y",IF($O3=BP1,"Y","")))))) ->  | BQ3: =$A$3 -> 1 | BR3: =IF($E3=BR1,$F3,IF($G3=BR1,$H3,IF($I3=BR1,$J3,IF($K3=BR1,$L3,IF($M3=BR1,$N3,IF($O3=BR1,$P3,"")))))) ->  | BS3: =IF($E3=BS1,"Y",IF($G3=BS1,"Y",IF($I3=BS1,"Y",IF($K3=BS1,"Y",IF($M3=BS1,"Y",IF($O3=BS1,"Y","")))))) ->  | BT3: =$A$3 -> 1 | BU3: =IF($E3=BU1,$F3,IF($G3=BU1,$H3,IF($I3=BU1,$J3,IF($K3=BU1,$L3,IF($M3=BU1,$N3,IF($O3=BU1,$P3,"")))))) ->  | BV3: =IF($E3=BV1,"Y",IF($G3=BV1,"Y",IF($I3=BV1,"Y",IF($K3=BV1,"Y",IF($M3=BV1,"Y",IF($O3=BV1,"Y","")))))) ->  | BW3: =$A$3 -> 1 | BX3: =IF($E3=BX1,$F3,IF($G3=BX1,$H3,IF($I3=BX1,$J3,IF($K3=BX1,$L3,IF($M3=BX1,$N3,IF($O3=BX1,$P3,"")))))) ->  | BY3: =IF($E3=BY1,"Y",IF($G3=BY1,"Y",IF($I3=BY1,"Y",IF($K3=BY1,"Y",IF($M3=BY1,"Y",IF($O3=BY1,"Y","")))))) ->  | BZ3: =$A$3 -> 1 | CA3: =IF($E3=CA1,$F3,IF($G3=CA1,$H3,IF($I3=CA1,$J3,IF($K3=CA1,$L3,IF($M3=CA1,$N3,IF($O3=CA1,$P3,"")))))) ->  | CB3: =IF($E3=CB1,"Y",IF($G3=CB1,"Y",IF($I3=CB1,"Y",IF($K3=CB1,"Y",IF($M3=CB1,"Y",IF($O3=CB1,"Y","")))))) ->  | CC3: =$A$3 -> 1 | CD3: =IF($E3=CD1,$F3,IF($G3=CD1,$H3,IF($I3=CD1,$J3,IF($K3=CD1,$L3,IF($M3=CD1,$N3,IF($O3=CD1,$P3,"")))))) ->  | CE3: =IF($E3=CE1,"Y",IF($G3=CE1,"Y",IF($I3=CE1,"Y",IF($K3=CE1,"Y",IF($M3=CE1,"Y",IF($O3=CE1,"Y","")))))) -> Y | CF3: =$A$3 -> 1 | CG3: =IF($E3=CG1,$F3,IF($G3=CG1,$H3,IF($I3=CG1,$J3,IF($K3=CG1,$L3,IF($M3=CG1,$N3,IF($O3=CG1,$P3,"")))))) -> 0 | CH3: =IF($E3=CH1,"Y",IF($G3=CH1,"Y",IF($I3=CH1,"Y",IF($K3=CH1,"Y",IF($M3=CH1,"Y",IF($O3=CH1,"Y","")))))) -> Y | CI3: =$A$3 -> 1 | CJ3: =IF($E3=CJ1,$F3,IF($G3=CJ1,$H3,IF($I3=CJ1,$J3,IF($K3=CJ1,$L3,IF($M3=CJ1,$N3,IF($O3=CJ1,$P3,"")))))) -> 0 | CK3: =IF($E3=CK1,"Y",IF($G3=CK1,"Y",IF($I3=CK1,"Y",IF($K3=CK1,"Y",IF($M3=CK1,"Y",IF($O3=CK1,"Y","")))))) -> Y | CL3: =$A$3 -> 1 | CM3: =IF($E3=CM1,$F3,IF($G3=CM1,$H3,IF($I3=CM1,$J3,IF($K3=CM1,$L3,IF($M3=CM1,$N3,IF($O3=CM1,$P3,"")))))) -> 0 | CN3: =IF($E3=CN1,"Y",IF($G3=CN1,"Y",IF($I3=CN1,"Y",IF($K3=CN1,"Y",IF($M3=CN1,"Y",IF($O3=CN1,"Y","")))))) -> Y | CO3: =$A$3 -> 1 | CP3: =IF($E3=CP1,$F3,IF($G3=CP1,$H3,IF($I3=CP1,$J3,IF($K3=CP1,$L3,IF($M3=CP1,$N3,IF($O3=CP1,$P3,"")))))) -> 0 | CQ3: =IF($E3=CQ1,"Y",IF($G3=CQ1,"Y",IF($I3=CQ1,"Y",IF($K3=CQ1,"Y",IF($M3=CQ1,"Y",IF($O3=CQ1,"Y","")))))) -> Y | CR3: =$A$3 -> 1 | CS3: =IF($E3=CS1,$F3,IF($G3=CS1,$H3,IF($I3=CS1,$J3,IF($K3=CS1,$L3,IF($M3=CS1,$N3,IF($O3=CS1,$P3,"")))))) -> 0 | CT3: =IF($E3=CT1,"Y",IF($G3=CT1,"Y",IF($I3=CT1,"Y",IF($K3=CT1,"Y",IF($M3=CT1,"Y",IF($O3=CT1,"Y","")))))) -> Y | CU3: =$A$3 -> 1 | CV3: =IF($E3=CV1,$F3,IF($G3=CV1,$H3,IF($I3=CV1,$J3,IF($K3=CV1,$L3,IF($M3=CV1,$N3,IF($O3=CV1,$P3,"")))))) -> 0 | CW3: =IF($E3=CW1,"Y",IF($G3=CW1,"Y",IF($I3=CW1,"Y",IF($K3=CW1,"Y",IF($M3=CW1,"Y",IF($O3=CW1,"Y","")))))) -> Y | CX3: =$A$3 -> 1 | CY3: =IF($E3=CY1,$F3,IF($G3=CY1,$H3,IF($I3=CY1,$J3,IF($K3=CY1,$L3,IF($M3=CY1,$N3,IF($O3=CY1,$P3,"")))))) -> 0 | CZ3: =IF($E3=CZ1,"Y",IF($G3=CZ1,"Y",IF($I3=CZ1,"Y",IF($K3=CZ1,"Y",IF($M3=CZ1,"Y",IF($O3=CZ1,"Y","")))))) -> Y | DA3: =$A$3 -> 1 | DB3: =IF($E3=DB1,$F3,IF($G3=DB1,$H3,IF($I3=DB1,$J3,IF($K3=DB1,$L3,IF($M3=DB1,$N3,IF($O3=DB1,$P3,"")))))) -> 0 | DC3: =IF($E3=DC1,"Y",IF($G3=DC1,"Y",IF($I3=DC1,"Y",IF($K3=DC1,"Y",IF($M3=DC1,"Y",IF($O3=DC1,"Y","")))))) -> Y | DD3: =$A$3 -> 1 | DE3: =IF($E3=DE1,$F3,IF($G3=DE1,$H3,IF($I3=DE1,$J3,IF($K3=DE1,$L3,IF($M3=DE1,$N3,IF($O3=DE1,$P3,"")))))) -> 0 | DF3: =IF($E3=DF1,"Y",IF($G3=DF1,"Y",IF($I3=DF1,"Y",IF($K3=DF1,"Y",IF($M3=DF1,"Y",IF($O3=DF1,"Y","")))))) -> Y | DG3: =$A$3 -> 1 | DH3: =IF($E3=DH1,$F3,IF($G3=DH1,$H3,IF($I3=DH1,$J3,IF($K3=DH1,$L3,IF($M3=DH1,$N3,IF($O3=DH1,$P3,"")))))) -> 0 | DI3: =IF($E3=DI1,"Y",IF($G3=DI1,"Y",IF($I3=DI1,"Y",IF($K3=DI1,"Y",IF($M3=DI1,"Y",IF($O3=DI1,"Y","")))))) -> Y | DJ3: =$A$3 -> 1 | DK3: =IF($E3=DK1,$F3,IF($G3=DK1,$H3,IF($I3=DK1,$J3,IF($K3=DK1,$L3,IF($M3=DK1,$N3,IF($O3=DK1,$P3,"")))))) -> 0 | DL3: =IF($E3=DL1,"Y",IF($G3=DL1,"Y",IF($I3=DL1,"Y",IF($K3=DL1,"Y",IF($M3=DL1,"Y",IF($O3=DL1,"Y","")))))) -> Y | DM3: =$A$3 -> 1 | DN3: =IF($E3=DN1,$F3,IF($G3=DN1,$H3,IF($I3=DN1,$J3,IF($K3=DN1,$L3,IF($M3=DN1,$N3,IF($O3=DN1,$P3,"")))))) -> 0 | DO3: =IF($E3=DO1,"Y",IF($G3=DO1,"Y",IF($I3=DO1,"Y",IF($K3=DO1,"Y",IF($M3=DO1,"Y",IF($O3=DO1,"Y","")))))) -> Y | DP3: =$A$3 -> 1 | DQ3: =IF($E3=DQ1,$F3,IF($G3=DQ1,$H3,IF($I3=DQ1,$J3,IF($K3=DQ1,$L3,IF($M3=DQ1,$N3,IF($O3=DQ1,$P3,"")))))) -> 0
A4: 2 | B4: Shannon Kennedy | C4: Brunel | D4: F | E4: 400 | F4: 61.5 | G4: 200 | H4: 27 | Q4: =IF($E4=$S$1,"Y",IF($G4=$S$1,"Y",IF($I4=$S$1,"Y",IF($K4=$S$1,"Y",IF($M4=$S$1,"Y",IF($O4=$S$1,"Y","")))))) ->  | R4: 2 | S4: =IF($E4=$S$1,$F4,IF($G4=$S$1,$H4,IF($I4=$S$1,$J4,IF($K4=$S$1,$L4,IF($M4=$S$1,$N4,IF($O4=$S$1,$P4,"")))))) ->  | T4: =IF($E4=$V$1,"Y",IF($G4=$V$1,"Y",IF($I4=$V$1,"Y",IF($K4=$V$1,"Y",IF($M4=$V$1,"Y",IF($O4=$V$1,"Y","")))))) ->  | U4: 2 | V4: =IF($E4=$V$1,$F4,IF($G4=$V$1,$H4,IF($I4=$V$1,$J4,IF($K4=$V$1,$L4,IF($M4=$V$1,$N4,IF($O4=$V$1,$P4,"")))))) ->  | W4: =IF($E4=$Y$1,"Y",IF($G4=$Y$1,"Y",IF($I4=$Y$1,"Y",IF($K4=$Y$1,"Y",IF($M4=$Y$1,"Y",IF($O4=$Y$1,"Y","")))))) ->  | X4: 2 | Y4: =IF($E4=$Y$1,$F4,IF($G4=$Y$1,$H4,IF($I4=$Y$1,$J4,IF($K4=$Y$1,$L4,IF($M4=$Y$1,$N4,IF($O4=$Y$1,$P4,"")))))) ->  | Z4: =IF($E4=$AB$1,"Y",IF($G4=$AB$1,"Y",IF($I4=$AB$1,"Y",IF($K4=$AB$1,"Y",IF($M4=$AB$1,"Y",IF($O4=$AB$1,"Y","")))))) -> Y | AA4: 2 | AB4: =IF($E4=$AB$1,$F4,IF($G4=$AB$1,$H4,IF($I4=$AB$1,$J4,IF($K4=$AB$1,$L4,IF($M4=$AB$1,$N4,IF($O4=$AB$1,$P4,"")))))) -> 27 | AC4: =IF($E4=$AE$1,"Y",IF($G4=$AE$1,"Y",IF($I4=$AE$1,"Y",IF($K4=$AE$1,"Y",IF($M4=$AE$1,"Y",IF($O4=$AE$1,"Y","")))))) -> Y | AD4: 2 | AE4: =IF($E4=$AE$1,$F4,IF($G4=$AE$1,$H4,IF($I4=$AE$1,$J4,IF($K4=$AE$1,$L4,IF($M4=$AE$1,$N4,IF($O4=$AE$1,$P4,"")))))) -> 61.5 | AF4: =IF($E4=$AH$1,"Y",IF($G4=$AH$1,"Y",IF($I4=$AH$1,"Y",IF($K4=$AH$1,"Y",IF($M4=$AH$1,"Y",IF($O4=$AH$1,"Y","")))))) ->  | AG4: 2 | AH4: =IF($E4=$AH$1,$F4,IF($G4=$AH$1,$H4,IF($I4=$AH$1,$J4,IF($K4=$AH$1,$L4,IF($M4=$AH$1,$N4,IF($O4=$AH$1,$P4,"")))))) ->  | AI4: =IF($E4=$AK$1,"Y",IF($G4=$AK$1,"Y",IF($I4=$AK$1,"Y",IF($K4=$AK$1,"Y",IF($M4=$AK$1,"Y",IF($O4=$AK$1,"Y","")))))) ->  | AJ4: 2 | AK4: =IF($E4=$AK$1,$F4,IF($G4=$AK$1,$H4,IF($I4=$AK$1,$J4,IF($K4=$AK$1,$L4,IF($M4=$AK$1,$N4,IF($O4=$AK$1,$P4,"")))))) ->  | AL4: =IF($E4=$AN$1,"Y",IF($G4=$AN$1,"Y",IF($I4=$AN$1,"Y",IF($K4=$AN$1,"Y",IF($M4=$AN$1,"Y",IF($O4=$AN$1,"Y","")))))) ->  | AM4: =$A$4 -> 2 | AN4: =IF($E4=$AN$1,$F4,IF($G4=$AN$1,$H4,IF($I4=$AN$1,$J4,IF($K4=$AN$1,$L4,IF($M4=$AN$1,$N4,IF($O4=$AN$1,$P4,"")))))) ->  | AO4: =IF($E4=$AQ$1,"Y",IF($G4=$AQ$1,"Y",IF($I4=$AQ$1,"Y",IF($K4=$AQ$1,"Y",IF($M4=$AQ$1,"Y",IF($O4=$AQ$1,"Y","")))))) ->  | AP4: =$A$4 -> 2 | AQ4: =IF($E4=$AQ$1,$F4,IF($G4=$AQ$1,$H4,IF($I4=$AQ$1,$J4,IF($K4=$AQ$1,$L4,IF($M4=$AQ$1,$N4,IF($O4=$AQ$1,$P4,"")))))) ->  | AR4: =IF($E4=AR1,"Y",IF($G4=AR1,"Y",IF($I4=AR1,"Y",IF($K4=AR1,"Y",IF($M4=AR1,"Y",IF($O4=AR1,"Y","")))))) ->  | AS4: =$A$4 -> 2 | AT4: =IF($E4=AT1,$F4,IF($G4=AT1,$H4,IF($I4=AT1,$J4,IF($K4=AT1,$L4,IF($M4=AT1,$N4,IF($O4=AT1,$P4,"")))))) ->  | AU4: =IF($E4=AU1,"Y",IF($G4=AU1,"Y",IF($I4=AU1,"Y",IF($K4=AU1,"Y",IF($M4=AU1,"Y",IF($O4=AU1,"Y","")))))) ->  | AV4: =$A$4 -> 2 | AW4: =IF($E4=AW1,$F4,IF($G4=AW1,$H4,IF($I4=AW1,$J4,IF($K4=AW1,$L4,IF($M4=AW1,$N4,IF($O4=AW1,$P4,"")))))) ->  | AX4: =IF($E4=AX1,"Y",IF($G4=AX1,"Y",IF($I4=AX1,"Y",IF($K4=AX1,"Y",IF($M4=AX1,"Y",IF($O4=AX1,"Y","")))))) ->  | AY4: =$A$4 -> 2 | AZ4: =IF($E4=AZ1,$F4,IF($G4=AZ1,$H4,IF($I4=AZ1,$J4,IF($K4=AZ1,$L4,IF($M4=AZ1,$N4,IF($O4=AZ1,$P4,"")))))) ->  | BA4: =IF($E4=BA1,"Y",IF($G4=BA1,"Y",IF($I4=BA1,"Y",IF($K4=BA1,"Y",IF($M4=BA1,"Y",IF($O4=BA1,"Y","")))))) ->  | BB4: =$A$4 -> 2 | BC4: =IF($E4=BC1,$F4,IF($G4=BC1,$H4,IF($I4=BC1,$J4,IF($K4=BC1,$L4,IF($M4=BC1,$N4,IF($O4=BC1,$P4,"")))))) ->  | BD4: =IF($E4=BD1,"Y",IF($G4=BD1,"Y",IF($I4=BD1,"Y",IF($K4=BD1,"Y",IF($M4=BD1,"Y",IF($O4=BD1,"Y","")))))) ->  | BE4: =$A$4 -> 2 | BF4: =IF($E4=BF1,$F4,IF($G4=BF1,$H4,IF($I4=BF1,$J4,IF($K4=BF1,$L4,IF($M4=BF1,$N4,IF($O4=BF1,$P4,"")))))) ->  | BG4: =IF($E4=BG1,"Y",IF($G4=BG1,"Y",IF($I4=BG1,"Y",IF($K4=BG1,"Y",IF($M4=BG1,"Y",IF($O4=BG1,"Y","")))))) ->  | BH4: =$A$4 -> 2 | BI4: =IF($E4=BI1,$F4,IF($G4=BI1,$H4,IF($I4=BI1,$J4,IF($K4=BI1,$L4,IF($M4=BI1,$N4,IF($O4=BI1,$P4,"")))))) ->  | BJ4: =IF($E4=BJ1,"Y",IF($G4=BJ1,"Y",IF($I4=BJ1,"Y",IF($K4=BJ1,"Y",IF($M4=BJ1,"Y",IF($O4=BJ1,"Y","")))))) ->  | BK4: =$A$4 -> 2 | BL4: =IF($E4=BL1,$F4,IF($G4=BL1,$H4,IF($I4=BL1,$J4,IF($K4=BL1,$L4,IF($M4=BL1,$N4,IF($O4=BL1,$P4,"")))))) ->  | BM4: =IF($E4=BM1,"Y",IF($G4=BM1,"Y",IF($I4=BM1,"Y",IF($K4=BM1,"Y",IF($M4=BM1,"Y",IF($O4=BM1,"Y","")))))) ->  | BN4: =$A$4 -> 2 | BO4: =IF($E4=BO1,$F4,IF($G4=BO1,$H4,IF($I4=BO1,$J4,IF($K4=BO1,$L4,IF($M4=BO1,$N4,IF($O4=BO1,$P4,"")))))) ->  | BP4: =IF($E4=BP1,"Y",IF($G4=BP1,"Y",IF($I4=BP1,"Y",IF($K4=BP1,"Y",IF($M4=BP1,"Y",IF($O4=BP1,"Y","")))))) ->  | BQ4: =$A$4 -> 2 | BR4: =IF($E4=BR1,$F4,IF($G4=BR1,$H4,IF($I4=BR1,$J4,IF($K4=BR1,$L4,IF($M4=BR1,$N4,IF($O4=BR1,$P4,"")))))) ->  | BS4: =IF($E4=BS1,"Y",IF($G4=BS1,"Y",IF($I4=BS1,"Y",IF($K4=BS1,"Y",IF($M4=BS1,"Y",IF($O4=BS1,"Y","")))))) ->  | BT4: =$A$4 -> 2 | BU4: =IF($E4=BU1,$F4,IF($G4=BU1,$H4,IF($I4=BU1,$J4,IF($K4=BU1,$L4,IF($M4=BU1,$N4,IF($O4=BU1,$P4,"")))))) ->  | BV4: =IF($E4=BV1,"Y",IF($G4=BV1,"Y",IF($I4=BV1,"Y",IF($K4=BV1,"Y",IF($M4=BV1,"Y",IF($O4=BV1,"Y","")))))) ->  | BW4: =$A$4 -> 2 | BX4: =IF($E4=BX1,$F4,IF($G4=BX1,$H4,IF($I4=BX1,$J4,IF($K4=BX1,$L4,IF($M4=BX1,$N4,IF($O4=BX1,$P4,"")))))) ->  | BY4: =IF($E4=BY1,"Y",IF($G4=BY1,"Y",IF($I4=BY1,"Y",IF($K4=BY1,"Y",IF($M4=BY1,"Y",IF($O4=BY1,"Y","")))))) ->  | BZ4: =$A$4 -> 2 | CA4: =IF($E4=CA1,$F4,IF($G4=CA1,$H4,IF($I4=CA1,$J4,IF($K4=CA1,$L4,IF($M4=CA1,$N4,IF($O4=CA1,$P4,"")))))) ->  | CB4: =IF($E4=CB1,"Y",IF($G4=CB1,"Y",IF($I4=CB1,"Y",IF($K4=CB1,"Y",IF($M4=CB1,"Y",IF($O4=CB1,"Y","")))))) ->  | CC4: =$A$4 -> 2 | CD4: =IF($E4=CD1,$F4,IF($G4=CD1,$H4,IF($I4=CD1,$J4,IF($K4=CD1,$L4,IF($M4=CD1,$N4,IF($O4=CD1,$P4,"")))))) ->  | CE4: =IF($E4=CE1,"Y",IF($G4=CE1,"Y",IF($I4=CE1,"Y",IF($K4=CE1,"Y",IF($M4=CE1,"Y",IF($O4=CE1,"Y","")))))) -> Y | CF4: =$A$4 -> 2 | CG4: =IF($E4=CG1,$F4,IF($G4=CG1,$H4,IF($I4=CG1,$J4,IF($K4=CG1,$L4,IF($M4=CG1,$N4,IF($O4=CG1,$P4,"")))))) -> 0 | CH4: =IF($E4=CH1,"Y",IF($G4=CH1,"Y",IF($I4=CH1,"Y",IF($K4=CH1,"Y",IF($M4=CH1,"Y",IF($O4=CH1,"Y","")))))) -> Y | CI4: =$A$4 -> 2 | CJ4: =IF($E4=CJ1,$F4,IF($G4=CJ1,$H4,IF($I4=CJ1,$J4,IF($K4=CJ1,$L4,IF($M4=CJ1,$N4,IF($O4=CJ1,$P4,"")))))) -> 0 | CK4: =IF($E4=CK1,"Y",IF($G4=CK1,"Y",IF($I4=CK1,"Y",IF($K4=CK1,"Y",IF($M4=CK1,"Y",IF($O4=CK1,"Y","")))))) -> Y | CL4: =$A$4 -> 2 | CM4: =IF($E4=CM1,$F4,IF($G4=CM1,$H4,IF($I4=CM1,$J4,IF($K4=CM1,$L4,IF($M4=CM1,$N4,IF($O4=CM1,$P4,"")))))) -> 0 | CN4: =IF($E4=CN1,"Y",IF($G4=CN1,"Y",IF($I4=CN1,"Y",IF($K4=CN1,"Y",IF($M4=CN1,"Y",IF($O4=CN1,"Y","")))))) -> Y | CO4: =$A$4 -> 2 | CP4: =IF($E4=CP1,$F4,IF($G4=CP1,$H4,IF($I4=CP1,$J4,IF($K4=CP1,$L4,IF($M4=CP1,$N4,IF($O4=CP1,$P4,"")))))) -> 0 | CQ4: =IF($E4=CQ1,"Y",IF($G4=CQ1,"Y",IF($I4=CQ1,"Y",IF($K4=CQ1,"Y",IF($M4=CQ1,"Y",IF($O4=CQ1,"Y","")))))) -> Y | CR4: =$A$4 -> 2 | CS4: =IF($E4=CS1,$F4,IF($G4=CS1,$H4,IF($I4=CS1,$J4,IF($K4=CS1,$L4,IF($M4=CS1,$N4,IF($O4=CS1,$P4,"")))))) -> 0 | CT4: =IF($E4=CT1,"Y",IF($G4=CT1,"Y",IF($I4=CT1,"Y",IF($K4=CT1,"Y",IF($M4=CT1,"Y",IF($O4=CT1,"Y","")))))) -> Y | CU4: =$A$4 -> 2 | CV4: =IF($E4=CV1,$F4,IF($G4=CV1,$H4,IF($I4=CV1,$J4,IF($K4=CV1,$L4,IF($M4=CV1,$N4,IF($O4=CV1,$P4,"")))))) -> 0 | CW4: =IF($E4=CW1,"Y",IF($G4=CW1,"Y",IF($I4=CW1,"Y",IF($K4=CW1,"Y",IF($M4=CW1,"Y",IF($O4=CW1,"Y","")))))) -> Y | CX4: =$A$4 -> 2 | CY4: =IF($E4=CY1,$F4,IF($G4=CY1,$H4,IF($I4=CY1,$J4,IF($K4=CY1,$L4,IF($M4=CY1,$N4,IF($O4=CY1,$P4,"")))))) -> 0 | CZ4: =IF($E4=CZ1,"Y",IF($G4=CZ1,"Y",IF($I4=CZ1,"Y",IF($K4=CZ1,"Y",IF($M4=CZ1,"Y",IF($O4=CZ1,"Y","")))))) -> Y | DA4: =$A$4 -> 2 | DB4: =IF($E4=DB1,$F4,IF($G4=DB1,$H4,IF($I4=DB1,$J4,IF($K4=DB1,$L4,IF($M4=DB1,$N4,IF($O4=DB1,$P4,"")))))) -> 0 | DC4: =IF($E4=DC1,"Y",IF($G4=DC1,"Y",IF($I4=DC1,"Y",IF($K4=DC1,"Y",IF($M4=DC1,"Y",IF($O4=DC1,"Y","")))))) -> Y | DD4: =$A$4 -> 2 | DE4: =IF($E4=DE1,$F4,IF($G4=DE1,$H4,IF($I4=DE1,$J4,IF($K4=DE1,$L4,IF($M4=DE1,$N4,IF($O4=DE1,$P4,"")))))) -> 0 | DF4: =IF($E4=DF1,"Y",IF($G4=DF1,"Y",IF($I4=DF1,"Y",IF($K4=DF1,"Y",IF($M4=DF1,"Y",IF($O4=DF1,"Y","")))))) -> Y | DG4: =$A$4 -> 2 | DH4: =IF($E4=DH1,$F4,IF($G4=DH1,$H4,IF($I4=DH1,$J4,IF($K4=DH1,$L4,IF($M4=DH1,$N4,IF($O4=DH1,$P4,"")))))) -> 0 | DI4: =IF($E4=DI1,"Y",IF($G4=DI1,"Y",IF($I4=DI1,"Y",IF($K4=DI1,"Y",IF($M4=DI1,"Y",IF($O4=DI1,"Y","")))))) -> Y | DJ4: =$A$4 -> 2 | DK4: =IF($E4=DK1,$F4,IF($G4=DK1,$H4,IF($I4=DK1,$J4,IF($K4=DK1,$L4,IF($M4=DK1,$N4,IF($O4=DK1,$P4,"")))))) -> 0 | DL4: =IF($E4=DL1,"Y",IF($G4=DL1,"Y",IF($I4=DL1,"Y",IF($K4=DL1,"Y",IF($M4=DL1,"Y",IF($O4=DL1,"Y","")))))) -> Y | DM4: =$A$4 -> 2 | DN4: =IF($E4=DN1,$F4,IF($G4=DN1,$H4,IF($I4=DN1,$J4,IF($K4=DN1,$L4,IF($M4=DN1,$N4,IF($O4=DN1,$P4,"")))))) -> 0 | DO4: =IF($E4=DO1,"Y",IF($G4=DO1,"Y",IF($I4=DO1,"Y",IF($K4=DO1,"Y",IF($M4=DO1,"Y",IF($O4=DO1,"Y","")))))) -> Y | DP4: =$A$4 -> 2 | DQ4: =IF($E4=DQ1,$F4,IF($G4=DQ1,$H4,IF($I4=DQ1,$J4,IF($K4=DQ1,$L4,IF($M4=DQ1,$N4,IF($O4=DQ1,$P4,"")))))) -> 0
A5: 3 | B5: Ainsley James Lazar | C5: Brunel | D5: M | E5: 5000 | F5: 00:20:22 | R5: 3 | T5: =IF($E5=$V$1,"Y",IF($G5=$V$1,"Y",IF($I5=$V$1,"Y",IF($K5=$V$1,"Y",IF($M5=$V$1,"Y",IF($O5=$V$1,"Y","")))))) ->  | U5: 3 | V5: =IF($E5=$V$1,$F5,IF($G5=$V$1,$H5,IF($I5=$V$1,$J5,IF($K5=$V$1,$L5,IF($M5=$V$1,$N5,IF($O5=$V$1,$P5,"")))))) ->  | W5: =IF($E5=$Y$1,"Y",IF($G5=$Y$1,"Y",IF($I5=$Y$1,"Y",IF($K5=$Y$1,"Y",IF($M5=$Y$1,"Y",IF($O5=$Y$1,"Y","")))))) ->  | X5: 3 | Y5: =IF($E5=$Y$1,$F5,IF($G5=$Y$1,$H5,IF($I5=$Y$1,$J5,IF($K5=$Y$1,$L5,IF($M5=$Y$1,$N5,IF($O5=$Y$1,$P5,"")))))) ->  | Z5: =IF($E5=$AB$1,"Y",IF($G5=$AB$1,"Y",IF($I5=$AB$1,"Y",IF($K5=$AB$1,"Y",IF($M5=$AB$1,"Y",IF($O5=$AB$1,"Y","")))))) ->  | AA5: 3 | AB5: =IF($E5=$AB$1,$F5,IF($G5=$AB$1,$H5,IF($I5=$AB$1,$J5,IF($K5=$AB$1,$L5,IF($M5=$AB$1,$N5,IF($O5=$AB$1,$P5,"")))))) ->  | AC5: =IF($E5=$AE$1,"Y",IF($G5=$AE$1,"Y",IF($I5=$AE$1,"Y",IF($K5=$AE$1,"Y",IF($M5=$AE$1,"Y",IF($O5=$AE$1,"Y","")))))) ->  | AD5: 3 | AE5: =IF($E5=$AE$1,$F5,IF($G5=$AE$1,$H5,IF($I5=$AE$1,$J5,IF($K5=$AE$1,$L5,IF($M5=$AE$1,$N5,IF($O5=$AE$1,$P5,"")))))) ->  | AF5: =IF($E5=$AH$1,"Y",IF($G5=$AH$1,"Y",IF($I5=$AH$1,"Y",IF($K5=$AH$1,"Y",IF($M5=$AH$1,"Y",IF($O5=$AH$1,"Y","")))))) ->  | AG5: 3 | AH5: =IF($E5=$AH$1,$F5,IF($G5=$AH$1,$H5,IF($I5=$AH$1,$J5,IF($K5=$AH$1,$L5,IF($M5=$AH$1,$N5,IF($O5=$AH$1,$P5,"")))))) ->  | AJ5: 3 | AK5: =IF($E5=$AK$1,$F5,IF($G5=$AK$1,$H5,IF($I5=$AK$1,$J5,IF($K5=$AK$1,$L5,IF($M5=$AK$1,$N5,IF($O5=$AK$1,$P5,"")))))) ->  | AM5: =$A$5 -> 3 | AP5: =$A$5 -> 3 | AR5: =IF($E5=AR1,"Y",IF($G5=AR1,"Y",IF($I5=AR1,"Y",IF($K5=AR1,"Y",IF($M5=AR1,"Y",IF($O5=AR1,"Y","")))))) ->  | AS5: =$A$5 -> 3 | AT5: =IF($E5=AT1,$F5,IF($G5=AT1,$H5,IF($I5=AT1,$J5,IF($K5=AT1,$L5,IF($M5=AT1,$N5,IF($O5=AT1,$P5,"")))))) ->  | AU5: =IF($E5=AU1,"Y",IF($G5=AU1,"Y",IF($I5=AU1,"Y",IF($K5=AU1,"Y",IF($M5=AU1,"Y",IF($O5=AU1,"Y","")))))) -> Y | AV5: =$A$5 -> 3 | AW5: =IF($E5=AW1,$F5,IF($G5=AW1,$H5,IF($I5=AW1,$J5,IF($K5=AW1,$L5,IF($M5=AW1,$N5,IF($O5=AW1,$P5,"")))))) -> 00:20:22 | AX5: =IF($E5=AX1,"Y",IF($G5=AX1,"Y",IF($I5=AX1,"Y",IF($K5=AX1,"Y",IF($M5=AX1,"Y",IF($O5=AX1,"Y","")))))) ->  | AY5: =$A$5 -> 3 | AZ5: =IF($E5=AZ1,$F5,IF($G5=AZ1,$H5,IF($I5=AZ1,$J5,IF($K5=AZ1,$L5,IF($M5=AZ1,$N5,IF($O5=AZ1,$P5,"")))))) ->  | BA5: =IF($E5=BA1,"Y",IF($G5=BA1,"Y",IF($I5=BA1,"Y",IF($K5=BA1,"Y",IF($M5=BA1,"Y",IF($O5=BA1,"Y","")))))) ->  | BB5: =$A$5 -> 3 | BC5: =IF($E5=BC1,$F5,IF($G5=BC1,$H5,IF($I5=BC1,$J5,IF($K5=BC1,$L5,IF($M5=BC1,$N5,IF($O5=BC1,$P5,"")))))) ->  | BD5: =IF($E5=BD1,"Y",IF($G5=BD1,"Y",IF($I5=BD1,"Y",IF($K5=BD1,"Y",IF($M5=BD1,"Y",IF($O5=BD1,"Y","")))))) ->  | BE5: =$A$5 -> 3 | BF5: =IF($E5=BF1,$F5,IF($G5=BF1,$H5,IF($I5=BF1,$J5,IF($K5=BF1,$L5,IF($M5=BF1,$N5,IF($O5=BF1,$P5,"")))))) ->  | BG5: =IF($E5=BG1,"Y",IF($G5=BG1,"Y",IF($I5=BG1,"Y",IF($K5=BG1,"Y",IF($M5=BG1,"Y",IF($O5=BG1,"Y","")))))) ->  | BH5: =$A$5 -> 3 | BI5: =IF($E5=BI1,$F5,IF($G5=BI1,$H5,IF($I5=BI1,$J5,IF($K5=BI1,$L5,IF($M5=BI1,$N5,IF($O5=BI1,$P5,"")))))) ->  | BJ5: =IF($E5=BJ1,"Y",IF($G5=BJ1,"Y",IF($I5=BJ1,"Y",IF($K5=BJ1,"Y",IF($M5=BJ1,"Y",IF($O5=BJ1,"Y","")))))) ->  | BK5: =$A$5 -> 3 | BL5: =IF($E5=BL1,$F5,IF($G5=BL1,$H5,IF($I5=BL1,$J5,IF($K5=BL1,$L5,IF($M5=BL1,$N5,IF($O5=BL1,$P5,"")))))) ->  | BM5: =IF($E5=BM1,"Y",IF($G5=BM1,"Y",IF($I5=BM1,"Y",IF($K5=BM1,"Y",IF($M5=BM1,"Y",IF($O5=BM1,"Y","")))))) ->  | BN5: =$A$5 -> 3 | BO5: =IF($E5=BO1,$F5,IF($G5=BO1,$H5,IF($I5=BO1,$J5,IF($K5=BO1,$L5,IF($M5=BO1,$N5,IF($O5=BO1,$P5,"")))))) ->  | BP5: =IF($E5=BP1,"Y",IF($G5=BP1,"Y",IF($I5=BP1,"Y",IF($K5=BP1,"Y",IF($M5=BP1,"Y",IF($O5=BP1,"Y","")))))) ->  | BQ5: =$A$5 -> 3 | BR5: =IF($E5=BR1,$F5,IF($G5=BR1,$H5,IF($I5=BR1,$J5,IF($K5=BR1,$L5,IF($M5=BR1,$N5,IF($O5=BR1,$P5,"")))))) ->  | BS5: =IF($E5=BS1,"Y",IF($G5=BS1,"Y",IF($I5=BS1,"Y",IF($K5=BS1,"Y",IF($M5=BS1,"Y",IF($O5=BS1,"Y","")))))) ->  | BT5: =$A$5 -> 3 | BU5: =IF($E5=BU1,$F5,IF($G5=BU1,$H5,IF($I5=BU1,$J5,IF($K5=BU1,$L5,IF($M5=BU1,$N5,IF($O5=BU1,$P5,"")))))) ->  | BV5: =IF($E5=BV1,"Y",IF($G5=BV1,"Y",IF($I5=BV1,"Y",IF($K5=BV1,"Y",IF($M5=BV1,"Y",IF($O5=BV1,"Y","")))))) ->  | BW5: =$A$5 -> 3 | BX5: =IF($E5=BX1,$F5,IF($G5=BX1,$H5,IF($I5=BX1,$J5,IF($K5=BX1,$L5,IF($M5=BX1,$N5,IF($O5=BX1,$P5,"")))))) ->  | BY5: =IF($E5=BY1,"Y",IF($G5=BY1,"Y",IF($I5=BY1,"Y",IF($K5=BY1,"Y",IF($M5=BY1,"Y",IF($O5=BY1,"Y","")))))) ->  | BZ5: =$A$5 -> 3 | CA5: =IF($E5=CA1,$F5,IF($G5=CA1,$H5,IF($I5=CA1,$J5,IF($K5=CA1,$L5,IF($M5=CA1,$N5,IF($O5=CA1,$P5,"")))))) ->  | CB5: =IF($E5=CB1,"Y",IF($G5=CB1,"Y",IF($I5=CB1,"Y",IF($K5=CB1,"Y",IF($M5=CB1,"Y",IF($O5=CB1,"Y","")))))) ->  | CC5: =$A$5 -> 3 | CD5: =IF($E5=CD1,$F5,IF($G5=CD1,$H5,IF($I5=CD1,$J5,IF($K5=CD1,$L5,IF($M5=CD1,$N5,IF($O5=CD1,$P5,"")))))) ->  | CE5: =IF($E5=CE1,"Y",IF($G5=CE1,"Y",IF($I5=CE1,"Y",IF($K5=CE1,"Y",IF($M5=CE1,"Y",IF($O5=CE1,"Y","")))))) -> Y | CF5: =$A$5 -> 3 | CG5: =IF($E5=CG1,$F5,IF($G5=CG1,$H5,IF($I5=CG1,$J5,IF($K5=CG1,$L5,IF($M5=CG1,$N5,IF($O5=CG1,$P5,"")))))) -> 0 | CH5: =IF($E5=CH1,"Y",IF($G5=CH1,"Y",IF($I5=CH1,"Y",IF($K5=CH1,"Y",IF($M5=CH1,"Y",IF($O5=CH1,"Y","")))))) -> Y | CI5: =$A$5 -> 3 | CJ5: =IF($E5=CJ1,$F5,IF($G5=CJ1,$H5,IF($I5=CJ1,$J5,IF($K5=CJ1,$L5,IF($M5=CJ1,$N5,IF($O5=CJ1,$P5,"")))))) -> 0 | CK5: =IF($E5=CK1,"Y",IF($G5=CK1,"Y",IF($I5=CK1,"Y",IF($K5=CK1,"Y",IF($M5=CK1,"Y",IF($O5=CK1,"Y","")))))) -> Y | CL5: =$A$5 -> 3 | CM5: =IF($E5=CM1,$F5,IF($G5=CM1,$H5,IF($I5=CM1,$J5,IF($K5=CM1,$L5,IF($M5=CM1,$N5,IF($O5=CM1,$P5,"")))))) -> 0 | CN5: =IF($E5=CN1,"Y",IF($G5=CN1,"Y",IF($I5=CN1,"Y",IF($K5=CN1,"Y",IF($M5=CN1,"Y",IF($O5=CN1,"Y","")))))) -> Y | CO5: =$A$5 -> 3 | CP5: =IF($E5=CP1,$F5,IF($G5=CP1,$H5,IF($I5=CP1,$J5,IF($K5=CP1,$L5,IF($M5=CP1,$N5,IF($O5=CP1,$P5,"")))))) -> 0 | CQ5: =IF($E5=CQ1,"Y",IF($G5=CQ1,"Y",IF($I5=CQ1,"Y",IF($K5=CQ1,"Y",IF($M5=CQ1,"Y",IF($O5=CQ1,"Y","")))))) -> Y | CR5: =$A$5 -> 3 | CS5: =IF($E5=CS1,$F5,IF($G5=CS1,$H5,IF($I5=CS1,$J5,IF($K5=CS1,$L5,IF($M5=CS1,$N5,IF($O5=CS1,$P5,"")))))) -> 0 | CT5: =IF($E5=CT1,"Y",IF($G5=CT1,"Y",IF($I5=CT1,"Y",IF($K5=CT1,"Y",IF($M5=CT1,"Y",IF($O5=CT1,"Y","")))))) -> Y | CU5: =$A$5 -> 3 | CV5: =IF($E5=CV1,$F5,IF($G5=CV1,$H5,IF($I5=CV1,$J5,IF($K5=CV1,$L5,IF($M5=CV1,$N5,IF($O5=CV1,$P5,"")))))) -> 0 | CW5: =IF($E5=CW1,"Y",IF($G5=CW1,"Y",IF($I5=CW1,"Y",IF($K5=CW1,"Y",IF($M5=CW1,"Y",IF($O5=CW1,"Y","")))))) -> Y | CX5: =$A$5 -> 3 | CY5: =IF($E5=CY1,$F5,IF($G5=CY1,$H5,IF($I5=CY1,$J5,IF($K5=CY1,$L5,IF($M5=CY1,$N5,IF($O5=CY1,$P5,"")))))) -> 0 | CZ5: =IF($E5=CZ1,"Y",IF($G5=CZ1,"Y",IF($I5=CZ1,"Y",IF($K5=CZ1,"Y",IF($M5=CZ1,"Y",IF($O5=CZ1,"Y","")))))) -> Y | DA5: =$A$5 -> 3 | DB5: =IF($E5=DB1,$F5,IF($G5=DB1,$H5,IF($I5=DB1,$J5,IF($K5=DB1,$L5,IF($M5=DB1,$N5,IF($O5=DB1,$P5,"")))))) -> 0 | DC5: =IF($E5=DC1,"Y",IF($G5=DC1,"Y",IF($I5=DC1,"Y",IF($K5=DC1,"Y",IF($M5=DC1,"Y",IF($O5=DC1,"Y","")))))) -> Y | DD5: =$A$5 -> 3 | DE5: =IF($E5=DE1,$F5,IF($G5=DE1,$H5,IF($I5=DE1,$J5,IF($K5=DE1,$L5,IF($M5=DE1,$N5,IF($O5=DE1,$P5,"")))))) -> 0 | DF5: =IF($E5=DF1,"Y",IF($G5=DF1,"Y",IF($I5=DF1,"Y",IF($K5=DF1,"Y",IF($M5=DF1,"Y",IF($O5=DF1,"Y","")))))) -> Y | DG5: =$A$5 -> 3 | DH5: =IF($E5=DH1,$F5,IF($G5=DH1,$H5,IF($I5=DH1,$J5,IF($K5=DH1,$L5,IF($M5=DH1,$N5,IF($O5=DH1,$P5,"")))))) -> 0 | DI5: =IF($E5=DI1,"Y",IF($G5=DI1,"Y",IF($I5=DI1,"Y",IF($K5=DI1,"Y",IF($M5=DI1,"Y",IF($O5=DI1,"Y","")))))) -> Y | DJ5: =$A$5 -> 3 | DK5: =IF($E5=DK1,$F5,IF($G5=DK1,$H5,IF($I5=DK1,$J5,IF($K5=DK1,$L5,IF($M5=DK1,$N5,IF($O5=DK1,$P5,"")))))) -> 0 | DL5: =IF($E5=DL1,"Y",IF($G5=DL1,"Y",IF($I5=DL1,"Y",IF($K5=DL1,"Y",IF($M5=DL1,"Y",IF($O5=DL1,"Y","")))))) -> Y | DM5: =$A$5 -> 3 | DN5: =IF($E5=DN1,$F5,IF($G5=DN1,$H5,IF($I5=DN1,$J5,IF($K5=DN1,$L5,IF($M5=DN1,$N5,IF($O5=DN1,$P5,"")))))) -> 0 | DO5: =IF($E5=DO1,"Y",IF($G5=DO1,"Y",IF($I5=DO1,"Y",IF($K5=DO1,"Y",IF($M5=DO1,"Y",IF($O5=DO1,"Y","")))))) -> Y | DP5: =$A$5 -> 3 | DQ5: =IF($E5=DQ1,$F5,IF($G5=DQ1,$H5,IF($I5=DQ1,$J5,IF($K5=DQ1,$L5,IF($M5=DQ1,$N5,IF($O5=DQ1,$P5,"")))))) -> 0
A6: 4 | B6: Alex Williams-Baffoe | C6: Brunel | D6: M | E6: TJ | F6: 12.75 | G6: 400 | H6: 53 | R6: 4 | T6: =IF($E6=$V$1,"Y",IF($G6=$V$1,"Y",IF($I6=$V$1,"Y",IF($K6=$V$1,"Y",IF($M6=$V$1,"Y",IF($O6=$V$1,"Y","")))))) ->  | U6: 4 | V6: =IF($E6=$V$1,$F6,IF($G6=$V$1,$H6,IF($I6=$V$1,$J6,IF($K6=$V$1,$L6,IF($M6=$V$1,$N6,IF($O6=$V$1,$P6,"")))))) ->  | W6: =IF($E6=$Y$1,"Y",IF($G6=$Y$1,"Y",IF($I6=$Y$1,"Y",IF($K6=$Y$1,"Y",IF($M6=$Y$1,"Y",IF($O6=$Y$1,"Y","")))))) ->  | X6: 4 | Y6: =IF($E6=$Y$1,$F6,IF($G6=$Y$1,$H6,IF($I6=$Y$1,$J6,IF($K6=$Y$1,$L6,IF($M6=$Y$1,$N6,IF($O6=$Y$1,$P6,"")))))) ->  | Z6: =IF($E6=$AB$1,"Y",IF($G6=$AB$1,"Y",IF($I6=$AB$1,"Y",IF($K6=$AB$1,"Y",IF($M6=$AB$1,"Y",IF($O6=$AB$1,"Y","")))))) ->  | AA6: 4 | AB6: =IF($E6=$AB$1,$F6,IF($G6=$AB$1,$H6,IF($I6=$AB$1,$J6,IF($K6=$AB$1,$L6,IF($M6=$AB$1,$N6,IF($O6=$AB$1,$P6,"")))))) ->  | AC6: =IF($E6=$AE$1,"Y",IF($G6=$AE$1,"Y",IF($I6=$AE$1,"Y",IF($K6=$AE$1,"Y",IF($M6=$AE$1,"Y",IF($O6=$AE$1,"Y","")))))) -> Y | AD6: 4 | AE6: =IF($E6=$AE$1,$F6,IF($G6=$AE$1,$H6,IF($I6=$AE$1,$J6,IF($K6=$AE$1,$L6,IF($M6=$AE$1,$N6,IF($O6=$AE$1,$P6,"")))))) -> 53 | AF6: =IF($E6=$AH$1,"Y",IF($G6=$AH$1,"Y",IF($I6=$AH$1,"Y",IF($K6=$AH$1,"Y",IF($M6=$AH$1,"Y",IF($O6=$AH$1,"Y","")))))) ->  | AG6: 4 | AH6: =IF($E6=$AH$1,$F6,IF($G6=$AH$1,$H6,IF($I6=$AH$1,$J6,IF($K6=$AH$1,$L6,IF($M6=$AH$1,$N6,IF($O6=$AH$1,$P6,"")))))) ->  | AJ6: 4 | AK6: =IF($E6=$AK$1,$F6,IF($G6=$AK$1,$H6,IF($I6=$AK$1,$J6,IF($K6=$AK$1,$L6,IF($M6=$AK$1,$N6,IF($O6=$AK$1,$P6,"")))))) ->  | AM6: =$A$6 -> 4 | AP6: =$A$6 -> 4 | AR6: =IF($E6=AR1,"Y",IF($G6=AR1,"Y",IF($I6=AR1,"Y",IF($K6=AR1,"Y",IF($M6=AR1,"Y",IF($O6=AR1,"Y","")))))) ->  | AS6: =$A$6 -> 4 | AT6: =IF($E6=AT1,$F6,IF($G6=AT1,$H6,IF($I6=AT1,$J6,IF($K6=AT1,$L6,IF($M6=AT1,$N6,IF($O6=AT1,$P6,"")))))) ->  | AU6: =IF($E6=AU1,"Y",IF($G6=AU1,"Y",IF($I6=AU1,"Y",IF($K6=AU1,"Y",IF($M6=AU1,"Y",IF($O6=AU1,"Y","")))))) ->  | AV6: =$A$6 -> 4 | AW6: =IF($E6=AW1,$F6,IF($G6=AW1,$H6,IF($I6=AW1,$J6,IF($K6=AW1,$L6,IF($M6=AW1,$N6,IF($O6=AW1,$P6,"")))))) ->  | AX6: =IF($E6=AX1,"Y",IF($G6=AX1,"Y",IF($I6=AX1,"Y",IF($K6=AX1,"Y",IF($M6=AX1,"Y",IF($O6=AX1,"Y","")))))) ->  | AY6: =$A$6 -> 4 | AZ6: =IF($E6=AZ1,$F6,IF($G6=AZ1,$H6,IF($I6=AZ1,$J6,IF($K6=AZ1,$L6,IF($M6=AZ1,$N6,IF($O6=AZ1,$P6,"")))))) ->  | BA6: =IF($E6=BA1,"Y",IF($G6=BA1,"Y",IF($I6=BA1,"Y",IF($K6=BA1,"Y",IF($M6=BA1,"Y",IF($O6=BA1,"Y","")))))) ->  | BB6: =$A$6 -> 4 | BC6: =IF($E6=BC1,$F6,IF($G6=BC1,$H6,IF($I6=BC1,$J6,IF($K6=BC1,$L6,IF($M6=BC1,$N6,IF($O6=BC1,$P6,"")))))) ->  | BD6: =IF($E6=BD1,"Y",IF($G6=BD1,"Y",IF($I6=BD1,"Y",IF($K6=BD1,"Y",IF($M6=BD1,"Y",IF($O6=BD1,"Y","")))))) ->  | BE6: =$A$6 -> 4 | BF6: =IF($E6=BF1,$F6,IF($G6=BF1,$H6,IF($I6=BF1,$J6,IF($K6=BF1,$L6,IF($M6=BF1,$N6,IF($O6=BF1,$P6,"")))))) ->  | BG6: =IF($E6=BG1,"Y",IF($G6=BG1,"Y",IF($I6=BG1,"Y",IF($K6=BG1,"Y",IF($M6=BG1,"Y",IF($O6=BG1,"Y","")))))) ->  | BH6: =$A$6 -> 4 | BI6: =IF($E6=BI1,$F6,IF($G6=BI1,$H6,IF($I6=BI1,$J6,IF($K6=BI1,$L6,IF($M6=BI1,$N6,IF($O6=BI1,$P6,"")))))) ->  | BJ6: =IF($E6=BJ1,"Y",IF($G6=BJ1,"Y",IF($I6=BJ1,"Y",IF($K6=BJ1,"Y",IF($M6=BJ1,"Y",IF($O6=BJ1,"Y","")))))) ->  | BK6: =$A$6 -> 4 | BL6: =IF($E6=BL1,$F6,IF($G6=BL1,$H6,IF($I6=BL1,$J6,IF($K6=BL1,$L6,IF($M6=BL1,$N6,IF($O6=BL1,$P6,"")))))) ->  | BM6: =IF($E6=BM1,"Y",IF($G6=BM1,"Y",IF($I6=BM1,"Y",IF($K6=BM1,"Y",IF($M6=BM1,"Y",IF($O6=BM1,"Y","")))))) -> Y | BN6: =$A$6 -> 4 | BO6: =IF($E6=BO1,$F6,IF($G6=BO1,$H6,IF($I6=BO1,$J6,IF($K6=BO1,$L6,IF($M6=BO1,$N6,IF($O6=BO1,$P6,"")))))) -> 12.75 | BP6: =IF($E6=BP1,"Y",IF($G6=BP1,"Y",IF($I6=BP1,"Y",IF($K6=BP1,"Y",IF($M6=BP1,"Y",IF($O6=BP1,"Y","")))))) ->  | BQ6: =$A$6 -> 4 | BR6: =IF($E6=BR1,$F6,IF($G6=BR1,$H6,IF($I6=BR1,$J6,IF($K6=BR1,$L6,IF($M6=BR1,$N6,IF($O6=BR1,$P6,"")))))) ->  | BS6: =IF($E6=BS1,"Y",IF($G6=BS1,"Y",IF($I6=BS1,"Y",IF($K6=BS1,"Y",IF($M6=BS1,"Y",IF($O6=BS1,"Y","")))))) ->  | BT6: =$A$6 -> 4 | BU6: =IF($E6=BU1,$F6,IF($G6=BU1,$H6,IF($I6=BU1,$J6,IF($K6=BU1,$L6,IF($M6=BU1,$N6,IF($O6=BU1,$P6,"")))))) ->  | BV6: =IF($E6=BV1,"Y",IF($G6=BV1,"Y",IF($I6=BV1,"Y",IF($K6=BV1,"Y",IF($M6=BV1,"Y",IF($O6=BV1,"Y","")))))) ->  | BW6: =$A$6 -> 4 | BX6: =IF($E6=BX1,$F6,IF($G6=BX1,$H6,IF($I6=BX1,$J6,IF($K6=BX1,$L6,IF($M6=BX1,$N6,IF($O6=BX1,$P6,"")))))) ->  | BY6: =IF($E6=BY1,"Y",IF($G6=BY1,"Y",IF($I6=BY1,"Y",IF($K6=BY1,"Y",IF($M6=BY1,"Y",IF($O6=BY1,"Y","")))))) ->  | BZ6: =$A$6 -> 4 | CA6: =IF($E6=CA1,$F6,IF($G6=CA1,$H6,IF($I6=CA1,$J6,IF($K6=CA1,$L6,IF($M6=CA1,$N6,IF($O6=CA1,$P6,"")))))) ->  | CB6: =IF($E6=CB1,"Y",IF($G6=CB1,"Y",IF($I6=CB1,"Y",IF($K6=CB1,"Y",IF($M6=CB1,"Y",IF($O6=CB1,"Y","")))))) ->  | CC6: =$A$6 -> 4 | CD6: =IF($E6=CD1,$F6,IF($G6=CD1,$H6,IF($I6=CD1,$J6,IF($K6=CD1,$L6,IF($M6=CD1,$N6,IF($O6=CD1,$P6,"")))))) ->  | CE6: =IF($E6=CE1,"Y",IF($G6=CE1,"Y",IF($I6=CE1,"Y",IF($K6=CE1,"Y",IF($M6=CE1,"Y",IF($O6=CE1,"Y","")))))) -> Y | CF6: =$A$6 -> 4 | CG6: =IF($E6=CG1,$F6,IF($G6=CG1,$H6,IF($I6=CG1,$J6,IF($K6=CG1,$L6,IF($M6=CG1,$N6,IF($O6=CG1,$P6,"")))))) -> 0 | CH6: =IF($E6=CH1,"Y",IF($G6=CH1,"Y",IF($I6=CH1,"Y",IF($K6=CH1,"Y",IF($M6=CH1,"Y",IF($O6=CH1,"Y","")))))) -> Y | CI6: =$A$6 -> 4 | CJ6: =IF($E6=CJ1,$F6,IF($G6=CJ1,$H6,IF($I6=CJ1,$J6,IF($K6=CJ1,$L6,IF($M6=CJ1,$N6,IF($O6=CJ1,$P6,"")))))) -> 0 | CK6: =IF($E6=CK1,"Y",IF($G6=CK1,"Y",IF($I6=CK1,"Y",IF($K6=CK1,"Y",IF($M6=CK1,"Y",IF($O6=CK1,"Y","")))))) -> Y | CL6: =$A$6 -> 4 | CM6: =IF($E6=CM1,$F6,IF($G6=CM1,$H6,IF($I6=CM1,$J6,IF($K6=CM1,$L6,IF($M6=CM1,$N6,IF($O6=CM1,$P6,"")))))) -> 0 | CN6: =IF($E6=CN1,"Y",IF($G6=CN1,"Y",IF($I6=CN1,"Y",IF($K6=CN1,"Y",IF($M6=CN1,"Y",IF($O6=CN1,"Y","")))))) -> Y | CO6: =$A$6 -> 4 | CP6: =IF($E6=CP1,$F6,IF($G6=CP1,$H6,IF($I6=CP1,$J6,IF($K6=CP1,$L6,IF($M6=CP1,$N6,IF($O6=CP1,$P6,"")))))) -> 0 | CQ6: =IF($E6=CQ1,"Y",IF($G6=CQ1,"Y",IF($I6=CQ1,"Y",IF($K6=CQ1,"Y",IF($M6=CQ1,"Y",IF($O6=CQ1,"Y","")))))) -> Y | CR6: =$A$6 -> 4 | CS6: =IF($E6=CS1,$F6,IF($G6=CS1,$H6,IF($I6=CS1,$J6,IF($K6=CS1,$L6,IF($M6=CS1,$N6,IF($O6=CS1,$P6,"")))))) -> 0 | CT6: =IF($E6=CT1,"Y",IF($G6=CT1,"Y",IF($I6=CT1,"Y",IF($K6=CT1,"Y",IF($M6=CT1,"Y",IF($O6=CT1,"Y","")))))) -> Y | CU6: =$A$6 -> 4 | CV6: =IF($E6=CV1,$F6,IF($G6=CV1,$H6,IF($I6=CV1,$J6,IF($K6=CV1,$L6,IF($M6=CV1,$N6,IF($O6=CV1,$P6,"")))))) -> 0 | CW6: =IF($E6=CW1,"Y",IF($G6=CW1,"Y",IF($I6=CW1,"Y",IF($K6=CW1,"Y",IF($M6=CW1,"Y",IF($O6=CW1,"Y","")))))) -> Y | CX6: =$A$6 -> 4 | CY6: =IF($E6=CY1,$F6,IF($G6=CY1,$H6,IF($I6=CY1,$J6,IF($K6=CY1,$L6,IF($M6=CY1,$N6,IF($O6=CY1,$P6,"")))))) -> 0 | CZ6: =IF($E6=CZ1,"Y",IF($G6=CZ1,"Y",IF($I6=CZ1,"Y",IF($K6=CZ1,"Y",IF($M6=CZ1,"Y",IF($O6=CZ1,"Y","")))))) -> Y | DA6: =$A$6 -> 4 | DB6: =IF($E6=DB1,$F6,IF($G6=DB1,$H6,IF($I6=DB1,$J6,IF($K6=DB1,$L6,IF($M6=DB1,$N6,IF($O6=DB1,$P6,"")))))) -> 0 | DC6: =IF($E6=DC1,"Y",IF($G6=DC1,"Y",IF($I6=DC1,"Y",IF($K6=DC1,"Y",IF($M6=DC1,"Y",IF($O6=DC1,"Y","")))))) -> Y | DD6: =$A$6 -> 4 | DE6: =IF($E6=DE1,$F6,IF($G6=DE1,$H6,IF($I6=DE1,$J6,IF($K6=DE1,$L6,IF($M6=DE1,$N6,IF($O6=DE1,$P6,"")))))) -> 0 | DF6: =IF($E6=DF1,"Y",IF($G6=DF1,"Y",IF($I6=DF1,"Y",IF($K6=DF1,"Y",IF($M6=DF1,"Y",IF($O6=DF1,"Y","")))))) -> Y | DG6: =$A$6 -> 4 | DH6: =IF($E6=DH1,$F6,IF($G6=DH1,$H6,IF($I6=DH1,$J6,IF($K6=DH1,$L6,IF($M6=DH1,$N6,IF($O6=DH1,$P6,"")))))) -> 0 | DI6: =IF($E6=DI1,"Y",IF($G6=DI1,"Y",IF($I6=DI1,"Y",IF($K6=DI1,"Y",IF($M6=DI1,"Y",IF($O6=DI1,"Y","")))))) -> Y | DJ6: =$A$6 -> 4 | DK6: =IF($E6=DK1,$F6,IF($G6=DK1,$H6,IF($I6=DK1,$J6,IF($K6=DK1,$L6,IF($M6=DK1,$N6,IF($O6=DK1,$P6,"")))))) -> 0 | DL6: =IF($E6=DL1,"Y",IF($G6=DL1,"Y",IF($I6=DL1,"Y",IF($K6=DL1,"Y",IF($M6=DL1,"Y",IF($O6=DL1,"Y","")))))) -> Y | DM6: =$A$6 -> 4 | DN6: =IF($E6=DN1,$F6,IF($G6=DN1,$H6,IF($I6=DN1,$J6,IF($K6=DN1,$L6,IF($M6=DN1,$N6,IF($O6=DN1,$P6,"")))))) -> 0 | DO6: =IF($E6=DO1,"Y",IF($G6=DO1,"Y",IF($I6=DO1,"Y",IF($K6=DO1,"Y",IF($M6=DO1,"Y",IF($O6=DO1,"Y","")))))) -> Y | DP6: =$A$6 -> 4 | DQ6: =IF($E6=DQ1,$F6,IF($G6=DQ1,$H6,IF($I6=DQ1,$J6,IF($K6=DQ1,$L6,IF($M6=DQ1,$N6,IF($O6=DQ1,$P6,"")))))) -> 0
A7: 5 | B7: George Loveday | C7: Brunel | D7: M | E7: 5000 | F7: 00:16:10 | R7: 5 | T7: =IF($E7=$V$1,"Y",IF($G7=$V$1,"Y",IF($I7=$V$1,"Y",IF($K7=$V$1,"Y",IF($M7=$V$1,"Y",IF($O7=$V$1,"Y","")))))) ->  | U7: 5 | V7: =IF($E7=$V$1,$F7,IF($G7=$V$1,$H7,IF($I7=$V$1,$J7,IF($K7=$V$1,$L7,IF($M7=$V$1,$N7,IF($O7=$V$1,$P7,"")))))) ->  | W7: =IF($E7=$Y$1,"Y",IF($G7=$Y$1,"Y",IF($I7=$Y$1,"Y",IF($K7=$Y$1,"Y",IF($M7=$Y$1,"Y",IF($O7=$Y$1,"Y","")))))) ->  | X7: 5 | Y7: =IF($E7=$Y$1,$F7,IF($G7=$Y$1,$H7,IF($I7=$Y$1,$J7,IF($K7=$Y$1,$L7,IF($M7=$Y$1,$N7,IF($O7=$Y$1,$P7,"")))))) ->  | Z7: =IF($E7=$AB$1,"Y",IF($G7=$AB$1,"Y",IF($I7=$AB$1,"Y",IF($K7=$AB$1,"Y",IF($M7=$AB$1,"Y",IF($O7=$AB$1,"Y","")))))) ->  | AA7: 5 | AB7: =IF($E7=$AB$1,$F7,IF($G7=$AB$1,$H7,IF($I7=$AB$1,$J7,IF($K7=$AB$1,$L7,IF($M7=$AB$1,$N7,IF($O7=$AB$1,$P7,"")))))) ->  | AC7: =IF($E7=$AE$1,"Y",IF($G7=$AE$1,"Y",IF($I7=$AE$1,"Y",IF($K7=$AE$1,"Y",IF($M7=$AE$1,"Y",IF($O7=$AE$1,"Y","")))))) ->  | AD7: 5 | AE7: =IF($E7=$AE$1,$F7,IF($G7=$AE$1,$H7,IF($I7=$AE$1,$J7,IF($K7=$AE$1,$L7,IF($M7=$AE$1,$N7,IF($O7=$AE$1,$P7,"")))))) ->  | AF7: =IF($E7=$AH$1,"Y",IF($G7=$AH$1,"Y",IF($I7=$AH$1,"Y",IF($K7=$AH$1,"Y",IF($M7=$AH$1,"Y",IF($O7=$AH$1,"Y","")))))) ->  | AG7: 5 | AH7: =IF($E7=$AH$1,$F7,IF($G7=$AH$1,$H7,IF($I7=$AH$1,$J7,IF($K7=$AH$1,$L7,IF($M7=$AH$1,$N7,IF($O7=$AH$1,$P7,"")))))) ->  | AJ7: 5 | AK7: =IF($E7=$AK$1,$F7,IF($G7=$AK$1,$H7,IF($I7=$AK$1,$J7,IF($K7=$AK$1,$L7,IF($M7=$AK$1,$N7,IF($O7=$AK$1,$P7,"")))))) ->  | AM7: =$A$7 -> 5 | AP7: =$A$7 -> 5 | AR7: =IF($E7=AR1,"Y",IF($G7=AR1,"Y",IF($I7=AR1,"Y",IF($K7=AR1,"Y",IF($M7=AR1,"Y",IF($O7=AR1,"Y","")))))) ->  | AS7: =$A$7 -> 5 | AT7: =IF($E7=AT1,$F7,IF($G7=AT1,$H7,IF($I7=AT1,$J7,IF($K7=AT1,$L7,IF($M7=AT1,$N7,IF($O7=AT1,$P7,"")))))) ->  | AU7: =IF($E7=AU1,"Y",IF($G7=AU1,"Y",IF($I7=AU1,"Y",IF($K7=AU1,"Y",IF($M7=AU1,"Y",IF($O7=AU1,"Y","")))))) -> Y | AV7: =$A$7 -> 5 | AW7: =IF($E7=AW1,$F7,IF($G7=AW1,$H7,IF($I7=AW1,$J7,IF($K7=AW1,$L7,IF($M7=AW1,$N7,IF($O7=AW1,$P7,"")))))) -> 00:16:10 | AX7: =IF($E7=AX1,"Y",IF($G7=AX1,"Y",IF($I7=AX1,"Y",IF($K7=AX1,"Y",IF($M7=AX1,"Y",IF($O7=AX1,"Y","")))))) ->  | AY7: =$A$7 -> 5 | AZ7: =IF($E7=AZ1,$F7,IF($G7=AZ1,$H7,IF($I7=AZ1,$J7,IF($K7=AZ1,$L7,IF($M7=AZ1,$N7,IF($O7=AZ1,$P7,"")))))) ->  | BA7: =IF($E7=BA1,"Y",IF($G7=BA1,"Y",IF($I7=BA1,"Y",IF($K7=BA1,"Y",IF($M7=BA1,"Y",IF($O7=BA1,"Y","")))))) ->  | BB7: =$A$7 -> 5 | BC7: =IF($E7=BC1,$F7,IF($G7=BC1,$H7,IF($I7=BC1,$J7,IF($K7=BC1,$L7,IF($M7=BC1,$N7,IF($O7=BC1,$P7,"")))))) ->  | BD7: =IF($E7=BD1,"Y",IF($G7=BD1,"Y",IF($I7=BD1,"Y",IF($K7=BD1,"Y",IF($M7=BD1,"Y",IF($O7=BD1,"Y","")))))) ->  | BE7: =$A$7 -> 5 | BF7: =IF($E7=BF1,$F7,IF($G7=BF1,$H7,IF($I7=BF1,$J7,IF($K7=BF1,$L7,IF($M7=BF1,$N7,IF($O7=BF1,$P7,"")))))) ->  | BG7: =IF($E7=BG1,"Y",IF($G7=BG1,"Y",IF($I7=BG1,"Y",IF($K7=BG1,"Y",IF($M7=BG1,"Y",IF($O7=BG1,"Y","")))))) ->  | BH7: =$A$7 -> 5 | BI7: =IF($E7=BI1,$F7,IF($G7=BI1,$H7,IF($I7=BI1,$J7,IF($K7=BI1,$L7,IF($M7=BI1,$N7,IF($O7=BI1,$P7,"")))))) ->  | BJ7: =IF($E7=BJ1,"Y",IF($G7=BJ1,"Y",IF($I7=BJ1,"Y",IF($K7=BJ1,"Y",IF($M7=BJ1,"Y",IF($O7=BJ1,"Y","")))))) ->  | BK7: =$A$7 -> 5 | BL7: =IF($E7=BL1,$F7,IF($G7=BL1,$H7,IF($I7=BL1,$J7,IF($K7=BL1,$L7,IF($M7=BL1,$N7,IF($O7=BL1,$P7,"")))))) ->  | BM7: =IF($E7=BM1,"Y",IF($G7=BM1,"Y",IF($I7=BM1,"Y",IF($K7=BM1,"Y",IF($M7=BM1,"Y",IF($O7=BM1,"Y","")))))) ->  | BN7: =$A$7 -> 5 | BO7: =IF($E7=BO1,$F7,IF($G7=BO1,$H7,IF($I7=BO1,$J7,IF($K7=BO1,$L7,IF($M7=BO1,$N7,IF($O7=BO1,$P7,"")))))) ->  | BP7: =IF($E7=BP1,"Y",IF($G7=BP1,"Y",IF($I7=BP1,"Y",IF($K7=BP1,"Y",IF($M7=BP1,"Y",IF($O7=BP1,"Y","")))))) ->  | BQ7: =$A$7 -> 5 | BR7: =IF($E7=BR1,$F7,IF($G7=BR1,$H7,IF($I7=BR1,$J7,IF($K7=BR1,$L7,IF($M7=BR1,$N7,IF($O7=BR1,$P7,"")))))) ->  | BS7: =IF($E7=BS1,"Y",IF($G7=BS1,"Y",IF($I7=BS1,"Y",IF($K7=BS1,"Y",IF($M7=BS1,"Y",IF($O7=BS1,"Y","")))))) ->  | BT7: =$A$7 -> 5 | BU7: =IF($E7=BU1,$F7,IF($G7=BU1,$H7,IF($I7=BU1,$J7,IF($K7=BU1,$L7,IF($M7=BU1,$N7,IF($O7=BU1,$P7,"")))))) ->  | BV7: =IF($E7=BV1,"Y",IF($G7=BV1,"Y",IF($I7=BV1,"Y",IF($K7=BV1,"Y",IF($M7=BV1,"Y",IF($O7=BV1,"Y","")))))) ->  | BW7: =$A$7 -> 5 | BX7: =IF($E7=BX1,$F7,IF($G7=BX1,$H7,IF($I7=BX1,$J7,IF($K7=BX1,$L7,IF($M7=BX1,$N7,IF($O7=BX1,$P7,"")))))) ->  | BY7: =IF($E7=BY1,"Y",IF($G7=BY1,"Y",IF($I7=BY1,"Y",IF($K7=BY1,"Y",IF($M7=BY1,"Y",IF($O7=BY1,"Y","")))))) ->  | BZ7: =$A$7 -> 5 | CA7: =IF($E7=CA1,$F7,IF($G7=CA1,$H7,IF($I7=CA1,$J7,IF($K7=CA1,$L7,IF($M7=CA1,$N7,IF($O7=CA1,$P7,"")))))) ->  | CB7: =IF($E7=CB1,"Y",IF($G7=CB1,"Y",IF($I7=CB1,"Y",IF($K7=CB1,"Y",IF($M7=CB1,"Y",IF($O7=CB1,"Y","")))))) ->  | CC7: =$A$7 -> 5 | CD7: =IF($E7=CD1,$F7,IF($G7=CD1,$H7,IF($I7=CD1,$J7,IF($K7=CD1,$L7,IF($M7=CD1,$N7,IF($O7=CD1,$P7,"")))))) ->  | CE7: =IF($E7=CE1,"Y",IF($G7=CE1,"Y",IF($I7=CE1,"Y",IF($K7=CE1,"Y",IF($M7=CE1,"Y",IF($O7=CE1,"Y","")))))) -> Y | CF7: =$A$7 -> 5 | CG7: =IF($E7=CG1,$F7,IF($G7=CG1,$H7,IF($I7=CG1,$J7,IF($K7=CG1,$L7,IF($M7=CG1,$N7,IF($O7=CG1,$P7,"")))))) -> 0 | CH7: =IF($E7=CH1,"Y",IF($G7=CH1,"Y",IF($I7=CH1,"Y",IF($K7=CH1,"Y",IF($M7=CH1,"Y",IF($O7=CH1,"Y","")))))) -> Y | CI7: =$A$7 -> 5 | CJ7: =IF($E7=CJ1,$F7,IF($G7=CJ1,$H7,IF($I7=CJ1,$J7,IF($K7=CJ1,$L7,IF($M7=CJ1,$N7,IF($O7=CJ1,$P7,"")))))) -> 0 | CK7: =IF($E7=CK1,"Y",IF($G7=CK1,"Y",IF($I7=CK1,"Y",IF($K7=CK1,"Y",IF($M7=CK1,"Y",IF($O7=CK1,"Y","")))))) -> Y | CL7: =$A$7 -> 5 | CM7: =IF($E7=CM1,$F7,IF($G7=CM1,$H7,IF($I7=CM1,$J7,IF($K7=CM1,$L7,IF($M7=CM1,$N7,IF($O7=CM1,$P7,"")))))) -> 0 | CN7: =IF($E7=CN1,"Y",IF($G7=CN1,"Y",IF($I7=CN1,"Y",IF($K7=CN1,"Y",IF($M7=CN1,"Y",IF($O7=CN1,"Y","")))))) -> Y | CO7: =$A$7 -> 5 | CP7: =IF($E7=CP1,$F7,IF($G7=CP1,$H7,IF($I7=CP1,$J7,IF($K7=CP1,$L7,IF($M7=CP1,$N7,IF($O7=CP1,$P7,"")))))) -> 0 | CQ7: =IF($E7=CQ1,"Y",IF($G7=CQ1,"Y",IF($I7=CQ1,"Y",IF($K7=CQ1,"Y",IF($M7=CQ1,"Y",IF($O7=CQ1,"Y","")))))) -> Y | CR7: =$A$7 -> 5 | CS7: =IF($E7=CS1,$F7,IF($G7=CS1,$H7,IF($I7=CS1,$J7,IF($K7=CS1,$L7,IF($M7=CS1,$N7,IF($O7=CS1,$P7,"")))))) -> 0 | CT7: =IF($E7=CT1,"Y",IF($G7=CT1,"Y",IF($I7=CT1,"Y",IF($K7=CT1,"Y",IF($M7=CT1,"Y",IF($O7=CT1,"Y","")))))) -> Y | CU7: =$A$7 -> 5 | CV7: =IF($E7=CV1,$F7,IF($G7=CV1,$H7,IF($I7=CV1,$J7,IF($K7=CV1,$L7,IF($M7=CV1,$N7,IF($O7=CV1,$P7,"")))))) -> 0 | CW7: =IF($E7=CW1,"Y",IF($G7=CW1,"Y",IF($I7=CW1,"Y",IF($K7=CW1,"Y",IF($M7=CW1,"Y",IF($O7=CW1,"Y","")))))) -> Y | CX7: =$A$7 -> 5 | CY7: =IF($E7=CY1,$F7,IF($G7=CY1,$H7,IF($I7=CY1,$J7,IF($K7=CY1,$L7,IF($M7=CY1,$N7,IF($O7=CY1,$P7,"")))))) -> 0 | CZ7: =IF($E7=CZ1,"Y",IF($G7=CZ1,"Y",IF($I7=CZ1,"Y",IF($K7=CZ1,"Y",IF($M7=CZ1,"Y",IF($O7=CZ1,"Y","")))))) -> Y | DA7: =$A$7 -> 5 | DB7: =IF($E7=DB1,$F7,IF($G7=DB1,$H7,IF($I7=DB1,$J7,IF($K7=DB1,$L7,IF($M7=DB1,$N7,IF($O7=DB1,$P7,"")))))) -> 0 | DC7: =IF($E7=DC1,"Y",IF($G7=DC1,"Y",IF($I7=DC1,"Y",IF($K7=DC1,"Y",IF($M7=DC1,"Y",IF($O7=DC1,"Y","")))))) -> Y | DD7: =$A$7 -> 5 | DE7: =IF($E7=DE1,$F7,IF($G7=DE1,$H7,IF($I7=DE1,$J7,IF($K7=DE1,$L7,IF($M7=DE1,$N7,IF($O7=DE1,$P7,"")))))) -> 0 | DF7: =IF($E7=DF1,"Y",IF($G7=DF1,"Y",IF($I7=DF1,"Y",IF($K7=DF1,"Y",IF($M7=DF1,"Y",IF($O7=DF1,"Y","")))))) -> Y | DG7: =$A$7 -> 5 | DH7: =IF($E7=DH1,$F7,IF($G7=DH1,$H7,IF($I7=DH1,$J7,IF($K7=DH1,$L7,IF($M7=DH1,$N7,IF($O7=DH1,$P7,"")))))) -> 0 | DI7: =IF($E7=DI1,"Y",IF($G7=DI1,"Y",IF($I7=DI1,"Y",IF($K7=DI1,"Y",IF($M7=DI1,"Y",IF($O7=DI1,"Y","")))))) -> Y | DJ7: =$A$7 -> 5 | DK7: =IF($E7=DK1,$F7,IF($G7=DK1,$H7,IF($I7=DK1,$J7,IF($K7=DK1,$L7,IF($M7=DK1,$N7,IF($O7=DK1,$P7,"")))))) -> 0 | DL7: =IF($E7=DL1,"Y",IF($G7=DL1,"Y",IF($I7=DL1,"Y",IF($K7=DL1,"Y",IF($M7=DL1,"Y",IF($O7=DL1,"Y","")))))) -> Y | DM7: =$A$7 -> 5 | DN7: =IF($E7=DN1,$F7,IF($G7=DN1,$H7,IF($I7=DN1,$J7,IF($K7=DN1,$L7,IF($M7=DN1,$N7,IF($O7=DN1,$P7,"")))))) -> 0 | DO7: =IF($E7=DO1,"Y",IF($G7=DO1,"Y",IF($I7=DO1,"Y",IF($K7=DO1,"Y",IF($M7=DO1,"Y",IF($O7=DO1,"Y","")))))) -> Y | DP7: =$A$7 -> 5 | DQ7: =IF($E7=DQ1,$F7,IF($G7=DQ1,$H7,IF($I7=DQ1,$J7,IF($K7=DQ1,$L7,IF($M7=DQ1,$N7,IF($O7=DQ1,$P7,"")))))) -> 0
A8: 6 | B8: Jacob McAdam | C8: Brunel | D8: M | E8: 5000 | F8: 00:17:30 | R8: 6 | T8: =IF($E8=$V$1,"Y",IF($G8=$V$1,"Y",IF($I8=$V$1,"Y",IF($K8=$V$1,"Y",IF($M8=$V$1,"Y",IF($O8=$V$1,"Y","")))))) ->  | U8: 6 | V8: =IF($E8=$V$1,$F8,IF($G8=$V$1,$H8,IF($I8=$V$1,$J8,IF($K8=$V$1,$L8,IF($M8=$V$1,$N8,IF($O8=$V$1,$P8,"")))))) ->  | W8: =IF($E8=$Y$1,"Y",IF($G8=$Y$1,"Y",IF($I8=$Y$1,"Y",IF($K8=$Y$1,"Y",IF($M8=$Y$1,"Y",IF($O8=$Y$1,"Y","")))))) ->  | X8: 6 | Y8: =IF($E8=$Y$1,$F8,IF($G8=$Y$1,$H8,IF($I8=$Y$1,$J8,IF($K8=$Y$1,$L8,IF($M8=$Y$1,$N8,IF($O8=$Y$1,$P8,"")))))) ->  | Z8: =IF($E8=$AB$1,"Y",IF($G8=$AB$1,"Y",IF($I8=$AB$1,"Y",IF($K8=$AB$1,"Y",IF($M8=$AB$1,"Y",IF($O8=$AB$1,"Y","")))))) ->  | AA8: 6 | AB8: =IF($E8=$AB$1,$F8,IF($G8=$AB$1,$H8,IF($I8=$AB$1,$J8,IF($K8=$AB$1,$L8,IF($M8=$AB$1,$N8,IF($O8=$AB$1,$P8,"")))))) ->  | AC8: =IF($E8=$AE$1,"Y",IF($G8=$AE$1,"Y",IF($I8=$AE$1,"Y",IF($K8=$AE$1,"Y",IF($M8=$AE$1,"Y",IF($O8=$AE$1,"Y","")))))) ->  | AD8: 6 | AE8: =IF($E8=$AE$1,$F8,IF($G8=$AE$1,$H8,IF($I8=$AE$1,$J8,IF($K8=$AE$1,$L8,IF($M8=$AE$1,$N8,IF($O8=$AE$1,$P8,"")))))) ->  | AF8: =IF($E8=$AH$1,"Y",IF($G8=$AH$1,"Y",IF($I8=$AH$1,"Y",IF($K8=$AH$1,"Y",IF($M8=$AH$1,"Y",IF($O8=$AH$1,"Y","")))))) ->  | AG8: 6 | AH8: =IF($E8=$AH$1,$F8,IF($G8=$AH$1,$H8,IF($I8=$AH$1,$J8,IF($K8=$AH$1,$L8,IF($M8=$AH$1,$N8,IF($O8=$AH$1,$P8,"")))))) ->  | AJ8: 6 | AK8: =IF($E8=$AK$1,$F8,IF($G8=$AK$1,$H8,IF($I8=$AK$1,$J8,IF($K8=$AK$1,$L8,IF($M8=$AK$1,$N8,IF($O8=$AK$1,$P8,"")))))) ->  | AM8: =$A$8 -> 6 | AP8: =$A$8 -> 6 | AR8: =IF($E8=AR1,"Y",IF($G8=AR1,"Y",IF($I8=AR1,"Y",IF($K8=AR1,"Y",IF($M8=AR1,"Y",IF($O8=AR1,"Y","")))))) ->  | AS8: =$A$8 -> 6 | AT8: =IF($E8=AT1,$F8,IF($G8=AT1,$H8,IF($I8=AT1,$J8,IF($K8=AT1,$L8,IF($M8=AT1,$N8,IF($O8=AT1,$P8,"")))))) ->  | AU8: =IF($E8=AU1,"Y",IF($G8=AU1,"Y",IF($I8=AU1,"Y",IF($K8=AU1,"Y",IF($M8=AU1,"Y",IF($O8=AU1,"Y","")))))) -> Y | AV8: =$A$8 -> 6 | AW8: =IF($E8=AW1,$F8,IF($G8=AW1,$H8,IF($I8=AW1,$J8,IF($K8=AW1,$L8,IF($M8=AW1,$N8,IF($O8=AW1,$P8,"")))))) -> 00:17:30 | AX8: =IF($E8=AX1,"Y",IF($G8=AX1,"Y",IF($I8=AX1,"Y",IF($K8=AX1,"Y",IF($M8=AX1,"Y",IF($O8=AX1,"Y","")))))) ->  | AY8: =$A$8 -> 6 | AZ8: =IF($E8=AZ1,$F8,IF($G8=AZ1,$H8,IF($I8=AZ1,$J8,IF($K8=AZ1,$L8,IF($M8=AZ1,$N8,IF($O8=AZ1,$P8,"")))))) ->  | BA8: =IF($E8=BA1,"Y",IF($G8=BA1,"Y",IF($I8=BA1,"Y",IF($K8=BA1,"Y",IF($M8=BA1,"Y",IF($O8=BA1,"Y","")))))) ->  | BB8: =$A$8 -> 6 | BC8: =IF($E8=BC1,$F8,IF($G8=BC1,$H8,IF($I8=BC1,$J8,IF($K8=BC1,$L8,IF($M8=BC1,$N8,IF($O8=BC1,$P8,"")))))) ->  | BD8: =IF($E8=BD1,"Y",IF($G8=BD1,"Y",IF($I8=BD1,"Y",IF($K8=BD1,"Y",IF($M8=BD1,"Y",IF($O8=BD1,"Y","")))))) ->  | BE8: =$A$8 -> 6 | BF8: =IF($E8=BF1,$F8,IF($G8=BF1,$H8,IF($I8=BF1,$J8,IF($K8=BF1,$L8,IF($M8=BF1,$N8,IF($O8=BF1,$P8,"")))))) ->  | BG8: =IF($E8=BG1,"Y",IF($G8=BG1,"Y",IF($I8=BG1,"Y",IF($K8=BG1,"Y",IF($M8=BG1,"Y",IF($O8=BG1,"Y","")))))) ->  | BH8: =$A$8 -> 6 | BI8: =IF($E8=BI1,$F8,IF($G8=BI1,$H8,IF($I8=BI1,$J8,IF($K8=BI1,$L8,IF($M8=BI1,$N8,IF($O8=BI1,$P8,"")))))) ->  | BJ8: =IF($E8=BJ1,"Y",IF($G8=BJ1,"Y",IF($I8=BJ1,"Y",IF($K8=BJ1,"Y",IF($M8=BJ1,"Y",IF($O8=BJ1,"Y","")))))) ->  | BK8: =$A$8 -> 6 | BL8: =IF($E8=BL1,$F8,IF($G8=BL1,$H8,IF($I8=BL1,$J8,IF($K8=BL1,$L8,IF($M8=BL1,$N8,IF($O8=BL1,$P8,"")))))) ->  | BM8: =IF($E8=BM1,"Y",IF($G8=BM1,"Y",IF($I8=BM1,"Y",IF($K8=BM1,"Y",IF($M8=BM1,"Y",IF($O8=BM1,"Y","")))))) ->  | BN8: =$A$8 -> 6 | BO8: =IF($E8=BO1,$F8,IF($G8=BO1,$H8,IF($I8=BO1,$J8,IF($K8=BO1,$L8,IF($M8=BO1,$N8,IF($O8=BO1,$P8,"")))))) ->  | BP8: =IF($E8=BP1,"Y",IF($G8=BP1,"Y",IF($I8=BP1,"Y",IF($K8=BP1,"Y",IF($M8=BP1,"Y",IF($O8=BP1,"Y","")))))) ->  | BQ8: =$A$8 -> 6 | BR8: =IF($E8=BR1,$F8,IF($G8=BR1,$H8,IF($I8=BR1,$J8,IF($K8=BR1,$L8,IF($M8=BR1,$N8,IF($O8=BR1,$P8,"")))))) ->  | BS8: =IF($E8=BS1,"Y",IF($G8=BS1,"Y",IF($I8=BS1,"Y",IF($K8=BS1,"Y",IF($M8=BS1,"Y",IF($O8=BS1,"Y","")))))) ->  | BT8: =$A$8 -> 6 | BU8: =IF($E8=BU1,$F8,IF($G8=BU1,$H8,IF($I8=BU1,$J8,IF($K8=BU1,$L8,IF($M8=BU1,$N8,IF($O8=BU1,$P8,"")))))) ->  | BV8: =IF($E8=BV1,"Y",IF($G8=BV1,"Y",IF($I8=BV1,"Y",IF($K8=BV1,"Y",IF($M8=BV1,"Y",IF($O8=BV1,"Y","")))))) ->  | BW8: =$A$8 -> 6 | BX8: =IF($E8=BX1,$F8,IF($G8=BX1,$H8,IF($I8=BX1,$J8,IF($K8=BX1,$L8,IF($M8=BX1,$N8,IF($O8=BX1,$P8,"")))))) ->  | BY8: =IF($E8=BY1,"Y",IF($G8=BY1,"Y",IF($I8=BY1,"Y",IF($K8=BY1,"Y",IF($M8=BY1,"Y",IF($O8=BY1,"Y","")))))) ->  | BZ8: =$A$8 -> 6 | CA8: =IF($E8=CA1,$F8,IF($G8=CA1,$H8,IF($I8=CA1,$J8,IF($K8=CA1,$L8,IF($M8=CA1,$N8,IF($O8=CA1,$P8,"")))))) ->  | CB8: =IF($E8=CB1,"Y",IF($G8=CB1,"Y",IF($I8=CB1,"Y",IF($K8=CB1,"Y",IF($M8=CB1,"Y",IF($O8=CB1,"Y","")))))) ->  | CC8: =$A$8 -> 6 | CD8: =IF($E8=CD1,$F8,IF($G8=CD1,$H8,IF($I8=CD1,$J8,IF($K8=CD1,$L8,IF($M8=CD1,$N8,IF($O8=CD1,$P8,"")))))) ->  | CE8: =IF($E8=CE1,"Y",IF($G8=CE1,"Y",IF($I8=CE1,"Y",IF($K8=CE1,"Y",IF($M8=CE1,"Y",IF($O8=CE1,"Y","")))))) -> Y | CF8: =$A$8 -> 6 | CG8: =IF($E8=CG1,$F8,IF($G8=CG1,$H8,IF($I8=CG1,$J8,IF($K8=CG1,$L8,IF($M8=CG1,$N8,IF($O8=CG1,$P8,"")))))) -> 0 | CH8: =IF($E8=CH1,"Y",IF($G8=CH1,"Y",IF($I8=CH1,"Y",IF($K8=CH1,"Y",IF($M8=CH1,"Y",IF($O8=CH1,"Y","")))))) -> Y | CI8: =$A$8 -> 6 | CJ8: =IF($E8=CJ1,$F8,IF($G8=CJ1,$H8,IF($I8=CJ1,$J8,IF($K8=CJ1,$L8,IF($M8=CJ1,$N8,IF($O8=CJ1,$P8,"")))))) -> 0 | CK8: =IF($E8=CK1,"Y",IF($G8=CK1,"Y",IF($I8=CK1,"Y",IF($K8=CK1,"Y",IF($M8=CK1,"Y",IF($O8=CK1,"Y","")))))) -> Y | CL8: =$A$8 -> 6 | CM8: =IF($E8=CM1,$F8,IF($G8=CM1,$H8,IF($I8=CM1,$J8,IF($K8=CM1,$L8,IF($M8=CM1,$N8,IF($O8=CM1,$P8,"")))))) -> 0 | CN8: =IF($E8=CN1,"Y",IF($G8=CN1,"Y",IF($I8=CN1,"Y",IF($K8=CN1,"Y",IF($M8=CN1,"Y",IF($O8=CN1,"Y","")))))) -> Y | CO8: =$A$8 -> 6 | CP8: =IF($E8=CP1,$F8,IF($G8=CP1,$H8,IF($I8=CP1,$J8,IF($K8=CP1,$L8,IF($M8=CP1,$N8,IF($O8=CP1,$P8,"")))))) -> 0 | CQ8: =IF($E8=CQ1,"Y",IF($G8=CQ1,"Y",IF($I8=CQ1,"Y",IF($K8=CQ1,"Y",IF($M8=CQ1,"Y",IF($O8=CQ1,"Y","")))))) -> Y | CR8: =$A$8 -> 6 | CS8: =IF($E8=CS1,$F8,IF($G8=CS1,$H8,IF($I8=CS1,$J8,IF($K8=CS1,$L8,IF($M8=CS1,$N8,IF($O8=CS1,$P8,"")))))) -> 0 | CT8: =IF($E8=CT1,"Y",IF($G8=CT1,"Y",IF($I8=CT1,"Y",IF($K8=CT1,"Y",IF($M8=CT1,"Y",IF($O8=CT1,"Y","")))))) -> Y | CU8: =$A$8 -> 6 | CV8: =IF($E8=CV1,$F8,IF($G8=CV1,$H8,IF($I8=CV1,$J8,IF($K8=CV1,$L8,IF($M8=CV1,$N8,IF($O8=CV1,$P8,"")))))) -> 0 | CW8: =IF($E8=CW1,"Y",IF($G8=CW1,"Y",IF($I8=CW1,"Y",IF($K8=CW1,"Y",IF($M8=CW1,"Y",IF($O8=CW1,"Y","")))))) -> Y | CX8: =$A$8 -> 6 | CY8: =IF($E8=CY1,$F8,IF($G8=CY1,$H8,IF($I8=CY1,$J8,IF($K8=CY1,$L8,IF($M8=CY1,$N8,IF($O8=CY1,$P8,"")))))) -> 0 | CZ8: =IF($E8=CZ1,"Y",IF($G8=CZ1,"Y",IF($I8=CZ1,"Y",IF($K8=CZ1,"Y",IF($M8=CZ1,"Y",IF($O8=CZ1,"Y","")))))) -> Y | DA8: =$A$8 -> 6 | DB8: =IF($E8=DB1,$F8,IF($G8=DB1,$H8,IF($I8=DB1,$J8,IF($K8=DB1,$L8,IF($M8=DB1,$N8,IF($O8=DB1,$P8,"")))))) -> 0 | DC8: =IF($E8=DC1,"Y",IF($G8=DC1,"Y",IF($I8=DC1,"Y",IF($K8=DC1,"Y",IF($M8=DC1,"Y",IF($O8=DC1,"Y","")))))) -> Y | DD8: =$A$8 -> 6 | DE8: =IF($E8=DE1,$F8,IF($G8=DE1,$H8,IF($I8=DE1,$J8,IF($K8=DE1,$L8,IF($M8=DE1,$N8,IF($O8=DE1,$P8,"")))))) -> 0 | DF8: =IF($E8=DF1,"Y",IF($G8=DF1,"Y",IF($I8=DF1,"Y",IF($K8=DF1,"Y",IF($M8=DF1,"Y",IF($O8=DF1,"Y","")))))) -> Y | DG8: =$A$8 -> 6 | DH8: =IF($E8=DH1,$F8,IF($G8=DH1,$H8,IF($I8=DH1,$J8,IF($K8=DH1,$L8,IF($M8=DH1,$N8,IF($O8=DH1,$P8,"")))))) -> 0 | DI8: =IF($E8=DI1,"Y",IF($G8=DI1,"Y",IF($I8=DI1,"Y",IF($K8=DI1,"Y",IF($M8=DI1,"Y",IF($O8=DI1,"Y","")))))) -> Y | DJ8: =$A$8 -> 6 | DK8: =IF($E8=DK1,$F8,IF($G8=DK1,$H8,IF($I8=DK1,$J8,IF($K8=DK1,$L8,IF($M8=DK1,$N8,IF($O8=DK1,$P8,"")))))) -> 0 | DL8: =IF($E8=DL1,"Y",IF($G8=DL1,"Y",IF($I8=DL1,"Y",IF($K8=DL1,"Y",IF($M8=DL1,"Y",IF($O8=DL1,"Y","")))))) -> Y | DM8: =$A$8 -> 6 | DN8: =IF($E8=DN1,$F8,IF($G8=DN1,$H8,IF($I8=DN1,$J8,IF($K8=DN1,$L8,IF($M8=DN1,$N8,IF($O8=DN1,$P8,"")))))) -> 0 | DO8: =IF($E8=DO1,"Y",IF($G8=DO1,"Y",IF($I8=DO1,"Y",IF($K8=DO1,"Y",IF($M8=DO1,"Y",IF($O8=DO1,"Y","")))))) -> Y | DP8: =$A$8 -> 6 | DQ8: =IF($E8=DQ1,$F8,IF($G8=DQ1,$H8,IF($I8=DQ1,$J8,IF($K8=DQ1,$L8,IF($M8=DQ1,$N8,IF($O8=DQ1,$P8,"")))))) -> 0
A9: 7 | B9: Danae Jeanclos | C9: Essex | D9: F | E9: 100 | F9: 13.5 | Q9: Y | R9: 7 | S9: 13.5 | T9: =IF($E9=$V$1,"Y",IF($G9=$V$1,"Y",IF($I9=$V$1,"Y",IF($K9=$V$1,"Y",IF($M9=$V$1,"Y",IF($O9=$V$1,"Y","")))))) ->  | U9: 7 | V9: =IF($E9=$V$1,$F9,IF($G9=$V$1,$H9,IF($I9=$V$1,$J9,IF($K9=$V$1,$L9,IF($M9=$V$1,$N9,IF($O9=$V$1,$P9,"")))))) ->  | W9: =IF($E9=$Y$1,"Y",IF($G9=$Y$1,"Y",IF($I9=$Y$1,"Y",IF($K9=$Y$1,"Y",IF($M9=$Y$1,"Y",IF($O9=$Y$1,"Y","")))))) ->  | X9: 7 | Y9: =IF($E9=$Y$1,$F9,IF($G9=$Y$1,$H9,IF($I9=$Y$1,$J9,IF($K9=$Y$1,$L9,IF($M9=$Y$1,$N9,IF($O9=$Y$1,$P9,"")))))) ->  | Z9: =IF($E9=$AB$1,"Y",IF($G9=$AB$1,"Y",IF($I9=$AB$1,"Y",IF($K9=$AB$1,"Y",IF($M9=$AB$1,"Y",IF($O9=$AB$1,"Y","")))))) ->  | AA9: 7 | AB9: =IF($E9=$AB$1,$F9,IF($G9=$AB$1,$H9,IF($I9=$AB$1,$J9,IF($K9=$AB$1,$L9,IF($M9=$AB$1,$N9,IF($O9=$AB$1,$P9,"")))))) ->  | AC9: =IF($E9=$AE$1,"Y",IF($G9=$AE$1,"Y",IF($I9=$AE$1,"Y",IF($K9=$AE$1,"Y",IF($M9=$AE$1,"Y",IF($O9=$AE$1,"Y","")))))) ->  | AD9: 7 | AE9: =IF($E9=$AE$1,$F9,IF($G9=$AE$1,$H9,IF($I9=$AE$1,$J9,IF($K9=$AE$1,$L9,IF($M9=$AE$1,$N9,IF($O9=$AE$1,$P9,"")))))) ->  | AF9: =IF($E9=$AH$1,"Y",IF($G9=$AH$1,"Y",IF($I9=$AH$1,"Y",IF($K9=$AH$1,"Y",IF($M9=$AH$1,"Y",IF($O9=$AH$1,"Y","")))))) ->  | AG9: 7 | AH9: =IF($E9=$AH$1,$F9,IF($G9=$AH$1,$H9,IF($I9=$AH$1,$J9,IF($K9=$AH$1,$L9,IF($M9=$AH$1,$N9,IF($O9=$AH$1,$P9,"")))))) ->  | AJ9: 7 | AK9: =IF($E9=$AK$1,$F9,IF($G9=$AK$1,$H9,IF($I9=$AK$1,$J9,IF($K9=$AK$1,$L9,IF($M9=$AK$1,$N9,IF($O9=$AK$1,$P9,"")))))) ->  | AM9: =$A$9 -> 7 | AP9: =$A$9 -> 7 | AR9: =IF($E9=AR1,"Y",IF($G9=AR1,"Y",IF($I9=AR1,"Y",IF($K9=AR1,"Y",IF($M9=AR1,"Y",IF($O9=AR1,"Y","")))))) ->  | AS9: =$A$9 -> 7 | AT9: =IF($E9=AT1,$F9,IF($G9=AT1,$H9,IF($I9=AT1,$J9,IF($K9=AT1,$L9,IF($M9=AT1,$N9,IF($O9=AT1,$P9,"")))))) ->  | AU9: =IF($E9=AU1,"Y",IF($G9=AU1,"Y",IF($I9=AU1,"Y",IF($K9=AU1,"Y",IF($M9=AU1,"Y",IF($O9=AU1,"Y","")))))) ->  | AV9: =$A$9 -> 7 | AW9: =IF($E9=AW1,$F9,IF($G9=AW1,$H9,IF($I9=AW1,$J9,IF($K9=AW1,$L9,IF($M9=AW1,$N9,IF($O9=AW1,$P9,"")))))) ->  | AX9: =IF($E9=AX1,"Y",IF($G9=AX1,"Y",IF($I9=AX1,"Y",IF($K9=AX1,"Y",IF($M9=AX1,"Y",IF($O9=AX1,"Y","")))))) ->  | AY9: =$A$9 -> 7 | AZ9: =IF($E9=AZ1,$F9,IF($G9=AZ1,$H9,IF($I9=AZ1,$J9,IF($K9=AZ1,$L9,IF($M9=AZ1,$N9,IF($O9=AZ1,$P9,"")))))) ->  | BA9: =IF($E9=BA1,"Y",IF($G9=BA1,"Y",IF($I9=BA1,"Y",IF($K9=BA1,"Y",IF($M9=BA1,"Y",IF($O9=BA1,"Y","")))))) ->  | BB9: =$A$9 -> 7 | BC9: =IF($E9=BC1,$F9,IF($G9=BC1,$H9,IF($I9=BC1,$J9,IF($K9=BC1,$L9,IF($M9=BC1,$N9,IF($O9=BC1,$P9,"")))))) ->  | BD9: =IF($E9=BD1,"Y",IF($G9=BD1,"Y",IF($I9=BD1,"Y",IF($K9=BD1,"Y",IF($M9=BD1,"Y",IF($O9=BD1,"Y","")))))) ->  | BE9: =$A$9 -> 7 | BF9: =IF($E9=BF1,$F9,IF($G9=BF1,$H9,IF($I9=BF1,$J9,IF($K9=BF1,$L9,IF($M9=BF1,$N9,IF($O9=BF1,$P9,"")))))) ->  | BG9: =IF($E9=BG1,"Y",IF($G9=BG1,"Y",IF($I9=BG1,"Y",IF($K9=BG1,"Y",IF($M9=BG1,"Y",IF($O9=BG1,"Y","")))))) ->  | BH9: =$A$9 -> 7 | BI9: =IF($E9=BI1,$F9,IF($G9=BI1,$H9,IF($I9=BI1,$J9,IF($K9=BI1,$L9,IF($M9=BI1,$N9,IF($O9=BI1,$P9,"")))))) ->  | BJ9: =IF($E9=BJ1,"Y",IF($G9=BJ1,"Y",IF($I9=BJ1,"Y",IF($K9=BJ1,"Y",IF($M9=BJ1,"Y",IF($O9=BJ1,"Y","")))))) ->  | BK9: =$A$9 -> 7 | BL9: =IF($E9=BL1,$F9,IF($G9=BL1,$H9,IF($I9=BL1,$J9,IF($K9=BL1,$L9,IF($M9=BL1,$N9,IF($O9=BL1,$P9,"")))))) ->  | BM9: =IF($E9=BM1,"Y",IF($G9=BM1,"Y",IF($I9=BM1,"Y",IF($K9=BM1,"Y",IF($M9=BM1,"Y",IF($O9=BM1,"Y","")))))) ->  | BN9: =$A$9 -> 7 | BO9: =IF($E9=BO1,$F9,IF($G9=BO1,$H9,IF($I9=BO1,$J9,IF($K9=BO1,$L9,IF($M9=BO1,$N9,IF($O9=BO1,$P9,"")))))) ->  | BP9: =IF($E9=BP1,"Y",IF($G9=BP1,"Y",IF($I9=BP1,"Y",IF($K9=BP1,"Y",IF($M9=BP1,"Y",IF($O9=BP1,"Y","")))))) ->  | BQ9: =$A$9 -> 7 | BR9: =IF($E9=BR1,$F9,IF($G9=BR1,$H9,IF($I9=BR1,$J9,IF($K9=BR1,$L9,IF($M9=BR1,$N9,IF($O9=BR1,$P9,"")))))) ->  | BS9: =IF($E9=BS1,"Y",IF($G9=BS1,"Y",IF($I9=BS1,"Y",IF($K9=BS1,"Y",IF($M9=BS1,"Y",IF($O9=BS1,"Y","")))))) ->  | BT9: =$A$9 -> 7 | BU9: =IF($E9=BU1,$F9,IF($G9=BU1,$H9,IF($I9=BU1,$J9,IF($K9=BU1,$L9,IF($M9=BU1,$N9,IF($O9=BU1,$P9,"")))))) ->  | BV9: =IF($E9=BV1,"Y",IF($G9=BV1,"Y",IF($I9=BV1,"Y",IF($K9=BV1,"Y",IF($M9=BV1,"Y",IF($O9=BV1,"Y","")))))) ->  | BW9: =$A$9 -> 7 | BX9: =IF($E9=BX1,$F9,IF($G9=BX1,$H9,IF($I9=BX1,$J9,IF($K9=BX1,$L9,IF($M9=BX1,$N9,IF($O9=BX1,$P9,"")))))) ->  | BY9: =IF($E9=BY1,"Y",IF($G9=BY1,"Y",IF($I9=BY1,"Y",IF($K9=BY1,"Y",IF($M9=BY1,"Y",IF($O9=BY1,"Y","")))))) ->  | BZ9: =$A$9 -> 7 | CA9: =IF($E9=CA1,$F9,IF($G9=CA1,$H9,IF($I9=CA1,$J9,IF($K9=CA1,$L9,IF($M9=CA1,$N9,IF($O9=CA1,$P9,"")))))) ->  | CB9: =IF($E9=CB1,"Y",IF($G9=CB1,"Y",IF($I9=CB1,"Y",IF($K9=CB1,"Y",IF($M9=CB1,"Y",IF($O9=CB1,"Y","")))))) ->  | CC9: =$A$9 -> 7 | CD9: =IF($E9=CD1,$F9,IF($G9=CD1,$H9,IF($I9=CD1,$J9,IF($K9=CD1,$L9,IF($M9=CD1,$N9,IF($O9=CD1,$P9,"")))))) ->  | CE9: =IF($E9=CE1,"Y",IF($G9=CE1,"Y",IF($I9=CE1,"Y",IF($K9=CE1,"Y",IF($M9=CE1,"Y",IF($O9=CE1,"Y","")))))) -> Y | CF9: =$A$9 -> 7 | CG9: =IF($E9=CG1,$F9,IF($G9=CG1,$H9,IF($I9=CG1,$J9,IF($K9=CG1,$L9,IF($M9=CG1,$N9,IF($O9=CG1,$P9,"")))))) -> 0 | CH9: =IF($E9=CH1,"Y",IF($G9=CH1,"Y",IF($I9=CH1,"Y",IF($K9=CH1,"Y",IF($M9=CH1,"Y",IF($O9=CH1,"Y","")))))) -> Y | CI9: =$A$9 -> 7 | CJ9: =IF($E9=CJ1,$F9,IF($G9=CJ1,$H9,IF($I9=CJ1,$J9,IF($K9=CJ1,$L9,IF($M9=CJ1,$N9,IF($O9=CJ1,$P9,"")))))) -> 0 | CK9: =IF($E9=CK1,"Y",IF($G9=CK1,"Y",IF($I9=CK1,"Y",IF($K9=CK1,"Y",IF($M9=CK1,"Y",IF($O9=CK1,"Y","")))))) -> Y | CL9: =$A$9 -> 7 | CM9: =IF($E9=CM1,$F9,IF($G9=CM1,$H9,IF($I9=CM1,$J9,IF($K9=CM1,$L9,IF($M9=CM1,$N9,IF($O9=CM1,$P9,"")))))) -> 0 | CN9: =IF($E9=CN1,"Y",IF($G9=CN1,"Y",IF($I9=CN1,"Y",IF($K9=CN1,"Y",IF($M9=CN1,"Y",IF($O9=CN1,"Y","")))))) -> Y | CO9: =$A$9 -> 7 | CP9: =IF($E9=CP1,$F9,IF($G9=CP1,$H9,IF($I9=CP1,$J9,IF($K9=CP1,$L9,IF($M9=CP1,$N9,IF($O9=CP1,$P9,"")))))) -> 0 | CQ9: =IF($E9=CQ1,"Y",IF($G9=CQ1,"Y",IF($I9=CQ1,"Y",IF($K9=CQ1,"Y",IF($M9=CQ1,"Y",IF($O9=CQ1,"Y","")))))) -> Y | CR9: =$A$9 -> 7 | CS9: =IF($E9=CS1,$F9,IF($G9=CS1,$H9,IF($I9=CS1,$J9,IF($K9=CS1,$L9,IF($M9=CS1,$N9,IF($O9=CS1,$P9,"")))))) -> 0 | CT9: =IF($E9=CT1,"Y",IF($G9=CT1,"Y",IF($I9=CT1,"Y",IF($K9=CT1,"Y",IF($M9=CT1,"Y",IF($O9=CT1,"Y","")))))) -> Y | CU9: =$A$9 -> 7 | CV9: =IF($E9=CV1,$F9,IF($G9=CV1,$H9,IF($I9=CV1,$J9,IF($K9=CV1,$L9,IF($M9=CV1,$N9,IF($O9=CV1,$P9,"")))))) -> 0 | CW9: =IF($E9=CW1,"Y",IF($G9=CW1,"Y",IF($I9=CW1,"Y",IF($K9=CW1,"Y",IF($M9=CW1,"Y",IF($O9=CW1,"Y","")))))) -> Y | CX9: =$A$9 -> 7 | CY9: =IF($E9=CY1,$F9,IF($G9=CY1,$H9,IF($I9=CY1,$J9,IF($K9=CY1,$L9,IF($M9=CY1,$N9,IF($O9=CY1,$P9,"")))))) -> 0 | CZ9: =IF($E9=CZ1,"Y",IF($G9=CZ1,"Y",IF($I9=CZ1,"Y",IF($K9=CZ1,"Y",IF($M9=CZ1,"Y",IF($O9=CZ1,"Y","")))))) -> Y | DA9: =$A$9 -> 7 | DB9: =IF($E9=DB1,$F9,IF($G9=DB1,$H9,IF($I9=DB1,$J9,IF($K9=DB1,$L9,IF($M9=DB1,$N9,IF($O9=DB1,$P9,"")))))) -> 0 | DC9: =IF($E9=DC1,"Y",IF($G9=DC1,"Y",IF($I9=DC1,"Y",IF($K9=DC1,"Y",IF($M9=DC1,"Y",IF($O9=DC1,"Y","")))))) -> Y | DD9: =$A$9 -> 7 | DE9: =IF($E9=DE1,$F9,IF($G9=DE1,$H9,IF($I9=DE1,$J9,IF($K9=DE1,$L9,IF($M9=DE1,$N9,IF($O9=DE1,$P9,"")))))) -> 0 | DF9: =IF($E9=DF1,"Y",IF($G9=DF1,"Y",IF($I9=DF1,"Y",IF($K9=DF1,"Y",IF($M9=DF1,"Y",IF($O9=DF1,"Y","")))))) -> Y | DG9: =$A$9 -> 7 | DH9: =IF($E9=DH1,$F9,IF($G9=DH1,$H9,IF($I9=DH1,$J9,IF($K9=DH1,$L9,IF($M9=DH1,$N9,IF($O9=DH1,$P9,"")))))) -> 0 | DI9: =IF($E9=DI1,"Y",IF($G9=DI1,"Y",IF($I9=DI1,"Y",IF($K9=DI1,"Y",IF($M9=DI1,"Y",IF($O9=DI1,"Y","")))))) -> Y | DJ9: =$A$9 -> 7 | DK9: =IF($E9=DK1,$F9,IF($G9=DK1,$H9,IF($I9=DK1,$J9,IF($K9=DK1,$L9,IF($M9=DK1,$N9,IF($O9=DK1,$P9,"")))))) -> 0 | DL9: =IF($E9=DL1,"Y",IF($G9=DL1,"Y",IF($I9=DL1,"Y",IF($K9=DL1,"Y",IF($M9=DL1,"Y",IF($O9=DL1,"Y","")))))) -> Y | DM9: =$A$9 -> 7 | DN9: =IF($E9=DN1,$F9,IF($G9=DN1,$H9,IF($I9=DN1,$J9,IF($K9=DN1,$L9,IF($M9=DN1,$N9,IF($O9=DN1,$P9,"")))))) -> 0 | DO9: =IF($E9=DO1,"Y",IF($G9=DO1,"Y",IF($I9=DO1,"Y",IF($K9=DO1,"Y",IF($M9=DO1,"Y",IF($O9=DO1,"Y","")))))) -> Y | DP9: =$A$9 -> 7 | DQ9: =IF($E9=DQ1,$F9,IF($G9=DQ1,$H9,IF($I9=DQ1,$J9,IF($K9=DQ1,$L9,IF($M9=DQ1,$N9,IF($O9=DQ1,$P9,"")))))) -> 0
A10: 8 | B10: Filipa Mcqueen | C10: Essex | D10: F | R10: 8 | T10: =IF($E10=$V$1,"Y",IF($G10=$V$1,"Y",IF($I10=$V$1,"Y",IF($K10=$V$1,"Y",IF($M10=$V$1,"Y",IF($O10=$V$1,"Y","")))))) ->  | U10: 8 | V10: =IF($E10=$V$1,$F10,IF($G10=$V$1,$H10,IF($I10=$V$1,$J10,IF($K10=$V$1,$L10,IF($M10=$V$1,$N10,IF($O10=$V$1,$P10,"")))))) ->  | W10: =IF($E10=$Y$1,"Y",IF($G10=$Y$1,"Y",IF($I10=$Y$1,"Y",IF($K10=$Y$1,"Y",IF($M10=$Y$1,"Y",IF($O10=$Y$1,"Y","")))))) ->  | X10: 8 | Y10: =IF($E10=$Y$1,$F10,IF($G10=$Y$1,$H10,IF($I10=$Y$1,$J10,IF($K10=$Y$1,$L10,IF($M10=$Y$1,$N10,IF($O10=$Y$1,$P10,"")))))) ->  | Z10: =IF($E10=$AB$1,"Y",IF($G10=$AB$1,"Y",IF($I10=$AB$1,"Y",IF($K10=$AB$1,"Y",IF($M10=$AB$1,"Y",IF($O10=$AB$1,"Y","")))))) ->  | AA10: 8 | AB10: =IF($E10=$AB$1,$F10,IF($G10=$AB$1,$H10,IF($I10=$AB$1,$J10,IF($K10=$AB$1,$L10,IF($M10=$AB$1,$N10,IF($O10=$AB$1,$P10,"")))))) ->  | AC10: =IF($E10=$AE$1,"Y",IF($G10=$AE$1,"Y",IF($I10=$AE$1,"Y",IF($K10=$AE$1,"Y",IF($M10=$AE$1,"Y",IF($O10=$AE$1,"Y","")))))) ->  | AD10: 8 | AE10: =IF($E10=$AE$1,$F10,IF($G10=$AE$1,$H10,IF($I10=$AE$1,$J10,IF($K10=$AE$1,$L10,IF($M10=$AE$1,$N10,IF($O10=$AE$1,$P10,"")))))) ->  | AF10: =IF($E10=$AH$1,"Y",IF($G10=$AH$1,"Y",IF($I10=$AH$1,"Y",IF($K10=$AH$1,"Y",IF($M10=$AH$1,"Y",IF($O10=$AH$1,"Y","")))))) ->  | AG10: 8 | AH10: =IF($E10=$AH$1,$F10,IF($G10=$AH$1,$H10,IF($I10=$AH$1,$J10,IF($K10=$AH$1,$L10,IF($M10=$AH$1,$N10,IF($O10=$AH$1,$P10,"")))))) ->  | AJ10: 8 | AK10: =IF($E10=$AK$1,$F10,IF($G10=$AK$1,$H10,IF($I10=$AK$1,$J10,IF($K10=$AK$1,$L10,IF($M10=$AK$1,$N10,IF($O10=$AK$1,$P10,"")))))) ->  | AM10: =$A$10 -> 8 | AP10: =$A$10 -> 8 | AR10: =IF($E10=AR1,"Y",IF($G10=AR1,"Y",IF($I10=AR1,"Y",IF($K10=AR1,"Y",IF($M10=AR1,"Y",IF($O10=AR1,"Y","")))))) ->  | AS10: =$A$10 -> 8 | AT10: =IF($E10=AT1,$F10,IF($G10=AT1,$H10,IF($I10=AT1,$J10,IF($K10=AT1,$L10,IF($M10=AT1,$N10,IF($O10=AT1,$P10,"")))))) ->  | AU10: =IF($E10=AU1,"Y",IF($G10=AU1,"Y",IF($I10=AU1,"Y",IF($K10=AU1,"Y",IF($M10=AU1,"Y",IF($O10=AU1,"Y","")))))) ->  | AV10: =$A$10 -> 8 | AW10: =IF($E10=AW1,$F10,IF($G10=AW1,$H10,IF($I10=AW1,$J10,IF($K10=AW1,$L10,IF($M10=AW1,$N10,IF($O10=AW1,$P10,"")))))) ->  | AX10: =IF($E10=AX1,"Y",IF($G10=AX1,"Y",IF($I10=AX1,"Y",IF($K10=AX1,"Y",IF($M10=AX1,"Y",IF($O10=AX1,"Y","")))))) ->  | AY10: =$A$10 -> 8 | AZ10: =IF($E10=AZ1,$F10,IF($G10=AZ1,$H10,IF($I10=AZ1,$J10,IF($K10=AZ1,$L10,IF($M10=AZ1,$N10,IF($O10=AZ1,$P10,"")))))) ->  | BA10: =IF($E10=BA1,"Y",IF($G10=BA1,"Y",IF($I10=BA1,"Y",IF($K10=BA1,"Y",IF($M10=BA1,"Y",IF($O10=BA1,"Y","")))))) ->  | BB10: =$A$10 -> 8 | BC10: =IF($E10=BC1,$F10,IF($G10=BC1,$H10,IF($I10=BC1,$J10,IF($K10=BC1,$L10,IF($M10=BC1,$N10,IF($O10=BC1,$P10,"")))))) ->  | BD10: =IF($E10=BD1,"Y",IF($G10=BD1,"Y",IF($I10=BD1,"Y",IF($K10=BD1,"Y",IF($M10=BD1,"Y",IF($O10=BD1,"Y","")))))) ->  | BE10: =$A$10 -> 8 | BF10: =IF($E10=BF1,$F10,IF($G10=BF1,$H10,IF($I10=BF1,$J10,IF($K10=BF1,$L10,IF($M10=BF1,$N10,IF($O10=BF1,$P10,"")))))) ->  | BG10: =IF($E10=BG1,"Y",IF($G10=BG1,"Y",IF($I10=BG1,"Y",IF($K10=BG1,"Y",IF($M10=BG1,"Y",IF($O10=BG1,"Y","")))))) ->  | BH10: =$A$10 -> 8 | BI10: =IF($E10=BI1,$F10,IF($G10=BI1,$H10,IF($I10=BI1,$J10,IF($K10=BI1,$L10,IF($M10=BI1,$N10,IF($O10=BI1,$P10,"")))))) ->  | BJ10: =IF($E10=BJ1,"Y",IF($G10=BJ1,"Y",IF($I10=BJ1,"Y",IF($K10=BJ1,"Y",IF($M10=BJ1,"Y",IF($O10=BJ1,"Y","")))))) ->  | BK10: =$A$10 -> 8 | BL10: =IF($E10=BL1,$F10,IF($G10=BL1,$H10,IF($I10=BL1,$J10,IF($K10=BL1,$L10,IF($M10=BL1,$N10,IF($O10=BL1,$P10,"")))))) ->  | BM10: =IF($E10=BM1,"Y",IF($G10=BM1,"Y",IF($I10=BM1,"Y",IF($K10=BM1,"Y",IF($M10=BM1,"Y",IF($O10=BM1,"Y","")))))) ->  | BN10: =$A$10 -> 8 | BO10: =IF($E10=BO1,$F10,IF($G10=BO1,$H10,IF($I10=BO1,$J10,IF($K10=BO1,$L10,IF($M10=BO1,$N10,IF($O10=BO1,$P10,"")))))) ->  | BP10: =IF($E10=BP1,"Y",IF($G10=BP1,"Y",IF($I10=BP1,"Y",IF($K10=BP1,"Y",IF($M10=BP1,"Y",IF($O10=BP1,"Y","")))))) ->  | BQ10: =$A$10 -> 8 | BR10: =IF($E10=BR1,$F10,IF($G10=BR1,$H10,IF($I10=BR1,$J10,IF($K10=BR1,$L10,IF($M10=BR1,$N10,IF($O10=BR1,$P10,"")))))) ->  | BS10: =IF($E10=BS1,"Y",IF($G10=BS1,"Y",IF($I10=BS1,"Y",IF($K10=BS1,"Y",IF($M10=BS1,"Y",IF($O10=BS1,"Y","")))))) ->  | BT10: =$A$10 -> 8 | BU10: =IF($E10=BU1,$F10,IF($G10=BU1,$H10,IF($I10=BU1,$J10,IF($K10=BU1,$L10,IF($M10=BU1,$N10,IF($O10=BU1,$P10,"")))))) ->  | BV10: =IF($E10=BV1,"Y",IF($G10=BV1,"Y",IF($I10=BV1,"Y",IF($K10=BV1,"Y",IF($M10=BV1,"Y",IF($O10=BV1,"Y","")))))) ->  | BW10: =$A$10 -> 8 | BX10: =IF($E10=BX1,$F10,IF($G10=BX1,$H10,IF($I10=BX1,$J10,IF($K10=BX1,$L10,IF($M10=BX1,$N10,IF($O10=BX1,$P10,"")))))) ->  | BY10: =IF($E10=BY1,"Y",IF($G10=BY1,"Y",IF($I10=BY1,"Y",IF($K10=BY1,"Y",IF($M10=BY1,"Y",IF($O10=BY1,"Y","")))))) ->  | BZ10: =$A$10 -> 8 | CA10: =IF($E10=CA1,$F10,IF($G10=CA1,$H10,IF($I10=CA1,$J10,IF($K10=CA1,$L10,IF($M10=CA1,$N10,IF($O10=CA1,$P10,"")))))) ->  | CB10: =IF($E10=CB1,"Y",IF($G10=CB1,"Y",IF($I10=CB1,"Y",IF($K10=CB1,"Y",IF($M10=CB1,"Y",IF($O10=CB1,"Y","")))))) ->  | CC10: =$A$10 -> 8 | CD10: =IF($E10=CD1,$F10,IF($G10=CD1,$H10,IF($I10=CD1,$J10,IF($K10=CD1,$L10,IF($M10=CD1,$N10,IF($O10=CD1,$P10,"")))))) ->  | CE10: =IF($E10=CE1,"Y",IF($G10=CE1,"Y",IF($I10=CE1,"Y",IF($K10=CE1,"Y",IF($M10=CE1,"Y",IF($O10=CE1,"Y","")))))) -> Y | CF10: =$A$10 -> 8 | CG10: =IF($E10=CG1,$F10,IF($G10=CG1,$H10,IF($I10=CG1,$J10,IF($K10=CG1,$L10,IF($M10=CG1,$N10,IF($O10=CG1,$P10,"")))))) -> 0 | CH10: =IF($E10=CH1,"Y",IF($G10=CH1,"Y",IF($I10=CH1,"Y",IF($K10=CH1,"Y",IF($M10=CH1,"Y",IF($O10=CH1,"Y","")))))) -> Y | CI10: =$A$10 -> 8 | CJ10: =IF($E10=CJ1,$F10,IF($G10=CJ1,$H10,IF($I10=CJ1,$J10,IF($K10=CJ1,$L10,IF($M10=CJ1,$N10,IF($O10=CJ1,$P10,"")))))) -> 0 | CK10: =IF($E10=CK1,"Y",IF($G10=CK1,"Y",IF($I10=CK1,"Y",IF($K10=CK1,"Y",IF($M10=CK1,"Y",IF($O10=CK1,"Y","")))))) -> Y | CL10: =$A$10 -> 8 | CM10: =IF($E10=CM1,$F10,IF($G10=CM1,$H10,IF($I10=CM1,$J10,IF($K10=CM1,$L10,IF($M10=CM1,$N10,IF($O10=CM1,$P10,"")))))) -> 0 | CN10: =IF($E10=CN1,"Y",IF($G10=CN1,"Y",IF($I10=CN1,"Y",IF($K10=CN1,"Y",IF($M10=CN1,"Y",IF($O10=CN1,"Y","")))))) -> Y | CO10: =$A$10 -> 8 | CP10: =IF($E10=CP1,$F10,IF($G10=CP1,$H10,IF($I10=CP1,$J10,IF($K10=CP1,$L10,IF($M10=CP1,$N10,IF($O10=CP1,$P10,"")))))) -> 0 | CQ10: =IF($E10=CQ1,"Y",IF($G10=CQ1,"Y",IF($I10=CQ1,"Y",IF($K10=CQ1,"Y",IF($M10=CQ1,"Y",IF($O10=CQ1,"Y","")))))) -> Y | CR10: =$A$10 -> 8 | CS10: =IF($E10=CS1,$F10,IF($G10=CS1,$H10,IF($I10=CS1,$J10,IF($K10=CS1,$L10,IF($M10=CS1,$N10,IF($O10=CS1,$P10,"")))))) -> 0 | CT10: =IF($E10=CT1,"Y",IF($G10=CT1,"Y",IF($I10=CT1,"Y",IF($K10=CT1,"Y",IF($M10=CT1,"Y",IF($O10=CT1,"Y","")))))) -> Y | CU10: =$A$10 -> 8 | CV10: =IF($E10=CV1,$F10,IF($G10=CV1,$H10,IF($I10=CV1,$J10,IF($K10=CV1,$L10,IF($M10=CV1,$N10,IF($O10=CV1,$P10,"")))))) -> 0 | CW10: =IF($E10=CW1,"Y",IF($G10=CW1,"Y",IF($I10=CW1,"Y",IF($K10=CW1,"Y",IF($M10=CW1,"Y",IF($O10=CW1,"Y","")))))) -> Y | CX10: =$A$10 -> 8 | CY10: =IF($E10=CY1,$F10,IF($G10=CY1,$H10,IF($I10=CY1,$J10,IF($K10=CY1,$L10,IF($M10=CY1,$N10,IF($O10=CY1,$P10,"")))))) -> 0 | CZ10: =IF($E10=CZ1,"Y",IF($G10=CZ1,"Y",IF($I10=CZ1,"Y",IF($K10=CZ1,"Y",IF($M10=CZ1,"Y",IF($O10=CZ1,"Y","")))))) -> Y | DA10: =$A$10 -> 8 | DB10: =IF($E10=DB1,$F10,IF($G10=DB1,$H10,IF($I10=DB1,$J10,IF($K10=DB1,$L10,IF($M10=DB1,$N10,IF($O10=DB1,$P10,"")))))) -> 0 | DC10: =IF($E10=DC1,"Y",IF($G10=DC1,"Y",IF($I10=DC1,"Y",IF($K10=DC1,"Y",IF($M10=DC1,"Y",IF($O10=DC1,"Y","")))))) -> Y | DD10: =$A$10 -> 8 | DE10: =IF($E10=DE1,$F10,IF($G10=DE1,$H10,IF($I10=DE1,$J10,IF($K10=DE1,$L10,IF($M10=DE1,$N10,IF($O10=DE1,$P10,"")))))) -> 0 | DF10: =IF($E10=DF1,"Y",IF($G10=DF1,"Y",IF($I10=DF1,"Y",IF($K10=DF1,"Y",IF($M10=DF1,"Y",IF($O10=DF1,"Y","")))))) -> Y | DG10: =$A$10 -> 8 | DH10: =IF($E10=DH1,$F10,IF($G10=DH1,$H10,IF($I10=DH1,$J10,IF($K10=DH1,$L10,IF($M10=DH1,$N10,IF($O10=DH1,$P10,"")))))) -> 0 | DI10: =IF($E10=DI1,"Y",IF($G10=DI1,"Y",IF($I10=DI1,"Y",IF($K10=DI1,"Y",IF($M10=DI1,"Y",IF($O10=DI1,"Y","")))))) -> Y | DJ10: =$A$10 -> 8 | DK10: =IF($E10=DK1,$F10,IF($G10=DK1,$H10,IF($I10=DK1,$J10,IF($K10=DK1,$L10,IF($M10=DK1,$N10,IF($O10=DK1,$P10,"")))))) -> 0 | DL10: =IF($E10=DL1,"Y",IF($G10=DL1,"Y",IF($I10=DL1,"Y",IF($K10=DL1,"Y",IF($M10=DL1,"Y",IF($O10=DL1,"Y","")))))) -> Y | DM10: =$A$10 -> 8 | DN10: =IF($E10=DN1,$F10,IF($G10=DN1,$H10,IF($I10=DN1,$J10,IF($K10=DN1,$L10,IF($M10=DN1,$N10,IF($O10=DN1,$P10,"")))))) -> 0 | DO10: =IF($E10=DO1,"Y",IF($G10=DO1,"Y",IF($I10=DO1,"Y",IF($K10=DO1,"Y",IF($M10=DO1,"Y",IF($O10=DO1,"Y","")))))) -> Y | DP10: =$A$10 -> 8 | DQ10: =IF($E10=DQ1,$F10,IF($G10=DQ1,$H10,IF($I10=DQ1,$J10,IF($K10=DQ1,$L10,IF($M10=DQ1,$N10,IF($O10=DQ1,$P10,"")))))) -> 0
A11: 9 | B11: Toyin Olufemi | C11: Essex | D11: F | E11: 100 | F11: 14.27 | G11: 200 | H11: 30 | I11: Discus | J11: 19.8 | Q11: Y | R11: 9 | S11: 14.27 | T11: =IF($E11=$V$1,"Y",IF($G11=$V$1,"Y",IF($I11=$V$1,"Y",IF($K11=$V$1,"Y",IF($M11=$V$1,"Y",IF($O11=$V$1,"Y","")))))) ->  | U11: 9 | V11: =IF($E11=$V$1,$F11,IF($G11=$V$1,$H11,IF($I11=$V$1,$J11,IF($K11=$V$1,$L11,IF($M11=$V$1,$N11,IF($O11=$V$1,$P11,"")))))) ->  | W11: =IF($E11=$Y$1,"Y",IF($G11=$Y$1,"Y",IF($I11=$Y$1,"Y",IF($K11=$Y$1,"Y",IF($M11=$Y$1,"Y",IF($O11=$Y$1,"Y","")))))) ->  | X11: 9 | Y11: =IF($E11=$Y$1,$F11,IF($G11=$Y$1,$H11,IF($I11=$Y$1,$J11,IF($K11=$Y$1,$L11,IF($M11=$Y$1,$N11,IF($O11=$Y$1,$P11,"")))))) ->  | Z11: =IF($E11=$AB$1,"Y",IF($G11=$AB$1,"Y",IF($I11=$AB$1,"Y",IF($K11=$AB$1,"Y",IF($M11=$AB$1,"Y",IF($O11=$AB$1,"Y","")))))) -> Y | AA11: 9 | AB11: =IF($E11=$AB$1,$F11,IF($G11=$AB$1,$H11,IF($I11=$AB$1,$J11,IF($K11=$AB$1,$L11,IF($M11=$AB$1,$N11,IF($O11=$AB$1,$P11,"")))))) -> 30 | AC11: =IF($E11=$AE$1,"Y",IF($G11=$AE$1,"Y",IF($I11=$AE$1,"Y",IF($K11=$AE$1,"Y",IF($M11=$AE$1,"Y",IF($O11=$AE$1,"Y","")))))) ->  | AD11: 9 | AE11: =IF($E11=$AE$1,$F11,IF($G11=$AE$1,$H11,IF($I11=$AE$1,$J11,IF($K11=$AE$1,$L11,IF($M11=$AE$1,$N11,IF($O11=$AE$1,$P11,"")))))) ->  | AF11: =IF($E11=$AH$1,"Y",IF($G11=$AH$1,"Y",IF($I11=$AH$1,"Y",IF($K11=$AH$1,"Y",IF($M11=$AH$1,"Y",IF($O11=$AH$1,"Y","")))))) ->  | AG11: 9 | AH11: =IF($E11=$AH$1,$F11,IF($G11=$AH$1,$H11,IF($I11=$AH$1,$J11,IF($K11=$AH$1,$L11,IF($M11=$AH$1,$N11,IF($O11=$AH$1,$P11,"")))))) ->  | AJ11: 9 | AK11: =IF($E11=$AK$1,$F11,IF($G11=$AK$1,$H11,IF($I11=$AK$1,$J11,IF($K11=$AK$1,$L11,IF($M11=$AK$1,$N11,IF($O11=$AK$1,$P11,"")))))) ->  | AM11: =$A$11 -> 9 | AP11: =$A$11 -> 9 | AR11: =IF($E11=AR1,"Y",IF($G11=AR1,"Y",IF($I11=AR1,"Y",IF($K11=AR1,"Y",IF($M11=AR1,"Y",IF($O11=AR1,"Y","")))))) ->  | AS11: =$A$11 -> 9 | AT11: =IF($E11=AT1,$F11,IF($G11=AT1,$H11,IF($I11=AT1,$J11,IF($K11=AT1,$L11,IF($M11=AT1,$N11,IF($O11=AT1,$P11,"")))))) ->  | AU11: =IF($E11=AU1,"Y",IF($G11=AU1,"Y",IF($I11=AU1,"Y",IF($K11=AU1,"Y",IF($M11=AU1,"Y",IF($O11=AU1,"Y","")))))) ->  | AV11: =$A$11 -> 9 | AW11: =IF($E11=AW1,$F11,IF($G11=AW1,$H11,IF($I11=AW1,$J11,IF($K11=AW1,$L11,IF($M11=AW1,$N11,IF($O11=AW1,$P11,"")))))) ->  | AX11: =IF($E11=AX1,"Y",IF($G11=AX1,"Y",IF($I11=AX1,"Y",IF($K11=AX1,"Y",IF($M11=AX1,"Y",IF($O11=AX1,"Y","")))))) ->  | AY11: =$A$11 -> 9 | AZ11: =IF($E11=AZ1,$F11,IF($G11=AZ1,$H11,IF($I11=AZ1,$J11,IF($K11=AZ1,$L11,IF($M11=AZ1,$N11,IF($O11=AZ1,$P11,"")))))) ->  | BA11: =IF($E11=BA1,"Y",IF($G11=BA1,"Y",IF($I11=BA1,"Y",IF($K11=BA1,"Y",IF($M11=BA1,"Y",IF($O11=BA1,"Y","")))))) ->  | BB11: =$A$11 -> 9 | BC11: =IF($E11=BC1,$F11,IF($G11=BC1,$H11,IF($I11=BC1,$J11,IF($K11=BC1,$L11,IF($M11=BC1,$N11,IF($O11=BC1,$P11,"")))))) ->  | BD11: =IF($E11=BD1,"Y",IF($G11=BD1,"Y",IF($I11=BD1,"Y",IF($K11=BD1,"Y",IF($M11=BD1,"Y",IF($O11=BD1,"Y","")))))) ->  | BE11: =$A$11 -> 9 | BF11: =IF($E11=BF1,$F11,IF($G11=BF1,$H11,IF($I11=BF1,$J11,IF($K11=BF1,$L11,IF($M11=BF1,$N11,IF($O11=BF1,$P11,"")))))) ->  | BG11: =IF($E11=BG1,"Y",IF($G11=BG1,"Y",IF($I11=BG1,"Y",IF($K11=BG1,"Y",IF($M11=BG1,"Y",IF($O11=BG1,"Y","")))))) ->  | BH11: =$A$11 -> 9 | BI11: =IF($E11=BI1,$F11,IF($G11=BI1,$H11,IF($I11=BI1,$J11,IF($K11=BI1,$L11,IF($M11=BI1,$N11,IF($O11=BI1,$P11,"")))))) ->  | BJ11: =IF($E11=BJ1,"Y",IF($G11=BJ1,"Y",IF($I11=BJ1,"Y",IF($K11=BJ1,"Y",IF($M11=BJ1,"Y",IF($O11=BJ1,"Y","")))))) ->  | BK11: =$A$11 -> 9 | BL11: =IF($E11=BL1,$F11,IF($G11=BL1,$H11,IF($I11=BL1,$J11,IF($K11=BL1,$L11,IF($M11=BL1,$N11,IF($O11=BL1,$P11,"")))))) ->  | BM11: =IF($E11=BM1,"Y",IF($G11=BM1,"Y",IF($I11=BM1,"Y",IF($K11=BM1,"Y",IF($M11=BM1,"Y",IF($O11=BM1,"Y","")))))) ->  | BN11: =$A$11 -> 9 | BO11: =IF($E11=BO1,$F11,IF($G11=BO1,$H11,IF($I11=BO1,$J11,IF($K11=BO1,$L11,IF($M11=BO1,$N11,IF($O11=BO1,$P11,"")))))) ->  | BP11: =IF($E11=BP1,"Y",IF($G11=BP1,"Y",IF($I11=BP1,"Y",IF($K11=BP1,"Y",IF($M11=BP1,"Y",IF($O11=BP1,"Y","")))))) ->  | BQ11: =$A$11 -> 9 | BR11: =IF($E11=BR1,$F11,IF($G11=BR1,$H11,IF($I11=BR1,$J11,IF($K11=BR1,$L11,IF($M11=BR1,$N11,IF($O11=BR1,$P11,"")))))) ->  | BS11: =IF($E11=BS1,"Y",IF($G11=BS1,"Y",IF($I11=BS1,"Y",IF($K11=BS1,"Y",IF($M11=BS1,"Y",IF($O11=BS1,"Y","")))))) ->  | BT11: =$A$11 -> 9 | BU11: =IF($E11=BU1,$F11,IF($G11=BU1,$H11,IF($I11=BU1,$J11,IF($K11=BU1,$L11,IF($M11=BU1,$N11,IF($O11=BU1,$P11,"")))))) ->  | BV11: =IF($E11=BV1,"Y",IF($G11=BV1,"Y",IF($I11=BV1,"Y",IF($K11=BV1,"Y",IF($M11=BV1,"Y",IF($O11=BV1,"Y","")))))) ->  | BW11: =$A$11 -> 9 | BX11: =IF($E11=BX1,$F11,IF($G11=BX1,$H11,IF($I11=BX1,$J11,IF($K11=BX1,$L11,IF($M11=BX1,$N11,IF($O11=BX1,$P11,"")))))) ->  | BY11: =IF($E11=BY1,"Y",IF($G11=BY1,"Y",IF($I11=BY1,"Y",IF($K11=BY1,"Y",IF($M11=BY1,"Y",IF($O11=BY1,"Y","")))))) ->  | BZ11: =$A$11 -> 9 | CA11: =IF($E11=CA1,$F11,IF($G11=CA1,$H11,IF($I11=CA1,$J11,IF($K11=CA1,$L11,IF($M11=CA1,$N11,IF($O11=CA1,$P11,"")))))) ->  | CB11: =IF($E11=CB1,"Y",IF($G11=CB1,"Y",IF($I11=CB1,"Y",IF($K11=CB1,"Y",IF($M11=CB1,"Y",IF($O11=CB1,"Y","")))))) -> Y | CC11: =$A$11 -> 9 | CD11: =IF($E11=CD1,$F11,IF($G11=CD1,$H11,IF($I11=CD1,$J11,IF($K11=CD1,$L11,IF($M11=CD1,$N11,IF($O11=CD1,$P11,"")))))) -> 19.8 | CE11: =IF($E11=CE1,"Y",IF($G11=CE1,"Y",IF($I11=CE1,"Y",IF($K11=CE1,"Y",IF($M11=CE1,"Y",IF($O11=CE1,"Y","")))))) -> Y | CF11: =$A$11 -> 9 | CG11: =IF($E11=CG1,$F11,IF($G11=CG1,$H11,IF($I11=CG1,$J11,IF($K11=CG1,$L11,IF($M11=CG1,$N11,IF($O11=CG1,$P11,"")))))) -> 0 | CH11: =IF($E11=CH1,"Y",IF($G11=CH1,"Y",IF($I11=CH1,"Y",IF($K11=CH1,"Y",IF($M11=CH1,"Y",IF($O11=CH1,"Y","")))))) -> Y | CI11: =$A$11 -> 9 | CJ11: =IF($E11=CJ1,$F11,IF($G11=CJ1,$H11,IF($I11=CJ1,$J11,IF($K11=CJ1,$L11,IF($M11=CJ1,$N11,IF($O11=CJ1,$P11,"")))))) -> 0 | CK11: =IF($E11=CK1,"Y",IF($G11=CK1,"Y",IF($I11=CK1,"Y",IF($K11=CK1,"Y",IF($M11=CK1,"Y",IF($O11=CK1,"Y","")))))) -> Y | CL11: =$A$11 -> 9 | CM11: =IF($E11=CM1,$F11,IF($G11=CM1,$H11,IF($I11=CM1,$J11,IF($K11=CM1,$L11,IF($M11=CM1,$N11,IF($O11=CM1,$P11,"")))))) -> 0 | CN11: =IF($E11=CN1,"Y",IF($G11=CN1,"Y",IF($I11=CN1,"Y",IF($K11=CN1,"Y",IF($M11=CN1,"Y",IF($O11=CN1,"Y","")))))) -> Y | CO11: =$A$11 -> 9 | CP11: =IF($E11=CP1,$F11,IF($G11=CP1,$H11,IF($I11=CP1,$J11,IF($K11=CP1,$L11,IF($M11=CP1,$N11,IF($O11=CP1,$P11,"")))))) -> 0 | CQ11: =IF($E11=CQ1,"Y",IF($G11=CQ1,"Y",IF($I11=CQ1,"Y",IF($K11=CQ1,"Y",IF($M11=CQ1,"Y",IF($O11=CQ1,"Y","")))))) -> Y | CR11: =$A$11 -> 9 | CS11: =IF($E11=CS1,$F11,IF($G11=CS1,$H11,IF($I11=CS1,$J11,IF($K11=CS1,$L11,IF($M11=CS1,$N11,IF($O11=CS1,$P11,"")))))) -> 0 | CT11: =IF($E11=CT1,"Y",IF($G11=CT1,"Y",IF($I11=CT1,"Y",IF($K11=CT1,"Y",IF($M11=CT1,"Y",IF($O11=CT1,"Y","")))))) -> Y | CU11: =$A$11 -> 9 | CV11: =IF($E11=CV1,$F11,IF($G11=CV1,$H11,IF($I11=CV1,$J11,IF($K11=CV1,$L11,IF($M11=CV1,$N11,IF($O11=CV1,$P11,"")))))) -> 0 | CW11: =IF($E11=CW1,"Y",IF($G11=CW1,"Y",IF($I11=CW1,"Y",IF($K11=CW1,"Y",IF($M11=CW1,"Y",IF($O11=CW1,"Y","")))))) -> Y | CX11: =$A$11 -> 9 | CY11: =IF($E11=CY1,$F11,IF($G11=CY1,$H11,IF($I11=CY1,$J11,IF($K11=CY1,$L11,IF($M11=CY1,$N11,IF($O11=CY1,$P11,"")))))) -> 0 | CZ11: =IF($E11=CZ1,"Y",IF($G11=CZ1,"Y",IF($I11=CZ1,"Y",IF($K11=CZ1,"Y",IF($M11=CZ1,"Y",IF($O11=CZ1,"Y","")))))) -> Y | DA11: =$A$11 -> 9 | DB11: =IF($E11=DB1,$F11,IF($G11=DB1,$H11,IF($I11=DB1,$J11,IF($K11=DB1,$L11,IF($M11=DB1,$N11,IF($O11=DB1,$P11,"")))))) -> 0 | DC11: =IF($E11=DC1,"Y",IF($G11=DC1,"Y",IF($I11=DC1,"Y",IF($K11=DC1,"Y",IF($M11=DC1,"Y",IF($O11=DC1,"Y","")))))) -> Y | DD11: =$A$11 -> 9 | DE11: =IF($E11=DE1,$F11,IF($G11=DE1,$H11,IF($I11=DE1,$J11,IF($K11=DE1,$L11,IF($M11=DE1,$N11,IF($O11=DE1,$P11,"")))))) -> 0 | DF11: =IF($E11=DF1,"Y",IF($G11=DF1,"Y",IF($I11=DF1,"Y",IF($K11=DF1,"Y",IF($M11=DF1,"Y",IF($O11=DF1,"Y","")))))) -> Y | DG11: =$A$11 -> 9 | DH11: =IF($E11=DH1,$F11,IF($G11=DH1,$H11,IF($I11=DH1,$J11,IF($K11=DH1,$L11,IF($M11=DH1,$N11,IF($O11=DH1,$P11,"")))))) -> 0 | DI11: =IF($E11=DI1,"Y",IF($G11=DI1,"Y",IF($I11=DI1,"Y",IF($K11=DI1,"Y",IF($M11=DI1,"Y",IF($O11=DI1,"Y","")))))) -> Y | DJ11: =$A$11 -> 9 | DK11: =IF($E11=DK1,$F11,IF($G11=DK1,$H11,IF($I11=DK1,$J11,IF($K11=DK1,$L11,IF($M11=DK1,$N11,IF($O11=DK1,$P11,"")))))) -> 0 | DL11: =IF($E11=DL1,"Y",IF($G11=DL1,"Y",IF($I11=DL1,"Y",IF($K11=DL1,"Y",IF($M11=DL1,"Y",IF($O11=DL1,"Y","")))))) -> Y | DM11: =$A$11 -> 9 | DN11: =IF($E11=DN1,$F11,IF($G11=DN1,$H11,IF($I11=DN1,$J11,IF($K11=DN1,$L11,IF($M11=DN1,$N11,IF($O11=DN1,$P11,"")))))) -> 0 | DO11: =IF($E11=DO1,"Y",IF($G11=DO1,"Y",IF($I11=DO1,"Y",IF($K11=DO1,"Y",IF($M11=DO1,"Y",IF($O11=DO1,"Y","")))))) -> Y | DP11: =$A$11 -> 9 | DQ11: =IF($E11=DQ1,$F11,IF($G11=DQ1,$H11,IF($I11=DQ1,$J11,IF($K11=DQ1,$L11,IF($M11=DQ1,$N11,IF($O11=DQ1,$P11,"")))))) -> 0
A12: 10 | B12: Vanessa Fitchett | C12: Essex | D12: F | E12: 100 | F12: 14 | Q12: Y | R12: 10 | S12: 14 | T12: =IF($E12=$V$1,"Y",IF($G12=$V$1,"Y",IF($I12=$V$1,"Y",IF($K12=$V$1,"Y",IF($M12=$V$1,"Y",IF($O12=$V$1,"Y","")))))) ->  | U12: 10 | V12: =IF($E12=$V$1,$F12,IF($G12=$V$1,$H12,IF($I12=$V$1,$J12,IF($K12=$V$1,$L12,IF($M12=$V$1,$N12,IF($O12=$V$1,$P12,"")))))) ->  | W12: =IF($E12=$Y$1,"Y",IF($G12=$Y$1,"Y",IF($I12=$Y$1,"Y",IF($K12=$Y$1,"Y",IF($M12=$Y$1,"Y",IF($O12=$Y$1,"Y","")))))) ->  | X12: 10 | Y12: =IF($E12=$Y$1,$F12,IF($G12=$Y$1,$H12,IF($I12=$Y$1,$J12,IF($K12=$Y$1,$L12,IF($M12=$Y$1,$N12,IF($O12=$Y$1,$P12,"")))))) ->  | Z12: =IF($E12=$AB$1,"Y",IF($G12=$AB$1,"Y",IF($I12=$AB$1,"Y",IF($K12=$AB$1,"Y",IF($M12=$AB$1,"Y",IF($O12=$AB$1,"Y","")))))) ->  | AA12: 10 | AB12: =IF($E12=$AB$1,$F12,IF($G12=$AB$1,$H12,IF($I12=$AB$1,$J12,IF($K12=$AB$1,$L12,IF($M12=$AB$1,$N12,IF($O12=$AB$1,$P12,"")))))) ->  | AC12: =IF($E12=$AE$1,"Y",IF($G12=$AE$1,"Y",IF($I12=$AE$1,"Y",IF($K12=$AE$1,"Y",IF($M12=$AE$1,"Y",IF($O12=$AE$1,"Y","")))))) ->  | AD12: 10 | AE12: =IF($E12=$AE$1,$F12,IF($G12=$AE$1,$H12,IF($I12=$AE$1,$J12,IF($K12=$AE$1,$L12,IF($M12=$AE$1,$N12,IF($O12=$AE$1,$P12,"")))))) ->  | AF12: =IF($E12=$AH$1,"Y",IF($G12=$AH$1,"Y",IF($I12=$AH$1,"Y",IF($K12=$AH$1,"Y",IF($M12=$AH$1,"Y",IF($O12=$AH$1,"Y","")))))) ->  | AG12: 10 | AH12: =IF($E12=$AH$1,$F12,IF($G12=$AH$1,$H12,IF($I12=$AH$1,$J12,IF($K12=$AH$1,$L12,IF($M12=$AH$1,$N12,IF($O12=$AH$1,$P12,"")))))) ->  | AJ12: 10 | AK12: =IF($E12=$AK$1,$F12,IF($G12=$AK$1,$H12,IF($I12=$AK$1,$J12,IF($K12=$AK$1,$L12,IF($M12=$AK$1,$N12,IF($O12=$AK$1,$P12,"")))))) ->  | AM12: =$A$12 -> 10 | AP12: =$A$12 -> 10 | AR12: =IF($E12=AR1,"Y",IF($G12=AR1,"Y",IF($I12=AR1,"Y",IF($K12=AR1,"Y",IF($M12=AR1,"Y",IF($O12=AR1,"Y","")))))) ->  | AS12: =$A$12 -> 10 | AT12: =IF($E12=AT1,$F12,IF($G12=AT1,$H12,IF($I12=AT1,$J12,IF($K12=AT1,$L12,IF($M12=AT1,$N12,IF($O12=AT1,$P12,"")))))) ->  | AU12: =IF($E12=AU1,"Y",IF($G12=AU1,"Y",IF($I12=AU1,"Y",IF($K12=AU1,"Y",IF($M12=AU1,"Y",IF($O12=AU1,"Y","")))))) ->  | AV12: =$A$12 -> 10 | AW12: =IF($E12=AW1,$F12,IF($G12=AW1,$H12,IF($I12=AW1,$J12,IF($K12=AW1,$L12,IF($M12=AW1,$N12,IF($O12=AW1,$P12,"")))))) ->  | AX12: =IF($E12=AX1,"Y",IF($G12=AX1,"Y",IF($I12=AX1,"Y",IF($K12=AX1,"Y",IF($M12=AX1,"Y",IF($O12=AX1,"Y","")))))) ->  | AY12: =$A$12 -> 10 | AZ12: =IF($E12=AZ1,$F12,IF($G12=AZ1,$H12,IF($I12=AZ1,$J12,IF($K12=AZ1,$L12,IF($M12=AZ1,$N12,IF($O12=AZ1,$P12,"")))))) ->  | BA12: =IF($E12=BA1,"Y",IF($G12=BA1,"Y",IF($I12=BA1,"Y",IF($K12=BA1,"Y",IF($M12=BA1,"Y",IF($O12=BA1,"Y","")))))) ->  | BB12: =$A$12 -> 10 | BC12: =IF($E12=BC1,$F12,IF($G12=BC1,$H12,IF($I12=BC1,$J12,IF($K12=BC1,$L12,IF($M12=BC1,$N12,IF($O12=BC1,$P12,"")))))) ->  | BD12: =IF($E12=BD1,"Y",IF($G12=BD1,"Y",IF($I12=BD1,"Y",IF($K12=BD1,"Y",IF($M12=BD1,"Y",IF($O12=BD1,"Y","")))))) ->  | BE12: =$A$12 -> 10 | BF12: =IF($E12=BF1,$F12,IF($G12=BF1,$H12,IF($I12=BF1,$J12,IF($K12=BF1,$L12,IF($M12=BF1,$N12,IF($O12=BF1,$P12,"")))))) ->  | BG12: =IF($E12=BG1,"Y",IF($G12=BG1,"Y",IF($I12=BG1,"Y",IF($K12=BG1,"Y",IF($M12=BG1,"Y",IF($O12=BG1,"Y","")))))) ->  | BH12: =$A$12 -> 10 | BI12: =IF($E12=BI1,$F12,IF($G12=BI1,$H12,IF($I12=BI1,$J12,IF($K12=BI1,$L12,IF($M12=BI1,$N12,IF($O12=BI1,$P12,"")))))) ->  | BJ12: =IF($E12=BJ1,"Y",IF($G12=BJ1,"Y",IF($I12=BJ1,"Y",IF($K12=BJ1,"Y",IF($M12=BJ1,"Y",IF($O12=BJ1,"Y","")))))) ->  | BK12: =$A$12 -> 10 | BL12: =IF($E12=BL1,$F12,IF($G12=BL1,$H12,IF($I12=BL1,$J12,IF($K12=BL1,$L12,IF($M12=BL1,$N12,IF($O12=BL1,$P12,"")))))) ->  | BM12: =IF($E12=BM1,"Y",IF($G12=BM1,"Y",IF($I12=BM1,"Y",IF($K12=BM1,"Y",IF($M12=BM1,"Y",IF($O12=BM1,"Y","")))))) ->  | BN12: =$A$12 -> 10 | BO12: =IF($E12=BO1,$F12,IF($G12=BO1,$H12,IF($I12=BO1,$J12,IF($K12=BO1,$L12,IF($M12=BO1,$N12,IF($O12=BO1,$P12,"")))))) ->  | BP12: =IF($E12=BP1,"Y",IF($G12=BP1,"Y",IF($I12=BP1,"Y",IF($K12=BP1,"Y",IF($M12=BP1,"Y",IF($O12=BP1,"Y","")))))) ->  | BQ12: =$A$12 -> 10 | BR12: =IF($E12=BR1,$F12,IF($G12=BR1,$H12,IF($I12=BR1,$J12,IF($K12=BR1,$L12,IF($M12=BR1,$N12,IF($O12=BR1,$P12,"")))))) ->  | BS12: =IF($E12=BS1,"Y",IF($G12=BS1,"Y",IF($I12=BS1,"Y",IF($K12=BS1,"Y",IF($M12=BS1,"Y",IF($O12=BS1,"Y","")))))) ->  | BT12: =$A$12 -> 10 | BU12: =IF($E12=BU1,$F12,IF($G12=BU1,$H12,IF($I12=BU1,$J12,IF($K12=BU1,$L12,IF($M12=BU1,$N12,IF($O12=BU1,$P12,"")))))) ->  | BV12: =IF($E12=BV1,"Y",IF($G12=BV1,"Y",IF($I12=BV1,"Y",IF($K12=BV1,"Y",IF($M12=BV1,"Y",IF($O12=BV1,"Y","")))))) ->  | BW12: =$A$12 -> 10 | BX12: =IF($E12=BX1,$F12,IF($G12=BX1,$H12,IF($I12=BX1,$J12,IF($K12=BX1,$L12,IF($M12=BX1,$N12,IF($O12=BX1,$P12,"")))))) ->  | BY12: =IF($E12=BY1,"Y",IF($G12=BY1,"Y",IF($I12=BY1,"Y",IF($K12=BY1,"Y",IF($M12=BY1,"Y",IF($O12=BY1,"Y","")))))) ->  | BZ12: =$A$12 -> 10 | CA12: =IF($E12=CA1,$F12,IF($G12=CA1,$H12,IF($I12=CA1,$J12,IF($K12=CA1,$L12,IF($M12=CA1,$N12,IF($O12=CA1,$P12,"")))))) ->  | CB12: =IF($E12=CB1,"Y",IF($G12=CB1,"Y",IF($I12=CB1,"Y",IF($K12=CB1,"Y",IF($M12=CB1,"Y",IF($O12=CB1,"Y","")))))) ->  | CC12: =$A$12 -> 10 | CD12: =IF($E12=CD1,$F12,IF($G12=CD1,$H12,IF($I12=CD1,$J12,IF($K12=CD1,$L12,IF($M12=CD1,$N12,IF($O12=CD1,$P12,"")))))) ->  | CE12: =IF($E12=CE1,"Y",IF($G12=CE1,"Y",IF($I12=CE1,"Y",IF($K12=CE1,"Y",IF($M12=CE1,"Y",IF($O12=CE1,"Y","")))))) -> Y | CF12: =$A$12 -> 10 | CG12: =IF($E12=CG1,$F12,IF($G12=CG1,$H12,IF($I12=CG1,$J12,IF($K12=CG1,$L12,IF($M12=CG1,$N12,IF($O12=CG1,$P12,"")))))) -> 0 | CH12: =IF($E12=CH1,"Y",IF($G12=CH1,"Y",IF($I12=CH1,"Y",IF($K12=CH1,"Y",IF($M12=CH1,"Y",IF($O12=CH1,"Y","")))))) -> Y | CI12: =$A$12 -> 10 | CJ12: =IF($E12=CJ1,$F12,IF($G12=CJ1,$H12,IF($I12=CJ1,$J12,IF($K12=CJ1,$L12,IF($M12=CJ1,$N12,IF($O12=CJ1,$P12,"")))))) -> 0 | CK12: =IF($E12=CK1,"Y",IF($G12=CK1,"Y",IF($I12=CK1,"Y",IF($K12=CK1,"Y",IF($M12=CK1,"Y",IF($O12=CK1,"Y","")))))) -> Y | CL12: =$A$12 -> 10 | CM12: =IF($E12=CM1,$F12,IF($G12=CM1,$H12,IF($I12=CM1,$J12,IF($K12=CM1,$L12,IF($M12=CM1,$N12,IF($O12=CM1,$P12,"")))))) -> 0 | CN12: =IF($E12=CN1,"Y",IF($G12=CN1,"Y",IF($I12=CN1,"Y",IF($K12=CN1,"Y",IF($M12=CN1,"Y",IF($O12=CN1,"Y","")))))) -> Y | CO12: =$A$12 -> 10 | CP12: =IF($E12=CP1,$F12,IF($G12=CP1,$H12,IF($I12=CP1,$J12,IF($K12=CP1,$L12,IF($M12=CP1,$N12,IF($O12=CP1,$P12,"")))))) -> 0 | CQ12: =IF($E12=CQ1,"Y",IF($G12=CQ1,"Y",IF($I12=CQ1,"Y",IF($K12=CQ1,"Y",IF($M12=CQ1,"Y",IF($O12=CQ1,"Y","")))))) -> Y | CR12: =$A$12 -> 10 | CS12: =IF($E12=CS1,$F12,IF($G12=CS1,$H12,IF($I12=CS1,$J12,IF($K12=CS1,$L12,IF($M12=CS1,$N12,IF($O12=CS1,$P12,"")))))) -> 0 | CT12: =IF($E12=CT1,"Y",IF($G12=CT1,"Y",IF($I12=CT1,"Y",IF($K12=CT1,"Y",IF($M12=CT1,"Y",IF($O12=CT1,"Y","")))))) -> Y | CU12: =$A$12 -> 10 | CV12: =IF($E12=CV1,$F12,IF($G12=CV1,$H12,IF($I12=CV1,$J12,IF($K12=CV1,$L12,IF($M12=CV1,$N12,IF($O12=CV1,$P12,"")))))) -> 0 | CW12: =IF($E12=CW1,"Y",IF($G12=CW1,"Y",IF($I12=CW1,"Y",IF($K12=CW1,"Y",IF($M12=CW1,"Y",IF($O12=CW1,"Y","")))))) -> Y | CX12: =$A$12 -> 10 | CY12: =IF($E12=CY1,$F12,IF($G12=CY1,$H12,IF($I12=CY1,$J12,IF($K12=CY1,$L12,IF($M12=CY1,$N12,IF($O12=CY1,$P12,"")))))) -> 0 | CZ12: =IF($E12=CZ1,"Y",IF($G12=CZ1,"Y",IF($I12=CZ1,"Y",IF($K12=CZ1,"Y",IF($M12=CZ1,"Y",IF($O12=CZ1,"Y","")))))) -> Y | DA12: =$A$12 -> 10 | DB12: =IF($E12=DB1,$F12,IF($G12=DB1,$H12,IF($I12=DB1,$J12,IF($K12=DB1,$L12,IF($M12=DB1,$N12,IF($O12=DB1,$P12,"")))))) -> 0 | DC12: =IF($E12=DC1,"Y",IF($G12=DC1,"Y",IF($I12=DC1,"Y",IF($K12=DC1,"Y",IF($M12=DC1,"Y",IF($O12=DC1,"Y","")))))) -> Y | DD12: =$A$12 -> 10 | DE12: =IF($E12=DE1,$F12,IF($G12=DE1,$H12,IF($I12=DE1,$J12,IF($K12=DE1,$L12,IF($M12=DE1,$N12,IF($O12=DE1,$P12,"")))))) -> 0 | DF12: =IF($E12=DF1,"Y",IF($G12=DF1,"Y",IF($I12=DF1,"Y",IF($K12=DF1,"Y",IF($M12=DF1,"Y",IF($O12=DF1,"Y","")))))) -> Y | DG12: =$A$12 -> 10 | DH12: =IF($E12=DH1,$F12,IF($G12=DH1,$H12,IF($I12=DH1,$J12,IF($K12=DH1,$L12,IF($M12=DH1,$N12,IF($O12=DH1,$P12,"")))))) -> 0 | DI12: =IF($E12=DI1,"Y",IF($G12=DI1,"Y",IF($I12=DI1,"Y",IF($K12=DI1,"Y",IF($M12=DI1,"Y",IF($O12=DI1,"Y","")))))) -> Y | DJ12: =$A$12 -> 10 | DK12: =IF($E12=DK1,$F12,IF($G12=DK1,$H12,IF($I12=DK1,$J12,IF($K12=DK1,$L12,IF($M12=DK1,$N12,IF($O12=DK1,$P12,"")))))) -> 0 | DL12: =IF($E12=DL1,"Y",IF($G12=DL1,"Y",IF($I12=DL1,"Y",IF($K12=DL1,"Y",IF($M12=DL1,"Y",IF($O12=DL1,"Y","")))))) -> Y | DM12: =$A$12 -> 10 | DN12: =IF($E12=DN1,$F12,IF($G12=DN1,$H12,IF($I12=DN1,$J12,IF($K12=DN1,$L12,IF($M12=DN1,$N12,IF($O12=DN1,$P12,"")))))) -> 0 | DO12: =IF($E12=DO1,"Y",IF($G12=DO1,"Y",IF($I12=DO1,"Y",IF($K12=DO1,"Y",IF($M12=DO1,"Y",IF($O12=DO1,"Y","")))))) -> Y | DP12: =$A$12 -> 10 | DQ12: =IF($E12=DQ1,$F12,IF($G12=DQ1,$H12,IF($I12=DQ1,$J12,IF($K12=DQ1,$L12,IF($M12=DQ1,$N12,IF($O12=DQ1,$P12,"")))))) -> 0
A13: 11 | B13: Benjamin Abbott | C13: Essex | D13: M | E13: 10000 | F13: 00:39:29 | Q13: =IF($E13=$S$1,"Y",IF($H13=$S$1,"Y",IF($I13=$S$1,"Y",IF($K13=$S$1,"Y",IF($M13=$S$1,"Y",IF($O13=$S$1,"Y","")))))) ->  | R13: 11 | T13: =IF($E13=$V$1,"Y",IF($G13=$V$1,"Y",IF($I13=$V$1,"Y",IF($K13=$V$1,"Y",IF($M13=$V$1,"Y",IF($O13=$V$1,"Y","")))))) ->  | U13: 11 | V13: =IF($E13=$V$1,$F13,IF($G13=$V$1,$H13,IF($I13=$V$1,$J13,IF($K13=$V$1,$L13,IF($M13=$V$1,$N13,IF($O13=$V$1,$P13,"")))))) ->  | W13: =IF($E13=$Y$1,"Y",IF($G13=$Y$1,"Y",IF($I13=$Y$1,"Y",IF($K13=$Y$1,"Y",IF($M13=$Y$1,"Y",IF($O13=$Y$1,"Y","")))))) ->  | X13: 11 | Y13: =IF($E13=$Y$1,$F13,IF($G13=$Y$1,$H13,IF($I13=$Y$1,$J13,IF($K13=$Y$1,$L13,IF($M13=$Y$1,$N13,IF($O13=$Y$1,$P13,"")))))) ->  | Z13: =IF($E13=$AB$1,"Y",IF($G13=$AB$1,"Y",IF($I13=$AB$1,"Y",IF($K13=$AB$1,"Y",IF($M13=$AB$1,"Y",IF($O13=$AB$1,"Y","")))))) ->  | AA13: 11 | AB13: =IF($E13=$AB$1,$F13,IF($G13=$AB$1,$H13,IF($I13=$AB$1,$J13,IF($K13=$AB$1,$L13,IF($M13=$AB$1,$N13,IF($O13=$AB$1,$P13,"")))))) ->  | AC13: =IF($E13=$AE$1,"Y",IF($G13=$AE$1,"Y",IF($I13=$AE$1,"Y",IF($K13=$AE$1,"Y",IF($M13=$AE$1,"Y",IF($O13=$AE$1,"Y","")))))) ->  | AD13: 11 | AE13: =IF($E13=$AE$1,$F13,IF($G13=$AE$1,$H13,IF($I13=$AE$1,$J13,IF($K13=$AE$1,$L13,IF($M13=$AE$1,$N13,IF($O13=$AE$1,$P13,"")))))) ->  | AF13: =IF($E13=$AH$1,"Y",IF($G13=$AH$1,"Y",IF($I13=$AH$1,"Y",IF($K13=$AH$1,"Y",IF($M13=$AH$1,"Y",IF($O13=$AH$1,"Y","")))))) ->  | AG13: 11 | AH13: =IF($E13=$AH$1,$F13,IF($G13=$AH$1,$H13,IF($I13=$AH$1,$J13,IF($K13=$AH$1,$L13,IF($M13=$AH$1,$N13,IF($O13=$AH$1,$P13,"")))))) ->  | AJ13: 11 | AK13: =IF($E13=$AK$1,$F13,IF($G13=$AK$1,$H13,IF($I13=$AK$1,$J13,IF($K13=$AK$1,$L13,IF($M13=$AK$1,$N13,IF($O13=$AK$1,$P13,"")))))) ->  | AM13: =$A$13 -> 11 | AP13: =$A$13 -> 11 | AR13: =IF($E13=AR1,"Y",IF($G13=AR1,"Y",IF($I13=AR1,"Y",IF($K13=AR1,"Y",IF($M13=AR1,"Y",IF($O13=AR1,"Y","")))))) ->  | AS13: =$A$13 -> 11 | AT13: =IF($E13=AT1,$F13,IF($G13=AT1,$H13,IF($I13=AT1,$J13,IF($K13=AT1,$L13,IF($M13=AT1,$N13,IF($O13=AT1,$P13,"")))))) ->  | AU13: =IF($E13=AU1,"Y",IF($G13=AU1,"Y",IF($I13=AU1,"Y",IF($K13=AU1,"Y",IF($M13=AU1,"Y",IF($O13=AU1,"Y","")))))) ->  | AV13: =$A$13 -> 11 | AW13: =IF($E13=AW1,$F13,IF($G13=AW1,$H13,IF($I13=AW1,$J13,IF($K13=AW1,$L13,IF($M13=AW1,$N13,IF($O13=AW1,$P13,"")))))) ->  | AX13: =IF($E13=AX1,"Y",IF($G13=AX1,"Y",IF($I13=AX1,"Y",IF($K13=AX1,"Y",IF($M13=AX1,"Y",IF($O13=AX1,"Y","")))))) -> Y | AY13: =$A$13 -> 11 | AZ13: =IF($E13=AZ1,$F13,IF($G13=AZ1,$H13,IF($I13=AZ1,$J13,IF($K13=AZ1,$L13,IF($M13=AZ1,$N13,IF($O13=AZ1,$P13,"")))))) -> 00:39:29 | BA13: =IF($E13=BA1,"Y",IF($G13=BA1,"Y",IF($I13=BA1,"Y",IF($K13=BA1,"Y",IF($M13=BA1,"Y",IF($O13=BA1,"Y","")))))) ->  | BB13: =$A$13 -> 11 | BC13: =IF($E13=BC1,$F13,IF($G13=BC1,$H13,IF($I13=BC1,$J13,IF($K13=BC1,$L13,IF($M13=BC1,$N13,IF($O13=BC1,$P13,"")))))) ->  | BD13: =IF($E13=BD1,"Y",IF($G13=BD1,"Y",IF($I13=BD1,"Y",IF($K13=BD1,"Y",IF($M13=BD1,"Y",IF($O13=BD1,"Y","")))))) ->  | BE13: =$A$13 -> 11 | BF13: =IF($E13=BF1,$F13,IF($G13=BF1,$H13,IF($I13=BF1,$J13,IF($K13=BF1,$L13,IF($M13=BF1,$N13,IF($O13=BF1,$P13,"")))))) ->  | BG13: =IF($E13=BG1,"Y",IF($G13=BG1,"Y",IF($I13=BG1,"Y",IF($K13=BG1,"Y",IF($M13=BG1,"Y",IF($O13=BG1,"Y","")))))) ->  | BH13: =$A$13 -> 11 | BI13: =IF($E13=BI1,$F13,IF($G13=BI1,$H13,IF($I13=BI1,$J13,IF($K13=BI1,$L13,IF($M13=BI1,$N13,IF($O13=BI1,$P13,"")))))) ->  | BJ13: =IF($E13=BJ1,"Y",IF($G13=BJ1,"Y",IF($I13=BJ1,"Y",IF($K13=BJ1,"Y",IF($M13=BJ1,"Y",IF($O13=BJ1,"Y","")))))) ->  | BK13: =$A$13 -> 11 | BL13: =IF($E13=BL1,$F13,IF($G13=BL1,$H13,IF($I13=BL1,$J13,IF($K13=BL1,$L13,IF($M13=BL1,$N13,IF($O13=BL1,$P13,"")))))) ->  | BM13: =IF($E13=BM1,"Y",IF($G13=BM1,"Y",IF($I13=BM1,"Y",IF($K13=BM1,"Y",IF($M13=BM1,"Y",IF($O13=BM1,"Y","")))))) ->  | BN13: =$A$13 -> 11 | BO13: =IF($E13=BO1,$F13,IF($G13=BO1,$H13,IF($I13=BO1,$J13,IF($K13=BO1,$L13,IF($M13=BO1,$N13,IF($O13=BO1,$P13,"")))))) ->  | BP13: =IF($E13=BP1,"Y",IF($G13=BP1,"Y",IF($I13=BP1,"Y",IF($K13=BP1,"Y",IF($M13=BP1,"Y",IF($O13=BP1,"Y","")))))) ->  | BQ13: =$A$13 -> 11 | BR13: =IF($E13=BR1,$F13,IF($G13=BR1,$H13,IF($I13=BR1,$J13,IF($K13=BR1,$L13,IF($M13=BR1,$N13,IF($O13=BR1,$P13,"")))))) ->  | BS13: =IF($E13=BS1,"Y",IF($G13=BS1,"Y",IF($I13=BS1,"Y",IF($K13=BS1,"Y",IF($M13=BS1,"Y",IF($O13=BS1,"Y","")))))) ->  | BT13: =$A$13 -> 11 | BU13: =IF($E13=BU1,$F13,IF($G13=BU1,$H13,IF($I13=BU1,$J13,IF($K13=BU1,$L13,IF($M13=BU1,$N13,IF($O13=BU1,$P13,"")))))) ->  | BV13: =IF($E13=BV1,"Y",IF($G13=BV1,"Y",IF($I13=BV1,"Y",IF($K13=BV1,"Y",IF($M13=BV1,"Y",IF($O13=BV1,"Y","")))))) ->  | BW13: =$A$13 -> 11 | BX13: =IF($E13=BX1,$F13,IF($G13=BX1,$H13,IF($I13=BX1,$J13,IF($K13=BX1,$L13,IF($M13=BX1,$N13,IF($O13=BX1,$P13,"")))))) ->  | BY13: =IF($E13=BY1,"Y",IF($G13=BY1,"Y",IF($I13=BY1,"Y",IF($K13=BY1,"Y",IF($M13=BY1,"Y",IF($O13=BY1,"Y","")))))) ->  | BZ13: =$A$13 -> 11 | CA13: =IF($E13=CA1,$F13,IF($G13=CA1,$H13,IF($I13=CA1,$J13,IF($K13=CA1,$L13,IF($M13=CA1,$N13,IF($O13=CA1,$P13,"")))))) ->  | CB13: =IF($E13=CB1,"Y",IF($G13=CB1,"Y",IF($I13=CB1,"Y",IF($K13=CB1,"Y",IF($M13=CB1,"Y",IF($O13=CB1,"Y","")))))) ->  | CC13: =$A$13 -> 11 | CD13: =IF($E13=CD1,$F13,IF($G13=CD1,$H13,IF($I13=CD1,$J13,IF($K13=CD1,$L13,IF($M13=CD1,$N13,IF($O13=CD1,$P13,"")))))) ->  | CE13: =IF($E13=CE1,"Y",IF($G13=CE1,"Y",IF($I13=CE1,"Y",IF($K13=CE1,"Y",IF($M13=CE1,"Y",IF($O13=CE1,"Y","")))))) -> Y | CF13: =$A$13 -> 11 | CG13: =IF($E13=CG1,$F13,IF($G13=CG1,$H13,IF($I13=CG1,$J13,IF($K13=CG1,$L13,IF($M13=CG1,$N13,IF($O13=CG1,$P13,"")))))) -> 0 | CH13: =IF($E13=CH1,"Y",IF($G13=CH1,"Y",IF($I13=CH1,"Y",IF($K13=CH1,"Y",IF($M13=CH1,"Y",IF($O13=CH1,"Y","")))))) -> Y | CI13: =$A$13 -> 11 | CJ13: =IF($E13=CJ1,$F13,IF($G13=CJ1,$H13,IF($I13=CJ1,$J13,IF($K13=CJ1,$L13,IF($M13=CJ1,$N13,IF($O13=CJ1,$P13,"")))))) -> 0 | CK13: =IF($E13=CK1,"Y",IF($G13=CK1,"Y",IF($I13=CK1,"Y",IF($K13=CK1,"Y",IF($M13=CK1,"Y",IF($O13=CK1,"Y","")))))) -> Y | CL13: =$A$13 -> 11 | CM13: =IF($E13=CM1,$F13,IF($G13=CM1,$H13,IF($I13=CM1,$J13,IF($K13=CM1,$L13,IF($M13=CM1,$N13,IF($O13=CM1,$P13,"")))))) -> 0 | CN13: =IF($E13=CN1,"Y",IF($G13=CN1,"Y",IF($I13=CN1,"Y",IF($K13=CN1,"Y",IF($M13=CN1,"Y",IF($O13=CN1,"Y","")))))) -> Y | CO13: =$A$13 -> 11 | CP13: =IF($E13=CP1,$F13,IF($G13=CP1,$H13,IF($I13=CP1,$J13,IF($K13=CP1,$L13,IF($M13=CP1,$N13,IF($O13=CP1,$P13,"")))))) -> 0 | CQ13: =IF($E13=CQ1,"Y",IF($G13=CQ1,"Y",IF($I13=CQ1,"Y",IF($K13=CQ1,"Y",IF($M13=CQ1,"Y",IF($O13=CQ1,"Y","")))))) -> Y | CR13: =$A$13 -> 11 | CS13: =IF($E13=CS1,$F13,IF($G13=CS1,$H13,IF($I13=CS1,$J13,IF($K13=CS1,$L13,IF($M13=CS1,$N13,IF($O13=CS1,$P13,"")))))) -> 0 | CT13: =IF($E13=CT1,"Y",IF($G13=CT1,"Y",IF($I13=CT1,"Y",IF($K13=CT1,"Y",IF($M13=CT1,"Y",IF($O13=CT1,"Y","")))))) -> Y | CU13: =$A$13 -> 11 | CV13: =IF($E13=CV1,$F13,IF($G13=CV1,$H13,IF($I13=CV1,$J13,IF($K13=CV1,$L13,IF($M13=CV1,$N13,IF($O13=CV1,$P13,"")))))) -> 0 | CW13: =IF($E13=CW1,"Y",IF($G13=CW1,"Y",IF($I13=CW1,"Y",IF($K13=CW1,"Y",IF($M13=CW1,"Y",IF($O13=CW1,"Y","")))))) -> Y | CX13: =$A$13 -> 11 | CY13: =IF($E13=CY1,$F13,IF($G13=CY1,$H13,IF($I13=CY1,$J13,IF($K13=CY1,$L13,IF($M13=CY1,$N13,IF($O13=CY1,$P13,"")))))) -> 0 | CZ13: =IF($E13=CZ1,"Y",IF($G13=CZ1,"Y",IF($I13=CZ1,"Y",IF($K13=CZ1,"Y",IF($M13=CZ1,"Y",IF($O13=CZ1,"Y","")))))) -> Y | DA13: =$A$13 -> 11 | DB13: =IF($E13=DB1,$F13,IF($G13=DB1,$H13,IF($I13=DB1,$J13,IF($K13=DB1,$L13,IF($M13=DB1,$N13,IF($O13=DB1,$P13,"")))))) -> 0 | DC13: =IF($E13=DC1,"Y",IF($G13=DC1,"Y",IF($I13=DC1,"Y",IF($K13=DC1,"Y",IF($M13=DC1,"Y",IF($O13=DC1,"Y","")))))) -> Y | DD13: =$A$13 -> 11 | DE13: =IF($E13=DE1,$F13,IF($G13=DE1,$H13,IF($I13=DE1,$J13,IF($K13=DE1,$L13,IF($M13=DE1,$N13,IF($O13=DE1,$P13,"")))))) -> 0 | DF13: =IF($E13=DF1,"Y",IF($G13=DF1,"Y",IF($I13=DF1,"Y",IF($K13=DF1,"Y",IF($M13=DF1,"Y",IF($O13=DF1,"Y","")))))) -> Y | DG13: =$A$13 -> 11 | DH13: =IF($E13=DH1,$F13,IF($G13=DH1,$H13,IF($I13=DH1,$J13,IF($K13=DH1,$L13,IF($M13=DH1,$N13,IF($O13=DH1,$P13,"")))))) -> 0 | DI13: =IF($E13=DI1,"Y",IF($G13=DI1,"Y",IF($I13=DI1,"Y",IF($K13=DI1,"Y",IF($M13=DI1,"Y",IF($O13=DI1,"Y","")))))) -> Y | DJ13: =$A$13 -> 11 | DK13: =IF($E13=DK1,$F13,IF($G13=DK1,$H13,IF($I13=DK1,$J13,IF($K13=DK1,$L13,IF($M13=DK1,$N13,IF($O13=DK1,$P13,"")))))) -> 0 | DL13: =IF($E13=DL1,"Y",IF($G13=DL1,"Y",IF($I13=DL1,"Y",IF($K13=DL1,"Y",IF($M13=DL1,"Y",IF($O13=DL1,"Y","")))))) -> Y | DM13: =$A$13 -> 11 | DN13: =IF($E13=DN1,$F13,IF($G13=DN1,$H13,IF($I13=DN1,$J13,IF($K13=DN1,$L13,IF($M13=DN1,$N13,IF($O13=DN1,$P13,"")))))) -> 0 | DO13: =IF($E13=DO1,"Y",IF($G13=DO1,"Y",IF($I13=DO1,"Y",IF($K13=DO1,"Y",IF($M13=DO1,"Y",IF($O13=DO1,"Y","")))))) -> Y | DP13: =$A$13 -> 11 | DQ13: =IF($E13=DQ1,$F13,IF($G13=DQ1,$H13,IF($I13=DQ1,$J13,IF($K13=DQ1,$L13,IF($M13=DQ1,$N13,IF($O13=DQ1,$P13,"")))))) -> 0
A14: 12 | B14: Cathal Holloway | C14: Essex | D14: M | R14: 12 | T14: =IF($E14=$V$1,"Y",IF($G14=$V$1,"Y",IF($I14=$V$1,"Y",IF($K14=$V$1,"Y",IF($M14=$V$1,"Y",IF($O14=$V$1,"Y","")))))) ->  | U14: 12 | V14: =IF($E14=$V$1,$F14,IF($G14=$V$1,$H14,IF($I14=$V$1,$J14,IF($K14=$V$1,$L14,IF($M14=$V$1,$N14,IF($O14=$V$1,$P14,"")))))) ->  | W14: =IF($E14=$Y$1,"Y",IF($G14=$Y$1,"Y",IF($I14=$Y$1,"Y",IF($K14=$Y$1,"Y",IF($M14=$Y$1,"Y",IF($O14=$Y$1,"Y","")))))) ->  | X14: 12 | Y14: =IF($E14=$Y$1,$F14,IF($G14=$Y$1,$H14,IF($I14=$Y$1,$J14,IF($K14=$Y$1,$L14,IF($M14=$Y$1,$N14,IF($O14=$Y$1,$P14,"")))))) ->  | Z14: =IF($E14=$AB$1,"Y",IF($G14=$AB$1,"Y",IF($I14=$AB$1,"Y",IF($K14=$AB$1,"Y",IF($M14=$AB$1,"Y",IF($O14=$AB$1,"Y","")))))) ->  | AA14: 12 | AB14: =IF($E14=$AB$1,$F14,IF($G14=$AB$1,$H14,IF($I14=$AB$1,$J14,IF($K14=$AB$1,$L14,IF($M14=$AB$1,$N14,IF($O14=$AB$1,$P14,"")))))) ->  | AC14: =IF($E14=$AE$1,"Y",IF($G14=$AE$1,"Y",IF($I14=$AE$1,"Y",IF($K14=$AE$1,"Y",IF($M14=$AE$1,"Y",IF($O14=$AE$1,"Y","")))))) ->  | AD14: 12 | AE14: =IF($E14=$AE$1,$F14,IF($G14=$AE$1,$H14,IF($I14=$AE$1,$J14,IF($K14=$AE$1,$L14,IF($M14=$AE$1,$N14,IF($O14=$AE$1,$P14,"")))))) ->  | AF14: =IF($E14=$AH$1,"Y",IF($G14=$AH$1,"Y",IF($I14=$AH$1,"Y",IF($K14=$AH$1,"Y",IF($M14=$AH$1,"Y",IF($O14=$AH$1,"Y","")))))) ->  | AG14: 12 | AH14: =IF($E14=$AH$1,$F14,IF($G14=$AH$1,$H14,IF($I14=$AH$1,$J14,IF($K14=$AH$1,$L14,IF($M14=$AH$1,$N14,IF($O14=$AH$1,$P14,"")))))) ->  | AJ14: 12 | AK14: =IF($E14=$AK$1,$F14,IF($G14=$AK$1,$H14,IF($I14=$AK$1,$J14,IF($K14=$AK$1,$L14,IF($M14=$AK$1,$N14,IF($O14=$AK$1,$P14,"")))))) ->  | AM14: =$A$14 -> 12 | AP14: =$A$14 -> 12 | AR14: =IF($E14=AR1,"Y",IF($G14=AR1,"Y",IF($I14=AR1,"Y",IF($K14=AR1,"Y",IF($M14=AR1,"Y",IF($O14=AR1,"Y","")))))) ->  | AS14: =$A$14 -> 12 | AT14: =IF($E14=AT1,$F14,IF($G14=AT1,$H14,IF($I14=AT1,$J14,IF($K14=AT1,$L14,IF($M14=AT1,$N14,IF($O14=AT1,$P14,"")))))) ->  | AU14: =IF($E14=AU1,"Y",IF($G14=AU1,"Y",IF($I14=AU1,"Y",IF($K14=AU1,"Y",IF($M14=AU1,"Y",IF($O14=AU1,"Y","")))))) ->  | AV14: =$A$14 -> 12 | AW14: =IF($E14=AW1,$F14,IF($G14=AW1,$H14,IF($I14=AW1,$J14,IF($K14=AW1,$L14,IF($M14=AW1,$N14,IF($O14=AW1,$P14,"")))))) ->  | AX14: =IF($E14=AX1,"Y",IF($G14=AX1,"Y",IF($I14=AX1,"Y",IF($K14=AX1,"Y",IF($M14=AX1,"Y",IF($O14=AX1,"Y","")))))) ->  | AY14: =$A$14 -> 12 | AZ14: =IF($E14=AZ1,$F14,IF($G14=AZ1,$H14,IF($I14=AZ1,$J14,IF($K14=AZ1,$L14,IF($M14=AZ1,$N14,IF($O14=AZ1,$P14,"")))))) ->  | BA14: =IF($E14=BA1,"Y",IF($G14=BA1,"Y",IF($I14=BA1,"Y",IF($K14=BA1,"Y",IF($M14=BA1,"Y",IF($O14=BA1,"Y","")))))) ->  | BB14: =$A$14 -> 12 | BC14: =IF($E14=BC1,$F14,IF($G14=BC1,$H14,IF($I14=BC1,$J14,IF($K14=BC1,$L14,IF($M14=BC1,$N14,IF($O14=BC1,$P14,"")))))) ->  | BD14: =IF($E14=BD1,"Y",IF($G14=BD1,"Y",IF($I14=BD1,"Y",IF($K14=BD1,"Y",IF($M14=BD1,"Y",IF($O14=BD1,"Y","")))))) ->  | BE14: =$A$14 -> 12 | BF14: =IF($E14=BF1,$F14,IF($G14=BF1,$H14,IF($I14=BF1,$J14,IF($K14=BF1,$L14,IF($M14=BF1,$N14,IF($O14=BF1,$P14,"")))))) ->  | BG14: =IF($E14=BG1,"Y",IF($G14=BG1,"Y",IF($I14=BG1,"Y",IF($K14=BG1,"Y",IF($M14=BG1,"Y",IF($O14=BG1,"Y","")))))) ->  | BH14: =$A$14 -> 12 | BI14: =IF($E14=BI1,$F14,IF($G14=BI1,$H14,IF($I14=BI1,$J14,IF($K14=BI1,$L14,IF($M14=BI1,$N14,IF($O14=BI1,$P14,"")))))) ->  | BJ14: =IF($E14=BJ1,"Y",IF($G14=BJ1,"Y",IF($I14=BJ1,"Y",IF($K14=BJ1,"Y",IF($M14=BJ1,"Y",IF($O14=BJ1,"Y","")))))) ->  | BK14: =$A$14 -> 12 | BL14: =IF($E14=BL1,$F14,IF($G14=BL1,$H14,IF($I14=BL1,$J14,IF($K14=BL1,$L14,IF($M14=BL1,$N14,IF($O14=BL1,$P14,"")))))) ->  | BM14: =IF($E14=BM1,"Y",IF($G14=BM1,"Y",IF($I14=BM1,"Y",IF($K14=BM1,"Y",IF($M14=BM1,"Y",IF($O14=BM1,"Y","")))))) ->  | BN14: =$A$14 -> 12 | BO14: =IF($E14=BO1,$F14,IF($G14=BO1,$H14,IF($I14=BO1,$J14,IF($K14=BO1,$L14,IF($M14=BO1,$N14,IF($O14=BO1,$P14,"")))))) ->  | BP14: =IF($E14=BP1,"Y",IF($G14=BP1,"Y",IF($I14=BP1,"Y",IF($K14=BP1,"Y",IF($M14=BP1,"Y",IF($O14=BP1,"Y","")))))) ->  | BQ14: =$A$14 -> 12 | BR14: =IF($E14=BR1,$F14,IF($G14=BR1,$H14,IF($I14=BR1,$J14,IF($K14=BR1,$L14,IF($M14=BR1,$N14,IF($O14=BR1,$P14,"")))))) ->  | BS14: =IF($E14=BS1,"Y",IF($G14=BS1,"Y",IF($I14=BS1,"Y",IF($K14=BS1,"Y",IF($M14=BS1,"Y",IF($O14=BS1,"Y","")))))) ->  | BT14: =$A$14 -> 12 | BU14: =IF($E14=BU1,$F14,IF($G14=BU1,$H14,IF($I14=BU1,$J14,IF($K14=BU1,$L14,IF($M14=BU1,$N14,IF($O14=BU1,$P14,"")))))) ->  | BV14: =IF($E14=BV1,"Y",IF($G14=BV1,"Y",IF($I14=BV1,"Y",IF($K14=BV1,"Y",IF($M14=BV1,"Y",IF($O14=BV1,"Y","")))))) ->  | BW14: =$A$14 -> 12 | BX14: =IF($E14=BX1,$F14,IF($G14=BX1,$H14,IF($I14=BX1,$J14,IF($K14=BX1,$L14,IF($M14=BX1,$N14,IF($O14=BX1,$P14,"")))))) ->  | BY14: =IF($E14=BY1,"Y",IF($G14=BY1,"Y",IF($I14=BY1,"Y",IF($K14=BY1,"Y",IF($M14=BY1,"Y",IF($O14=BY1,"Y","")))))) ->  | BZ14: =$A$14 -> 12 | CA14: =IF($E14=CA1,$F14,IF($G14=CA1,$H14,IF($I14=CA1,$J14,IF($K14=CA1,$L14,IF($M14=CA1,$N14,IF($O14=CA1,$P14,"")))))) ->  | CB14: =IF($E14=CB1,"Y",IF($G14=CB1,"Y",IF($I14=CB1,"Y",IF($K14=CB1,"Y",IF($M14=CB1,"Y",IF($O14=CB1,"Y","")))))) ->  | CC14: =$A$14 -> 12 | CD14: =IF($E14=CD1,$F14,IF($G14=CD1,$H14,IF($I14=CD1,$J14,IF($K14=CD1,$L14,IF($M14=CD1,$N14,IF($O14=CD1,$P14,"")))))) ->  | CE14: =IF($E14=CE1,"Y",IF($G14=CE1,"Y",IF($I14=CE1,"Y",IF($K14=CE1,"Y",IF($M14=CE1,"Y",IF($O14=CE1,"Y","")))))) -> Y | CF14: =$A$14 -> 12 | CG14: =IF($E14=CG1,$F14,IF($G14=CG1,$H14,IF($I14=CG1,$J14,IF($K14=CG1,$L14,IF($M14=CG1,$N14,IF($O14=CG1,$P14,"")))))) -> 0 | CH14: =IF($E14=CH1,"Y",IF($G14=CH1,"Y",IF($I14=CH1,"Y",IF($K14=CH1,"Y",IF($M14=CH1,"Y",IF($O14=CH1,"Y","")))))) -> Y | CI14: =$A$14 -> 12 | CJ14: =IF($E14=CJ1,$F14,IF($G14=CJ1,$H14,IF($I14=CJ1,$J14,IF($K14=CJ1,$L14,IF($M14=CJ1,$N14,IF($O14=CJ1,$P14,"")))))) -> 0 | CK14: =IF($E14=CK1,"Y",IF($G14=CK1,"Y",IF($I14=CK1,"Y",IF($K14=CK1,"Y",IF($M14=CK1,"Y",IF($O14=CK1,"Y","")))))) -> Y | CL14: =$A$14 -> 12 | CM14: =IF($E14=CM1,$F14,IF($G14=CM1,$H14,IF($I14=CM1,$J14,IF($K14=CM1,$L14,IF($M14=CM1,$N14,IF($O14=CM1,$P14,"")))))) -> 0 | CN14: =IF($E14=CN1,"Y",IF($G14=CN1,"Y",IF($I14=CN1,"Y",IF($K14=CN1,"Y",IF($M14=CN1,"Y",IF($O14=CN1,"Y","")))))) -> Y | CO14: =$A$14 -> 12 | CP14: =IF($E14=CP1,$F14,IF($G14=CP1,$H14,IF($I14=CP1,$J14,IF($K14=CP1,$L14,IF($M14=CP1,$N14,IF($O14=CP1,$P14,"")))))) -> 0 | CQ14: =IF($E14=CQ1,"Y",IF($G14=CQ1,"Y",IF($I14=CQ1,"Y",IF($K14=CQ1,"Y",IF($M14=CQ1,"Y",IF($O14=CQ1,"Y","")))))) -> Y | CR14: =$A$14 -> 12 | CS14: =IF($E14=CS1,$F14,IF($G14=CS1,$H14,IF($I14=CS1,$J14,IF($K14=CS1,$L14,IF($M14=CS1,$N14,IF($O14=CS1,$P14,"")))))) -> 0 | CT14: =IF($E14=CT1,"Y",IF($G14=CT1,"Y",IF($I14=CT1,"Y",IF($K14=CT1,"Y",IF($M14=CT1,"Y",IF($O14=CT1,"Y","")))))) -> Y | CU14: =$A$14 -> 12 | CV14: =IF($E14=CV1,$F14,IF($G14=CV1,$H14,IF($I14=CV1,$J14,IF($K14=CV1,$L14,IF($M14=CV1,$N14,IF($O14=CV1,$P14,"")))))) -> 0 | CW14: =IF($E14=CW1,"Y",IF($G14=CW1,"Y",IF($I14=CW1,"Y",IF($K14=CW1,"Y",IF($M14=CW1,"Y",IF($O14=CW1,"Y","")))))) -> Y | CX14: =$A$14 -> 12 | CY14: =IF($E14=CY1,$F14,IF($G14=CY1,$H14,IF($I14=CY1,$J14,IF($K14=CY1,$L14,IF($M14=CY1,$N14,IF($O14=CY1,$P14,"")))))) -> 0 | CZ14: =IF($E14=CZ1,"Y",IF($G14=CZ1,"Y",IF($I14=CZ1,"Y",IF($K14=CZ1,"Y",IF($M14=CZ1,"Y",IF($O14=CZ1,"Y","")))))) -> Y | DA14: =$A$14 -> 12 | DB14: =IF($E14=DB1,$F14,IF($G14=DB1,$H14,IF($I14=DB1,$J14,IF($K14=DB1,$L14,IF($M14=DB1,$N14,IF($O14=DB1,$P14,"")))))) -> 0 | DC14: =IF($E14=DC1,"Y",IF($G14=DC1,"Y",IF($I14=DC1,"Y",IF($K14=DC1,"Y",IF($M14=DC1,"Y",IF($O14=DC1,"Y","")))))) -> Y | DD14: =$A$14 -> 12 | DE14: =IF($E14=DE1,$F14,IF($G14=DE1,$H14,IF($I14=DE1,$J14,IF($K14=DE1,$L14,IF($M14=DE1,$N14,IF($O14=DE1,$P14,"")))))) -> 0 | DF14: =IF($E14=DF1,"Y",IF($G14=DF1,"Y",IF($I14=DF1,"Y",IF($K14=DF1,"Y",IF($M14=DF1,"Y",IF($O14=DF1,"Y","")))))) -> Y | DG14: =$A$14 -> 12 | DH14: =IF($E14=DH1,$F14,IF($G14=DH1,$H14,IF($I14=DH1,$J14,IF($K14=DH1,$L14,IF($M14=DH1,$N14,IF($O14=DH1,$P14,"")))))) -> 0 | DI14: =IF($E14=DI1,"Y",IF($G14=DI1,"Y",IF($I14=DI1,"Y",IF($K14=DI1,"Y",IF($M14=DI1,"Y",IF($O14=DI1,"Y","")))))) -> Y | DJ14: =$A$14 -> 12 | DK14: =IF($E14=DK1,$F14,IF($G14=DK1,$H14,IF($I14=DK1,$J14,IF($K14=DK1,$L14,IF($M14=DK1,$N14,IF($O14=DK1,$P14,"")))))) -> 0 | DL14: =IF($E14=DL1,"Y",IF($G14=DL1,"Y",IF($I14=DL1,"Y",IF($K14=DL1,"Y",IF($M14=DL1,"Y",IF($O14=DL1,"Y","")))))) -> Y | DM14: =$A$14 -> 12 | DN14: =IF($E14=DN1,$F14,IF($G14=DN1,$H14,IF($I14=DN1,$J14,IF($K14=DN1,$L14,IF($M14=DN1,$N14,IF($O14=DN1,$P14,"")))))) -> 0 | DO14: =IF($E14=DO1,"Y",IF($G14=DO1,"Y",IF($I14=DO1,"Y",IF($K14=DO1,"Y",IF($M14=DO1,"Y",IF($O14=DO1,"Y","")))))) -> Y | DP14: =$A$14 -> 12 | DQ14: =IF($E14=DQ1,$F14,IF($G14=DQ1,$H14,IF($I14=DQ1,$J14,IF($K14=DQ1,$L14,IF($M14=DQ1,$N14,IF($O14=DQ1,$P14,"")))))) -> 0
A15: 13 | B15: Christopher Moore | C15: Essex | D15: M | R15: 13 | T15: =IF($E15=$V$1,"Y",IF($G15=$V$1,"Y",IF($I15=$V$1,"Y",IF($K15=$V$1,"Y",IF($M15=$V$1,"Y",IF($O15=$V$1,"Y","")))))) ->  | U15: 13 | V15: =IF($E15=$V$1,$F15,IF($G15=$V$1,$H15,IF($I15=$V$1,$J15,IF($K15=$V$1,$L15,IF($M15=$V$1,$N15,IF($O15=$V$1,$P15,"")))))) ->  | W15: =IF($E15=$Y$1,"Y",IF($G15=$Y$1,"Y",IF($I15=$Y$1,"Y",IF($K15=$Y$1,"Y",IF($M15=$Y$1,"Y",IF($O15=$Y$1,"Y","")))))) ->  | X15: 13 | Y15: =IF($E15=$Y$1,$F15,IF($G15=$Y$1,$H15,IF($I15=$Y$1,$J15,IF($K15=$Y$1,$L15,IF($M15=$Y$1,$N15,IF($O15=$Y$1,$P15,"")))))) ->  | Z15: =IF($E15=$AB$1,"Y",IF($G15=$AB$1,"Y",IF($I15=$AB$1,"Y",IF($K15=$AB$1,"Y",IF($M15=$AB$1,"Y",IF($O15=$AB$1,"Y","")))))) ->  | AA15: 13 | AB15: =IF($E15=$AB$1,$F15,IF($G15=$AB$1,$H15,IF($I15=$AB$1,$J15,IF($K15=$AB$1,$L15,IF($M15=$AB$1,$N15,IF($O15=$AB$1,$P15,"")))))) ->  | AC15: =IF($E15=$AE$1,"Y",IF($G15=$AE$1,"Y",IF($I15=$AE$1,"Y",IF($K15=$AE$1,"Y",IF($M15=$AE$1,"Y",IF($O15=$AE$1,"Y","")))))) ->  | AD15: 13 | AE15: =IF($E15=$AE$1,$F15,IF($G15=$AE$1,$H15,IF($I15=$AE$1,$J15,IF($K15=$AE$1,$L15,IF($M15=$AE$1,$N15,IF($O15=$AE$1,$P15,"")))))) ->  | AF15: =IF($E15=$AH$1,"Y",IF($G15=$AH$1,"Y",IF($I15=$AH$1,"Y",IF($K15=$AH$1,"Y",IF($M15=$AH$1,"Y",IF($O15=$AH$1,"Y","")))))) ->  | AG15: 13 | AH15: =IF($E15=$AH$1,$F15,IF($G15=$AH$1,$H15,IF($I15=$AH$1,$J15,IF($K15=$AH$1,$L15,IF($M15=$AH$1,$N15,IF($O15=$AH$1,$P15,"")))))) ->  | AJ15: 13 | AK15: =IF($E15=$AK$1,$F15,IF($G15=$AK$1,$H15,IF($I15=$AK$1,$J15,IF($K15=$AK$1,$L15,IF($M15=$AK$1,$N15,IF($O15=$AK$1,$P15,"")))))) ->  | AM15: =$A$15 -> 13 | AP15: =$A$15 -> 13 | AR15: =IF($E15=AR1,"Y",IF($G15=AR1,"Y",IF($I15=AR1,"Y",IF($K15=AR1,"Y",IF($M15=AR1,"Y",IF($O15=AR1,"Y","")))))) ->  | AS15: =$A$15 -> 13 | AT15: =IF($E15=AT1,$F15,IF($G15=AT1,$H15,IF($I15=AT1,$J15,IF($K15=AT1,$L15,IF($M15=AT1,$N15,IF($O15=AT1,$P15,"")))))) ->  | AU15: =IF($E15=AU1,"Y",IF($G15=AU1,"Y",IF($I15=AU1,"Y",IF($K15=AU1,"Y",IF($M15=AU1,"Y",IF($O15=AU1,"Y","")))))) ->  | AV15: =$A$15 -> 13 | AW15: =IF($E15=AW1,$F15,IF($G15=AW1,$H15,IF($I15=AW1,$J15,IF($K15=AW1,$L15,IF($M15=AW1,$N15,IF($O15=AW1,$P15,"")))))) ->  | AX15: =IF($E15=AX1,"Y",IF($G15=AX1,"Y",IF($I15=AX1,"Y",IF($K15=AX1,"Y",IF($M15=AX1,"Y",IF($O15=AX1,"Y","")))))) ->  | AY15: =$A$15 -> 13 | AZ15: =IF($E15=AZ1,$F15,IF($G15=AZ1,$H15,IF($I15=AZ1,$J15,IF($K15=AZ1,$L15,IF($M15=AZ1,$N15,IF($O15=AZ1,$P15,"")))))) ->  | BA15: =IF($E15=BA1,"Y",IF($G15=BA1,"Y",IF($I15=BA1,"Y",IF($K15=BA1,"Y",IF($M15=BA1,"Y",IF($O15=BA1,"Y","")))))) ->  | BB15: =$A$15 -> 13 | BC15: =IF($E15=BC1,$F15,IF($G15=BC1,$H15,IF($I15=BC1,$J15,IF($K15=BC1,$L15,IF($M15=BC1,$N15,IF($O15=BC1,$P15,"")))))) ->  | BD15: =IF($E15=BD1,"Y",IF($G15=BD1,"Y",IF($I15=BD1,"Y",IF($K15=BD1,"Y",IF($M15=BD1,"Y",IF($O15=BD1,"Y","")))))) ->  | BE15: =$A$15 -> 13 | BF15: =IF($E15=BF1,$F15,IF($G15=BF1,$H15,IF($I15=BF1,$J15,IF($K15=BF1,$L15,IF($M15=BF1,$N15,IF($O15=BF1,$P15,"")))))) ->  | BG15: =IF($E15=BG1,"Y",IF($G15=BG1,"Y",IF($I15=BG1,"Y",IF($K15=BG1,"Y",IF($M15=BG1,"Y",IF($O15=BG1,"Y","")))))) ->  | BH15: =$A$15 -> 13 | BI15: =IF($E15=BI1,$F15,IF($G15=BI1,$H15,IF($I15=BI1,$J15,IF($K15=BI1,$L15,IF($M15=BI1,$N15,IF($O15=BI1,$P15,"")))))) ->  | BJ15: =IF($E15=BJ1,"Y",IF($G15=BJ1,"Y",IF($I15=BJ1,"Y",IF($K15=BJ1,"Y",IF($M15=BJ1,"Y",IF($O15=BJ1,"Y","")))))) ->  | BK15: =$A$15 -> 13 | BL15: =IF($E15=BL1,$F15,IF($G15=BL1,$H15,IF($I15=BL1,$J15,IF($K15=BL1,$L15,IF($M15=BL1,$N15,IF($O15=BL1,$P15,"")))))) ->  | BM15: =IF($E15=BM1,"Y",IF($G15=BM1,"Y",IF($I15=BM1,"Y",IF($K15=BM1,"Y",IF($M15=BM1,"Y",IF($O15=BM1,"Y","")))))) ->  | BN15: =$A$15 -> 13 | BO15: =IF($E15=BO1,$F15,IF($G15=BO1,$H15,IF($I15=BO1,$J15,IF($K15=BO1,$L15,IF($M15=BO1,$N15,IF($O15=BO1,$P15,"")))))) ->  | BP15: =IF($E15=BP1,"Y",IF($G15=BP1,"Y",IF($I15=BP1,"Y",IF($K15=BP1,"Y",IF($M15=BP1,"Y",IF($O15=BP1,"Y","")))))) ->  | BQ15: =$A$15 -> 13 | BR15: =IF($E15=BR1,$F15,IF($G15=BR1,$H15,IF($I15=BR1,$J15,IF($K15=BR1,$L15,IF($M15=BR1,$N15,IF($O15=BR1,$P15,"")))))) ->  | BS15: =IF($E15=BS1,"Y",IF($G15=BS1,"Y",IF($I15=BS1,"Y",IF($K15=BS1,"Y",IF($M15=BS1,"Y",IF($O15=BS1,"Y","")))))) ->  | BT15: =$A$15 -> 13 | BU15: =IF($E15=BU1,$F15,IF($G15=BU1,$H15,IF($I15=BU1,$J15,IF($K15=BU1,$L15,IF($M15=BU1,$N15,IF($O15=BU1,$P15,"")))))) ->  | BV15: =IF($E15=BV1,"Y",IF($G15=BV1,"Y",IF($I15=BV1,"Y",IF($K15=BV1,"Y",IF($M15=BV1,"Y",IF($O15=BV1,"Y","")))))) ->  | BW15: =$A$15 -> 13 | BX15: =IF($E15=BX1,$F15,IF($G15=BX1,$H15,IF($I15=BX1,$J15,IF($K15=BX1,$L15,IF($M15=BX1,$N15,IF($O15=BX1,$P15,"")))))) ->  | BY15: =IF($E15=BY1,"Y",IF($G15=BY1,"Y",IF($I15=BY1,"Y",IF($K15=BY1,"Y",IF($M15=BY1,"Y",IF($O15=BY1,"Y","")))))) ->  | BZ15: =$A$15 -> 13 | CA15: =IF($E15=CA1,$F15,IF($G15=CA1,$H15,IF($I15=CA1,$J15,IF($K15=CA1,$L15,IF($M15=CA1,$N15,IF($O15=CA1,$P15,"")))))) ->  | CB15: =IF($E15=CB1,"Y",IF($G15=CB1,"Y",IF($I15=CB1,"Y",IF($K15=CB1,"Y",IF($M15=CB1,"Y",IF($O15=CB1,"Y","")))))) ->  | CC15: =$A$15 -> 13 | CD15: =IF($E15=CD1,$F15,IF($G15=CD1,$H15,IF($I15=CD1,$J15,IF($K15=CD1,$L15,IF($M15=CD1,$N15,IF($O15=CD1,$P15,"")))))) ->  | CE15: =IF($E15=CE1,"Y",IF($G15=CE1,"Y",IF($I15=CE1,"Y",IF($K15=CE1,"Y",IF($M15=CE1,"Y",IF($O15=CE1,"Y","")))))) -> Y | CF15: =$A$15 -> 13 | CG15: =IF($E15=CG1,$F15,IF($G15=CG1,$H15,IF($I15=CG1,$J15,IF($K15=CG1,$L15,IF($M15=CG1,$N15,IF($O15=CG1,$P15,"")))))) -> 0 | CH15: =IF($E15=CH1,"Y",IF($G15=CH1,"Y",IF($I15=CH1,"Y",IF($K15=CH1,"Y",IF($M15=CH1,"Y",IF($O15=CH1,"Y","")))))) -> Y | CI15: =$A$15 -> 13 | CJ15: =IF($E15=CJ1,$F15,IF($G15=CJ1,$H15,IF($I15=CJ1,$J15,IF($K15=CJ1,$L15,IF($M15=CJ1,$N15,IF($O15=CJ1,$P15,"")))))) -> 0 | CK15: =IF($E15=CK1,"Y",IF($G15=CK1,"Y",IF($I15=CK1,"Y",IF($K15=CK1,"Y",IF($M15=CK1,"Y",IF($O15=CK1,"Y","")))))) -> Y | CL15: =$A$15 -> 13 | CM15: =IF($E15=CM1,$F15,IF($G15=CM1,$H15,IF($I15=CM1,$J15,IF($K15=CM1,$L15,IF($M15=CM1,$N15,IF($O15=CM1,$P15,"")))))) -> 0 | CN15: =IF($E15=CN1,"Y",IF($G15=CN1,"Y",IF($I15=CN1,"Y",IF($K15=CN1,"Y",IF($M15=CN1,"Y",IF($O15=CN1,"Y","")))))) -> Y | CO15: =$A$15 -> 13 | CP15: =IF($E15=CP1,$F15,IF($G15=CP1,$H15,IF($I15=CP1,$J15,IF($K15=CP1,$L15,IF($M15=CP1,$N15,IF($O15=CP1,$P15,"")))))) -> 0 | CQ15: =IF($E15=CQ1,"Y",IF($G15=CQ1,"Y",IF($I15=CQ1,"Y",IF($K15=CQ1,"Y",IF($M15=CQ1,"Y",IF($O15=CQ1,"Y","")))))) -> Y | CR15: =$A$15 -> 13 | CS15: =IF($E15=CS1,$F15,IF($G15=CS1,$H15,IF($I15=CS1,$J15,IF($K15=CS1,$L15,IF($M15=CS1,$N15,IF($O15=CS1,$P15,"")))))) -> 0 | CT15: =IF($E15=CT1,"Y",IF($G15=CT1,"Y",IF($I15=CT1,"Y",IF($K15=CT1,"Y",IF($M15=CT1,"Y",IF($O15=CT1,"Y","")))))) -> Y | CU15: =$A$15 -> 13 | CV15: =IF($E15=CV1,$F15,IF($G15=CV1,$H15,IF($I15=CV1,$J15,IF($K15=CV1,$L15,IF($M15=CV1,$N15,IF($O15=CV1,$P15,"")))))) -> 0 | CW15: =IF($E15=CW1,"Y",IF($G15=CW1,"Y",IF($I15=CW1,"Y",IF($K15=CW1,"Y",IF($M15=CW1,"Y",IF($O15=CW1,"Y","")))))) -> Y | CX15: =$A$15 -> 13 | CY15: =IF($E15=CY1,$F15,IF($G15=CY1,$H15,IF($I15=CY1,$J15,IF($K15=CY1,$L15,IF($M15=CY1,$N15,IF($O15=CY1,$P15,"")))))) -> 0 | CZ15: =IF($E15=CZ1,"Y",IF($G15=CZ1,"Y",IF($I15=CZ1,"Y",IF($K15=CZ1,"Y",IF($M15=CZ1,"Y",IF($O15=CZ1,"Y","")))))) -> Y | DA15: =$A$15 -> 13 | DB15: =IF($E15=DB1,$F15,IF($G15=DB1,$H15,IF($I15=DB1,$J15,IF($K15=DB1,$L15,IF($M15=DB1,$N15,IF($O15=DB1,$P15,"")))))) -> 0 | DC15: =IF($E15=DC1,"Y",IF($G15=DC1,"Y",IF($I15=DC1,"Y",IF($K15=DC1,"Y",IF($M15=DC1,"Y",IF($O15=DC1,"Y","")))))) -> Y | DD15: =$A$15 -> 13 | DE15: =IF($E15=DE1,$F15,IF($G15=DE1,$H15,IF($I15=DE1,$J15,IF($K15=DE1,$L15,IF($M15=DE1,$N15,IF($O15=DE1,$P15,"")))))) -> 0 | DF15: =IF($E15=DF1,"Y",IF($G15=DF1,"Y",IF($I15=DF1,"Y",IF($K15=DF1,"Y",IF($M15=DF1,"Y",IF($O15=DF1,"Y","")))))) -> Y | DG15: =$A$15 -> 13 | DH15: =IF($E15=DH1,$F15,IF($G15=DH1,$H15,IF($I15=DH1,$J15,IF($K15=DH1,$L15,IF($M15=DH1,$N15,IF($O15=DH1,$P15,"")))))) -> 0 | DI15: =IF($E15=DI1,"Y",IF($G15=DI1,"Y",IF($I15=DI1,"Y",IF($K15=DI1,"Y",IF($M15=DI1,"Y",IF($O15=DI1,"Y","")))))) -> Y | DJ15: =$A$15 -> 13 | DK15: =IF($E15=DK1,$F15,IF($G15=DK1,$H15,IF($I15=DK1,$J15,IF($K15=DK1,$L15,IF($M15=DK1,$N15,IF($O15=DK1,$P15,"")))))) -> 0 | DL15: =IF($E15=DL1,"Y",IF($G15=DL1,"Y",IF($I15=DL1,"Y",IF($K15=DL1,"Y",IF($M15=DL1,"Y",IF($O15=DL1,"Y","")))))) -> Y | DM15: =$A$15 -> 13 | DN15: =IF($E15=DN1,$F15,IF($G15=DN1,$H15,IF($I15=DN1,$J15,IF($K15=DN1,$L15,IF($M15=DN1,$N15,IF($O15=DN1,$P15,"")))))) -> 0 | DO15: =IF($E15=DO1,"Y",IF($G15=DO1,"Y",IF($I15=DO1,"Y",IF($K15=DO1,"Y",IF($M15=DO1,"Y",IF($O15=DO1,"Y","")))))) -> Y | DP15: =$A$15 -> 13 | DQ15: =IF($E15=DQ1,$F15,IF($G15=DQ1,$H15,IF($I15=DQ1,$J15,IF($K15=DQ1,$L15,IF($M15=DQ1,$N15,IF($O15=DQ1,$P15,"")))))) -> 0
A16: 14 | B16: Christopher Morton | C16: Essex | D16: M | E16: 5000 | F16: 00:18:00 | R16: 14 | T16: =IF($E16=$V$1,"Y",IF($G16=$V$1,"Y",IF($I16=$V$1,"Y",IF($K16=$V$1,"Y",IF($M16=$V$1,"Y",IF($O16=$V$1,"Y","")))))) ->  | U16: 14 | V16: =IF($E16=$V$1,$F16,IF($G16=$V$1,$H16,IF($I16=$V$1,$J16,IF($K16=$V$1,$L16,IF($M16=$V$1,$N16,IF($O16=$V$1,$P16,"")))))) ->  | W16: =IF($E16=$Y$1,"Y",IF($G16=$Y$1,"Y",IF($I16=$Y$1,"Y",IF($K16=$Y$1,"Y",IF($M16=$Y$1,"Y",IF($O16=$Y$1,"Y","")))))) ->  | X16: 14 | Y16: =IF($E16=$Y$1,$F16,IF($G16=$Y$1,$H16,IF($I16=$Y$1,$J16,IF($K16=$Y$1,$L16,IF($M16=$Y$1,$N16,IF($O16=$Y$1,$P16,"")))))) ->  | Z16: =IF($E16=$AB$1,"Y",IF($G16=$AB$1,"Y",IF($I16=$AB$1,"Y",IF($K16=$AB$1,"Y",IF($M16=$AB$1,"Y",IF($O16=$AB$1,"Y","")))))) ->  | AA16: 14 | AB16: =IF($E16=$AB$1,$F16,IF($G16=$AB$1,$H16,IF($I16=$AB$1,$J16,IF($K16=$AB$1,$L16,IF($M16=$AB$1,$N16,IF($O16=$AB$1,$P16,"")))))) ->  | AC16: =IF($E16=$AE$1,"Y",IF($G16=$AE$1,"Y",IF($I16=$AE$1,"Y",IF($K16=$AE$1,"Y",IF($M16=$AE$1,"Y",IF($O16=$AE$1,"Y","")))))) ->  | AD16: 14 | AE16: =IF($E16=$AE$1,$F16,IF($G16=$AE$1,$H16,IF($I16=$AE$1,$J16,IF($K16=$AE$1,$L16,IF($M16=$AE$1,$N16,IF($O16=$AE$1,$P16,"")))))) ->  | AF16: =IF($E16=$AH$1,"Y",IF($G16=$AH$1,"Y",IF($I16=$AH$1,"Y",IF($K16=$AH$1,"Y",IF($M16=$AH$1,"Y",IF($O16=$AH$1,"Y","")))))) ->  | AG16: 14 | AH16: =IF($E16=$AH$1,$F16,IF($G16=$AH$1,$H16,IF($I16=$AH$1,$J16,IF($K16=$AH$1,$L16,IF($M16=$AH$1,$N16,IF($O16=$AH$1,$P16,"")))))) ->  | AJ16: 14 | AK16: =IF($E16=$AK$1,$F16,IF($G16=$AK$1,$H16,IF($I16=$AK$1,$J16,IF($K16=$AK$1,$L16,IF($M16=$AK$1,$N16,IF($O16=$AK$1,$P16,"")))))) ->  | AM16: =$A$16 -> 14 | AP16: =$A$16 -> 14 | AR16: =IF($E16=AR1,"Y",IF($G16=AR1,"Y",IF($I16=AR1,"Y",IF($K16=AR1,"Y",IF($M16=AR1,"Y",IF($O16=AR1,"Y","")))))) ->  | AS16: =$A$16 -> 14 | AT16: =IF($E16=AT1,$F16,IF($G16=AT1,$H16,IF($I16=AT1,$J16,IF($K16=AT1,$L16,IF($M16=AT1,$N16,IF($O16=AT1,$P16,"")))))) ->  | AU16: =IF($E16=AU1,"Y",IF($G16=AU1,"Y",IF($I16=AU1,"Y",IF($K16=AU1,"Y",IF($M16=AU1,"Y",IF($O16=AU1,"Y","")))))) -> Y | AV16: =$A$16 -> 14 | AW16: =IF($E16=AW1,$F16,IF($G16=AW1,$H16,IF($I16=AW1,$J16,IF($K16=AW1,$L16,IF($M16=AW1,$N16,IF($O16=AW1,$P16,"")))))) -> 00:18:00 | AX16: =IF($E16=AX1,"Y",IF($G16=AX1,"Y",IF($I16=AX1,"Y",IF($K16=AX1,"Y",IF($M16=AX1,"Y",IF($O16=AX1,"Y","")))))) ->  | AY16: =$A$16 -> 14 | AZ16: =IF($E16=AZ1,$F16,IF($G16=AZ1,$H16,IF($I16=AZ1,$J16,IF($K16=AZ1,$L16,IF($M16=AZ1,$N16,IF($O16=AZ1,$P16,"")))))) ->  | BA16: =IF($E16=BA1,"Y",IF($G16=BA1,"Y",IF($I16=BA1,"Y",IF($K16=BA1,"Y",IF($M16=BA1,"Y",IF($O16=BA1,"Y","")))))) ->  | BB16: =$A$16 -> 14 | BC16: =IF($E16=BC1,$F16,IF($G16=BC1,$H16,IF($I16=BC1,$J16,IF($K16=BC1,$L16,IF($M16=BC1,$N16,IF($O16=BC1,$P16,"")))))) ->  | BD16: =IF($E16=BD1,"Y",IF($G16=BD1,"Y",IF($I16=BD1,"Y",IF($K16=BD1,"Y",IF($M16=BD1,"Y",IF($O16=BD1,"Y","")))))) ->  | BE16: =$A$16 -> 14 | BF16: =IF($E16=BF1,$F16,IF($G16=BF1,$H16,IF($I16=BF1,$J16,IF($K16=BF1,$L16,IF($M16=BF1,$N16,IF($O16=BF1,$P16,"")))))) ->  | BG16: =IF($E16=BG1,"Y",IF($G16=BG1,"Y",IF($I16=BG1,"Y",IF($K16=BG1,"Y",IF($M16=BG1,"Y",IF($O16=BG1,"Y","")))))) ->  | BH16: =$A$16 -> 14 | BI16: =IF($E16=BI1,$F16,IF($G16=BI1,$H16,IF($I16=BI1,$J16,IF($K16=BI1,$L16,IF($M16=BI1,$N16,IF($O16=BI1,$P16,"")))))) ->  | BJ16: =IF($E16=BJ1,"Y",IF($G16=BJ1,"Y",IF($I16=BJ1,"Y",IF($K16=BJ1,"Y",IF($M16=BJ1,"Y",IF($O16=BJ1,"Y","")))))) ->  | BK16: =$A$16 -> 14 | BL16: =IF($E16=BL1,$F16,IF($G16=BL1,$H16,IF($I16=BL1,$J16,IF($K16=BL1,$L16,IF($M16=BL1,$N16,IF($O16=BL1,$P16,"")))))) ->  | BM16: =IF($E16=BM1,"Y",IF($G16=BM1,"Y",IF($I16=BM1,"Y",IF($K16=BM1,"Y",IF($M16=BM1,"Y",IF($O16=BM1,"Y","")))))) ->  | BN16: =$A$16 -> 14 | BO16: =IF($E16=BO1,$F16,IF($G16=BO1,$H16,IF($I16=BO1,$J16,IF($K16=BO1,$L16,IF($M16=BO1,$N16,IF($O16=BO1,$P16,"")))))) ->  | BP16: =IF($E16=BP1,"Y",IF($G16=BP1,"Y",IF($I16=BP1,"Y",IF($K16=BP1,"Y",IF($M16=BP1,"Y",IF($O16=BP1,"Y","")))))) ->  | BQ16: =$A$16 -> 14 | BR16: =IF($E16=BR1,$F16,IF($G16=BR1,$H16,IF($I16=BR1,$J16,IF($K16=BR1,$L16,IF($M16=BR1,$N16,IF($O16=BR1,$P16,"")))))) ->  | BS16: =IF($E16=BS1,"Y",IF($G16=BS1,"Y",IF($I16=BS1,"Y",IF($K16=BS1,"Y",IF($M16=BS1,"Y",IF($O16=BS1,"Y","")))))) ->  | BT16: =$A$16 -> 14 | BU16: =IF($E16=BU1,$F16,IF($G16=BU1,$H16,IF($I16=BU1,$J16,IF($K16=BU1,$L16,IF($M16=BU1,$N16,IF($O16=BU1,$P16,"")))))) ->  | BV16: =IF($E16=BV1,"Y",IF($G16=BV1,"Y",IF($I16=BV1,"Y",IF($K16=BV1,"Y",IF($M16=BV1,"Y",IF($O16=BV1,"Y","")))))) ->  | BW16: =$A$16 -> 14 | BX16: =IF($E16=BX1,$F16,IF($G16=BX1,$H16,IF($I16=BX1,$J16,IF($K16=BX1,$L16,IF($M16=BX1,$N16,IF($O16=BX1,$P16,"")))))) ->  | BY16: =IF($E16=BY1,"Y",IF($G16=BY1,"Y",IF($I16=BY1,"Y",IF($K16=BY1,"Y",IF($M16=BY1,"Y",IF($O16=BY1,"Y","")))))) ->  | BZ16: =$A$16 -> 14 | CA16: =IF($E16=CA1,$F16,IF($G16=CA1,$H16,IF($I16=CA1,$J16,IF($K16=CA1,$L16,IF($M16=CA1,$N16,IF($O16=CA1,$P16,"")))))) ->  | CB16: =IF($E16=CB1,"Y",IF($G16=CB1,"Y",IF($I16=CB1,"Y",IF($K16=CB1,"Y",IF($M16=CB1,"Y",IF($O16=CB1,"Y","")))))) ->  | CC16: =$A$16 -> 14 | CD16: =IF($E16=CD1,$F16,IF($G16=CD1,$H16,IF($I16=CD1,$J16,IF($K16=CD1,$L16,IF($M16=CD1,$N16,IF($O16=CD1,$P16,"")))))) ->  | CE16: =IF($E16=CE1,"Y",IF($G16=CE1,"Y",IF($I16=CE1,"Y",IF($K16=CE1,"Y",IF($M16=CE1,"Y",IF($O16=CE1,"Y","")))))) -> Y | CF16: =$A$16 -> 14 | CG16: =IF($E16=CG1,$F16,IF($G16=CG1,$H16,IF($I16=CG1,$J16,IF($K16=CG1,$L16,IF($M16=CG1,$N16,IF($O16=CG1,$P16,"")))))) -> 0 | CH16: =IF($E16=CH1,"Y",IF($G16=CH1,"Y",IF($I16=CH1,"Y",IF($K16=CH1,"Y",IF($M16=CH1,"Y",IF($O16=CH1,"Y","")))))) -> Y | CI16: =$A$16 -> 14 | CJ16: =IF($E16=CJ1,$F16,IF($G16=CJ1,$H16,IF($I16=CJ1,$J16,IF($K16=CJ1,$L16,IF($M16=CJ1,$N16,IF($O16=CJ1,$P16,"")))))) -> 0 | CK16: =IF($E16=CK1,"Y",IF($G16=CK1,"Y",IF($I16=CK1,"Y",IF($K16=CK1,"Y",IF($M16=CK1,"Y",IF($O16=CK1,"Y","")))))) -> Y | CL16: =$A$16 -> 14 | CM16: =IF($E16=CM1,$F16,IF($G16=CM1,$H16,IF($I16=CM1,$J16,IF($K16=CM1,$L16,IF($M16=CM1,$N16,IF($O16=CM1,$P16,"")))))) -> 0 | CN16: =IF($E16=CN1,"Y",IF($G16=CN1,"Y",IF($I16=CN1,"Y",IF($K16=CN1,"Y",IF($M16=CN1,"Y",IF($O16=CN1,"Y","")))))) -> Y | CO16: =$A$16 -> 14 | CP16: =IF($E16=CP1,$F16,IF($G16=CP1,$H16,IF($I16=CP1,$J16,IF($K16=CP1,$L16,IF($M16=CP1,$N16,IF($O16=CP1,$P16,"")))))) -> 0 | CQ16: =IF($E16=CQ1,"Y",IF($G16=CQ1,"Y",IF($I16=CQ1,"Y",IF($K16=CQ1,"Y",IF($M16=CQ1,"Y",IF($O16=CQ1,"Y","")))))) -> Y | CR16: =$A$16 -> 14 | CS16: =IF($E16=CS1,$F16,IF($G16=CS1,$H16,IF($I16=CS1,$J16,IF($K16=CS1,$L16,IF($M16=CS1,$N16,IF($O16=CS1,$P16,"")))))) -> 0 | CT16: =IF($E16=CT1,"Y",IF($G16=CT1,"Y",IF($I16=CT1,"Y",IF($K16=CT1,"Y",IF($M16=CT1,"Y",IF($O16=CT1,"Y","")))))) -> Y | CU16: =$A$16 -> 14 | CV16: =IF($E16=CV1,$F16,IF($G16=CV1,$H16,IF($I16=CV1,$J16,IF($K16=CV1,$L16,IF($M16=CV1,$N16,IF($O16=CV1,$P16,"")))))) -> 0 | CW16: =IF($E16=CW1,"Y",IF($G16=CW1,"Y",IF($I16=CW1,"Y",IF($K16=CW1,"Y",IF($M16=CW1,"Y",IF($O16=CW1,"Y","")))))) -> Y | CX16: =$A$16 -> 14 | CY16: =IF($E16=CY1,$F16,IF($G16=CY1,$H16,IF($I16=CY1,$J16,IF($K16=CY1,$L16,IF($M16=CY1,$N16,IF($O16=CY1,$P16,"")))))) -> 0 | CZ16: =IF($E16=CZ1,"Y",IF($G16=CZ1,"Y",IF($I16=CZ1,"Y",IF($K16=CZ1,"Y",IF($M16=CZ1,"Y",IF($O16=CZ1,"Y","")))))) -> Y | DA16: =$A$16 -> 14 | DB16: =IF($E16=DB1,$F16,IF($G16=DB1,$H16,IF($I16=DB1,$J16,IF($K16=DB1,$L16,IF($M16=DB1,$N16,IF($O16=DB1,$P16,"")))))) -> 0 | DC16: =IF($E16=DC1,"Y",IF($G16=DC1,"Y",IF($I16=DC1,"Y",IF($K16=DC1,"Y",IF($M16=DC1,"Y",IF($O16=DC1,"Y","")))))) -> Y | DD16: =$A$16 -> 14 | DE16: =IF($E16=DE1,$F16,IF($G16=DE1,$H16,IF($I16=DE1,$J16,IF($K16=DE1,$L16,IF($M16=DE1,$N16,IF($O16=DE1,$P16,"")))))) -> 0 | DF16: =IF($E16=DF1,"Y",IF($G16=DF1,"Y",IF($I16=DF1,"Y",IF($K16=DF1,"Y",IF($M16=DF1,"Y",IF($O16=DF1,"Y","")))))) -> Y | DG16: =$A$16 -> 14 | DH16: =IF($E16=DH1,$F16,IF($G16=DH1,$H16,IF($I16=DH1,$J16,IF($K16=DH1,$L16,IF($M16=DH1,$N16,IF($O16=DH1,$P16,"")))))) -> 0 | DI16: =IF($E16=DI1,"Y",IF($G16=DI1,"Y",IF($I16=DI1,"Y",IF($K16=DI1,"Y",IF($M16=DI1,"Y",IF($O16=DI1,"Y","")))))) -> Y | DJ16: =$A$16 -> 14 | DK16: =IF($E16=DK1,$F16,IF($G16=DK1,$H16,IF($I16=DK1,$J16,IF($K16=DK1,$L16,IF($M16=DK1,$N16,IF($O16=DK1,$P16,"")))))) -> 0 | DL16: =IF($E16=DL1,"Y",IF($G16=DL1,"Y",IF($I16=DL1,"Y",IF($K16=DL1,"Y",IF($M16=DL1,"Y",IF($O16=DL1,"Y","")))))) -> Y | DM16: =$A$16 -> 14 | DN16: =IF($E16=DN1,$F16,IF($G16=DN1,$H16,IF($I16=DN1,$J16,IF($K16=DN1,$L16,IF($M16=DN1,$N16,IF($O16=DN1,$P16,"")))))) -> 0 | DO16: =IF($E16=DO1,"Y",IF($G16=DO1,"Y",IF($I16=DO1,"Y",IF($K16=DO1,"Y",IF($M16=DO1,"Y",IF($O16=DO1,"Y","")))))) -> Y | DP16: =$A$16 -> 14 | DQ16: =IF($E16=DQ1,$F16,IF($G16=DQ1,$H16,IF($I16=DQ1,$J16,IF($K16=DQ1,$L16,IF($M16=DQ1,$N16,IF($O16=DQ1,$P16,"")))))) -> 0
A17: 15 | B17: Connor Oliver | C17: Essex | D17: M | R17: 15 | T17: =IF($E17=$V$1,"Y",IF($G17=$V$1,"Y",IF($I17=$V$1,"Y",IF($K17=$V$1,"Y",IF($M17=$V$1,"Y",IF($O17=$V$1,"Y","")))))) ->  | U17: 15 | V17: =IF($E17=$V$1,$F17,IF($G17=$V$1,$H17,IF($I17=$V$1,$J17,IF($K17=$V$1,$L17,IF($M17=$V$1,$N17,IF($O17=$V$1,$P17,"")))))) ->  | W17: =IF($E17=$Y$1,"Y",IF($G17=$Y$1,"Y",IF($I17=$Y$1,"Y",IF($K17=$Y$1,"Y",IF($M17=$Y$1,"Y",IF($O17=$Y$1,"Y","")))))) ->  | X17: 15 | Y17: =IF($E17=$Y$1,$F17,IF($G17=$Y$1,$H17,IF($I17=$Y$1,$J17,IF($K17=$Y$1,$L17,IF($M17=$Y$1,$N17,IF($O17=$Y$1,$P17,"")))))) ->  | Z17: =IF($E17=$AB$1,"Y",IF($G17=$AB$1,"Y",IF($I17=$AB$1,"Y",IF($K17=$AB$1,"Y",IF($M17=$AB$1,"Y",IF($O17=$AB$1,"Y","")))))) ->  | AA17: 15 | AB17: =IF($E17=$AB$1,$F17,IF($G17=$AB$1,$H17,IF($I17=$AB$1,$J17,IF($K17=$AB$1,$L17,IF($M17=$AB$1,$N17,IF($O17=$AB$1,$P17,"")))))) ->  | AC17: =IF($E17=$AE$1,"Y",IF($G17=$AE$1,"Y",IF($I17=$AE$1,"Y",IF($K17=$AE$1,"Y",IF($M17=$AE$1,"Y",IF($O17=$AE$1,"Y","")))))) ->  | AD17: 15 | AE17: =IF($E17=$AE$1,$F17,IF($G17=$AE$1,$H17,IF($I17=$AE$1,$J17,IF($K17=$AE$1,$L17,IF($M17=$AE$1,$N17,IF($O17=$AE$1,$P17,"")))))) ->  | AF17: =IF($E17=$AH$1,"Y",IF($G17=$AH$1,"Y",IF($I17=$AH$1,"Y",IF($K17=$AH$1,"Y",IF($M17=$AH$1,"Y",IF($O17=$AH$1,"Y","")))))) ->  | AG17: 15 | AH17: =IF($E17=$AH$1,$F17,IF($G17=$AH$1,$H17,IF($I17=$AH$1,$J17,IF($K17=$AH$1,$L17,IF($M17=$AH$1,$N17,IF($O17=$AH$1,$P17,"")))))) ->  | AJ17: 15 | AK17: =IF($E17=$AK$1,$F17,IF($G17=$AK$1,$H17,IF($I17=$AK$1,$J17,IF($K17=$AK$1,$L17,IF($M17=$AK$1,$N17,IF($O17=$AK$1,$P17,"")))))) ->  | AM17: =$A$17 -> 15 | AP17: =$A$17 -> 15 | AR17: =IF($E17=AR1,"Y",IF($G17=AR1,"Y",IF($I17=AR1,"Y",IF($K17=AR1,"Y",IF($M17=AR1,"Y",IF($O17=AR1,"Y","")))))) ->  | AS17: =$A$17 -> 15 | AT17: =IF($E17=AT1,$F17,IF($G17=AT1,$H17,IF($I17=AT1,$J17,IF($K17=AT1,$L17,IF($M17=AT1,$N17,IF($O17=AT1,$P17,"")))))) ->  | AU17: =IF($E17=AU1,"Y",IF($G17=AU1,"Y",IF($I17=AU1,"Y",IF($K17=AU1,"Y",IF($M17=AU1,"Y",IF($O17=AU1,"Y","")))))) ->  | AV17: =$A$17 -> 15 | AW17: =IF($E17=AW1,$F17,IF($G17=AW1,$H17,IF($I17=AW1,$J17,IF($K17=AW1,$L17,IF($M17=AW1,$N17,IF($O17=AW1,$P17,"")))))) ->  | AX17: =IF($E17=AX1,"Y",IF($G17=AX1,"Y",IF($I17=AX1,"Y",IF($K17=AX1,"Y",IF($M17=AX1,"Y",IF($O17=AX1,"Y","")))))) ->  | AY17: =$A$17 -> 15 | AZ17: =IF($E17=AZ1,$F17,IF($G17=AZ1,$H17,IF($I17=AZ1,$J17,IF($K17=AZ1,$L17,IF($M17=AZ1,$N17,IF($O17=AZ1,$P17,"")))))) ->  | BA17: =IF($E17=BA1,"Y",IF($G17=BA1,"Y",IF($I17=BA1,"Y",IF($K17=BA1,"Y",IF($M17=BA1,"Y",IF($O17=BA1,"Y","")))))) ->  | BB17: =$A$17 -> 15 | BC17: =IF($E17=BC1,$F17,IF($G17=BC1,$H17,IF($I17=BC1,$J17,IF($K17=BC1,$L17,IF($M17=BC1,$N17,IF($O17=BC1,$P17,"")))))) ->  | BD17: =IF($E17=BD1,"Y",IF($G17=BD1,"Y",IF($I17=BD1,"Y",IF($K17=BD1,"Y",IF($M17=BD1,"Y",IF($O17=BD1,"Y","")))))) ->  | BE17: =$A$17 -> 15 | BF17: =IF($E17=BF1,$F17,IF($G17=BF1,$H17,IF($I17=BF1,$J17,IF($K17=BF1,$L17,IF($M17=BF1,$N17,IF($O17=BF1,$P17,"")))))) ->  | BG17: =IF($E17=BG1,"Y",IF($G17=BG1,"Y",IF($I17=BG1,"Y",IF($K17=BG1,"Y",IF($M17=BG1,"Y",IF($O17=BG1,"Y","")))))) ->  | BH17: =$A$17 -> 15 | BI17: =IF($E17=BI1,$F17,IF($G17=BI1,$H17,IF($I17=BI1,$J17,IF($K17=BI1,$L17,IF($M17=BI1,$N17,IF($O17=BI1,$P17,"")))))) ->  | BJ17: =IF($E17=BJ1,"Y",IF($G17=BJ1,"Y",IF($I17=BJ1,"Y",IF($K17=BJ1,"Y",IF($M17=BJ1,"Y",IF($O17=BJ1,"Y","")))))) ->  | BK17: =$A$17 -> 15 | BL17: =IF($E17=BL1,$F17,IF($G17=BL1,$H17,IF($I17=BL1,$J17,IF($K17=BL1,$L17,IF($M17=BL1,$N17,IF($O17=BL1,$P17,"")))))) ->  | BM17: =IF($E17=BM1,"Y",IF($G17=BM1,"Y",IF($I17=BM1,"Y",IF($K17=BM1,"Y",IF($M17=BM1,"Y",IF($O17=BM1,"Y","")))))) ->  | BN17: =$A$17 -> 15 | BO17: =IF($E17=BO1,$F17,IF($G17=BO1,$H17,IF($I17=BO1,$J17,IF($K17=BO1,$L17,IF($M17=BO1,$N17,IF($O17=BO1,$P17,"")))))) ->  | BP17: =IF($E17=BP1,"Y",IF($G17=BP1,"Y",IF($I17=BP1,"Y",IF($K17=BP1,"Y",IF($M17=BP1,"Y",IF($O17=BP1,"Y","")))))) ->  | BQ17: =$A$17 -> 15 | BR17: =IF($E17=BR1,$F17,IF($G17=BR1,$H17,IF($I17=BR1,$J17,IF($K17=BR1,$L17,IF($M17=BR1,$N17,IF($O17=BR1,$P17,"")))))) ->  | BS17: =IF($E17=BS1,"Y",IF($G17=BS1,"Y",IF($I17=BS1,"Y",IF($K17=BS1,"Y",IF($M17=BS1,"Y",IF($O17=BS1,"Y","")))))) ->  | BT17: =$A$17 -> 15 | BU17: =IF($E17=BU1,$F17,IF($G17=BU1,$H17,IF($I17=BU1,$J17,IF($K17=BU1,$L17,IF($M17=BU1,$N17,IF($O17=BU1,$P17,"")))))) ->  | BV17: =IF($E17=BV1,"Y",IF($G17=BV1,"Y",IF($I17=BV1,"Y",IF($K17=BV1,"Y",IF($M17=BV1,"Y",IF($O17=BV1,"Y","")))))) ->  | BW17: =$A$17 -> 15 | BX17: =IF($E17=BX1,$F17,IF($G17=BX1,$H17,IF($I17=BX1,$J17,IF($K17=BX1,$L17,IF($M17=BX1,$N17,IF($O17=BX1,$P17,"")))))) ->  | BY17: =IF($E17=BY1,"Y",IF($G17=BY1,"Y",IF($I17=BY1,"Y",IF($K17=BY1,"Y",IF($M17=BY1,"Y",IF($O17=BY1,"Y","")))))) ->  | BZ17: =$A$17 -> 15 | CA17: =IF($E17=CA1,$F17,IF($G17=CA1,$H17,IF($I17=CA1,$J17,IF($K17=CA1,$L17,IF($M17=CA1,$N17,IF($O17=CA1,$P17,"")))))) ->  | CB17: =IF($E17=CB1,"Y",IF($G17=CB1,"Y",IF($I17=CB1,"Y",IF($K17=CB1,"Y",IF($M17=CB1,"Y",IF($O17=CB1,"Y","")))))) ->  | CC17: =$A$17 -> 15 | CD17: =IF($E17=CD1,$F17,IF($G17=CD1,$H17,IF($I17=CD1,$J17,IF($K17=CD1,$L17,IF($M17=CD1,$N17,IF($O17=CD1,$P17,"")))))) ->  | CE17: =IF($E17=CE1,"Y",IF($G17=CE1,"Y",IF($I17=CE1,"Y",IF($K17=CE1,"Y",IF($M17=CE1,"Y",IF($O17=CE1,"Y","")))))) -> Y | CF17: =$A$17 -> 15 | CG17: =IF($E17=CG1,$F17,IF($G17=CG1,$H17,IF($I17=CG1,$J17,IF($K17=CG1,$L17,IF($M17=CG1,$N17,IF($O17=CG1,$P17,"")))))) -> 0 | CH17: =IF($E17=CH1,"Y",IF($G17=CH1,"Y",IF($I17=CH1,"Y",IF($K17=CH1,"Y",IF($M17=CH1,"Y",IF($O17=CH1,"Y","")))))) -> Y | CI17: =$A$17 -> 15 | CJ17: =IF($E17=CJ1,$F17,IF($G17=CJ1,$H17,IF($I17=CJ1,$J17,IF($K17=CJ1,$L17,IF($M17=CJ1,$N17,IF($O17=CJ1,$P17,"")))))) -> 0 | CK17: =IF($E17=CK1,"Y",IF($G17=CK1,"Y",IF($I17=CK1,"Y",IF($K17=CK1,"Y",IF($M17=CK1,"Y",IF($O17=CK1,"Y","")))))) -> Y | CL17: =$A$17 -> 15 | CM17: =IF($E17=CM1,$F17,IF($G17=CM1,$H17,IF($I17=CM1,$J17,IF($K17=CM1,$L17,IF($M17=CM1,$N17,IF($O17=CM1,$P17,"")))))) -> 0 | CN17: =IF($E17=CN1,"Y",IF($G17=CN1,"Y",IF($I17=CN1,"Y",IF($K17=CN1,"Y",IF($M17=CN1,"Y",IF($O17=CN1,"Y","")))))) -> Y | CO17: =$A$17 -> 15 | CP17: =IF($E17=CP1,$F17,IF($G17=CP1,$H17,IF($I17=CP1,$J17,IF($K17=CP1,$L17,IF($M17=CP1,$N17,IF($O17=CP1,$P17,"")))))) -> 0 | CQ17: =IF($E17=CQ1,"Y",IF($G17=CQ1,"Y",IF($I17=CQ1,"Y",IF($K17=CQ1,"Y",IF($M17=CQ1,"Y",IF($O17=CQ1,"Y","")))))) -> Y | CR17: =$A$17 -> 15 | CS17: =IF($E17=CS1,$F17,IF($G17=CS1,$H17,IF($I17=CS1,$J17,IF($K17=CS1,$L17,IF($M17=CS1,$N17,IF($O17=CS1,$P17,"")))))) -> 0 | CT17: =IF($E17=CT1,"Y",IF($G17=CT1,"Y",IF($I17=CT1,"Y",IF($K17=CT1,"Y",IF($M17=CT1,"Y",IF($O17=CT1,"Y","")))))) -> Y | CU17: =$A$17 -> 15 | CV17: =IF($E17=CV1,$F17,IF($G17=CV1,$H17,IF($I17=CV1,$J17,IF($K17=CV1,$L17,IF($M17=CV1,$N17,IF($O17=CV1,$P17,"")))))) -> 0 | CW17: =IF($E17=CW1,"Y",IF($G17=CW1,"Y",IF($I17=CW1,"Y",IF($K17=CW1,"Y",IF($M17=CW1,"Y",IF($O17=CW1,"Y","")))))) -> Y | CX17: =$A$17 -> 15 | CY17: =IF($E17=CY1,$F17,IF($G17=CY1,$H17,IF($I17=CY1,$J17,IF($K17=CY1,$L17,IF($M17=CY1,$N17,IF($O17=CY1,$P17,"")))))) -> 0 | CZ17: =IF($E17=CZ1,"Y",IF($G17=CZ1,"Y",IF($I17=CZ1,"Y",IF($K17=CZ1,"Y",IF($M17=CZ1,"Y",IF($O17=CZ1,"Y","")))))) -> Y | DA17: =$A$17 -> 15 | DB17: =IF($E17=DB1,$F17,IF($G17=DB1,$H17,IF($I17=DB1,$J17,IF($K17=DB1,$L17,IF($M17=DB1,$N17,IF($O17=DB1,$P17,"")))))) -> 0 | DC17: =IF($E17=DC1,"Y",IF($G17=DC1,"Y",IF($I17=DC1,"Y",IF($K17=DC1,"Y",IF($M17=DC1,"Y",IF($O17=DC1,"Y","")))))) -> Y | DD17: =$A$17 -> 15 | DE17: =IF($E17=DE1,$F17,IF($G17=DE1,$H17,IF($I17=DE1,$J17,IF($K17=DE1,$L17,IF($M17=DE1,$N17,IF($O17=DE1,$P17,"")))))) -> 0 | DF17: =IF($E17=DF1,"Y",IF($G17=DF1,"Y",IF($I17=DF1,"Y",IF($K17=DF1,"Y",IF($M17=DF1,"Y",IF($O17=DF1,"Y","")))))) -> Y | DG17: =$A$17 -> 15 | DH17: =IF($E17=DH1,$F17,IF($G17=DH1,$H17,IF($I17=DH1,$J17,IF($K17=DH1,$L17,IF($M17=DH1,$N17,IF($O17=DH1,$P17,"")))))) -> 0 | DI17: =IF($E17=DI1,"Y",IF($G17=DI1,"Y",IF($I17=DI1,"Y",IF($K17=DI1,"Y",IF($M17=DI1,"Y",IF($O17=DI1,"Y","")))))) -> Y | DJ17: =$A$17 -> 15 | DK17: =IF($E17=DK1,$F17,IF($G17=DK1,$H17,IF($I17=DK1,$J17,IF($K17=DK1,$L17,IF($M17=DK1,$N17,IF($O17=DK1,$P17,"")))))) -> 0 | DL17: =IF($E17=DL1,"Y",IF($G17=DL1,"Y",IF($I17=DL1,"Y",IF($K17=DL1,"Y",IF($M17=DL1,"Y",IF($O17=DL1,"Y","")))))) -> Y | DM17: =$A$17 -> 15 | DN17: =IF($E17=DN1,$F17,IF($G17=DN1,$H17,IF($I17=DN1,$J17,IF($K17=DN1,$L17,IF($M17=DN1,$N17,IF($O17=DN1,$P17,"")))))) -> 0 | DO17: =IF($E17=DO1,"Y",IF($G17=DO1,"Y",IF($I17=DO1,"Y",IF($K17=DO1,"Y",IF($M17=DO1,"Y",IF($O17=DO1,"Y","")))))) -> Y | DP17: =$A$17 -> 15 | DQ17: =IF($E17=DQ1,$F17,IF($G17=DQ1,$H17,IF($I17=DQ1,$J17,IF($K17=DQ1,$L17,IF($M17=DQ1,$N17,IF($O17=DQ1,$P17,"")))))) -> 0
A18: 16 | B18: Daniel Nwonu | C18: Essex | D18: M | E18: 100 | F18: 13 | G18: 200 | H18: 27 | Q18: Y | R18: 16 | S18: 13 | T18: =IF($E18=$V$1,"Y",IF($G18=$V$1,"Y",IF($I18=$V$1,"Y",IF($K18=$V$1,"Y",IF($M18=$V$1,"Y",IF($O18=$V$1,"Y","")))))) ->  | U18: 16 | V18: =IF($E18=$V$1,$F18,IF($G18=$V$1,$H18,IF($I18=$V$1,$J18,IF($K18=$V$1,$L18,IF($M18=$V$1,$N18,IF($O18=$V$1,$P18,"")))))) ->  | W18: =IF($E18=$Y$1,"Y",IF($G18=$Y$1,"Y",IF($I18=$Y$1,"Y",IF($K18=$Y$1,"Y",IF($M18=$Y$1,"Y",IF($O18=$Y$1,"Y","")))))) ->  | X18: 16 | Y18: =IF($E18=$Y$1,$F18,IF($G18=$Y$1,$H18,IF($I18=$Y$1,$J18,IF($K18=$Y$1,$L18,IF($M18=$Y$1,$N18,IF($O18=$Y$1,$P18,"")))))) ->  | Z18: =IF($E18=$AB$1,"Y",IF($G18=$AB$1,"Y",IF($I18=$AB$1,"Y",IF($K18=$AB$1,"Y",IF($M18=$AB$1,"Y",IF($O18=$AB$1,"Y","")))))) -> Y | AA18: 16 | AB18: =IF($E18=$AB$1,$F18,IF($G18=$AB$1,$H18,IF($I18=$AB$1,$J18,IF($K18=$AB$1,$L18,IF($M18=$AB$1,$N18,IF($O18=$AB$1,$P18,"")))))) -> 27 | AC18: =IF($E18=$AE$1,"Y",IF($G18=$AE$1,"Y",IF($I18=$AE$1,"Y",IF($K18=$AE$1,"Y",IF($M18=$AE$1,"Y",IF($O18=$AE$1,"Y","")))))) ->  | AD18: 16 | AE18: =IF($E18=$AE$1,$F18,IF($G18=$AE$1,$H18,IF($I18=$AE$1,$J18,IF($K18=$AE$1,$L18,IF($M18=$AE$1,$N18,IF($O18=$AE$1,$P18,"")))))) ->  | AF18: =IF($E18=$AH$1,"Y",IF($G18=$AH$1,"Y",IF($I18=$AH$1,"Y",IF($K18=$AH$1,"Y",IF($M18=$AH$1,"Y",IF($O18=$AH$1,"Y","")))))) ->  | AG18: 16 | AH18: =IF($E18=$AH$1,$F18,IF($G18=$AH$1,$H18,IF($I18=$AH$1,$J18,IF($K18=$AH$1,$L18,IF($M18=$AH$1,$N18,IF($O18=$AH$1,$P18,"")))))) ->  | AJ18: 16 | AK18: =IF($E18=$AK$1,$F18,IF($G18=$AK$1,$H18,IF($I18=$AK$1,$J18,IF($K18=$AK$1,$L18,IF($M18=$AK$1,$N18,IF($O18=$AK$1,$P18,"")))))) ->  | AM18: =$A$18 -> 16 | AP18: =$A$18 -> 16 | AR18: =IF($E18=AR1,"Y",IF($G18=AR1,"Y",IF($I18=AR1,"Y",IF($K18=AR1,"Y",IF($M18=AR1,"Y",IF($O18=AR1,"Y","")))))) ->  | AS18: =$A$18 -> 16 | AT18: =IF($E18=AT1,$F18,IF($G18=AT1,$H18,IF($I18=AT1,$J18,IF($K18=AT1,$L18,IF($M18=AT1,$N18,IF($O18=AT1,$P18,"")))))) ->  | AU18: =IF($E18=AU1,"Y",IF($G18=AU1,"Y",IF($I18=AU1,"Y",IF($K18=AU1,"Y",IF($M18=AU1,"Y",IF($O18=AU1,"Y","")))))) ->  | AV18: =$A$18 -> 16 | AW18: =IF($E18=AW1,$F18,IF($G18=AW1,$H18,IF($I18=AW1,$J18,IF($K18=AW1,$L18,IF($M18=AW1,$N18,IF($O18=AW1,$P18,"")))))) ->  | AX18: =IF($E18=AX1,"Y",IF($G18=AX1,"Y",IF($I18=AX1,"Y",IF($K18=AX1,"Y",IF($M18=AX1,"Y",IF($O18=AX1,"Y","")))))) ->  | AY18: =$A$18 -> 16 | AZ18: =IF($E18=AZ1,$F18,IF($G18=AZ1,$H18,IF($I18=AZ1,$J18,IF($K18=AZ1,$L18,IF($M18=AZ1,$N18,IF($O18=AZ1,$P18,"")))))) ->  | BA18: =IF($E18=BA1,"Y",IF($G18=BA1,"Y",IF($I18=BA1,"Y",IF($K18=BA1,"Y",IF($M18=BA1,"Y",IF($O18=BA1,"Y","")))))) ->  | BB18: =$A$18 -> 16 | BC18: =IF($E18=BC1,$F18,IF($G18=BC1,$H18,IF($I18=BC1,$J18,IF($K18=BC1,$L18,IF($M18=BC1,$N18,IF($O18=BC1,$P18,"")))))) ->  | BD18: =IF($E18=BD1,"Y",IF($G18=BD1,"Y",IF($I18=BD1,"Y",IF($K18=BD1,"Y",IF($M18=BD1,"Y",IF($O18=BD1,"Y","")))))) ->  | BE18: =$A$18 -> 16 | BF18: =IF($E18=BF1,$F18,IF($G18=BF1,$H18,IF($I18=BF1,$J18,IF($K18=BF1,$L18,IF($M18=BF1,$N18,IF($O18=BF1,$P18,"")))))) ->  | BG18: =IF($E18=BG1,"Y",IF($G18=BG1,"Y",IF($I18=BG1,"Y",IF($K18=BG1,"Y",IF($M18=BG1,"Y",IF($O18=BG1,"Y","")))))) ->  | BH18: =$A$18 -> 16 | BI18: =IF($E18=BI1,$F18,IF($G18=BI1,$H18,IF($I18=BI1,$J18,IF($K18=BI1,$L18,IF($M18=BI1,$N18,IF($O18=BI1,$P18,"")))))) ->  | BJ18: =IF($E18=BJ1,"Y",IF($G18=BJ1,"Y",IF($I18=BJ1,"Y",IF($K18=BJ1,"Y",IF($M18=BJ1,"Y",IF($O18=BJ1,"Y","")))))) ->  | BK18: =$A$18 -> 16 | BL18: =IF($E18=BL1,$F18,IF($G18=BL1,$H18,IF($I18=BL1,$J18,IF($K18=BL1,$L18,IF($M18=BL1,$N18,IF($O18=BL1,$P18,"")))))) ->  | BM18: =IF($E18=BM1,"Y",IF($G18=BM1,"Y",IF($I18=BM1,"Y",IF($K18=BM1,"Y",IF($M18=BM1,"Y",IF($O18=BM1,"Y","")))))) ->  | BN18: =$A$18 -> 16 | BO18: =IF($E18=BO1,$F18,IF($G18=BO1,$H18,IF($I18=BO1,$J18,IF($K18=BO1,$L18,IF($M18=BO1,$N18,IF($O18=BO1,$P18,"")))))) ->  | BP18: =IF($E18=BP1,"Y",IF($G18=BP1,"Y",IF($I18=BP1,"Y",IF($K18=BP1,"Y",IF($M18=BP1,"Y",IF($O18=BP1,"Y","")))))) ->  | BQ18: =$A$18 -> 16 | BR18: =IF($E18=BR1,$F18,IF($G18=BR1,$H18,IF($I18=BR1,$J18,IF($K18=BR1,$L18,IF($M18=BR1,$N18,IF($O18=BR1,$P18,"")))))) ->  | BS18: =IF($E18=BS1,"Y",IF($G18=BS1,"Y",IF($I18=BS1,"Y",IF($K18=BS1,"Y",IF($M18=BS1,"Y",IF($O18=BS1,"Y","")))))) ->  | BT18: =$A$18 -> 16 | BU18: =IF($E18=BU1,$F18,IF($G18=BU1,$H18,IF($I18=BU1,$J18,IF($K18=BU1,$L18,IF($M18=BU1,$N18,IF($O18=BU1,$P18,"")))))) ->  | BV18: =IF($E18=BV1,"Y",IF($G18=BV1,"Y",IF($I18=BV1,"Y",IF($K18=BV1,"Y",IF($M18=BV1,"Y",IF($O18=BV1,"Y","")))))) ->  | BW18: =$A$18 -> 16 | BX18: =IF($E18=BX1,$F18,IF($G18=BX1,$H18,IF($I18=BX1,$J18,IF($K18=BX1,$L18,IF($M18=BX1,$N18,IF($O18=BX1,$P18,"")))))) ->  | BY18: =IF($E18=BY1,"Y",IF($G18=BY1,"Y",IF($I18=BY1,"Y",IF($K18=BY1,"Y",IF($M18=BY1,"Y",IF($O18=BY1,"Y","")))))) ->  | BZ18: =$A$18 -> 16 | CA18: =IF($E18=CA1,$F18,IF($G18=CA1,$H18,IF($I18=CA1,$J18,IF($K18=CA1,$L18,IF($M18=CA1,$N18,IF($O18=CA1,$P18,"")))))) ->  | CB18: =IF($E18=CB1,"Y",IF($G18=CB1,"Y",IF($I18=CB1,"Y",IF($K18=CB1,"Y",IF($M18=CB1,"Y",IF($O18=CB1,"Y","")))))) ->  | CC18: =$A$18 -> 16 | CD18: =IF($E18=CD1,$F18,IF($G18=CD1,$H18,IF($I18=CD1,$J18,IF($K18=CD1,$L18,IF($M18=CD1,$N18,IF($O18=CD1,$P18,"")))))) ->  | CE18: =IF($E18=CE1,"Y",IF($G18=CE1,"Y",IF($I18=CE1,"Y",IF($K18=CE1,"Y",IF($M18=CE1,"Y",IF($O18=CE1,"Y","")))))) -> Y | CF18: =$A$18 -> 16 | CG18: =IF($E18=CG1,$F18,IF($G18=CG1,$H18,IF($I18=CG1,$J18,IF($K18=CG1,$L18,IF($M18=CG1,$N18,IF($O18=CG1,$P18,"")))))) -> 0 | CH18: =IF($E18=CH1,"Y",IF($G18=CH1,"Y",IF($I18=CH1,"Y",IF($K18=CH1,"Y",IF($M18=CH1,"Y",IF($O18=CH1,"Y","")))))) -> Y | CI18: =$A$18 -> 16 | CJ18: =IF($E18=CJ1,$F18,IF($G18=CJ1,$H18,IF($I18=CJ1,$J18,IF($K18=CJ1,$L18,IF($M18=CJ1,$N18,IF($O18=CJ1,$P18,"")))))) -> 0 | CK18: =IF($E18=CK1,"Y",IF($G18=CK1,"Y",IF($I18=CK1,"Y",IF($K18=CK1,"Y",IF($M18=CK1,"Y",IF($O18=CK1,"Y","")))))) -> Y | CL18: =$A$18 -> 16 | CM18: =IF($E18=CM1,$F18,IF($G18=CM1,$H18,IF($I18=CM1,$J18,IF($K18=CM1,$L18,IF($M18=CM1,$N18,IF($O18=CM1,$P18,"")))))) -> 0 | CN18: =IF($E18=CN1,"Y",IF($G18=CN1,"Y",IF($I18=CN1,"Y",IF($K18=CN1,"Y",IF($M18=CN1,"Y",IF($O18=CN1,"Y","")))))) -> Y | CO18: =$A$18 -> 16 | CP18: =IF($E18=CP1,$F18,IF($G18=CP1,$H18,IF($I18=CP1,$J18,IF($K18=CP1,$L18,IF($M18=CP1,$N18,IF($O18=CP1,$P18,"")))))) -> 0 | CQ18: =IF($E18=CQ1,"Y",IF($G18=CQ1,"Y",IF($I18=CQ1,"Y",IF($K18=CQ1,"Y",IF($M18=CQ1,"Y",IF($O18=CQ1,"Y","")))))) -> Y | CR18: =$A$18 -> 16 | CS18: =IF($E18=CS1,$F18,IF($G18=CS1,$H18,IF($I18=CS1,$J18,IF($K18=CS1,$L18,IF($M18=CS1,$N18,IF($O18=CS1,$P18,"")))))) -> 0 | CT18: =IF($E18=CT1,"Y",IF($G18=CT1,"Y",IF($I18=CT1,"Y",IF($K18=CT1,"Y",IF($M18=CT1,"Y",IF($O18=CT1,"Y","")))))) -> Y | CU18: =$A$18 -> 16 | CV18: =IF($E18=CV1,$F18,IF($G18=CV1,$H18,IF($I18=CV1,$J18,IF($K18=CV1,$L18,IF($M18=CV1,$N18,IF($O18=CV1,$P18,"")))))) -> 0 | CW18: =IF($E18=CW1,"Y",IF($G18=CW1,"Y",IF($I18=CW1,"Y",IF($K18=CW1,"Y",IF($M18=CW1,"Y",IF($O18=CW1,"Y","")))))) -> Y | CX18: =$A$18 -> 16 | CY18: =IF($E18=CY1,$F18,IF($G18=CY1,$H18,IF($I18=CY1,$J18,IF($K18=CY1,$L18,IF($M18=CY1,$N18,IF($O18=CY1,$P18,"")))))) -> 0 | CZ18: =IF($E18=CZ1,"Y",IF($G18=CZ1,"Y",IF($I18=CZ1,"Y",IF($K18=CZ1,"Y",IF($M18=CZ1,"Y",IF($O18=CZ1,"Y","")))))) -> Y | DA18: =$A$18 -> 16 | DB18: =IF($E18=DB1,$F18,IF($G18=DB1,$H18,IF($I18=DB1,$J18,IF($K18=DB1,$L18,IF($M18=DB1,$N18,IF($O18=DB1,$P18,"")))))) -> 0 | DC18: =IF($E18=DC1,"Y",IF($G18=DC1,"Y",IF($I18=DC1,"Y",IF($K18=DC1,"Y",IF($M18=DC1,"Y",IF($O18=DC1,"Y","")))))) -> Y | DD18: =$A$18 -> 16 | DE18: =IF($E18=DE1,$F18,IF($G18=DE1,$H18,IF($I18=DE1,$J18,IF($K18=DE1,$L18,IF($M18=DE1,$N18,IF($O18=DE1,$P18,"")))))) -> 0 | DF18: =IF($E18=DF1,"Y",IF($G18=DF1,"Y",IF($I18=DF1,"Y",IF($K18=DF1,"Y",IF($M18=DF1,"Y",IF($O18=DF1,"Y","")))))) -> Y | DG18: =$A$18 -> 16 | DH18: =IF($E18=DH1,$F18,IF($G18=DH1,$H18,IF($I18=DH1,$J18,IF($K18=DH1,$L18,IF($M18=DH1,$N18,IF($O18=DH1,$P18,"")))))) -> 0 | DI18: =IF($E18=DI1,"Y",IF($G18=DI1,"Y",IF($I18=DI1,"Y",IF($K18=DI1,"Y",IF($M18=DI1,"Y",IF($O18=DI1,"Y","")))))) -> Y | DJ18: =$A$18 -> 16 | DK18: =IF($E18=DK1,$F18,IF($G18=DK1,$H18,IF($I18=DK1,$J18,IF($K18=DK1,$L18,IF($M18=DK1,$N18,IF($O18=DK1,$P18,"")))))) -> 0 | DL18: =IF($E18=DL1,"Y",IF($G18=DL1,"Y",IF($I18=DL1,"Y",IF($K18=DL1,"Y",IF($M18=DL1,"Y",IF($O18=DL1,"Y","")))))) -> Y | DM18: =$A$18 -> 16 | DN18: =IF($E18=DN1,$F18,IF($G18=DN1,$H18,IF($I18=DN1,$J18,IF($K18=DN1,$L18,IF($M18=DN1,$N18,IF($O18=DN1,$P18,"")))))) -> 0 | DO18: =IF($E18=DO1,"Y",IF($G18=DO1,"Y",IF($I18=DO1,"Y",IF($K18=DO1,"Y",IF($M18=DO1,"Y",IF($O18=DO1,"Y","")))))) -> Y | DP18: =$A$18 -> 16 | DQ18: =IF($E18=DQ1,$F18,IF($G18=DQ1,$H18,IF($I18=DQ1,$J18,IF($K18=DQ1,$L18,IF($M18=DQ1,$N18,IF($O18=DQ1,$P18,"")))))) -> 0
A19: 17 | B19: Hiromichi Otake | C19: Essex | D19: M | E19: 1500 | F19: 00:05:00 | R19: 17 | T19: =IF($E19=$V$1,"Y",IF($G19=$V$1,"Y",IF($I19=$V$1,"Y",IF($K19=$V$1,"Y",IF($M19=$V$1,"Y",IF($O19=$V$1,"Y","")))))) ->  | U19: 17 | V19: =IF($E19=$V$1,$F19,IF($G19=$V$1,$H19,IF($I19=$V$1,$J19,IF($K19=$V$1,$L19,IF($M19=$V$1,$N19,IF($O19=$V$1,$P19,"")))))) ->  | W19: =IF($E19=$Y$1,"Y",IF($G19=$Y$1,"Y",IF($I19=$Y$1,"Y",IF($K19=$Y$1,"Y",IF($M19=$Y$1,"Y",IF($O19=$Y$1,"Y","")))))) ->  | X19: 17 | Y19: =IF($E19=$Y$1,$F19,IF($G19=$Y$1,$H19,IF($I19=$Y$1,$J19,IF($K19=$Y$1,$L19,IF($M19=$Y$1,$N19,IF($O19=$Y$1,$P19,"")))))) ->  | Z19: =IF($E19=$AB$1,"Y",IF($G19=$AB$1,"Y",IF($I19=$AB$1,"Y",IF($K19=$AB$1,"Y",IF($M19=$AB$1,"Y",IF($O19=$AB$1,"Y","")))))) ->  | AA19: 17 | AB19: =IF($E19=$AB$1,$F19,IF($G19=$AB$1,$H19,IF($I19=$AB$1,$J19,IF($K19=$AB$1,$L19,IF($M19=$AB$1,$N19,IF($O19=$AB$1,$P19,"")))))) ->  | AC19: =IF($E19=$AE$1,"Y",IF($G19=$AE$1,"Y",IF($I19=$AE$1,"Y",IF($K19=$AE$1,"Y",IF($M19=$AE$1,"Y",IF($O19=$AE$1,"Y","")))))) ->  | AD19: 17 | AE19: =IF($E19=$AE$1,$F19,IF($G19=$AE$1,$H19,IF($I19=$AE$1,$J19,IF($K19=$AE$1,$L19,IF($M19=$AE$1,$N19,IF($O19=$AE$1,$P19,"")))))) ->  | AF19: =IF($E19=$AH$1,"Y",IF($G19=$AH$1,"Y",IF($I19=$AH$1,"Y",IF($K19=$AH$1,"Y",IF($M19=$AH$1,"Y",IF($O19=$AH$1,"Y","")))))) ->  | AG19: 17 | AH19: =IF($E19=$AH$1,$F19,IF($G19=$AH$1,$H19,IF($I19=$AH$1,$J19,IF($K19=$AH$1,$L19,IF($M19=$AH$1,$N19,IF($O19=$AH$1,$P19,"")))))) ->  | AJ19: 17 | AK19: =IF($E19=$AK$1,$F19,IF($G19=$AK$1,$H19,IF($I19=$AK$1,$J19,IF($K19=$AK$1,$L19,IF($M19=$AK$1,$N19,IF($O19=$AK$1,$P19,"")))))) ->  | AL19: Y | AM19: =$A$19 -> 17 | AN19: 00:05:00 | AP19: =$A$19 -> 17 | AR19: =IF($E19=AR1,"Y",IF($G19=AR1,"Y",IF($I19=AR1,"Y",IF($K19=AR1,"Y",IF($M19=AR1,"Y",IF($O19=AR1,"Y","")))))) ->  | AS19: =$A$19 -> 17 | AT19: =IF($E19=AT1,$F19,IF($G19=AT1,$H19,IF($I19=AT1,$J19,IF($K19=AT1,$L19,IF($M19=AT1,$N19,IF($O19=AT1,$P19,"")))))) ->  | AU19: =IF($E19=AU1,"Y",IF($G19=AU1,"Y",IF($I19=AU1,"Y",IF($K19=AU1,"Y",IF($M19=AU1,"Y",IF($O19=AU1,"Y","")))))) ->  | AV19: =$A$19 -> 17 | AW19: =IF($E19=AW1,$F19,IF($G19=AW1,$H19,IF($I19=AW1,$J19,IF($K19=AW1,$L19,IF($M19=AW1,$N19,IF($O19=AW1,$P19,"")))))) ->  | AX19: =IF($E19=AX1,"Y",IF($G19=AX1,"Y",IF($I19=AX1,"Y",IF($K19=AX1,"Y",IF($M19=AX1,"Y",IF($O19=AX1,"Y","")))))) ->  | AY19: =$A$19 -> 17 | AZ19: =IF($E19=AZ1,$F19,IF($G19=AZ1,$H19,IF($I19=AZ1,$J19,IF($K19=AZ1,$L19,IF($M19=AZ1,$N19,IF($O19=AZ1,$P19,"")))))) ->  | BA19: =IF($E19=BA1,"Y",IF($G19=BA1,"Y",IF($I19=BA1,"Y",IF($K19=BA1,"Y",IF($M19=BA1,"Y",IF($O19=BA1,"Y","")))))) ->  | BB19: =$A$19 -> 17 | BC19: =IF($E19=BC1,$F19,IF($G19=BC1,$H19,IF($I19=BC1,$J19,IF($K19=BC1,$L19,IF($M19=BC1,$N19,IF($O19=BC1,$P19,"")))))) ->  | BD19: =IF($E19=BD1,"Y",IF($G19=BD1,"Y",IF($I19=BD1,"Y",IF($K19=BD1,"Y",IF($M19=BD1,"Y",IF($O19=BD1,"Y","")))))) ->  | BE19: =$A$19 -> 17 | BF19: =IF($E19=BF1,$F19,IF($G19=BF1,$H19,IF($I19=BF1,$J19,IF($K19=BF1,$L19,IF($M19=BF1,$N19,IF($O19=BF1,$P19,"")))))) ->  | BG19: =IF($E19=BG1,"Y",IF($G19=BG1,"Y",IF($I19=BG1,"Y",IF($K19=BG1,"Y",IF($M19=BG1,"Y",IF($O19=BG1,"Y","")))))) ->  | BH19: =$A$19 -> 17 | BI19: =IF($E19=BI1,$F19,IF($G19=BI1,$H19,IF($I19=BI1,$J19,IF($K19=BI1,$L19,IF($M19=BI1,$N19,IF($O19=BI1,$P19,"")))))) ->  | BJ19: =IF($E19=BJ1,"Y",IF($G19=BJ1,"Y",IF($I19=BJ1,"Y",IF($K19=BJ1,"Y",IF($M19=BJ1,"Y",IF($O19=BJ1,"Y","")))))) ->  | BK19: =$A$19 -> 17 | BL19: =IF($E19=BL1,$F19,IF($G19=BL1,$H19,IF($I19=BL1,$J19,IF($K19=BL1,$L19,IF($M19=BL1,$N19,IF($O19=BL1,$P19,"")))))) ->  | BM19: =IF($E19=BM1,"Y",IF($G19=BM1,"Y",IF($I19=BM1,"Y",IF($K19=BM1,"Y",IF($M19=BM1,"Y",IF($O19=BM1,"Y","")))))) ->  | BN19: =$A$19 -> 17 | BO19: =IF($E19=BO1,$F19,IF($G19=BO1,$H19,IF($I19=BO1,$J19,IF($K19=BO1,$L19,IF($M19=BO1,$N19,IF($O19=BO1,$P19,"")))))) ->  | BP19: =IF($E19=BP1,"Y",IF($G19=BP1,"Y",IF($I19=BP1,"Y",IF($K19=BP1,"Y",IF($M19=BP1,"Y",IF($O19=BP1,"Y","")))))) ->  | BQ19: =$A$19 -> 17 | BR19: =IF($E19=BR1,$F19,IF($G19=BR1,$H19,IF($I19=BR1,$J19,IF($K19=BR1,$L19,IF($M19=BR1,$N19,IF($O19=BR1,$P19,"")))))) ->  | BS19: =IF($E19=BS1,"Y",IF($G19=BS1,"Y",IF($I19=BS1,"Y",IF($K19=BS1,"Y",IF($M19=BS1,"Y",IF($O19=BS1,"Y","")))))) ->  | BT19: =$A$19 -> 17 | BU19: =IF($E19=BU1,$F19,IF($G19=BU1,$H19,IF($I19=BU1,$J19,IF($K19=BU1,$L19,IF($M19=BU1,$N19,IF($O19=BU1,$P19,"")))))) ->  | BV19: =IF($E19=BV1,"Y",IF($G19=BV1,"Y",IF($I19=BV1,"Y",IF($K19=BV1,"Y",IF($M19=BV1,"Y",IF($O19=BV1,"Y","")))))) ->  | BW19: =$A$19 -> 17 | BX19: =IF($E19=BX1,$F19,IF($G19=BX1,$H19,IF($I19=BX1,$J19,IF($K19=BX1,$L19,IF($M19=BX1,$N19,IF($O19=BX1,$P19,"")))))) ->  | BY19: =IF($E19=BY1,"Y",IF($G19=BY1,"Y",IF($I19=BY1,"Y",IF($K19=BY1,"Y",IF($M19=BY1,"Y",IF($O19=BY1,"Y","")))))) ->  | BZ19: =$A$19 -> 17 | CA19: =IF($E19=CA1,$F19,IF($G19=CA1,$H19,IF($I19=CA1,$J19,IF($K19=CA1,$L19,IF($M19=CA1,$N19,IF($O19=CA1,$P19,"")))))) ->  | CB19: =IF($E19=CB1,"Y",IF($G19=CB1,"Y",IF($I19=CB1,"Y",IF($K19=CB1,"Y",IF($M19=CB1,"Y",IF($O19=CB1,"Y","")))))) ->  | CC19: =$A$19 -> 17 | CD19: =IF($E19=CD1,$F19,IF($G19=CD1,$H19,IF($I19=CD1,$J19,IF($K19=CD1,$L19,IF($M19=CD1,$N19,IF($O19=CD1,$P19,"")))))) ->  | CE19: =IF($E19=CE1,"Y",IF($G19=CE1,"Y",IF($I19=CE1,"Y",IF($K19=CE1,"Y",IF($M19=CE1,"Y",IF($O19=CE1,"Y","")))))) -> Y | CF19: =$A$19 -> 17 | CG19: =IF($E19=CG1,$F19,IF($G19=CG1,$H19,IF($I19=CG1,$J19,IF($K19=CG1,$L19,IF($M19=CG1,$N19,IF($O19=CG1,$P19,"")))))) -> 0 | CH19: =IF($E19=CH1,"Y",IF($G19=CH1,"Y",IF($I19=CH1,"Y",IF($K19=CH1,"Y",IF($M19=CH1,"Y",IF($O19=CH1,"Y","")))))) -> Y | CI19: =$A$19 -> 17 | CJ19: =IF($E19=CJ1,$F19,IF($G19=CJ1,$H19,IF($I19=CJ1,$J19,IF($K19=CJ1,$L19,IF($M19=CJ1,$N19,IF($O19=CJ1,$P19,"")))))) -> 0 | CK19: =IF($E19=CK1,"Y",IF($G19=CK1,"Y",IF($I19=CK1,"Y",IF($K19=CK1,"Y",IF($M19=CK1,"Y",IF($O19=CK1,"Y","")))))) -> Y | CL19: =$A$19 -> 17 | CM19: =IF($E19=CM1,$F19,IF($G19=CM1,$H19,IF($I19=CM1,$J19,IF($K19=CM1,$L19,IF($M19=CM1,$N19,IF($O19=CM1,$P19,"")))))) -> 0 | CN19: =IF($E19=CN1,"Y",IF($G19=CN1,"Y",IF($I19=CN1,"Y",IF($K19=CN1,"Y",IF($M19=CN1,"Y",IF($O19=CN1,"Y","")))))) -> Y | CO19: =$A$19 -> 17 | CP19: =IF($E19=CP1,$F19,IF($G19=CP1,$H19,IF($I19=CP1,$J19,IF($K19=CP1,$L19,IF($M19=CP1,$N19,IF($O19=CP1,$P19,"")))))) -> 0 | CQ19: =IF($E19=CQ1,"Y",IF($G19=CQ1,"Y",IF($I19=CQ1,"Y",IF($K19=CQ1,"Y",IF($M19=CQ1,"Y",IF($O19=CQ1,"Y","")))))) -> Y | CR19: =$A$19 -> 17 | CS19: =IF($E19=CS1,$F19,IF($G19=CS1,$H19,IF($I19=CS1,$J19,IF($K19=CS1,$L19,IF($M19=CS1,$N19,IF($O19=CS1,$P19,"")))))) -> 0 | CT19: =IF($E19=CT1,"Y",IF($G19=CT1,"Y",IF($I19=CT1,"Y",IF($K19=CT1,"Y",IF($M19=CT1,"Y",IF($O19=CT1,"Y","")))))) -> Y | CU19: =$A$19 -> 17 | CV19: =IF($E19=CV1,$F19,IF($G19=CV1,$H19,IF($I19=CV1,$J19,IF($K19=CV1,$L19,IF($M19=CV1,$N19,IF($O19=CV1,$P19,"")))))) -> 0 | CW19: =IF($E19=CW1,"Y",IF($G19=CW1,"Y",IF($I19=CW1,"Y",IF($K19=CW1,"Y",IF($M19=CW1,"Y",IF($O19=CW1,"Y","")))))) -> Y | CX19: =$A$19 -> 17 | CY19: =IF($E19=CY1,$F19,IF($G19=CY1,$H19,IF($I19=CY1,$J19,IF($K19=CY1,$L19,IF($M19=CY1,$N19,IF($O19=CY1,$P19,"")))))) -> 0 | CZ19: =IF($E19=CZ1,"Y",IF($G19=CZ1,"Y",IF($I19=CZ1,"Y",IF($K19=CZ1,"Y",IF($M19=CZ1,"Y",IF($O19=CZ1,"Y","")))))) -> Y | DA19: =$A$19 -> 17 | DB19: =IF($E19=DB1,$F19,IF($G19=DB1,$H19,IF($I19=DB1,$J19,IF($K19=DB1,$L19,IF($M19=DB1,$N19,IF($O19=DB1,$P19,"")))))) -> 0 | DC19: =IF($E19=DC1,"Y",IF($G19=DC1,"Y",IF($I19=DC1,"Y",IF($K19=DC1,"Y",IF($M19=DC1,"Y",IF($O19=DC1,"Y","")))))) -> Y | DD19: =$A$19 -> 17 | DE19: =IF($E19=DE1,$F19,IF($G19=DE1,$H19,IF($I19=DE1,$J19,IF($K19=DE1,$L19,IF($M19=DE1,$N19,IF($O19=DE1,$P19,"")))))) -> 0 | DF19: =IF($E19=DF1,"Y",IF($G19=DF1,"Y",IF($I19=DF1,"Y",IF($K19=DF1,"Y",IF($M19=DF1,"Y",IF($O19=DF1,"Y","")))))) -> Y | DG19: =$A$19 -> 17 | DH19: =IF($E19=DH1,$F19,IF($G19=DH1,$H19,IF($I19=DH1,$J19,IF($K19=DH1,$L19,IF($M19=DH1,$N19,IF($O19=DH1,$P19,"")))))) -> 0 | DI19: =IF($E19=DI1,"Y",IF($G19=DI1,"Y",IF($I19=DI1,"Y",IF($K19=DI1,"Y",IF($M19=DI1,"Y",IF($O19=DI1,"Y","")))))) -> Y | DJ19: =$A$19 -> 17 | DK19: =IF($E19=DK1,$F19,IF($G19=DK1,$H19,IF($I19=DK1,$J19,IF($K19=DK1,$L19,IF($M19=DK1,$N19,IF($O19=DK1,$P19,"")))))) -> 0 | DL19: =IF($E19=DL1,"Y",IF($G19=DL1,"Y",IF($I19=DL1,"Y",IF($K19=DL1,"Y",IF($M19=DL1,"Y",IF($O19=DL1,"Y","")))))) -> Y | DM19: =$A$19 -> 17 | DN19: =IF($E19=DN1,$F19,IF($G19=DN1,$H19,IF($I19=DN1,$J19,IF($K19=DN1,$L19,IF($M19=DN1,$N19,IF($O19=DN1,$P19,"")))))) -> 0 | DO19: =IF($E19=DO1,"Y",IF($G19=DO1,"Y",IF($I19=DO1,"Y",IF($K19=DO1,"Y",IF($M19=DO1,"Y",IF($O19=DO1,"Y","")))))) -> Y | DP19: =$A$19 -> 17 | DQ19: =IF($E19=DQ1,$F19,IF($G19=DQ1,$H19,IF($I19=DQ1,$J19,IF($K19=DQ1,$L19,IF($M19=DQ1,$N19,IF($O19=DQ1,$P19,"")))))) -> 0
A20: 18 | B20: Karl Johnston | C20: Essex | D20: M | E20: 400H | F20: 63 | R20: 18 | T20: =IF($E20=$V$1,"Y",IF($G20=$V$1,"Y",IF($I20=$V$1,"Y",IF($K20=$V$1,"Y",IF($M20=$V$1,"Y",IF($O20=$V$1,"Y","")))))) ->  | U20: 18 | V20: =IF($E20=$V$1,$F20,IF($G20=$V$1,$H20,IF($I20=$V$1,$J20,IF($K20=$V$1,$L20,IF($M20=$V$1,$N20,IF($O20=$V$1,$P20,"")))))) ->  | W20: =IF($E20=$Y$1,"Y",IF($G20=$Y$1,"Y",IF($I20=$Y$1,"Y",IF($K20=$Y$1,"Y",IF($M20=$Y$1,"Y",IF($O20=$Y$1,"Y","")))))) ->  | X20: 18 | Y20: =IF($E20=$Y$1,$F20,IF($G20=$Y$1,$H20,IF($I20=$Y$1,$J20,IF($K20=$Y$1,$L20,IF($M20=$Y$1,$N20,IF($O20=$Y$1,$P20,"")))))) ->  | Z20: =IF($E20=$AB$1,"Y",IF($G20=$AB$1,"Y",IF($I20=$AB$1,"Y",IF($K20=$AB$1,"Y",IF($M20=$AB$1,"Y",IF($O20=$AB$1,"Y","")))))) ->  | AA20: 18 | AB20: =IF($E20=$AB$1,$F20,IF($G20=$AB$1,$H20,IF($I20=$AB$1,$J20,IF($K20=$AB$1,$L20,IF($M20=$AB$1,$N20,IF($O20=$AB$1,$P20,"")))))) ->  | AC20: =IF($E20=$AE$1,"Y",IF($G20=$AE$1,"Y",IF($I20=$AE$1,"Y",IF($K20=$AE$1,"Y",IF($M20=$AE$1,"Y",IF($O20=$AE$1,"Y","")))))) ->  | AD20: 18 | AE20: =IF($E20=$AE$1,$F20,IF($G20=$AE$1,$H20,IF($I20=$AE$1,$J20,IF($K20=$AE$1,$L20,IF($M20=$AE$1,$N20,IF($O20=$AE$1,$P20,"")))))) ->  | AF20: =IF($E20=$AH$1,"Y",IF($G20=$AH$1,"Y",IF($I20=$AH$1,"Y",IF($K20=$AH$1,"Y",IF($M20=$AH$1,"Y",IF($O20=$AH$1,"Y","")))))) -> Y | AG20: 18 | AH20: =IF($E20=$AH$1,$F20,IF($G20=$AH$1,$H20,IF($I20=$AH$1,$J20,IF($K20=$AH$1,$L20,IF($M20=$AH$1,$N20,IF($O20=$AH$1,$P20,"")))))) -> 63 | AJ20: 18 | AK20: =IF($E20=$AK$1,$F20,IF($G20=$AK$1,$H20,IF($I20=$AK$1,$J20,IF($K20=$AK$1,$L20,IF($M20=$AK$1,$N20,IF($O20=$AK$1,$P20,"")))))) ->  | AM20: =$A$20 -> 18 | AP20: =$A$20 -> 18 | AR20: =IF($E20=AR1,"Y",IF($G20=AR1,"Y",IF($I20=AR1,"Y",IF($K20=AR1,"Y",IF($M20=AR1,"Y",IF($O20=AR1,"Y","")))))) ->  | AS20: =$A$20 -> 18 | AT20: =IF($E20=AT1,$F20,IF($G20=AT1,$H20,IF($I20=AT1,$J20,IF($K20=AT1,$L20,IF($M20=AT1,$N20,IF($O20=AT1,$P20,"")))))) ->  | AU20: =IF($E20=AU1,"Y",IF($G20=AU1,"Y",IF($I20=AU1,"Y",IF($K20=AU1,"Y",IF($M20=AU1,"Y",IF($O20=AU1,"Y","")))))) ->  | AV20: =$A$20 -> 18 | AW20: =IF($E20=AW1,$F20,IF($G20=AW1,$H20,IF($I20=AW1,$J20,IF($K20=AW1,$L20,IF($M20=AW1,$N20,IF($O20=AW1,$P20,"")))))) ->  | AX20: =IF($E20=AX1,"Y",IF($G20=AX1,"Y",IF($I20=AX1,"Y",IF($K20=AX1,"Y",IF($M20=AX1,"Y",IF($O20=AX1,"Y","")))))) ->  | AY20: =$A$20 -> 18 | AZ20: =IF($E20=AZ1,$F20,IF($G20=AZ1,$H20,IF($I20=AZ1,$J20,IF($K20=AZ1,$L20,IF($M20=AZ1,$N20,IF($O20=AZ1,$P20,"")))))) ->  | BA20: =IF($E20=BA1,"Y",IF($G20=BA1,"Y",IF($I20=BA1,"Y",IF($K20=BA1,"Y",IF($M20=BA1,"Y",IF($O20=BA1,"Y","")))))) ->  | BB20: =$A$20 -> 18 | BC20: =IF($E20=BC1,$F20,IF($G20=BC1,$H20,IF($I20=BC1,$J20,IF($K20=BC1,$L20,IF($M20=BC1,$N20,IF($O20=BC1,$P20,"")))))) ->  | BD20: =IF($E20=BD1,"Y",IF($G20=BD1,"Y",IF($I20=BD1,"Y",IF($K20=BD1,"Y",IF($M20=BD1,"Y",IF($O20=BD1,"Y","")))))) ->  | BE20: =$A$20 -> 18 | BF20: =IF($E20=BF1,$F20,IF($G20=BF1,$H20,IF($I20=BF1,$J20,IF($K20=BF1,$L20,IF($M20=BF1,$N20,IF($O20=BF1,$P20,"")))))) ->  | BG20: =IF($E20=BG1,"Y",IF($G20=BG1,"Y",IF($I20=BG1,"Y",IF($K20=BG1,"Y",IF($M20=BG1,"Y",IF($O20=BG1,"Y","")))))) ->  | BH20: =$A$20 -> 18 | BI20: =IF($E20=BI1,$F20,IF($G20=BI1,$H20,IF($I20=BI1,$J20,IF($K20=BI1,$L20,IF($M20=BI1,$N20,IF($O20=BI1,$P20,"")))))) ->  | BJ20: =IF($E20=BJ1,"Y",IF($G20=BJ1,"Y",IF($I20=BJ1,"Y",IF($K20=BJ1,"Y",IF($M20=BJ1,"Y",IF($O20=BJ1,"Y","")))))) ->  | BK20: =$A$20 -> 18 | BL20: =IF($E20=BL1,$F20,IF($G20=BL1,$H20,IF($I20=BL1,$J20,IF($K20=BL1,$L20,IF($M20=BL1,$N20,IF($O20=BL1,$P20,"")))))) ->  | BM20: =IF($E20=BM1,"Y",IF($G20=BM1,"Y",IF($I20=BM1,"Y",IF($K20=BM1,"Y",IF($M20=BM1,"Y",IF($O20=BM1,"Y","")))))) ->  | BN20: =$A$20 -> 18 | BO20: =IF($E20=BO1,$F20,IF($G20=BO1,$H20,IF($I20=BO1,$J20,IF($K20=BO1,$L20,IF($M20=BO1,$N20,IF($O20=BO1,$P20,"")))))) ->  | BP20: =IF($E20=BP1,"Y",IF($G20=BP1,"Y",IF($I20=BP1,"Y",IF($K20=BP1,"Y",IF($M20=BP1,"Y",IF($O20=BP1,"Y","")))))) ->  | BQ20: =$A$20 -> 18 | BR20: =IF($E20=BR1,$F20,IF($G20=BR1,$H20,IF($I20=BR1,$J20,IF($K20=BR1,$L20,IF($M20=BR1,$N20,IF($O20=BR1,$P20,"")))))) ->  | BS20: =IF($E20=BS1,"Y",IF($G20=BS1,"Y",IF($I20=BS1,"Y",IF($K20=BS1,"Y",IF($M20=BS1,"Y",IF($O20=BS1,"Y","")))))) ->  | BT20: =$A$20 -> 18 | BU20: =IF($E20=BU1,$F20,IF($G20=BU1,$H20,IF($I20=BU1,$J20,IF($K20=BU1,$L20,IF($M20=BU1,$N20,IF($O20=BU1,$P20,"")))))) ->  | BV20: =IF($E20=BV1,"Y",IF($G20=BV1,"Y",IF($I20=BV1,"Y",IF($K20=BV1,"Y",IF($M20=BV1,"Y",IF($O20=BV1,"Y","")))))) ->  | BW20: =$A$20 -> 18 | BX20: =IF($E20=BX1,$F20,IF($G20=BX1,$H20,IF($I20=BX1,$J20,IF($K20=BX1,$L20,IF($M20=BX1,$N20,IF($O20=BX1,$P20,"")))))) ->  | BY20: =IF($E20=BY1,"Y",IF($G20=BY1,"Y",IF($I20=BY1,"Y",IF($K20=BY1,"Y",IF($M20=BY1,"Y",IF($O20=BY1,"Y","")))))) ->  | BZ20: =$A$20 -> 18 | CA20: =IF($E20=CA1,$F20,IF($G20=CA1,$H20,IF($I20=CA1,$J20,IF($K20=CA1,$L20,IF($M20=CA1,$N20,IF($O20=CA1,$P20,"")))))) ->  | CB20: =IF($E20=CB1,"Y",IF($G20=CB1,"Y",IF($I20=CB1,"Y",IF($K20=CB1,"Y",IF($M20=CB1,"Y",IF($O20=CB1,"Y","")))))) ->  | CC20: =$A$20 -> 18 | CD20: =IF($E20=CD1,$F20,IF($G20=CD1,$H20,IF($I20=CD1,$J20,IF($K20=CD1,$L20,IF($M20=CD1,$N20,IF($O20=CD1,$P20,"")))))) ->  | CE20: =IF($E20=CE1,"Y",IF($G20=CE1,"Y",IF($I20=CE1,"Y",IF($K20=CE1,"Y",IF($M20=CE1,"Y",IF($O20=CE1,"Y","")))))) -> Y | CF20: =$A$20 -> 18 | CG20: =IF($E20=CG1,$F20,IF($G20=CG1,$H20,IF($I20=CG1,$J20,IF($K20=CG1,$L20,IF($M20=CG1,$N20,IF($O20=CG1,$P20,"")))))) -> 0 | CH20: =IF($E20=CH1,"Y",IF($G20=CH1,"Y",IF($I20=CH1,"Y",IF($K20=CH1,"Y",IF($M20=CH1,"Y",IF($O20=CH1,"Y","")))))) -> Y | CI20: =$A$20 -> 18 | CJ20: =IF($E20=CJ1,$F20,IF($G20=CJ1,$H20,IF($I20=CJ1,$J20,IF($K20=CJ1,$L20,IF($M20=CJ1,$N20,IF($O20=CJ1,$P20,"")))))) -> 0 | CK20: =IF($E20=CK1,"Y",IF($G20=CK1,"Y",IF($I20=CK1,"Y",IF($K20=CK1,"Y",IF($M20=CK1,"Y",IF($O20=CK1,"Y","")))))) -> Y | CL20: =$A$20 -> 18 | CM20: =IF($E20=CM1,$F20,IF($G20=CM1,$H20,IF($I20=CM1,$J20,IF($K20=CM1,$L20,IF($M20=CM1,$N20,IF($O20=CM1,$P20,"")))))) -> 0 | CN20: =IF($E20=CN1,"Y",IF($G20=CN1,"Y",IF($I20=CN1,"Y",IF($K20=CN1,"Y",IF($M20=CN1,"Y",IF($O20=CN1,"Y","")))))) -> Y | CO20: =$A$20 -> 18 | CP20: =IF($E20=CP1,$F20,IF($G20=CP1,$H20,IF($I20=CP1,$J20,IF($K20=CP1,$L20,IF($M20=CP1,$N20,IF($O20=CP1,$P20,"")))))) -> 0 | CQ20: =IF($E20=CQ1,"Y",IF($G20=CQ1,"Y",IF($I20=CQ1,"Y",IF($K20=CQ1,"Y",IF($M20=CQ1,"Y",IF($O20=CQ1,"Y","")))))) -> Y | CR20: =$A$20 -> 18 | CS20: =IF($E20=CS1,$F20,IF($G20=CS1,$H20,IF($I20=CS1,$J20,IF($K20=CS1,$L20,IF($M20=CS1,$N20,IF($O20=CS1,$P20,"")))))) -> 0 | CT20: =IF($E20=CT1,"Y",IF($G20=CT1,"Y",IF($I20=CT1,"Y",IF($K20=CT1,"Y",IF($M20=CT1,"Y",IF($O20=CT1,"Y","")))))) -> Y | CU20: =$A$20 -> 18 | CV20: =IF($E20=CV1,$F20,IF($G20=CV1,$H20,IF($I20=CV1,$J20,IF($K20=CV1,$L20,IF($M20=CV1,$N20,IF($O20=CV1,$P20,"")))))) -> 0 | CW20: =IF($E20=CW1,"Y",IF($G20=CW1,"Y",IF($I20=CW1,"Y",IF($K20=CW1,"Y",IF($M20=CW1,"Y",IF($O20=CW1,"Y","")))))) -> Y | CX20: =$A$20 -> 18 | CY20: =IF($E20=CY1,$F20,IF($G20=CY1,$H20,IF($I20=CY1,$J20,IF($K20=CY1,$L20,IF($M20=CY1,$N20,IF($O20=CY1,$P20,"")))))) -> 0 | CZ20: =IF($E20=CZ1,"Y",IF($G20=CZ1,"Y",IF($I20=CZ1,"Y",IF($K20=CZ1,"Y",IF($M20=CZ1,"Y",IF($O20=CZ1,"Y","")))))) -> Y | DA20: =$A$20 -> 18 | DB20: =IF($E20=DB1,$F20,IF($G20=DB1,$H20,IF($I20=DB1,$J20,IF($K20=DB1,$L20,IF($M20=DB1,$N20,IF($O20=DB1,$P20,"")))))) -> 0 | DC20: =IF($E20=DC1,"Y",IF($G20=DC1,"Y",IF($I20=DC1,"Y",IF($K20=DC1,"Y",IF($M20=DC1,"Y",IF($O20=DC1,"Y","")))))) -> Y | DD20: =$A$20 -> 18 | DE20: =IF($E20=DE1,$F20,IF($G20=DE1,$H20,IF($I20=DE1,$J20,IF($K20=DE1,$L20,IF($M20=DE1,$N20,IF($O20=DE1,$P20,"")))))) -> 0 | DF20: =IF($E20=DF1,"Y",IF($G20=DF1,"Y",IF($I20=DF1,"Y",IF($K20=DF1,"Y",IF($M20=DF1,"Y",IF($O20=DF1,"Y","")))))) -> Y | DG20: =$A$20 -> 18 | DH20: =IF($E20=DH1,$F20,IF($G20=DH1,$H20,IF($I20=DH1,$J20,IF($K20=DH1,$L20,IF($M20=DH1,$N20,IF($O20=DH1,$P20,"")))))) -> 0 | DI20: =IF($E20=DI1,"Y",IF($G20=DI1,"Y",IF($I20=DI1,"Y",IF($K20=DI1,"Y",IF($M20=DI1,"Y",IF($O20=DI1,"Y","")))))) -> Y | DJ20: =$A$20 -> 18 | DK20: =IF($E20=DK1,$F20,IF($G20=DK1,$H20,IF($I20=DK1,$J20,IF($K20=DK1,$L20,IF($M20=DK1,$N20,IF($O20=DK1,$P20,"")))))) -> 0 | DL20: =IF($E20=DL1,"Y",IF($G20=DL1,"Y",IF($I20=DL1,"Y",IF($K20=DL1,"Y",IF($M20=DL1,"Y",IF($O20=DL1,"Y","")))))) -> Y | DM20: =$A$20 -> 18 | DN20: =IF($E20=DN1,$F20,IF($G20=DN1,$H20,IF($I20=DN1,$J20,IF($K20=DN1,$L20,IF($M20=DN1,$N20,IF($O20=DN1,$P20,"")))))) -> 0 | DO20: =IF($E20=DO1,"Y",IF($G20=DO1,"Y",IF($I20=DO1,"Y",IF($K20=DO1,"Y",IF($M20=DO1,"Y",IF($O20=DO1,"Y","")))))) -> Y | DP20: =$A$20 -> 18 | DQ20: =IF($E20=DQ1,$F20,IF($G20=DQ1,$H20,IF($I20=DQ1,$J20,IF($K20=DQ1,$L20,IF($M20=DQ1,$N20,IF($O20=DQ1,$P20,"")))))) -> 0
A21: 19 | B21: Kojo Sakyi-Prah | C21: Essex | D21: M | E21: 100 | F21: 13 | Q21: Y | R21: 19 | S21: 13 | T21: =IF($E21=$V$1,"Y",IF($G21=$V$1,"Y",IF($I21=$V$1,"Y",IF($K21=$V$1,"Y",IF($M21=$V$1,"Y",IF($O21=$V$1,"Y","")))))) ->  | U21: 19 | V21: =IF($E21=$V$1,$F21,IF($G21=$V$1,$H21,IF($I21=$V$1,$J21,IF($K21=$V$1,$L21,IF($M21=$V$1,$N21,IF($O21=$V$1,$P21,"")))))) ->  | W21: =IF($E21=$Y$1,"Y",IF($G21=$Y$1,"Y",IF($I21=$Y$1,"Y",IF($K21=$Y$1,"Y",IF($M21=$Y$1,"Y",IF($O21=$Y$1,"Y","")))))) ->  | X21: 19 | Y21: =IF($E21=$Y$1,$F21,IF($G21=$Y$1,$H21,IF($I21=$Y$1,$J21,IF($K21=$Y$1,$L21,IF($M21=$Y$1,$N21,IF($O21=$Y$1,$P21,"")))))) ->  | Z21: =IF($E21=$AB$1,"Y",IF($G21=$AB$1,"Y",IF($I21=$AB$1,"Y",IF($K21=$AB$1,"Y",IF($M21=$AB$1,"Y",IF($O21=$AB$1,"Y","")))))) ->  | AA21: 19 | AB21: =IF($E21=$AB$1,$F21,IF($G21=$AB$1,$H21,IF($I21=$AB$1,$J21,IF($K21=$AB$1,$L21,IF($M21=$AB$1,$N21,IF($O21=$AB$1,$P21,"")))))) ->  | AC21: =IF($E21=$AE$1,"Y",IF($G21=$AE$1,"Y",IF($I21=$AE$1,"Y",IF($K21=$AE$1,"Y",IF($M21=$AE$1,"Y",IF($O21=$AE$1,"Y","")))))) ->  | AD21: 19 | AE21: =IF($E21=$AE$1,$F21,IF($G21=$AE$1,$H21,IF($I21=$AE$1,$J21,IF($K21=$AE$1,$L21,IF($M21=$AE$1,$N21,IF($O21=$AE$1,$P21,"")))))) ->  | AF21: =IF($E21=$AH$1,"Y",IF($G21=$AH$1,"Y",IF($I21=$AH$1,"Y",IF($K21=$AH$1,"Y",IF($M21=$AH$1,"Y",IF($O21=$AH$1,"Y","")))))) ->  | AG21: 19 | AH21: =IF($E21=$AH$1,$F21,IF($G21=$AH$1,$H21,IF($I21=$AH$1,$J21,IF($K21=$AH$1,$L21,IF($M21=$AH$1,$N21,IF($O21=$AH$1,$P21,"")))))) ->  | AJ21: 19 | AK21: =IF($E21=$AK$1,$F21,IF($G21=$AK$1,$H21,IF($I21=$AK$1,$J21,IF($K21=$AK$1,$L21,IF($M21=$AK$1,$N21,IF($O21=$AK$1,$P21,"")))))) ->  | AM21: =$A$21 -> 19 | AP21: =$A$21 -> 19 | AR21: =IF($E21=AR1,"Y",IF($G21=AR1,"Y",IF($I21=AR1,"Y",IF($K21=AR1,"Y",IF($M21=AR1,"Y",IF($O21=AR1,"Y","")))))) ->  | AS21: =$A$21 -> 19 | AT21: =IF($E21=AT1,$F21,IF($G21=AT1,$H21,IF($I21=AT1,$J21,IF($K21=AT1,$L21,IF($M21=AT1,$N21,IF($O21=AT1,$P21,"")))))) ->  | AU21: =IF($E21=AU1,"Y",IF($G21=AU1,"Y",IF($I21=AU1,"Y",IF($K21=AU1,"Y",IF($M21=AU1,"Y",IF($O21=AU1,"Y","")))))) ->  | AV21: =$A$21 -> 19 | AW21: =IF($E21=AW1,$F21,IF($G21=AW1,$H21,IF($I21=AW1,$J21,IF($K21=AW1,$L21,IF($M21=AW1,$N21,IF($O21=AW1,$P21,"")))))) ->  | AX21: =IF($E21=AX1,"Y",IF($G21=AX1,"Y",IF($I21=AX1,"Y",IF($K21=AX1,"Y",IF($M21=AX1,"Y",IF($O21=AX1,"Y","")))))) ->  | AY21: =$A$21 -> 19 | AZ21: =IF($E21=AZ1,$F21,IF($G21=AZ1,$H21,IF($I21=AZ1,$J21,IF($K21=AZ1,$L21,IF($M21=AZ1,$N21,IF($O21=AZ1,$P21,"")))))) ->  | BA21: =IF($E21=BA1,"Y",IF($G21=BA1,"Y",IF($I21=BA1,"Y",IF($K21=BA1,"Y",IF($M21=BA1,"Y",IF($O21=BA1,"Y","")))))) ->  | BB21: =$A$21 -> 19 | BC21: =IF($E21=BC1,$F21,IF($G21=BC1,$H21,IF($I21=BC1,$J21,IF($K21=BC1,$L21,IF($M21=BC1,$N21,IF($O21=BC1,$P21,"")))))) ->  | BD21: =IF($E21=BD1,"Y",IF($G21=BD1,"Y",IF($I21=BD1,"Y",IF($K21=BD1,"Y",IF($M21=BD1,"Y",IF($O21=BD1,"Y","")))))) ->  | BE21: =$A$21 -> 19 | BF21: =IF($E21=BF1,$F21,IF($G21=BF1,$H21,IF($I21=BF1,$J21,IF($K21=BF1,$L21,IF($M21=BF1,$N21,IF($O21=BF1,$P21,"")))))) ->  | BG21: =IF($E21=BG1,"Y",IF($G21=BG1,"Y",IF($I21=BG1,"Y",IF($K21=BG1,"Y",IF($M21=BG1,"Y",IF($O21=BG1,"Y","")))))) ->  | BH21: =$A$21 -> 19 | BI21: =IF($E21=BI1,$F21,IF($G21=BI1,$H21,IF($I21=BI1,$J21,IF($K21=BI1,$L21,IF($M21=BI1,$N21,IF($O21=BI1,$P21,"")))))) ->  | BJ21: =IF($E21=BJ1,"Y",IF($G21=BJ1,"Y",IF($I21=BJ1,"Y",IF($K21=BJ1,"Y",IF($M21=BJ1,"Y",IF($O21=BJ1,"Y","")))))) ->  | BK21: =$A$21 -> 19 | BL21: =IF($E21=BL1,$F21,IF($G21=BL1,$H21,IF($I21=BL1,$J21,IF($K21=BL1,$L21,IF($M21=BL1,$N21,IF($O21=BL1,$P21,"")))))) ->  | BM21: =IF($E21=BM1,"Y",IF($G21=BM1,"Y",IF($I21=BM1,"Y",IF($K21=BM1,"Y",IF($M21=BM1,"Y",IF($O21=BM1,"Y","")))))) ->  | BN21: =$A$21 -> 19 | BO21: =IF($E21=BO1,$F21,IF($G21=BO1,$H21,IF($I21=BO1,$J21,IF($K21=BO1,$L21,IF($M21=BO1,$N21,IF($O21=BO1,$P21,"")))))) ->  | BP21: =IF($E21=BP1,"Y",IF($G21=BP1,"Y",IF($I21=BP1,"Y",IF($K21=BP1,"Y",IF($M21=BP1,"Y",IF($O21=BP1,"Y","")))))) ->  | BQ21: =$A$21 -> 19 | BR21: =IF($E21=BR1,$F21,IF($G21=BR1,$H21,IF($I21=BR1,$J21,IF($K21=BR1,$L21,IF($M21=BR1,$N21,IF($O21=BR1,$P21,"")))))) ->  | BS21: =IF($E21=BS1,"Y",IF($G21=BS1,"Y",IF($I21=BS1,"Y",IF($K21=BS1,"Y",IF($M21=BS1,"Y",IF($O21=BS1,"Y","")))))) ->  | BT21: =$A$21 -> 19 | BU21: =IF($E21=BU1,$F21,IF($G21=BU1,$H21,IF($I21=BU1,$J21,IF($K21=BU1,$L21,IF($M21=BU1,$N21,IF($O21=BU1,$P21,"")))))) ->  | BV21: =IF($E21=BV1,"Y",IF($G21=BV1,"Y",IF($I21=BV1,"Y",IF($K21=BV1,"Y",IF($M21=BV1,"Y",IF($O21=BV1,"Y","")))))) ->  | BW21: =$A$21 -> 19 | BX21: =IF($E21=BX1,$F21,IF($G21=BX1,$H21,IF($I21=BX1,$J21,IF($K21=BX1,$L21,IF($M21=BX1,$N21,IF($O21=BX1,$P21,"")))))) ->  | BY21: =IF($E21=BY1,"Y",IF($G21=BY1,"Y",IF($I21=BY1,"Y",IF($K21=BY1,"Y",IF($M21=BY1,"Y",IF($O21=BY1,"Y","")))))) ->  | BZ21: =$A$21 -> 19 | CA21: =IF($E21=CA1,$F21,IF($G21=CA1,$H21,IF($I21=CA1,$J21,IF($K21=CA1,$L21,IF($M21=CA1,$N21,IF($O21=CA1,$P21,"")))))) ->  | CB21: =IF($E21=CB1,"Y",IF($G21=CB1,"Y",IF($I21=CB1,"Y",IF($K21=CB1,"Y",IF($M21=CB1,"Y",IF($O21=CB1,"Y","")))))) ->  | CC21: =$A$21 -> 19 | CD21: =IF($E21=CD1,$F21,IF($G21=CD1,$H21,IF($I21=CD1,$J21,IF($K21=CD1,$L21,IF($M21=CD1,$N21,IF($O21=CD1,$P21,"")))))) ->  | CE21: =IF($E21=CE1,"Y",IF($G21=CE1,"Y",IF($I21=CE1,"Y",IF($K21=CE1,"Y",IF($M21=CE1,"Y",IF($O21=CE1,"Y","")))))) -> Y | CF21: =$A$21 -> 19 | CG21: =IF($E21=CG1,$F21,IF($G21=CG1,$H21,IF($I21=CG1,$J21,IF($K21=CG1,$L21,IF($M21=CG1,$N21,IF($O21=CG1,$P21,"")))))) -> 0 | CH21: =IF($E21=CH1,"Y",IF($G21=CH1,"Y",IF($I21=CH1,"Y",IF($K21=CH1,"Y",IF($M21=CH1,"Y",IF($O21=CH1,"Y","")))))) -> Y | CI21: =$A$21 -> 19 | CJ21: =IF($E21=CJ1,$F21,IF($G21=CJ1,$H21,IF($I21=CJ1,$J21,IF($K21=CJ1,$L21,IF($M21=CJ1,$N21,IF($O21=CJ1,$P21,"")))))) -> 0 | CK21: =IF($E21=CK1,"Y",IF($G21=CK1,"Y",IF($I21=CK1,"Y",IF($K21=CK1,"Y",IF($M21=CK1,"Y",IF($O21=CK1,"Y","")))))) -> Y | CL21: =$A$21 -> 19 | CM21: =IF($E21=CM1,$F21,IF($G21=CM1,$H21,IF($I21=CM1,$J21,IF($K21=CM1,$L21,IF($M21=CM1,$N21,IF($O21=CM1,$P21,"")))))) -> 0 | CN21: =IF($E21=CN1,"Y",IF($G21=CN1,"Y",IF($I21=CN1,"Y",IF($K21=CN1,"Y",IF($M21=CN1,"Y",IF($O21=CN1,"Y","")))))) -> Y | CO21: =$A$21 -> 19 | CP21: =IF($E21=CP1,$F21,IF($G21=CP1,$H21,IF($I21=CP1,$J21,IF($K21=CP1,$L21,IF($M21=CP1,$N21,IF($O21=CP1,$P21,"")))))) -> 0 | CQ21: =IF($E21=CQ1,"Y",IF($G21=CQ1,"Y",IF($I21=CQ1,"Y",IF($K21=CQ1,"Y",IF($M21=CQ1,"Y",IF($O21=CQ1,"Y","")))))) -> Y | CR21: =$A$21 -> 19 | CS21: =IF($E21=CS1,$F21,IF($G21=CS1,$H21,IF($I21=CS1,$J21,IF($K21=CS1,$L21,IF($M21=CS1,$N21,IF($O21=CS1,$P21,"")))))) -> 0 | CT21: =IF($E21=CT1,"Y",IF($G21=CT1,"Y",IF($I21=CT1,"Y",IF($K21=CT1,"Y",IF($M21=CT1,"Y",IF($O21=CT1,"Y","")))))) -> Y | CU21: =$A$21 -> 19 | CV21: =IF($E21=CV1,$F21,IF($G21=CV1,$H21,IF($I21=CV1,$J21,IF($K21=CV1,$L21,IF($M21=CV1,$N21,IF($O21=CV1,$P21,"")))))) -> 0 | CW21: =IF($E21=CW1,"Y",IF($G21=CW1,"Y",IF($I21=CW1,"Y",IF($K21=CW1,"Y",IF($M21=CW1,"Y",IF($O21=CW1,"Y","")))))) -> Y | CX21: =$A$21 -> 19 | CY21: =IF($E21=CY1,$F21,IF($G21=CY1,$H21,IF($I21=CY1,$J21,IF($K21=CY1,$L21,IF($M21=CY1,$N21,IF($O21=CY1,$P21,"")))))) -> 0 | CZ21: =IF($E21=CZ1,"Y",IF($G21=CZ1,"Y",IF($I21=CZ1,"Y",IF($K21=CZ1,"Y",IF($M21=CZ1,"Y",IF($O21=CZ1,"Y","")))))) -> Y | DA21: =$A$21 -> 19 | DB21: =IF($E21=DB1,$F21,IF($G21=DB1,$H21,IF($I21=DB1,$J21,IF($K21=DB1,$L21,IF($M21=DB1,$N21,IF($O21=DB1,$P21,"")))))) -> 0 | DC21: =IF($E21=DC1,"Y",IF($G21=DC1,"Y",IF($I21=DC1,"Y",IF($K21=DC1,"Y",IF($M21=DC1,"Y",IF($O21=DC1,"Y","")))))) -> Y | DD21: =$A$21 -> 19 | DE21: =IF($E21=DE1,$F21,IF($G21=DE1,$H21,IF($I21=DE1,$J21,IF($K21=DE1,$L21,IF($M21=DE1,$N21,IF($O21=DE1,$P21,"")))))) -> 0 | DF21: =IF($E21=DF1,"Y",IF($G21=DF1,"Y",IF($I21=DF1,"Y",IF($K21=DF1,"Y",IF($M21=DF1,"Y",IF($O21=DF1,"Y","")))))) -> Y | DG21: =$A$21 -> 19 | DH21: =IF($E21=DH1,$F21,IF($G21=DH1,$H21,IF($I21=DH1,$J21,IF($K21=DH1,$L21,IF($M21=DH1,$N21,IF($O21=DH1,$P21,"")))))) -> 0 | DI21: =IF($E21=DI1,"Y",IF($G21=DI1,"Y",IF($I21=DI1,"Y",IF($K21=DI1,"Y",IF($M21=DI1,"Y",IF($O21=DI1,"Y","")))))) -> Y | DJ21: =$A$21 -> 19 | DK21: =IF($E21=DK1,$F21,IF($G21=DK1,$H21,IF($I21=DK1,$J21,IF($K21=DK1,$L21,IF($M21=DK1,$N21,IF($O21=DK1,$P21,"")))))) -> 0 | DL21: =IF($E21=DL1,"Y",IF($G21=DL1,"Y",IF($I21=DL1,"Y",IF($K21=DL1,"Y",IF($M21=DL1,"Y",IF($O21=DL1,"Y","")))))) -> Y | DM21: =$A$21 -> 19 | DN21: =IF($E21=DN1,$F21,IF($G21=DN1,$H21,IF($I21=DN1,$J21,IF($K21=DN1,$L21,IF($M21=DN1,$N21,IF($O21=DN1,$P21,"")))))) -> 0 | DO21: =IF($E21=DO1,"Y",IF($G21=DO1,"Y",IF($I21=DO1,"Y",IF($K21=DO1,"Y",IF($M21=DO1,"Y",IF($O21=DO1,"Y","")))))) -> Y | DP21: =$A$21 -> 19 | DQ21: =IF($E21=DQ1,$F21,IF($G21=DQ1,$H21,IF($I21=DQ1,$J21,IF($K21=DQ1,$L21,IF($M21=DQ1,$N21,IF($O21=DQ1,$P21,"")))))) -> 0
A22: 20 | B22: Paul Singleton | C22: Essex | D22: M | E22: 200 | F22: 24 | R22: 20 | T22: =IF($E22=$V$1,"Y",IF($G22=$V$1,"Y",IF($I22=$V$1,"Y",IF($K22=$V$1,"Y",IF($M22=$V$1,"Y",IF($O22=$V$1,"Y","")))))) ->  | U22: 20 | V22: =IF($E22=$V$1,$F22,IF($G22=$V$1,$H22,IF($I22=$V$1,$J22,IF($K22=$V$1,$L22,IF($M22=$V$1,$N22,IF($O22=$V$1,$P22,"")))))) ->  | W22: =IF($E22=$Y$1,"Y",IF($G22=$Y$1,"Y",IF($I22=$Y$1,"Y",IF($K22=$Y$1,"Y",IF($M22=$Y$1,"Y",IF($O22=$Y$1,"Y","")))))) ->  | X22: 20 | Y22: =IF($E22=$Y$1,$F22,IF($G22=$Y$1,$H22,IF($I22=$Y$1,$J22,IF($K22=$Y$1,$L22,IF($M22=$Y$1,$N22,IF($O22=$Y$1,$P22,"")))))) ->  | Z22: =IF($E22=$AB$1,"Y",IF($G22=$AB$1,"Y",IF($I22=$AB$1,"Y",IF($K22=$AB$1,"Y",IF($M22=$AB$1,"Y",IF($O22=$AB$1,"Y","")))))) -> Y | AA22: 20 | AB22: =IF($E22=$AB$1,$F22,IF($G22=$AB$1,$H22,IF($I22=$AB$1,$J22,IF($K22=$AB$1,$L22,IF($M22=$AB$1,$N22,IF($O22=$AB$1,$P22,"")))))) -> 24 | AC22: =IF($E22=$AE$1,"Y",IF($G22=$AE$1,"Y",IF($I22=$AE$1,"Y",IF($K22=$AE$1,"Y",IF($M22=$AE$1,"Y",IF($O22=$AE$1,"Y","")))))) ->  | AD22: 20 | AE22: =IF($E22=$AE$1,$F22,IF($G22=$AE$1,$H22,IF($I22=$AE$1,$J22,IF($K22=$AE$1,$L22,IF($M22=$AE$1,$N22,IF($O22=$AE$1,$P22,"")))))) ->  | AF22: =IF($E22=$AH$1,"Y",IF($G22=$AH$1,"Y",IF($I22=$AH$1,"Y",IF($K22=$AH$1,"Y",IF($M22=$AH$1,"Y",IF($O22=$AH$1,"Y","")))))) ->  | AG22: 20 | AH22: =IF($E22=$AH$1,$F22,IF($G22=$AH$1,$H22,IF($I22=$AH$1,$J22,IF($K22=$AH$1,$L22,IF($M22=$AH$1,$N22,IF($O22=$AH$1,$P22,"")))))) ->  | AJ22: 20 | AK22: =IF($E22=$AK$1,$F22,IF($G22=$AK$1,$H22,IF($I22=$AK$1,$J22,IF($K22=$AK$1,$L22,IF($M22=$AK$1,$N22,IF($O22=$AK$1,$P22,"")))))) ->  | AM22: =$A$22 -> 20 | AP22: =$A$22 -> 20 | AR22: =IF($E22=AR1,"Y",IF($G22=AR1,"Y",IF($I22=AR1,"Y",IF($K22=AR1,"Y",IF($M22=AR1,"Y",IF($O22=AR1,"Y","")))))) ->  | AS22: =$A$22 -> 20 | AT22: =IF($E22=AT1,$F22,IF($G22=AT1,$H22,IF($I22=AT1,$J22,IF($K22=AT1,$L22,IF($M22=AT1,$N22,IF($O22=AT1,$P22,"")))))) ->  | AU22: =IF($E22=AU1,"Y",IF($G22=AU1,"Y",IF($I22=AU1,"Y",IF($K22=AU1,"Y",IF($M22=AU1,"Y",IF($O22=AU1,"Y","")))))) ->  | AV22: =$A$22 -> 20 | AW22: =IF($E22=AW1,$F22,IF($G22=AW1,$H22,IF($I22=AW1,$J22,IF($K22=AW1,$L22,IF($M22=AW1,$N22,IF($O22=AW1,$P22,"")))))) ->  | AX22: =IF($E22=AX1,"Y",IF($G22=AX1,"Y",IF($I22=AX1,"Y",IF($K22=AX1,"Y",IF($M22=AX1,"Y",IF($O22=AX1,"Y","")))))) ->  | AY22: =$A$22 -> 20 | AZ22: =IF($E22=AZ1,$F22,IF($G22=AZ1,$H22,IF($I22=AZ1,$J22,IF($K22=AZ1,$L22,IF($M22=AZ1,$N22,IF($O22=AZ1,$P22,"")))))) ->  | BA22: =IF($E22=BA1,"Y",IF($G22=BA1,"Y",IF($I22=BA1,"Y",IF($K22=BA1,"Y",IF($M22=BA1,"Y",IF($O22=BA1,"Y","")))))) ->  | BB22: =$A$22 -> 20 | BC22: =IF($E22=BC1,$F22,IF($G22=BC1,$H22,IF($I22=BC1,$J22,IF($K22=BC1,$L22,IF($M22=BC1,$N22,IF($O22=BC1,$P22,"")))))) ->  | BD22: =IF($E22=BD1,"Y",IF($G22=BD1,"Y",IF($I22=BD1,"Y",IF($K22=BD1,"Y",IF($M22=BD1,"Y",IF($O22=BD1,"Y","")))))) ->  | BE22: =$A$22 -> 20 | BF22: =IF($E22=BF1,$F22,IF($G22=BF1,$H22,IF($I22=BF1,$J22,IF($K22=BF1,$L22,IF($M22=BF1,$N22,IF($O22=BF1,$P22,"")))))) ->  | BG22: =IF($E22=BG1,"Y",IF($G22=BG1,"Y",IF($I22=BG1,"Y",IF($K22=BG1,"Y",IF($M22=BG1,"Y",IF($O22=BG1,"Y","")))))) ->  | BH22: =$A$22 -> 20 | BI22: =IF($E22=BI1,$F22,IF($G22=BI1,$H22,IF($I22=BI1,$J22,IF($K22=BI1,$L22,IF($M22=BI1,$N22,IF($O22=BI1,$P22,"")))))) ->  | BJ22: =IF($E22=BJ1,"Y",IF($G22=BJ1,"Y",IF($I22=BJ1,"Y",IF($K22=BJ1,"Y",IF($M22=BJ1,"Y",IF($O22=BJ1,"Y","")))))) ->  | BK22: =$A$22 -> 20 | BL22: =IF($E22=BL1,$F22,IF($G22=BL1,$H22,IF($I22=BL1,$J22,IF($K22=BL1,$L22,IF($M22=BL1,$N22,IF($O22=BL1,$P22,"")))))) ->  | BM22: =IF($E22=BM1,"Y",IF($G22=BM1,"Y",IF($I22=BM1,"Y",IF($K22=BM1,"Y",IF($M22=BM1,"Y",IF($O22=BM1,"Y","")))))) ->  | BN22: =$A$22 -> 20 | BO22: =IF($E22=BO1,$F22,IF($G22=BO1,$H22,IF($I22=BO1,$J22,IF($K22=BO1,$L22,IF($M22=BO1,$N22,IF($O22=BO1,$P22,"")))))) ->  | BP22: =IF($E22=BP1,"Y",IF($G22=BP1,"Y",IF($I22=BP1,"Y",IF($K22=BP1,"Y",IF($M22=BP1,"Y",IF($O22=BP1,"Y","")))))) ->  | BQ22: =$A$22 -> 20 | BR22: =IF($E22=BR1,$F22,IF($G22=BR1,$H22,IF($I22=BR1,$J22,IF($K22=BR1,$L22,IF($M22=BR1,$N22,IF($O22=BR1,$P22,"")))))) ->  | BS22: =IF($E22=BS1,"Y",IF($G22=BS1,"Y",IF($I22=BS1,"Y",IF($K22=BS1,"Y",IF($M22=BS1,"Y",IF($O22=BS1,"Y","")))))) ->  | BT22: =$A$22 -> 20 | BU22: =IF($E22=BU1,$F22,IF($G22=BU1,$H22,IF($I22=BU1,$J22,IF($K22=BU1,$L22,IF($M22=BU1,$N22,IF($O22=BU1,$P22,"")))))) ->  | BV22: =IF($E22=BV1,"Y",IF($G22=BV1,"Y",IF($I22=BV1,"Y",IF($K22=BV1,"Y",IF($M22=BV1,"Y",IF($O22=BV1,"Y","")))))) ->  | BW22: =$A$22 -> 20 | BX22: =IF($E22=BX1,$F22,IF($G22=BX1,$H22,IF($I22=BX1,$J22,IF($K22=BX1,$L22,IF($M22=BX1,$N22,IF($O22=BX1,$P22,"")))))) ->  | BY22: =IF($E22=BY1,"Y",IF($G22=BY1,"Y",IF($I22=BY1,"Y",IF($K22=BY1,"Y",IF($M22=BY1,"Y",IF($O22=BY1,"Y","")))))) ->  | BZ22: =$A$22 -> 20 | CA22: =IF($E22=CA1,$F22,IF($G22=CA1,$H22,IF($I22=CA1,$J22,IF($K22=CA1,$L22,IF($M22=CA1,$N22,IF($O22=CA1,$P22,"")))))) ->  | CB22: =IF($E22=CB1,"Y",IF($G22=CB1,"Y",IF($I22=CB1,"Y",IF($K22=CB1,"Y",IF($M22=CB1,"Y",IF($O22=CB1,"Y","")))))) ->  | CC22: =$A$22 -> 20 | CD22: =IF($E22=CD1,$F22,IF($G22=CD1,$H22,IF($I22=CD1,$J22,IF($K22=CD1,$L22,IF($M22=CD1,$N22,IF($O22=CD1,$P22,"")))))) ->  | CE22: =IF($E22=CE1,"Y",IF($G22=CE1,"Y",IF($I22=CE1,"Y",IF($K22=CE1,"Y",IF($M22=CE1,"Y",IF($O22=CE1,"Y","")))))) -> Y | CF22: =$A$22 -> 20 | CG22: =IF($E22=CG1,$F22,IF($G22=CG1,$H22,IF($I22=CG1,$J22,IF($K22=CG1,$L22,IF($M22=CG1,$N22,IF($O22=CG1,$P22,"")))))) -> 0 | CH22: =IF($E22=CH1,"Y",IF($G22=CH1,"Y",IF($I22=CH1,"Y",IF($K22=CH1,"Y",IF($M22=CH1,"Y",IF($O22=CH1,"Y","")))))) -> Y | CI22: =$A$22 -> 20 | CJ22: =IF($E22=CJ1,$F22,IF($G22=CJ1,$H22,IF($I22=CJ1,$J22,IF($K22=CJ1,$L22,IF($M22=CJ1,$N22,IF($O22=CJ1,$P22,"")))))) -> 0 | CK22: =IF($E22=CK1,"Y",IF($G22=CK1,"Y",IF($I22=CK1,"Y",IF($K22=CK1,"Y",IF($M22=CK1,"Y",IF($O22=CK1,"Y","")))))) -> Y | CL22: =$A$22 -> 20 | CM22: =IF($E22=CM1,$F22,IF($G22=CM1,$H22,IF($I22=CM1,$J22,IF($K22=CM1,$L22,IF($M22=CM1,$N22,IF($O22=CM1,$P22,"")))))) -> 0 | CN22: =IF($E22=CN1,"Y",IF($G22=CN1,"Y",IF($I22=CN1,"Y",IF($K22=CN1,"Y",IF($M22=CN1,"Y",IF($O22=CN1,"Y","")))))) -> Y | CO22: =$A$22 -> 20 | CP22: =IF($E22=CP1,$F22,IF($G22=CP1,$H22,IF($I22=CP1,$J22,IF($K22=CP1,$L22,IF($M22=CP1,$N22,IF($O22=CP1,$P22,"")))))) -> 0 | CQ22: =IF($E22=CQ1,"Y",IF($G22=CQ1,"Y",IF($I22=CQ1,"Y",IF($K22=CQ1,"Y",IF($M22=CQ1,"Y",IF($O22=CQ1,"Y","")))))) -> Y | CR22: =$A$22 -> 20 | CS22: =IF($E22=CS1,$F22,IF($G22=CS1,$H22,IF($I22=CS1,$J22,IF($K22=CS1,$L22,IF($M22=CS1,$N22,IF($O22=CS1,$P22,"")))))) -> 0 | CT22: =IF($E22=CT1,"Y",IF($G22=CT1,"Y",IF($I22=CT1,"Y",IF($K22=CT1,"Y",IF($M22=CT1,"Y",IF($O22=CT1,"Y","")))))) -> Y | CU22: =$A$22 -> 20 | CV22: =IF($E22=CV1,$F22,IF($G22=CV1,$H22,IF($I22=CV1,$J22,IF($K22=CV1,$L22,IF($M22=CV1,$N22,IF($O22=CV1,$P22,"")))))) -> 0 | CW22: =IF($E22=CW1,"Y",IF($G22=CW1,"Y",IF($I22=CW1,"Y",IF($K22=CW1,"Y",IF($M22=CW1,"Y",IF($O22=CW1,"Y","")))))) -> Y | CX22: =$A$22 -> 20 | CY22: =IF($E22=CY1,$F22,IF($G22=CY1,$H22,IF($I22=CY1,$J22,IF($K22=CY1,$L22,IF($M22=CY1,$N22,IF($O22=CY1,$P22,"")))))) -> 0 | CZ22: =IF($E22=CZ1,"Y",IF($G22=CZ1,"Y",IF($I22=CZ1,"Y",IF($K22=CZ1,"Y",IF($M22=CZ1,"Y",IF($O22=CZ1,"Y","")))))) -> Y | DA22: =$A$22 -> 20 | DB22: =IF($E22=DB1,$F22,IF($G22=DB1,$H22,IF($I22=DB1,$J22,IF($K22=DB1,$L22,IF($M22=DB1,$N22,IF($O22=DB1,$P22,"")))))) -> 0 | DC22: =IF($E22=DC1,"Y",IF($G22=DC1,"Y",IF($I22=DC1,"Y",IF($K22=DC1,"Y",IF($M22=DC1,"Y",IF($O22=DC1,"Y","")))))) -> Y | DD22: =$A$22 -> 20 | DE22: =IF($E22=DE1,$F22,IF($G22=DE1,$H22,IF($I22=DE1,$J22,IF($K22=DE1,$L22,IF($M22=DE1,$N22,IF($O22=DE1,$P22,"")))))) -> 0 | DF22: =IF($E22=DF1,"Y",IF($G22=DF1,"Y",IF($I22=DF1,"Y",IF($K22=DF1,"Y",IF($M22=DF1,"Y",IF($O22=DF1,"Y","")))))) -> Y | DG22: =$A$22 -> 20 | DH22: =IF($E22=DH1,$F22,IF($G22=DH1,$H22,IF($I22=DH1,$J22,IF($K22=DH1,$L22,IF($M22=DH1,$N22,IF($O22=DH1,$P22,"")))))) -> 0 | DI22: =IF($E22=DI1,"Y",IF($G22=DI1,"Y",IF($I22=DI1,"Y",IF($K22=DI1,"Y",IF($M22=DI1,"Y",IF($O22=DI1,"Y","")))))) -> Y | DJ22: =$A$22 -> 20 | DK22: =IF($E22=DK1,$F22,IF($G22=DK1,$H22,IF($I22=DK1,$J22,IF($K22=DK1,$L22,IF($M22=DK1,$N22,IF($O22=DK1,$P22,"")))))) -> 0 | DL22: =IF($E22=DL1,"Y",IF($G22=DL1,"Y",IF($I22=DL1,"Y",IF($K22=DL1,"Y",IF($M22=DL1,"Y",IF($O22=DL1,"Y","")))))) -> Y | DM22: =$A$22 -> 20 | DN22: =IF($E22=DN1,$F22,IF($G22=DN1,$H22,IF($I22=DN1,$J22,IF($K22=DN1,$L22,IF($M22=DN1,$N22,IF($O22=DN1,$P22,"")))))) -> 0 | DO22: =IF($E22=DO1,"Y",IF($G22=DO1,"Y",IF($I22=DO1,"Y",IF($K22=DO1,"Y",IF($M22=DO1,"Y",IF($O22=DO1,"Y","")))))) -> Y | DP22: =$A$22 -> 20 | DQ22: =IF($E22=DQ1,$F22,IF($G22=DQ1,$H22,IF($I22=DQ1,$J22,IF($K22=DQ1,$L22,IF($M22=DQ1,$N22,IF($O22=DQ1,$P22,"")))))) -> 0
A23: 21 | B23: Rahmiah Ellington | C23: Essex | D23: M | E23: 100 | F23: 12.1 | G23: 200 | H23: 23.8 | Q23: Y | R23: 21 | S23: 12.1 | T23: =IF($E23=$V$1,"Y",IF($G23=$V$1,"Y",IF($I23=$V$1,"Y",IF($K23=$V$1,"Y",IF($M23=$V$1,"Y",IF($O23=$V$1,"Y","")))))) ->  | U23: 21 | V23: =IF($E23=$V$1,$F23,IF($G23=$V$1,$H23,IF($I23=$V$1,$J23,IF($K23=$V$1,$L23,IF($M23=$V$1,$N23,IF($O23=$V$1,$P23,"")))))) ->  | W23: =IF($E23=$Y$1,"Y",IF($G23=$Y$1,"Y",IF($I23=$Y$1,"Y",IF($K23=$Y$1,"Y",IF($M23=$Y$1,"Y",IF($O23=$Y$1,"Y","")))))) ->  | X23: 21 | Y23: =IF($E23=$Y$1,$F23,IF($G23=$Y$1,$H23,IF($I23=$Y$1,$J23,IF($K23=$Y$1,$L23,IF($M23=$Y$1,$N23,IF($O23=$Y$1,$P23,"")))))) ->  | Z23: =IF($E23=$AB$1,"Y",IF($G23=$AB$1,"Y",IF($I23=$AB$1,"Y",IF($K23=$AB$1,"Y",IF($M23=$AB$1,"Y",IF($O23=$AB$1,"Y","")))))) -> Y | AA23: 21 | AB23: =IF($E23=$AB$1,$F23,IF($G23=$AB$1,$H23,IF($I23=$AB$1,$J23,IF($K23=$AB$1,$L23,IF($M23=$AB$1,$N23,IF($O23=$AB$1,$P23,"")))))) -> 23.8 | AC23: =IF($E23=$AE$1,"Y",IF($G23=$AE$1,"Y",IF($I23=$AE$1,"Y",IF($K23=$AE$1,"Y",IF($M23=$AE$1,"Y",IF($O23=$AE$1,"Y","")))))) ->  | AD23: 21 | AE23: =IF($E23=$AE$1,$F23,IF($G23=$AE$1,$H23,IF($I23=$AE$1,$J23,IF($K23=$AE$1,$L23,IF($M23=$AE$1,$N23,IF($O23=$AE$1,$P23,"")))))) ->  | AF23: =IF($E23=$AH$1,"Y",IF($G23=$AH$1,"Y",IF($I23=$AH$1,"Y",IF($K23=$AH$1,"Y",IF($M23=$AH$1,"Y",IF($O23=$AH$1,"Y","")))))) ->  | AG23: 21 | AH23: =IF($E23=$AH$1,$F23,IF($G23=$AH$1,$H23,IF($I23=$AH$1,$J23,IF($K23=$AH$1,$L23,IF($M23=$AH$1,$N23,IF($O23=$AH$1,$P23,"")))))) ->  | AJ23: 21 | AK23: =IF($E23=$AK$1,$F23,IF($G23=$AK$1,$H23,IF($I23=$AK$1,$J23,IF($K23=$AK$1,$L23,IF($M23=$AK$1,$N23,IF($O23=$AK$1,$P23,"")))))) ->  | AM23: =$A$23 -> 21 | AP23: =$A$23 -> 21 | AR23: =IF($E23=AR1,"Y",IF($G23=AR1,"Y",IF($I23=AR1,"Y",IF($K23=AR1,"Y",IF($M23=AR1,"Y",IF($O23=AR1,"Y","")))))) ->  | AS23: =$A$23 -> 21 | AT23: =IF($E23=AT1,$F23,IF($G23=AT1,$H23,IF($I23=AT1,$J23,IF($K23=AT1,$L23,IF($M23=AT1,$N23,IF($O23=AT1,$P23,"")))))) ->  | AU23: =IF($E23=AU1,"Y",IF($G23=AU1,"Y",IF($I23=AU1,"Y",IF($K23=AU1,"Y",IF($M23=AU1,"Y",IF($O23=AU1,"Y","")))))) ->  | AV23: =$A$23 -> 21 | AW23: =IF($E23=AW1,$F23,IF($G23=AW1,$H23,IF($I23=AW1,$J23,IF($K23=AW1,$L23,IF($M23=AW1,$N23,IF($O23=AW1,$P23,"")))))) ->  | AX23: =IF($E23=AX1,"Y",IF($G23=AX1,"Y",IF($I23=AX1,"Y",IF($K23=AX1,"Y",IF($M23=AX1,"Y",IF($O23=AX1,"Y","")))))) ->  | AY23: =$A$23 -> 21 | AZ23: =IF($E23=AZ1,$F23,IF($G23=AZ1,$H23,IF($I23=AZ1,$J23,IF($K23=AZ1,$L23,IF($M23=AZ1,$N23,IF($O23=AZ1,$P23,"")))))) ->  | BA23: =IF($E23=BA1,"Y",IF($G23=BA1,"Y",IF($I23=BA1,"Y",IF($K23=BA1,"Y",IF($M23=BA1,"Y",IF($O23=BA1,"Y","")))))) ->  | BB23: =$A$23 -> 21 | BC23: =IF($E23=BC1,$F23,IF($G23=BC1,$H23,IF($I23=BC1,$J23,IF($K23=BC1,$L23,IF($M23=BC1,$N23,IF($O23=BC1,$P23,"")))))) ->  | BD23: =IF($E23=BD1,"Y",IF($G23=BD1,"Y",IF($I23=BD1,"Y",IF($K23=BD1,"Y",IF($M23=BD1,"Y",IF($O23=BD1,"Y","")))))) ->  | BE23: =$A$23 -> 21 | BF23: =IF($E23=BF1,$F23,IF($G23=BF1,$H23,IF($I23=BF1,$J23,IF($K23=BF1,$L23,IF($M23=BF1,$N23,IF($O23=BF1,$P23,"")))))) ->  | BG23: =IF($E23=BG1,"Y",IF($G23=BG1,"Y",IF($I23=BG1,"Y",IF($K23=BG1,"Y",IF($M23=BG1,"Y",IF($O23=BG1,"Y","")))))) ->  | BH23: =$A$23 -> 21 | BI23: =IF($E23=BI1,$F23,IF($G23=BI1,$H23,IF($I23=BI1,$J23,IF($K23=BI1,$L23,IF($M23=BI1,$N23,IF($O23=BI1,$P23,"")))))) ->  | BJ23: =IF($E23=BJ1,"Y",IF($G23=BJ1,"Y",IF($I23=BJ1,"Y",IF($K23=BJ1,"Y",IF($M23=BJ1,"Y",IF($O23=BJ1,"Y","")))))) ->  | BK23: =$A$23 -> 21 | BL23: =IF($E23=BL1,$F23,IF($G23=BL1,$H23,IF($I23=BL1,$J23,IF($K23=BL1,$L23,IF($M23=BL1,$N23,IF($O23=BL1,$P23,"")))))) ->  | BM23: =IF($E23=BM1,"Y",IF($G23=BM1,"Y",IF($I23=BM1,"Y",IF($K23=BM1,"Y",IF($M23=BM1,"Y",IF($O23=BM1,"Y","")))))) ->  | BN23: =$A$23 -> 21 | BO23: =IF($E23=BO1,$F23,IF($G23=BO1,$H23,IF($I23=BO1,$J23,IF($K23=BO1,$L23,IF($M23=BO1,$N23,IF($O23=BO1,$P23,"")))))) ->  | BP23: =IF($E23=BP1,"Y",IF($G23=BP1,"Y",IF($I23=BP1,"Y",IF($K23=BP1,"Y",IF($M23=BP1,"Y",IF($O23=BP1,"Y","")))))) ->  | BQ23: =$A$23 -> 21 | BR23: =IF($E23=BR1,$F23,IF($G23=BR1,$H23,IF($I23=BR1,$J23,IF($K23=BR1,$L23,IF($M23=BR1,$N23,IF($O23=BR1,$P23,"")))))) ->  | BS23: =IF($E23=BS1,"Y",IF($G23=BS1,"Y",IF($I23=BS1,"Y",IF($K23=BS1,"Y",IF($M23=BS1,"Y",IF($O23=BS1,"Y","")))))) ->  | BT23: =$A$23 -> 21 | BU23: =IF($E23=BU1,$F23,IF($G23=BU1,$H23,IF($I23=BU1,$J23,IF($K23=BU1,$L23,IF($M23=BU1,$N23,IF($O23=BU1,$P23,"")))))) ->  | BV23: =IF($E23=BV1,"Y",IF($G23=BV1,"Y",IF($I23=BV1,"Y",IF($K23=BV1,"Y",IF($M23=BV1,"Y",IF($O23=BV1,"Y","")))))) ->  | BW23: =$A$23 -> 21 | BX23: =IF($E23=BX1,$F23,IF($G23=BX1,$H23,IF($I23=BX1,$J23,IF($K23=BX1,$L23,IF($M23=BX1,$N23,IF($O23=BX1,$P23,"")))))) ->  | BY23: =IF($E23=BY1,"Y",IF($G23=BY1,"Y",IF($I23=BY1,"Y",IF($K23=BY1,"Y",IF($M23=BY1,"Y",IF($O23=BY1,"Y","")))))) ->  | BZ23: =$A$23 -> 21 | CA23: =IF($E23=CA1,$F23,IF($G23=CA1,$H23,IF($I23=CA1,$J23,IF($K23=CA1,$L23,IF($M23=CA1,$N23,IF($O23=CA1,$P23,"")))))) ->  | CB23: =IF($E23=CB1,"Y",IF($G23=CB1,"Y",IF($I23=CB1,"Y",IF($K23=CB1,"Y",IF($M23=CB1,"Y",IF($O23=CB1,"Y","")))))) ->  | CC23: =$A$23 -> 21 | CD23: =IF($E23=CD1,$F23,IF($G23=CD1,$H23,IF($I23=CD1,$J23,IF($K23=CD1,$L23,IF($M23=CD1,$N23,IF($O23=CD1,$P23,"")))))) ->  | CE23: =IF($E23=CE1,"Y",IF($G23=CE1,"Y",IF($I23=CE1,"Y",IF($K23=CE1,"Y",IF($M23=CE1,"Y",IF($O23=CE1,"Y","")))))) -> Y | CF23: =$A$23 -> 21 | CG23: =IF($E23=CG1,$F23,IF($G23=CG1,$H23,IF($I23=CG1,$J23,IF($K23=CG1,$L23,IF($M23=CG1,$N23,IF($O23=CG1,$P23,"")))))) -> 0 | CH23: =IF($E23=CH1,"Y",IF($G23=CH1,"Y",IF($I23=CH1,"Y",IF($K23=CH1,"Y",IF($M23=CH1,"Y",IF($O23=CH1,"Y","")))))) -> Y | CI23: =$A$23 -> 21 | CJ23: =IF($E23=CJ1,$F23,IF($G23=CJ1,$H23,IF($I23=CJ1,$J23,IF($K23=CJ1,$L23,IF($M23=CJ1,$N23,IF($O23=CJ1,$P23,"")))))) -> 0 | CK23: =IF($E23=CK1,"Y",IF($G23=CK1,"Y",IF($I23=CK1,"Y",IF($K23=CK1,"Y",IF($M23=CK1,"Y",IF($O23=CK1,"Y","")))))) -> Y | CL23: =$A$23 -> 21 | CM23: =IF($E23=CM1,$F23,IF($G23=CM1,$H23,IF($I23=CM1,$J23,IF($K23=CM1,$L23,IF($M23=CM1,$N23,IF($O23=CM1,$P23,"")))))) -> 0 | CN23: =IF($E23=CN1,"Y",IF($G23=CN1,"Y",IF($I23=CN1,"Y",IF($K23=CN1,"Y",IF($M23=CN1,"Y",IF($O23=CN1,"Y","")))))) -> Y | CO23: =$A$23 -> 21 | CP23: =IF($E23=CP1,$F23,IF($G23=CP1,$H23,IF($I23=CP1,$J23,IF($K23=CP1,$L23,IF($M23=CP1,$N23,IF($O23=CP1,$P23,"")))))) -> 0 | CQ23: =IF($E23=CQ1,"Y",IF($G23=CQ1,"Y",IF($I23=CQ1,"Y",IF($K23=CQ1,"Y",IF($M23=CQ1,"Y",IF($O23=CQ1,"Y","")))))) -> Y | CR23: =$A$23 -> 21 | CS23: =IF($E23=CS1,$F23,IF($G23=CS1,$H23,IF($I23=CS1,$J23,IF($K23=CS1,$L23,IF($M23=CS1,$N23,IF($O23=CS1,$P23,"")))))) -> 0 | CT23: =IF($E23=CT1,"Y",IF($G23=CT1,"Y",IF($I23=CT1,"Y",IF($K23=CT1,"Y",IF($M23=CT1,"Y",IF($O23=CT1,"Y","")))))) -> Y | CU23: =$A$23 -> 21 | CV23: =IF($E23=CV1,$F23,IF($G23=CV1,$H23,IF($I23=CV1,$J23,IF($K23=CV1,$L23,IF($M23=CV1,$N23,IF($O23=CV1,$P23,"")))))) -> 0 | CW23: =IF($E23=CW1,"Y",IF($G23=CW1,"Y",IF($I23=CW1,"Y",IF($K23=CW1,"Y",IF($M23=CW1,"Y",IF($O23=CW1,"Y","")))))) -> Y | CX23: =$A$23 -> 21 | CY23: =IF($E23=CY1,$F23,IF($G23=CY1,$H23,IF($I23=CY1,$J23,IF($K23=CY1,$L23,IF($M23=CY1,$N23,IF($O23=CY1,$P23,"")))))) -> 0 | CZ23: =IF($E23=CZ1,"Y",IF($G23=CZ1,"Y",IF($I23=CZ1,"Y",IF($K23=CZ1,"Y",IF($M23=CZ1,"Y",IF($O23=CZ1,"Y","")))))) -> Y | DA23: =$A$23 -> 21 | DB23: =IF($E23=DB1,$F23,IF($G23=DB1,$H23,IF($I23=DB1,$J23,IF($K23=DB1,$L23,IF($M23=DB1,$N23,IF($O23=DB1,$P23,"")))))) -> 0 | DC23: =IF($E23=DC1,"Y",IF($G23=DC1,"Y",IF($I23=DC1,"Y",IF($K23=DC1,"Y",IF($M23=DC1,"Y",IF($O23=DC1,"Y","")))))) -> Y | DD23: =$A$23 -> 21 | DE23: =IF($E23=DE1,$F23,IF($G23=DE1,$H23,IF($I23=DE1,$J23,IF($K23=DE1,$L23,IF($M23=DE1,$N23,IF($O23=DE1,$P23,"")))))) -> 0 | DF23: =IF($E23=DF1,"Y",IF($G23=DF1,"Y",IF($I23=DF1,"Y",IF($K23=DF1,"Y",IF($M23=DF1,"Y",IF($O23=DF1,"Y","")))))) -> Y | DG23: =$A$23 -> 21 | DH23: =IF($E23=DH1,$F23,IF($G23=DH1,$H23,IF($I23=DH1,$J23,IF($K23=DH1,$L23,IF($M23=DH1,$N23,IF($O23=DH1,$P23,"")))))) -> 0 | DI23: =IF($E23=DI1,"Y",IF($G23=DI1,"Y",IF($I23=DI1,"Y",IF($K23=DI1,"Y",IF($M23=DI1,"Y",IF($O23=DI1,"Y","")))))) -> Y | DJ23: =$A$23 -> 21 | DK23: =IF($E23=DK1,$F23,IF($G23=DK1,$H23,IF($I23=DK1,$J23,IF($K23=DK1,$L23,IF($M23=DK1,$N23,IF($O23=DK1,$P23,"")))))) -> 0 | DL23: =IF($E23=DL1,"Y",IF($G23=DL1,"Y",IF($I23=DL1,"Y",IF($K23=DL1,"Y",IF($M23=DL1,"Y",IF($O23=DL1,"Y","")))))) -> Y | DM23: =$A$23 -> 21 | DN23: =IF($E23=DN1,$F23,IF($G23=DN1,$H23,IF($I23=DN1,$J23,IF($K23=DN1,$L23,IF($M23=DN1,$N23,IF($O23=DN1,$P23,"")))))) -> 0 | DO23: =IF($E23=DO1,"Y",IF($G23=DO1,"Y",IF($I23=DO1,"Y",IF($K23=DO1,"Y",IF($M23=DO1,"Y",IF($O23=DO1,"Y","")))))) -> Y | DP23: =$A$23 -> 21 | DQ23: =IF($E23=DQ1,$F23,IF($G23=DQ1,$H23,IF($I23=DQ1,$J23,IF($K23=DQ1,$L23,IF($M23=DQ1,$N23,IF($O23=DQ1,$P23,"")))))) -> 0
A24: 22 | B24: Gemma Hillier-Moses | C24: Guests | D24: F | E24: 2000SC | F24: 00:00:00 | R24: 22 | T24: =IF($E24=$V$1,"Y",IF($G24=$V$1,"Y",IF($I24=$V$1,"Y",IF($K24=$V$1,"Y",IF($M24=$V$1,"Y",IF($O24=$V$1,"Y","")))))) ->  | U24: 22 | V24: =IF($E24=$V$1,$F24,IF($G24=$V$1,$H24,IF($I24=$V$1,$J24,IF($K24=$V$1,$L24,IF($M24=$V$1,$N24,IF($O24=$V$1,$P24,"")))))) ->  | W24: =IF($E24=$Y$1,"Y",IF($G24=$Y$1,"Y",IF($I24=$Y$1,"Y",IF($K24=$Y$1,"Y",IF($M24=$Y$1,"Y",IF($O24=$Y$1,"Y","")))))) ->  | X24: 22 | Y24: =IF($E24=$Y$1,$F24,IF($G24=$Y$1,$H24,IF($I24=$Y$1,$J24,IF($K24=$Y$1,$L24,IF($M24=$Y$1,$N24,IF($O24=$Y$1,$P24,"")))))) ->  | Z24: =IF($E24=$AB$1,"Y",IF($G24=$AB$1,"Y",IF($I24=$AB$1,"Y",IF($K24=$AB$1,"Y",IF($M24=$AB$1,"Y",IF($O24=$AB$1,"Y","")))))) ->  | AA24: 22 | AB24: =IF($E24=$AB$1,$F24,IF($G24=$AB$1,$H24,IF($I24=$AB$1,$J24,IF($K24=$AB$1,$L24,IF($M24=$AB$1,$N24,IF($O24=$AB$1,$P24,"")))))) ->  | AC24: =IF($E24=$AE$1,"Y",IF($G24=$AE$1,"Y",IF($I24=$AE$1,"Y",IF($K24=$AE$1,"Y",IF($M24=$AE$1,"Y",IF($O24=$AE$1,"Y","")))))) ->  | AD24: 22 | AE24: =IF($E24=$AE$1,$F24,IF($G24=$AE$1,$H24,IF($I24=$AE$1,$J24,IF($K24=$AE$1,$L24,IF($M24=$AE$1,$N24,IF($O24=$AE$1,$P24,"")))))) ->  | AF24: =IF($E24=$AH$1,"Y",IF($G24=$AH$1,"Y",IF($I24=$AH$1,"Y",IF($K24=$AH$1,"Y",IF($M24=$AH$1,"Y",IF($O24=$AH$1,"Y","")))))) ->  | AG24: 22 | AH24: =IF($E24=$AH$1,$F24,IF($G24=$AH$1,$H24,IF($I24=$AH$1,$J24,IF($K24=$AH$1,$L24,IF($M24=$AH$1,$N24,IF($O24=$AH$1,$P24,"")))))) ->  | AJ24: 22 | AK24: =IF($E24=$AK$1,$F24,IF($G24=$AK$1,$H24,IF($I24=$AK$1,$J24,IF($K24=$AK$1,$L24,IF($M24=$AK$1,$N24,IF($O24=$AK$1,$P24,"")))))) ->  | AM24: =$A$24 -> 22 | AO24: Y | AP24: =$A$24 -> 22 | AQ24: 00:00:00 | AR24: =IF($E24=AR1,"Y",IF($G24=AR1,"Y",IF($I24=AR1,"Y",IF($K24=AR1,"Y",IF($M24=AR1,"Y",IF($O24=AR1,"Y","")))))) ->  | AS24: =$A$24 -> 22 | AT24: =IF($E24=AT1,$F24,IF($G24=AT1,$H24,IF($I24=AT1,$J24,IF($K24=AT1,$L24,IF($M24=AT1,$N24,IF($O24=AT1,$P24,"")))))) ->  | AU24: =IF($E24=AU1,"Y",IF($G24=AU1,"Y",IF($I24=AU1,"Y",IF($K24=AU1,"Y",IF($M24=AU1,"Y",IF($O24=AU1,"Y","")))))) ->  | AV24: =$A$24 -> 22 | AW24: =IF($E24=AW1,$F24,IF($G24=AW1,$H24,IF($I24=AW1,$J24,IF($K24=AW1,$L24,IF($M24=AW1,$N24,IF($O24=AW1,$P24,"")))))) ->  | AX24: =IF($E24=AX1,"Y",IF($G24=AX1,"Y",IF($I24=AX1,"Y",IF($K24=AX1,"Y",IF($M24=AX1,"Y",IF($O24=AX1,"Y","")))))) ->  | AY24: =$A$24 -> 22 | AZ24: =IF($E24=AZ1,$F24,IF($G24=AZ1,$H24,IF($I24=AZ1,$J24,IF($K24=AZ1,$L24,IF($M24=AZ1,$N24,IF($O24=AZ1,$P24,"")))))) ->  | BA24: =IF($E24=BA1,"Y",IF($G24=BA1,"Y",IF($I24=BA1,"Y",IF($K24=BA1,"Y",IF($M24=BA1,"Y",IF($O24=BA1,"Y","")))))) ->  | BB24: =$A$24 -> 22 | BC24: =IF($E24=BC1,$F24,IF($G24=BC1,$H24,IF($I24=BC1,$J24,IF($K24=BC1,$L24,IF($M24=BC1,$N24,IF($O24=BC1,$P24,"")))))) ->  | BD24: =IF($E24=BD1,"Y",IF($G24=BD1,"Y",IF($I24=BD1,"Y",IF($K24=BD1,"Y",IF($M24=BD1,"Y",IF($O24=BD1,"Y","")))))) ->  | BE24: =$A$24 -> 22 | BF24: =IF($E24=BF1,$F24,IF($G24=BF1,$H24,IF($I24=BF1,$J24,IF($K24=BF1,$L24,IF($M24=BF1,$N24,IF($O24=BF1,$P24,"")))))) ->  | BG24: =IF($E24=BG1,"Y",IF($G24=BG1,"Y",IF($I24=BG1,"Y",IF($K24=BG1,"Y",IF($M24=BG1,"Y",IF($O24=BG1,"Y","")))))) ->  | BH24: =$A$24 -> 22 | BI24: =IF($E24=BI1,$F24,IF($G24=BI1,$H24,IF($I24=BI1,$J24,IF($K24=BI1,$L24,IF($M24=BI1,$N24,IF($O24=BI1,$P24,"")))))) ->  | BJ24: =IF($E24=BJ1,"Y",IF($G24=BJ1,"Y",IF($I24=BJ1,"Y",IF($K24=BJ1,"Y",IF($M24=BJ1,"Y",IF($O24=BJ1,"Y","")))))) ->  | BK24: =$A$24 -> 22 | BL24: =IF($E24=BL1,$F24,IF($G24=BL1,$H24,IF($I24=BL1,$J24,IF($K24=BL1,$L24,IF($M24=BL1,$N24,IF($O24=BL1,$P24,"")))))) ->  | BM24: =IF($E24=BM1,"Y",IF($G24=BM1,"Y",IF($I24=BM1,"Y",IF($K24=BM1,"Y",IF($M24=BM1,"Y",IF($O24=BM1,"Y","")))))) ->  | BN24: =$A$24 -> 22 | BO24: =IF($E24=BO1,$F24,IF($G24=BO1,$H24,IF($I24=BO1,$J24,IF($K24=BO1,$L24,IF($M24=BO1,$N24,IF($O24=BO1,$P24,"")))))) ->  | BP24: =IF($E24=BP1,"Y",IF($G24=BP1,"Y",IF($I24=BP1,"Y",IF($K24=BP1,"Y",IF($M24=BP1,"Y",IF($O24=BP1,"Y","")))))) ->  | BQ24: =$A$24 -> 22 | BR24: =IF($E24=BR1,$F24,IF($G24=BR1,$H24,IF($I24=BR1,$J24,IF($K24=BR1,$L24,IF($M24=BR1,$N24,IF($O24=BR1,$P24,"")))))) ->  | BS24: =IF($E24=BS1,"Y",IF($G24=BS1,"Y",IF($I24=BS1,"Y",IF($K24=BS1,"Y",IF($M24=BS1,"Y",IF($O24=BS1,"Y","")))))) ->  | BT24: =$A$24 -> 22 | BU24: =IF($E24=BU1,$F24,IF($G24=BU1,$H24,IF($I24=BU1,$J24,IF($K24=BU1,$L24,IF($M24=BU1,$N24,IF($O24=BU1,$P24,"")))))) ->  | BV24: =IF($E24=BV1,"Y",IF($G24=BV1,"Y",IF($I24=BV1,"Y",IF($K24=BV1,"Y",IF($M24=BV1,"Y",IF($O24=BV1,"Y","")))))) ->  | BW24: =$A$24 -> 22 | BX24: =IF($E24=BX1,$F24,IF($G24=BX1,$H24,IF($I24=BX1,$J24,IF($K24=BX1,$L24,IF($M24=BX1,$N24,IF($O24=BX1,$P24,"")))))) ->  | BY24: =IF($E24=BY1,"Y",IF($G24=BY1,"Y",IF($I24=BY1,"Y",IF($K24=BY1,"Y",IF($M24=BY1,"Y",IF($O24=BY1,"Y","")))))) ->  | BZ24: =$A$24 -> 22 | CA24: =IF($E24=CA1,$F24,IF($G24=CA1,$H24,IF($I24=CA1,$J24,IF($K24=CA1,$L24,IF($M24=CA1,$N24,IF($O24=CA1,$P24,"")))))) ->  | CB24: =IF($E24=CB1,"Y",IF($G24=CB1,"Y",IF($I24=CB1,"Y",IF($K24=CB1,"Y",IF($M24=CB1,"Y",IF($O24=CB1,"Y","")))))) ->  | CC24: =$A$24 -> 22 | CD24: =IF($E24=CD1,$F24,IF($G24=CD1,$H24,IF($I24=CD1,$J24,IF($K24=CD1,$L24,IF($M24=CD1,$N24,IF($O24=CD1,$P24,"")))))) ->  | CE24: =IF($E24=CE1,"Y",IF($G24=CE1,"Y",IF($I24=CE1,"Y",IF($K24=CE1,"Y",IF($M24=CE1,"Y",IF($O24=CE1,"Y","")))))) -> Y | CF24: =$A$24 -> 22 | CG24: =IF($E24=CG1,$F24,IF($G24=CG1,$H24,IF($I24=CG1,$J24,IF($K24=CG1,$L24,IF($M24=CG1,$N24,IF($O24=CG1,$P24,"")))))) -> 0 | CH24: =IF($E24=CH1,"Y",IF($G24=CH1,"Y",IF($I24=CH1,"Y",IF($K24=CH1,"Y",IF($M24=CH1,"Y",IF($O24=CH1,"Y","")))))) -> Y | CI24: =$A$24 -> 22 | CJ24: =IF($E24=CJ1,$F24,IF($G24=CJ1,$H24,IF($I24=CJ1,$J24,IF($K24=CJ1,$L24,IF($M24=CJ1,$N24,IF($O24=CJ1,$P24,"")))))) -> 0 | CK24: =IF($E24=CK1,"Y",IF($G24=CK1,"Y",IF($I24=CK1,"Y",IF($K24=CK1,"Y",IF($M24=CK1,"Y",IF($O24=CK1,"Y","")))))) -> Y | CL24: =$A$24 -> 22 | CM24: =IF($E24=CM1,$F24,IF($G24=CM1,$H24,IF($I24=CM1,$J24,IF($K24=CM1,$L24,IF($M24=CM1,$N24,IF($O24=CM1,$P24,"")))))) -> 0 | CN24: =IF($E24=CN1,"Y",IF($G24=CN1,"Y",IF($I24=CN1,"Y",IF($K24=CN1,"Y",IF($M24=CN1,"Y",IF($O24=CN1,"Y","")))))) -> Y | CO24: =$A$24 -> 22 | CP24: =IF($E24=CP1,$F24,IF($G24=CP1,$H24,IF($I24=CP1,$J24,IF($K24=CP1,$L24,IF($M24=CP1,$N24,IF($O24=CP1,$P24,"")))))) -> 0 | CQ24: =IF($E24=CQ1,"Y",IF($G24=CQ1,"Y",IF($I24=CQ1,"Y",IF($K24=CQ1,"Y",IF($M24=CQ1,"Y",IF($O24=CQ1,"Y","")))))) -> Y | CR24: =$A$24 -> 22 | CS24: =IF($E24=CS1,$F24,IF($G24=CS1,$H24,IF($I24=CS1,$J24,IF($K24=CS1,$L24,IF($M24=CS1,$N24,IF($O24=CS1,$P24,"")))))) -> 0 | CT24: =IF($E24=CT1,"Y",IF($G24=CT1,"Y",IF($I24=CT1,"Y",IF($K24=CT1,"Y",IF($M24=CT1,"Y",IF($O24=CT1,"Y","")))))) -> Y | CU24: =$A$24 -> 22 | CV24: =IF($E24=CV1,$F24,IF($G24=CV1,$H24,IF($I24=CV1,$J24,IF($K24=CV1,$L24,IF($M24=CV1,$N24,IF($O24=CV1,$P24,"")))))) -> 0 | CW24: =IF($E24=CW1,"Y",IF($G24=CW1,"Y",IF($I24=CW1,"Y",IF($K24=CW1,"Y",IF($M24=CW1,"Y",IF($O24=CW1,"Y","")))))) -> Y | CX24: =$A$24 -> 22 | CY24: =IF($E24=CY1,$F24,IF($G24=CY1,$H24,IF($I24=CY1,$J24,IF($K24=CY1,$L24,IF($M24=CY1,$N24,IF($O24=CY1,$P24,"")))))) -> 0 | CZ24: =IF($E24=CZ1,"Y",IF($G24=CZ1,"Y",IF($I24=CZ1,"Y",IF($K24=CZ1,"Y",IF($M24=CZ1,"Y",IF($O24=CZ1,"Y","")))))) -> Y | DA24: =$A$24 -> 22 | DB24: =IF($E24=DB1,$F24,IF($G24=DB1,$H24,IF($I24=DB1,$J24,IF($K24=DB1,$L24,IF($M24=DB1,$N24,IF($O24=DB1,$P24,"")))))) -> 0 | DC24: =IF($E24=DC1,"Y",IF($G24=DC1,"Y",IF($I24=DC1,"Y",IF($K24=DC1,"Y",IF($M24=DC1,"Y",IF($O24=DC1,"Y","")))))) -> Y | DD24: =$A$24 -> 22 | DE24: =IF($E24=DE1,$F24,IF($G24=DE1,$H24,IF($I24=DE1,$J24,IF($K24=DE1,$L24,IF($M24=DE1,$N24,IF($O24=DE1,$P24,"")))))) -> 0 | DF24: =IF($E24=DF1,"Y",IF($G24=DF1,"Y",IF($I24=DF1,"Y",IF($K24=DF1,"Y",IF($M24=DF1,"Y",IF($O24=DF1,"Y","")))))) -> Y | DG24: =$A$24 -> 22 | DH24: =IF($E24=DH1,$F24,IF($G24=DH1,$H24,IF($I24=DH1,$J24,IF($K24=DH1,$L24,IF($M24=DH1,$N24,IF($O24=DH1,$P24,"")))))) -> 0 | DI24: =IF($E24=DI1,"Y",IF($G24=DI1,"Y",IF($I24=DI1,"Y",IF($K24=DI1,"Y",IF($M24=DI1,"Y",IF($O24=DI1,"Y","")))))) -> Y | DJ24: =$A$24 -> 22 | DK24: =IF($E24=DK1,$F24,IF($G24=DK1,$H24,IF($I24=DK1,$J24,IF($K24=DK1,$L24,IF($M24=DK1,$N24,IF($O24=DK1,$P24,"")))))) -> 0 | DL24: =IF($E24=DL1,"Y",IF($G24=DL1,"Y",IF($I24=DL1,"Y",IF($K24=DL1,"Y",IF($M24=DL1,"Y",IF($O24=DL1,"Y","")))))) -> Y | DM24: =$A$24 -> 22 | DN24: =IF($E24=DN1,$F24,IF($G24=DN1,$H24,IF($I24=DN1,$J24,IF($K24=DN1,$L24,IF($M24=DN1,$N24,IF($O24=DN1,$P24,"")))))) -> 0 | DO24: =IF($E24=DO1,"Y",IF($G24=DO1,"Y",IF($I24=DO1,"Y",IF($K24=DO1,"Y",IF($M24=DO1,"Y",IF($O24=DO1,"Y","")))))) -> Y | DP24: =$A$24 -> 22 | DQ24: =IF($E24=DQ1,$F24,IF($G24=DQ1,$H24,IF($I24=DQ1,$J24,IF($K24=DQ1,$L24,IF($M24=DQ1,$N24,IF($O24=DQ1,$P24,"")))))) -> 0
